Workbook

Sheet Planilha4 (hidden)
B1: ADUTORA | D1: ADUTORA TRECHO 02.01 | F1: ADUTORA TRECHO 03
B2: CURVA 90°, FOFO, JGS, PN25, DN 800MM | D2: EXTREMIDADE, FOFO, FLANGE/BOLSA, PN25, DN 800MM | F2: EXTREMIDADE, FOFO, FLANGE/BOLSA, PN16, DN 700MM
B3: CURVA 45°, FOFO, JGS, PN25, DN 800MM | D3: CURVA 22°, FOFO, JGS, PN25, DN 800MM | F3: EXTREMIDADE, FOFO, FLANGE/PONTA, ABA DE VEDAÇÃO PN16, DN 700MM
B4: CURVA 22°, FOFO, JGS, PN25, DN 800MM | D4: CURVA 11°, FOFO, JGS, PN25, DN 800MM | F4: CURVA 90°, FOFO, JGS, PN16, DN 700MM
B5: VENTOSAS E DESCARGAS | D5: LUVA SIMPLES, FOFO, BOLSA/BOLSA, PN25, DN 800MM | F5: CURVA 45°, FOFO, JGS, PN16, DN 700MM
B6: TÊ, BBF, FOFO, PN25, DN 800-200MM | D6: LUVA CORRER, FOFO, BOLSA/BOLSA, PN25, DN 800MM | F6: CURVA 22°, FOFO, JGS, PN16, DN 700MM
B7: CURVA 45°, FOFO, FLANGES, PN25, DN 150MM | D7: ADUTORA TRECHO 02.02 | F7: CURVA 11°, FOFO, JGS, PN16, DN 700MM
B8: REDUÇÃO CONCÊNTRICA, FOFO, FLANGES, PN25, DN 200-150MM | D8: EXTREMIDADE, FOFO, FLANGE/BOLSA, PN25, DN 700MM | F8: LUVA SIMPLES, FOFO, BOLSA/BOLSA, PN16, DN 700MM
B9: REDUÇÃO CONCÊNTRICA, FOFO, FLANGES, PN25, DN 200-100MM | D9: CURVA 22°, FOFO, JGS, PN25, DN 700MM | F9: VENTOSAS E DESCARGAS
B10: PARAFUSO PARA FLANGES, PN25, 16x80 | D10: CURVA 11°, FOFO, JGS, PN25, DN 700MM | F10: TÊ, BBF, FOFO, PN16, DN 700-200MM
B11: PARAFUSO PARA FLANGES, PN25, 20X90 | D11: LUVA SIMPLES, FOFO, BOLSA/BOLSA, PN25, DN 700MM | F11: CURVA 45°, FOFO, FLANGES, PN16, DN 150MM
B12: ARRUELA DE BORRACHA PARA FLANGES, DN 100MM | D12: VENTOSAS E DESCARGAS - TRECHO 02.01 | F12: REDUÇÃO CONCÊNTRICA, FOFO, FLANGES, PN16, DN 200-150MM
B13: ARRUELA DE BORRACHA PARA FLANGES, DN 150MM | D13: TÊ, BBF, FOFO, PN25, DN 800-200MM | F13: REDUÇÃO CONCÊNTRICA, FOFO, FLANGES, PN16, DN 200-100MM
B14: ARRUELA DE BORRACHA PARA FLANGES, DN 200MM | D14: CURVA 45°, FOFO, FLANGES, PN25, DN 150MM | F14: PARAFUSO PARA FLANGES, PN16, 16x80
B15: VÁLVULA GAVETA, FLANGES, CORPO CURTO, VOLANTE E CUNHA DE BORRACHA, DN 100MM | D15: REDUÇÃO CONCÊNTRICA, FOFO, FLANGES, PN25, DN 200-150MM | F15: PARAFUSO PARA FLANGES, PN16, 20X90
B16: VÁLVULA GAVETA, FLANGES, CORPO CURTO, VOLANTE E CUNHA DE BORRACHA, DN 150MM | D16: REDUÇÃO CONCÊNTRICA, FOFO, FLANGES, PN25, DN 200-100MM | F16: ARRUELA DE BORRACHA PARA FLANGES, DN 100MM
B17: VENTOSA TRÍPLICE FUNÇÃO, FOFO, FLANGE, PN25, DN 100MM | D17: PARAFUSO PARA FLANGES, PN25, 16x80 | F17: ARRUELA DE BORRACHA PARA FLANGES, DN 150MM
B18: TRAVESSIAS | D18: PARAFUSO PARA FLANGES, PN25, 20X90 | F18: ARRUELA DE BORRACHA PARA FLANGES, DN 200MM
B19: CURVA 45°, FOFO, JGS, PN10, DN 800MM | D19: ARRUELA DE BORRACHA PARA FLANGES, DN 100MM | F19: VÁLVULA GAVETA, FLANGES, CORPO CURTO, VOLANTE E CUNHA DE BORRACHA, DN 100MM
B20: TUBO, FOFO, FLANGE/BOLSA, DN 800MM, L=6800MM | D20: ARRUELA DE BORRACHA PARA FLANGES, DN 150MM | F20: VÁLVULA GAVETA, FLANGES, CORPO CURTO, VOLANTE E CUNHA DE BORRACHA, DN 150MM
B21: TUBO, FOFO, FLANGE/PONTA, DN 800MM, L=1500MM | D21: ARRUELA DE BORRACHA PARA FLANGES, DN 200MM | F21: VENTOSA TRÍPLICE FUNÇÃO, FOFO, FLANGE, PN25, DN 100MM
B22: TUBO, FOFO, FLANGE/PONTA, DN 800MM, L=4000MM | D22: VÁLVULA GAVETA, FLANGES, CORPO CURTO, VOLANTE E CUNHA DE BORRACHA, DN 100MM
B23: TUBO, FOFO, FLANGE/PONTA, DN 800MM, L=6800MM | D23: VÁLVULA GAVETA, FLANGES, CORPO CURTO, VOLANTE E CUNHA DE BORRACHA, DN 150MM
B24: TUBO, FOFO, FLANGES, DN 800MM, L=621MM | D24: VENTOSA TRÍPLICE FUNÇÃO, FOFO, FLANGE, PN25, DN 100MM
B25: TUBO, FOFO, FLANGES, DN 800MM, L=880MM | D25: VENTOSAS E DESCARGAS - TRECHO 02.02
B26: TUBO, FOFO, FLANGES, DN 800MM, L=1000MM | D26: TÊ, BBF, FOFO, PN25, DN 700-200MM
B27: TUBO, FOFO, FLANGES, DN 800MM, L=1080MM | D27: CURVA 45°, FOFO, FLANGES, PN25, DN 150MM
B28: TUBO, FOFO, FLANGES, DN 800MM, L=1340MM | D28: REDUÇÃO CONCÊNTRICA, FOFO, FLANGES, PN25, DN 200-150MM
B29: TUBO, FOFO, FLANGES, DN 800MM, L=2000MM | D29: REDUÇÃO CONCÊNTRICA, FOFO, FLANGES, PN25, DN 200-100MM
B30: TUBO CILÍNDRICO, FOFO, DN 800MM, L=1500MM | D30: PARAFUSO PARA FLANGES, PN25, 16x80
B31: TUBO CILÍNDRICO, FOFO, DN 800MM, L=2000MM | D31: PARAFUSO PARA FLANGES, PN25, 20X90
B32: CURVA 90°, FOFO, FLANGES, PN10, DN 800MM | D32: ARRUELA DE BORRACHA PARA FLANGES, DN 100MM
B33: EXTREMIDADE, FOFO, FLANGE/BOLSA, PN10, DN 800MM | D33: ARRUELA DE BORRACHA PARA FLANGES, DN 150MM
B34: JUNTA DE DESMONTAGEM TRAVADA AXIALMENTE, DN 800MM | D34: ARRUELA DE BORRACHA PARA FLANGES, DN 200MM
B35: TÊ, FFF, FOFO, PN10, DN 800MM | D35: VÁLVULA GAVETA, FLANGES, CORPO CURTO, VOLANTE E CUNHA DE BORRACHA, DN 100MM
B36: TOCO, FOFO, FLANGES, ABA DE VEDAÇÃO, DN 800MM | D36: VÁLVULA GAVETA, FLANGES, CORPO CURTO, VOLANTE E CUNHA DE BORRACHA, DN 150MM
B37: ARRUELA DE BORRACHA PARA FLANGES, DN 800MM | D37: VENTOSA TRÍPLICE FUNÇÃO, FOFO, FLANGE, PN25, DN 100MM
B38: PARAFUSO PARA FLANGES, PN10, 30X140
B39: VÁLVULA GAVETA OVAL, FLANGES, CORPO CURTO, CABEÇOTE E CUNHA METÁLICA, DN 800MM

Sheet RESUMO
A1: PLANILHA RESUMO
A3: PROJETO: | C3: Sistema Adutor do Agreste Potiguar | D3: REVISÃO: | E3: E.S. MÊS: | F3: 0.7148 | G3: E.S. MÊS: | H3: 0.4744
A4: SERVIÇO: | C4: Trechos 01, 02, 03, 04, 05, 06 e 07 - Captação a Santa Cruz | D4: 01 | E4: E.S. HORA: | F4: 1.1621 | G4: E.S. HORA: | H4: 0.8598
A5: LOCAL: | C5: Canguaretama a Santa Cruz/RN | D5: DATA BASE: | E5: BDI SERVIÇO: | F5: =BNCDADOS!$E$8 -> 0.2369 | G5: BDI SERVIÇO: | H5: =BNCDADOS!$G$8 -> 0.2996
A6: REFERÊNCIAS: | C6: SINAPI 07/24, SICRO 04/24, SEINFRA 28, EMBASA 05/24 | D6: 2024-09-01 | E6: BDI MATERIAL E EQUIP.: | F6: ='BDI (equip_mat)'!$G$26 -> 0.12 | G6: BDI MATERIAL E EQUIP.: | H6: ='BDI (equip_mat)'!$I$26 -> 0.1748
A7: ITEM | B7: DISCRIMINAÇÃO | D7: SERVIÇO | E7: TOTAL (R$) SEM DESONERAÇÃO | G7: TOTAL (R$) COM DESONERAÇÃO
A9: =Orçamento!A10 -> 1. | B9: =Orçamento!D10 -> SERVIÇOS PRELIMINARES | E9: =Orçamento!I10 -> 28120056.94 | G9: =Orçamento!L10 -> 26024771.87 | H9: =SUM(D9:F9) -> 28120056.94
A10: =Orçamento!A11 -> 1.1 | B10: =Orçamento!D11 -> ADMINISTRAÇÃO LOCAL | E10: =Orçamento!I11 -> 27213809.22 | G10: =Orçamento!L11 -> 25098171.76 | J10: =E83-E10 -> 481823382.9
A11: =Orçamento!A13 -> 1.2 | B11: =Orçamento!D13 -> MOBILIZAÇÃO E DESMOBILIZAÇÃO | E11: =Orçamento!I13 -> 239065.18 | G11: =Orçamento!L13 -> 248956.69
A12: =Orçamento!A17 -> 1.3 | B12: =Orçamento!D17 -> CANTEIRO CENTRAL DE OBRAS | E12: =Orçamento!I17 -> 630641.44 | G12: =Orçamento!L17 -> 639893.72
A13: =Orçamento!A26 -> 1.4 | B13: =Orçamento!D26 -> DIVERSOS | E13: =Orçamento!I26 -> 36541.1 | G13: =Orçamento!L26 -> 37749.7
A15: ='[141]Orçamento - E01'!A34 -> 2. | B15: ='[141]Orçamento - E01'!D34 -> TRECHO 01 - CAPTAÇÃO À ETA | E15: =Orçamento!I30 -> 98564020.42 | G15: =Orçamento!L30 -> 102933846.4 | H15: =SUM(D15:F15) -> 98564020.42
A16: ='[141]Orçamento - E01'!A35 -> 2.1 | B16: ='[141]Orçamento - E01'!D35 -> SERVIÇOS_ADUTORA TRECHO 01 - CAPTAÇÃO A ETA | E16: =Orçamento!I31 -> 10041135.59 | G16: =Orçamento!L31 -> 10233798.8 | M16: =E10/E83 -> 0.05346133768
A17: ='[141]Orçamento - E01'!A75 -> 2.2 | B17: ='[141]Orçamento - E01'!D75 -> SERVIÇOS_CAPTAÇÃO | E17: =Orçamento!I70 -> 809904.23 | G17: =Orçamento!L70 -> 831342.01
A18: ='[141]Orçamento - E01'!A169 -> 2.3 | B18: ='[141]Orçamento - E01'!D169 -> SERVIÇOS_ESTAÇÃO DE TRATAMENTO DE ÁGUA | E18: =Orçamento!I163 -> 6888913.28 | G18: =Orçamento!L163 -> 7089996.09
A19: ='[141]Orçamento - E01'!A272 -> 2.4 | B19: ='[141]Orçamento - E01'!D272 -> MATERIAIS_TRECHO 01 - CAPATAÇÃO A ETA | E19: =Orçamento!I265 -> 47946123.51 | G19: =Orçamento!L265 -> 50292094.92
A20: ='[141]Orçamento - E01'!A317 -> 2.5 | B20: ='[141]Orçamento - E01'!D317 -> EQUIPAMENTOS_TRECHO 01 - CAPATAÇÃO A ETA | E20: =Orçamento!I310 -> 32877943.81 | G20: =Orçamento!L310 -> 34486614.63
A22: ='[141]Orçamento - E01'!A333 -> 3. | B22: ='[141]Orçamento - E01'!D333 -> TRECHO 02 - ETA À MONTANHAS | E22: =Orçamento!I326 -> 70996984.97 | G22: =Orçamento!L326 -> 73921718.31 | H22: =SUM(D22:F22) -> 70996984.97
A23: ='[141]Orçamento - E01'!A334 -> 3.1 | B23: ='[141]Orçamento - E01'!D334 -> SERVIÇOS_ADUTORA TRECHO 02.01 | E23: =Orçamento!I327 -> 3990044.17 | G23: =Orçamento!L327 -> 4046447.2 | H23: 3990044.17
A24: ='[141]Orçamento - E01'!A366 -> 3.2 | B24: ='[141]Orçamento - E01'!D366 -> SERVIÇOS_ADUTORA TRECHO 02.02 | E24: =Orçamento!I359 -> 4276743.89 | G24: =Orçamento!L359 -> 4335153.52 | H24: 4276743.89
A25: ='[141]Orçamento - E01'!A398 -> 3.3 | B25: ='[141]Orçamento - E01'!D398 -> SERVIÇOS_SUB ADUTORA TRECHO 02.02 - PEDRO VELHO | E25: =Orçamento!I391 -> 126833.18 | G25: =Orçamento!L391 -> 128150.08
A26: ='[141]Orçamento - E01'!A433 -> 3.4 | B26: ='[141]Orçamento - E01'!D433 -> SERVIÇOS_SUB ADUTORA TRECHO 02.02 - MONTANHAS | E26: =Orçamento!I426 -> 50745.03 | G26: =Orçamento!L426 -> 51482.08
A27: ='[141]Orçamento - E01'!A461 -> 3.5 | B27: ='[141]Orçamento - E01'!D461 -> SERVIÇOS_ESTAÇÃO ELEVATÓRIA DE ÁGUA TRATADA_PEDRO VELHO | E27: =Orçamento!I454 -> 5798822.24 | G27: =Orçamento!L454 -> 5983700.14 | H27: 5798822.24
A28: ='[141]Orçamento - E01'!A565 -> 3.6 | B28: ='[141]Orçamento - E01'!D565 -> SERVIÇOS_ESTAÇÃO ELEVATÓRIA DE ÁGUA TRATADA_MONTANHAS | E28: =Orçamento!I558 -> 4521965.98 | G28: =Orçamento!L558 -> 4665206.79 | H28: 4521965.98
A29: ='[141]Orçamento - E01'!A669 -> 3.7 | B29: ='[141]Orçamento - E01'!D669 -> SERVIÇOS_RESERVATÓRIO APOIADO (RAP)_PEDRO VELHO | E29: =Orçamento!I662 -> 1888058.81 | G29: =Orçamento!L662 -> 1942516.25
A30: ='[141]Orçamento - E01'!A741 -> 3.8 | B30: ='[141]Orçamento - E01'!D741 -> SERVIÇOS_RESERVATÓRIO APOIADO (RAP)_MONTANHAS | E30: =Orçamento!I734 -> 1888058.81 | G30: =Orçamento!L734 -> 1942516.25
A31: ='[141]Orçamento - E01'!A814 -> 3.9 | B31: ='[141]Orçamento - E01'!D814 -> MATERIAIS_TRECHO 02 - ETA A MONTANHAS | E31: =Orçamento!I807 -> 42890995.24 | G31: =Orçamento!L807 -> 44989554.72 | H31: =SUM(D31:F31) -> 42890995.24
A32: ='[141]Orçamento - E01'!A874 -> 3.10 | B32: ='[141]Orçamento - E01'!D874 -> EQUIPAMENTOS_TRECHO 02 - ETA A MONTANHAS | E32: =Orçamento!I867 -> 5564717.62 | G32: =Orçamento!L867 -> 5836991.28 | H32: 5564717.62
H33: 0
A34: ='[141]Orçamento - E01'!A888 -> 4. | B34: ='[141]Orçamento - E01'!D888 -> TRECHO 03 - MONTANHAS À NOVA CRUZ | E34: =Orçamento!I881 -> 55448147.19 | G34: =Orçamento!L881 -> 57713764.3 | H34: 55448147.19
A35: ='[141]Orçamento - E01'!A889 -> 4.1 | B35: ='[141]Orçamento - E01'!D889 -> SERVIÇOS_ADUTORA | E35: =Orçamento!I882 -> 7694437.81 | G35: =Orçamento!L882 -> 7799564.2 | H35: 7694437.81
A36: ='[141]Orçamento - E01'!A922 -> 4.2 | B36: ='[141]Orçamento - E01'!D922 -> SERVIÇOS_SUB ADUTORA - NOVA CRUZ | E36: =Orçamento!I915 -> 803626.04 | G36: =Orçamento!L915 -> 804252.74
A37: ='[141]Orçamento - E01'!A955 -> 4.3 | B37: ='[141]Orçamento - E01'!D955 -> SERVIÇOS_ESTAÇÃO ELEVATÓRIA DE ÁGUA TRATADA_NOVA CRUZ | E37: =Orçamento!I948 -> 5830860.91 | G37: =Orçamento!L948 -> 6016852.15 | H37: 5830860.91
A38: ='[141]Orçamento - E01'!A1060 -> 4.4 | B38: ='[141]Orçamento - E01'!D1060 -> SERVIÇOS_RESERVATÓRIO APOIADO (RAP)_NOVA CRUZ | E38: =Orçamento!I1053 -> 1888058.81 | G38: =Orçamento!L1053 -> 1942516.25
A39: ='[141]Orçamento - E01'!A1133 -> 4.5 | B39: ='[141]Orçamento - E01'!D1133 -> MATERIAIS_TRECHO 03 - MONTANHAS A NOVA CRUZ | E39: =Orçamento!I1126 -> 37141370.5 | G39: =Orçamento!L1126 -> 38958535.25 | H39: 37141370.5
A40: ='[141]Orçamento - E01'!A1170 -> 4.6 | B40: ='[141]Orçamento - E01'!D1170 -> EQUIPAMENTOS_TRECHO 03 - MONTANHAS A NOVA CRUZ | E40: =Orçamento!I1163 -> 2089793.12 | G40: =Orçamento!L1163 -> 2192043.71 | H40: 2089793.12
A44: =Orçamento!A1176 -> 5. | B44: =Orçamento!D1176 -> TRECHO 04 - NOVA CRUZ À SERRINHA | E44: =Orçamento!I1176 -> 38031035.59 | G44: =Orçamento!L1176 -> 39329240.54 | H44: =SUM(D44:F44) -> 38031035.59
A45: 2.1 | B45: =Orçamento!D1177 -> SERVIÇOS_ADUTORA TRECHO 04.01_NOVA CRUZ Ä EEAT 04 (STO ANTÔNIO) | E45: =Orçamento!I1177 -> 7892989.26 | G45: =Orçamento!L1177 -> 7971094.12
A46: 2.2 | B46: =Orçamento!D1224 -> SERVIÇOS_ADUTORA TRECHO 04.02_EEAT 04 Ä SERRINHA | E46: =Orçamento!I1224 -> 2419621 | G46: =Orçamento!L1224 -> 2456925.2
A47: 2.3 | B47: =Orçamento!D1284 -> SERVIÇOS_EEAT 04_SANTO ANTÔNIO | E47: =Orçamento!I1284 -> 4832071.82 | G47: =Orçamento!L1284 -> 4971047.68
A48: 2.4 | B48: =Orçamento!D1424 -> SERVIÇOS_RESERVATÓRIO APOIADO (RAP)_SANTO ANTÔNIO | E48: =Orçamento!I1424 -> 1888058.81 | G48: =Orçamento!L1424 -> 1942516.25
A49: 2.5 | B49: =Orçamento!D1497 -> SERVIÇOS_RESERVATÓRIO APOIADO (RAP)_SERRINHA | E49: =Orçamento!I1497 -> 1888058.81 | G49: =Orçamento!L1497 -> 1942516.25
A50: 2.6 | B50: =Orçamento!D1570 -> MATERIAIS_TRECHO 04.01 | E50: =Orçamento!I1570 -> 16639032.21 | G50: =Orçamento!L1570 -> 17453053.97
A51: 2.7 | B51: =Orçamento!D1589 -> MATERIAIS_TRECHO 04.02 | E51: =Orçamento!I1589 -> 1925132.97 | G51: =Orçamento!L1589 -> 2019297.61
A52: 2.8 | B52: =Orçamento!D1627 -> MATERIAIS_EEAT 04_SANTO ANTÔNIO | E52: =Orçamento!I1627 -> 151120.25 | G52: =Orçamento!L1627 -> 158514.62
A53: 2.9 | B53: =Orçamento!D1675 -> EQUIPAMENTOS_EEAT 04_SANTO ANTÔNIO | E53: =Orçamento!I1675 -> 394950.46 | G53: =Orçamento!L1675 -> 414274.84
A55: 6 | B55: =Orçamento!D1684 -> TRECHO 05 - NOVA CRUZ À PASSA E FICA | E55: =Orçamento!I1684 -> 56826168.25 | G55: =Orçamento!L1684 -> 59129611.66 | H55: =SUM(D55:F55) -> 56826168.25
A56: 6.1 | B56: =Orçamento!D1685 -> SERVIÇOS_ADUTORA TRECHO 05.01 | E56: =Orçamento!I1685 -> 4083928.12 | G56: =Orçamento!L1685 -> 4110735.62 | H56: 4083928.12
A57: 6.2 | B57: =Orçamento!D1725 -> SERVIÇOS_ADUTORA TRECHO 05.02 | E57: =Orçamento!I1725 -> 6752024.87 | G57: =Orçamento!L1725 -> 6852091.93 | H57: 6752024.87
A58: 6.3 | B58: =Orçamento!D1785 -> SERVIÇOS_EEAT 05_PASSA E FICA | E58: =Orçamento!I1785 -> 3666283.99 | G58: =Orçamento!L1785 -> 3771825.06
A59: 6.4 | B59: =Orçamento!D1921 -> MATERIAIS_TRECHO 05.01 | E59: =Orçamento!I1921 -> 15048795.94 | G59: =Orçamento!L1921 -> 15785179.37
A60: 6.5 | B60: =Orçamento!D1953 -> MATERIAIS_TRECHO 05.02 | E60: =Orçamento!I1953 -> 24725022.89 | G60: =Orçamento!L1953 -> 25934893.77 | H60: 24725022.89
A61: 6.6 | B61: =Orçamento!D2002 -> MATERIAIS_EEAT 05_PASSA E FICA | E61: =Orçamento!I2002 -> 652406.07 | G61: =Orçamento!L2002 -> 684327.47 | H61: 652406.07
A62: 6.7 | B62: =Orçamento!D2045 -> EQUIPAMENTOS_EEAT 05_PASSA E FICA | E62: =Orçamento!I2045 -> 1897706.37 | G62: =Orçamento!L2045 -> 1990558.44 | H62: =SUM(D62:F62) -> 1897706.37
A64: 7 | B64: =Orçamento!D2056 -> TRECHO 06 - PASSA E FICA À CAMPESTRE | E64: =Orçamento!I2056 -> 33231935.76 | G64: =Orçamento!L2056 -> 34556037.23 | H64: 33231935.76
A65: 7.1 | B65: =Orçamento!D2057 -> SERVIÇOS_ADUTORA TRECHO 06 | E65: =Orçamento!I2057 -> 5151412.7 | G65: =Orçamento!L2057 -> 5226596.4 | H65: 5151412.7
A66: 7.2 | B66: =Orçamento!D2094 -> SERVIÇOS_EEAT 06_CAMPESTRE | E66: =Orçamento!I2094 -> 4633456.4 | G66: =Orçamento!L2094 -> 4772973.03
A67: 7.3 | B67: =Orçamento!D2230 -> SERVIÇOS_RESERVATÓRIO APOIADO (RAP)_PASSA E FICA | E67: =Orçamento!I2230 -> 1888058.81 | G67: =Orçamento!L2230 -> 1942516.25 | H67: 1888058.81
A68: 7.4 | B68: =Orçamento!D2303 -> MATERIAIS_TRECHO 06 | E68: =Orçamento!I2303 -> 19420327.18 | G68: =Orçamento!L2303 -> 20370628.18 | H68: 19420327.18
A69: 7.5 | B69: =Orçamento!D2317 -> MATERIAIS_EEAT_CAMPESTRE | E69: =Orçamento!I2317 -> 652406.07 | G69: =Orçamento!L2317 -> 684327.47
A70: 7.6 | B70: =Orçamento!D2359 -> EQUIPAMENTOS_EEAT 06_CAMPESTRE | E70: =Orçamento!I2359 -> 1486274.6 | G70: =Orçamento!L2359 -> 1558995.9
A72: 8 | B72: =Orçamento!D2370 -> TRECHO 07 - CAMPESTRE À TANGARÁ | E72: =Orçamento!I2370 -> 49985473.06 | G72: =Orçamento!L2370 -> 51831877.88 | H72: =SUM(D72:F72) -> 49985473.06
A73: 8.1 | B73: =Orçamento!D2371 -> SERVIÇOS_ADUTORA TRECHO 07 | E73: =Orçamento!I2371 -> 10119543.75 | G73: =Orçamento!L2371 -> 10123555.75 | H73: 10119543.75
A74: 8.2 | B74: =Orçamento!D2401 -> SERVIÇOS_EEAT 07_TANGARÁ | E74: =Orçamento!I2401 -> 3501199.93 | G74: =Orçamento!L2401 -> 3602226.76
A75: 8.3 | B75: =Orçamento!D2537 -> SERVIÇOS_RESERVATÓRIO APOIADO (RAP)_TANGARÁ | E75: =Orçamento!I2537 -> 1888058.81 | G75: =Orçamento!L2537 -> 1942516.25 | H75: =SUM(D75:F75) -> 1888058.81
A76: 8.4 | B76: =Orçamento!D2610 -> MATERIAIS_TRECHO 07 | E76: =Orçamento!I2610 -> 31935316.56 | G76: =Orçamento!L2610 -> 33497880.17 | H76: 31935316.56
A77: 8.5 | B77: =Orçamento!D2632 -> MATERIAIS_EEAT 07_TANGARÁ | E77: =Orçamento!I2632 -> 652406.07 | G77: =Orçamento!L2632 -> 684327.47
A78: 8.6 | B78: =Orçamento!D2675 -> EQUIPAMENTOS_EEAT 07_TANGARÁ | E78: =Orçamento!I2675 -> 1888947.94 | G78: =Orçamento!L2675 -> 1981371.48
A80: 9 | B80: =Orçamento!D2686 -> TRECHO 08 - TANGARÁ À SANTA CRUZ | E80: =Orçamento!I2686 -> 77833369.9 | G80: =Orçamento!L2686 -> 80475543.48 | H80: =SUM(D80:F80) -> 77833369.9
A81: 9.1 | B81: =Orçamento!D2687 -> SERVIÇOS_ADUTORA TRECHO 08 | E81: =Orçamento!I2687 -> 18745107.51 | G81: =Orçamento!L2687 -> 18794605.4 | H81: 18745107.51
A82: 9.2 | B82: =Orçamento!D2740 -> MATERIAIS_TRECHO 08 | E82: =Orçamento!I2740 -> 59088262.39 | G82: =Orçamento!L2740 -> 61680938.08 | H82: =SUM(D82:F82) -> 59088262.39
A83: CUSTO TOTAL.....................................................................R$ | E83: =E9+E44+E55+E64+E72+E80+E34+E22+E15 -> 509037192.1 | G83: =G9+G44+G55+G64+G72+G80+G34+G22+G15 -> 525916411.7
A84: SITUAÇÃO MAIS VANTAJOSA: | E84: =E83 -> 509037192.1
A85: Elaboração: Supervisão:
E88: =E64+E55+E44+E13+E12+E80+E72 -> 256575165.1
E89: =E9/E88 -> 0.109597735
E90: =E88*0.05 -> 12828758.26

Sheet Cronograma Físico_Financeiro... (hidden)
A1: =[141]RESUMO!C3 -> Sistema Adutor do Agreste Potiguar
A3: CRONOGRAMA FÍSICO/FINANCEIRO | O3: Colocar valor total do item aqui
A4: UNIDADES DO SISTEMA | B4: TEMPO ( DIAS ) | N4: TOTAIS | R4: =100-92.3 -> 7.7
B5: 30 | C5: 60 | D5: 90 | E5: 120 | F5: 150 | G5: 180 | H5: 210 | I5: 240 | J5: 270 | K5: 300 | L5: 330 | M5: 360 | N5: ( R$ ) | R5: =40/7 -> 5.714285714
A6: =[141]RESUMO!B10 -> ADMINISTRAÇÃO LOCAL | B6: 0.0012 | C6: 0.0009 | D6: 0.0009 | E6: 0.0212 | F6: 0.0212 | G6: 0.021 | H6: 0.021 | I6: 0.021 | J6: 0.0365 | K6: 0.0442 | L6: 0.0442 | M6: 0.0652 | N6: =SUM(B6:M6) -> 0.2985
B8: =IF(B6="",0,B6*$O8) -> 28585.73308 | C8: =IF(C6="",0,C6*$O8) -> 21439.29981 | D8: =IF(D6="",0,D6*$O8) -> 21439.29981 | E8: =IF(E6="",0,E6*$O8) -> 505014.6177 | F8: =IF(F6="",0,F6*$O8) -> 505014.6177 | G8: =IF(G6="",0,G6*$O8) -> 500250.3288 | H8: 500250.3288 | I8: 500250.3288 | J8: 869482.7144 | K8: 1052907.835 | L8: 1052907.835 | M8: =IF(M6="",0,M6*$O8) -> 1553158.164 | N8: =SUM(B8:M8) -> 7110701.103 | O8: =[141]RESUMO!$E$10 -> 23821444.23 | T8: 0
A9: =[141]RESUMO!B11 -> PROJETO EXECUTIVO | B9: 0.2 | C9: 0.2 | D9: 0.2 | E9: 0.2 | F9: 0.2 | N9: =SUM(B9:M9) -> 1
T10: 0
B11: =IF(B9="",0,B9*$O11) -> 110225.428 | C11: =IF(C9="",0,C9*$O11) -> 110225.428 | D11: =IF(D9="",0,D9*$O11) -> 110225.428 | E11: =IF(E9="",0,E9*$O11) -> 110225.428 | F11: =IF(F9="",0,F9*$O11) -> 110225.428 | G11: =IF(G9="",0,G9*$O11) -> 0 | H11: 0 | I11: 0 | J11: 0 | K11: 0 | L11: 0 | M11: =IF(M9="",0,M9*$O11) -> 0 | N11: =SUM(B11:M11) -> 551127.14 | O11: =[141]RESUMO!$E$11 -> 551127.14
A12: =[141]RESUMO!B12 -> MOBILIZAÇÃO E DESMOBILIZAÇÃO | B12: 0.2 | E12: 0.1 | J12: 0.1 | N12: =SUM(B12:M12) -> 0.4
T13: 0
B14: =IF(B12="",0,B12*$O14) -> 31519.294 | C14: =IF(C12="",0,C12*$O14) -> 0 | D14: =IF(D12="",0,D12*$O14) -> 0 | E14: =IF(E12="",0,E12*$O14) -> 15759.647 | F14: =IF(F12="",0,F12*$O14) -> 0 | G14: =IF(G12="",0,G12*$O14) -> 0 | H14: 0 | I14: 0 | J14: 15759.647 | K14: 0 | L14: 0 | M14: =IF(M12="",0,M12*$O14) -> 0 | N14: =SUM(B14:M14) -> 63038.588 | O14: =[141]RESUMO!$E$12 -> 157596.47
A15: =[141]RESUMO!B13 -> CANTEIRO CENTRAL DE OBRAS | B15: 0.4 | C15: 0.3 | D15: 0.3 | N15: =SUM(B15:M15) -> 1
B17: =IF(B15="",0,B15*$O17) -> 508539.056 | C17: =IF(C15="",0,C15*$O17) -> 381404.292 | D17: =IF(D15="",0,D15*$O17) -> 381404.292 | E17: =IF(E15="",0,E15*$O17) -> 0 | F17: =IF(F15="",0,F15*$O17) -> 0 | G17: =IF(G15="",0,G15*$O17) -> 0 | H17: 0 | I17: 0 | J17: 0 | K17: 0 | L17: 0 | M17: =IF(M15="",0,M15*$O17) -> 0 | N17: =SUM(B17:M17) -> 1271347.64 | O17: =[141]RESUMO!$E$13 -> 1271347.64
A18: =[141]RESUMO!B14 -> DIVERSOS | E18: 0.15 | J18: 0.1 | N18: =SUM(B18:M18) -> 0.25
T19: 0
B20: =IF(B18="",0,B18*$O20) -> 0 | C20: =IF(C18="",0,C18*$O20) -> 0 | D20: =IF(D18="",0,D18*$O20) -> 0 | E20: =IF(E18="",0,E18*$O20) -> 10962.33 | F20: =IF(F18="",0,F18*$O20) -> 0 | G20: =IF(G18="",0,G18*$O20) -> 0 | H20: 0 | I20: 0 | J20: 7308.22 | K20: 0 | L20: 0 | M20: =IF(M18="",0,M18*$O20) -> 0 | N20: =SUM(B20:M20) -> 18270.55 | O20: =[141]RESUMO!$E$14 -> 73082.2
A21: =[141]RESUMO!B17 -> SERVIÇOS_ADUTORA TRECHO 01 - CAPTAÇÃO A ETA | E21: 0.1 | F21: 0.1 | G21: 0.1 | H21: 0.1 | I21: 0.1 | J21: 0.1 | K21: 0.1 | L21: 0.1 | M21: 0.2 | N21: =SUM(B21:M21) -> 1
B23: =IF(B21="",0,B21*$O23) -> 0 | C23: =IF(C21="",0,C21*$O23) -> 0 | D23: =IF(D21="",0,D21*$O23) -> 0 | E23: =IF(E21="",0,E21*$O23) -> 10548177.94 | F23: =IF(F21="",0,F21*$O23) -> 10548177.94 | G23: =IF(G21="",0,G21*$O23) -> 10548177.94 | H23: 10548177.94 | I23: 10548177.94 | J23: 10548177.94 | K23: 10548177.94 | L23: 10548177.94 | M23: =IF(M21="",0,M21*$O23) -> 21096355.87 | N23: =SUM(B23:M23) -> 105481779.4 | O23: =[141]RESUMO!$E$16 -> 105481779.4
A24: =[141]RESUMO!B23 -> TRECHO 02 - ETA À MONTANHAS | J24: 0.1 | K24: 0.15 | L24: 0.15 | M24: 0.15 | N24: =SUM(B24:M24) -> 0.55
B26: =IF(B24="",0,B24*$O26) -> 0 | C26: =IF(C24="",0,C24*$O26) -> 0 | D26: =IF(D24="",0,D24*$O26) -> 0 | E26: =IF(E24="",0,E24*$O26) -> 0 | F26: =IF(F24="",0,F24*$O26) -> 0 | G26: =IF(G24="",0,G24*$O26) -> 0 | H26: 0 | I26: 0 | J26: 7770678.945 | K26: 11656018.42 | L26: 11656018.42 | M26: =IF(M24="",0,M24*$O26) -> 11656018.42 | N26: =SUM(B26:M26) -> 42738734.2 | O26: =[141]RESUMO!$E$23 -> 77706789.45
A27: =[141]RESUMO!B35 -> TRECHO 03 - MONTANHAS À NOVA CRUZ | N27: =SUM(B27:M27) -> 0
B29: =IF(B27="",0,B27*$O29) -> 0 | C29: =IF(C27="",0,C27*$O29) -> 0 | D29: =IF(D27="",0,D27*$O29) -> 0 | E29: =IF(E27="",0,E27*$O29) -> 0 | F29: =IF(F27="",0,F27*$O29) -> 0 | G29: =IF(G27="",0,G27*$O29) -> 0 | H29: 0 | I29: 0 | J29: 0 | K29: 0 | L29: 0 | M29: =IF(M27="",0,M27*$O29) -> 0 | N29: =SUM(B29:M29) -> 0 | O29: =[141]RESUMO!$E$35 -> 60551683.97
A30: =[141]RESUMO!B44 -> TRECHO 04 - NOVA CRUZ À SERRINHA | N30: =SUM(B30:M30) -> 0
B32: =IF(B30="",0,B30*$O32) -> 0 | C32: =IF(C30="",0,C30*$O32) -> 0 | D32: =IF(D30="",0,D30*$O32) -> 0 | E32: =IF(E30="",0,E30*$O32) -> 0 | F32: =IF(F30="",0,F30*$O32) -> 0 | G32: =IF(G30="",0,G30*$O32) -> 0 | H32: 0 | I32: 0 | J32: 0 | K32: 0 | L32: 0 | M32: =IF(M30="",0,M30*$O32) -> 0 | N32: =SUM(B32:M32) -> 0 | O32: =[141]RESUMO!$E$44 -> 39791281.43
A33: =[141]RESUMO!B55 -> TRECHO 05 - NOVA CRUZ À PASSA E FICA | N33: =SUM(B33:M33) -> 0
B35: =IF(B33="",0,B33*$O35) -> 0 | C35: =IF(C33="",0,C33*$O35) -> 0 | D35: =IF(D33="",0,D33*$O35) -> 0 | E35: =IF(E33="",0,E33*$O35) -> 0 | F35: =IF(F33="",0,F33*$O35) -> 0 | G35: =IF(G33="",0,G33*$O35) -> 0 | H35: 0 | I35: 0 | J35: 0 | K35: 0 | L35: 0 | M35: =IF(M33="",0,M33*$O35) -> 0 | N35: =SUM(B35:M35) -> 0 | O35: =[141]RESUMO!$E$55 -> 48245638.62
A36: =[141]RESUMO!B64 -> TRECHO 06 - PASSA E FICA À CAMPESTRE | N36: =SUM(B36:M36) -> 0
B38: =IF(B36="",0,B36*$O38) -> 0 | C38: =IF(C36="",0,C36*$O38) -> 0 | D38: =IF(D36="",0,D36*$O38) -> 0 | E38: =IF(E36="",0,E36*$O38) -> 0 | F38: =IF(F36="",0,F36*$O38) -> 0 | G38: =IF(G36="",0,G36*$O38) -> 0 | H38: 0 | I38: 0 | J38: 0 | K38: 0 | L38: 0 | M38: =IF(M36="",0,M36*$O38) -> 0 | N38: =SUM(B38:M38) -> 0 | O38: =[141]RESUMO!$E$64 -> 25906365.32
A39: =[141]RESUMO!B72 -> TRECHO 07 - CAMPESTRE À TANGARÁ | N39: =SUM(B39:M39) -> 0
B41: =IF(B39="",0,B39*$O41) -> 0 | C41: =IF(C39="",0,C39*$O41) -> 0 | D41: =IF(D39="",0,D39*$O41) -> 0 | E41: =IF(E39="",0,E39*$O41) -> 0 | F41: =IF(F39="",0,F39*$O41) -> 0 | G41: =IF(G39="",0,G39*$O41) -> 0 | H41: 0 | I41: 0 | J41: 0 | K41: 0 | L41: 0 | M41: =IF(M39="",0,M39*$O41) -> 0 | N41: =SUM(B41:M41) -> 0 | O41: =[141]RESUMO!$E$72 -> 60251276.44
A42: =[141]RESUMO!B80 -> TRECHO 08 - TANGARÁ À SANTA CRUZ | N42: =SUM(B42:M42) -> 0
B44: =IF(B42="",0,B42*$O44) -> 0 | C44: =IF(C42="",0,C42*$O44) -> 0 | D44: =IF(D42="",0,D42*$O44) -> 0 | E44: =IF(E42="",0,E42*$O44) -> 0 | F44: =IF(F42="",0,F42*$O44) -> 0 | G44: =IF(G42="",0,G42*$O44) -> 0 | H44: 0 | I44: 0 | J44: 0 | K44: 0 | L44: 0 | M44: =IF(M42="",0,M42*$O44) -> 0 | N44: =SUM(B44:M44) -> 0 | O44: =[141]RESUMO!$E$80 -> 81230093.83
A47: TOTAIS | B47: =SUM(B8+B11+B14+B17+B20+B23+B26+B29+B35+B38+B41+B44+B32) -> 678869.5111 | C47: =SUM(C8+C11+C14+C17+C20+C23+C26+C29+C35+C38+C41+C44+C32) -> 513069.0198 | D47: 513069.0198 | E47: 11190139.96 | F47: 11163417.98 | G47: 11048428.26 | H47: 11048428.26 | I47: 11048428.26 | J47: 19211407.46 | K47: 23257104.19 | L47: 23257104.19 | M47: 34305532.45 | N47: =SUM(N8,N11,N14,N17,N20,N23,N26,N29,N32,N35,N38,N41,N44) -> 157234998.6 | O47: =SUM(O6:O46) -> 525039506.1 | Q47: =O47-N47 -> 367804507.5
B48: =B47 -> 678869.5111 | C48: =C47+B48 -> 1191938.531 | D48: 1705007.551 | E48: 12895147.51 | F48: 24058565.49 | G48: 35106993.76 | H48: 46155422.02 | I48: 57203850.29 | J48: 76415257.75 | K48: 99672361.94 | L48: 122929466.1 | M48: 157234998.6
A49: PERCENTUAL | B49: =B47/$O$47 -> 0.001292987486 | C49: =C47/$O$47 -> 0.0009772007894 | D49: =D47/$O$47 -> 0.0009772007894 | E49: 0.02131294851 | F49: 0.02126205333 | G49: 0.02104304178 | H49: 0.02104304178 | I49: 0.02104304178 | J49: 0.03659040365 | K49: 0.04429591282 | L49: 0.04429591282 | M49: 0.0653389546
B50: =B49 -> 0.001292987486 | C50: =B50+C49 -> 0.002270188275 | D50: 0.003247389065 | E50: 0.02456033757 | F50: 0.04582239091 | G50: 0.06686543269 | H50: 0.08790847448 | I50: 0.1089515163 | J50: 0.1455419199 | K50: 0.1898378327 | L50: 0.2341337455 | M50: 0.2994727002
A51: UNIDADES DO SISTEMA | B51: TEMPO ( DIAS ) | N51: TOTAIS | R51: =100-92.3 -> 7.7
B52: 390 | C52: 420 | D52: 450 | E52: 480 | F52: 510 | G52: 540 | H52: 570 | I52: 600 | J52: 630 | K52: 660 | L52: 690 | M52: 720 | N52: ( R$ ) | R52: =40/7 -> 5.714285714
A53: =$A$6 -> ADMINISTRAÇÃO LOCAL | B53: 0.024 | C53: 0.024 | D53: 0.015 | E53: 0.015 | F53: 0.0125 | G53: 0.0125 | H53: 0.019 | I53: 0.019 | J53: 0.019 | K53: 0.019 | L53: 0.0121 | M53: 0.006 | N53: =SUM(B53:M53,N6) -> 0.4956 | O53: =O6 -> 0
O54: 0
B55: =IF(B53="",0,B53*$O55) -> 571714.6615 | C55: =IF(C53="",0,C53*$O55) -> 571714.6615 | D55: =IF(D53="",0,D53*$O55) -> 357321.6634 | E55: =IF(E53="",0,E53*$O55) -> 357321.6634 | F55: =IF(F53="",0,F53*$O55) -> 297768.0529 | G55: =IF(G53="",0,G53*$O55) -> 297768.0529 | H55: 452607.4404 | I55: 452607.4404 | J55: 452607.4404 | K55: 452607.4404 | L55: 288239.4752 | M55: =IF(M53="",0,M53*$O55) -> 142928.6654 | N55: =SUM(B55:M55,N8) -> 11805907.76 | O55: =$O$8 -> 23821444.23 | T55: 0
A56: =$A$9 -> PROJETO EXECUTIVO | N56: =SUM(B56:M56,N9) -> 1 | O56: 0
O57: 0 | T57: 0
B58: =IF(B56="",0,B56*$O58) -> 0 | C58: =IF(C56="",0,C56*$O58) -> 0 | D58: =IF(D56="",0,D56*$O58) -> 0 | E58: =IF(E56="",0,E56*$O58) -> 0 | F58: =IF(F56="",0,F56*$O58) -> 0 | G58: =IF(G56="",0,G56*$O58) -> 0 | H58: 0 | I58: 0 | J58: 0 | K58: 0 | L58: 0 | M58: =IF(M56="",0,M56*$O58) -> 0 | N58: =SUM(B58:M58,N11) -> 551127.14 | O58: =$O$11 -> 551127.14
A59: =$A$12 -> MOBILIZAÇÃO E DESMOBILIZAÇÃO | E59: 0.1 | N59: =SUM(B59:M59,N12) -> 0.5 | O59: 0
O60: 0 | T60: 0
B61: =IF(B59="",0,B59*$O61) -> 0 | C61: =IF(C59="",0,C59*$O61) -> 0 | D61: =IF(D59="",0,D59*$O61) -> 0 | E61: =IF(E59="",0,E59*$O61) -> 15759.647 | F61: =IF(F59="",0,F59*$O61) -> 0 | G61: =IF(G59="",0,G59*$O61) -> 0 | H61: 0 | I61: 0 | J61: 0 | K61: 0 | L61: 0 | M61: =IF(M59="",0,M59*$O61) -> 0 | N61: =SUM(B61:M61,N14) -> 78798.235 | O61: =$O$14 -> 157596.47
A62: =$A$15 -> CANTEIRO CENTRAL DE OBRAS | N62: =SUM(B62:M62,N15) -> 1 | O62: 0
O63: 0
B64: =IF(B62="",0,B62*$O64) -> 0 | C64: =IF(C62="",0,C62*$O64) -> 0 | D64: =IF(D62="",0,D62*$O64) -> 0 | E64: =IF(E62="",0,E62*$O64) -> 0 | F64: =IF(F62="",0,F62*$O64) -> 0 | G64: =IF(G62="",0,G62*$O64) -> 0 | H64: 0 | I64: 0 | J64: 0 | K64: 0 | L64: 0 | M64: =IF(M62="",0,M62*$O64) -> 0 | N64: =SUM(B64:M64,N17) -> 1271347.64 | O64: =$O$17 -> 1271347.64
A65: =$A$18 -> DIVERSOS | E65: 0.15 | N65: =SUM(B65:M65,N18) -> 0.4 | O65: 0
O66: 0 | T66: 0
B67: =IF(B65="",0,B65*$O67) -> 0 | C67: =IF(C65="",0,C65*$O67) -> 0 | D67: =IF(D65="",0,D65*$O67) -> 0 | E67: =IF(E65="",0,E65*$O67) -> 10962.33 | F67: =IF(F65="",0,F65*$O67) -> 0 | G67: =IF(G65="",0,G65*$O67) -> 0 | H67: 0 | I67: 0 | J67: 0 | K67: 0 | L67: 0 | M67: =IF(M65="",0,M65*$O67) -> 0 | N67: =SUM(B67:M67,N20) -> 29232.88 | O67: =$O$20 -> 73082.2
A68: =$A$21 -> SERVIÇOS_ADUTORA TRECHO 01 - CAPTAÇÃO A ETA | N68: =SUM(B68:M68,N21) -> 1 | O68: 0
O69: 0
B70: =IF(B68="",0,B68*$O70) -> 0 | C70: =IF(C68="",0,C68*$O70) -> 0 | D70: =IF(D68="",0,D68*$O70) -> 0 | E70: =IF(E68="",0,E68*$O70) -> 0 | F70: =IF(F68="",0,F68*$O70) -> 0 | G70: =IF(G68="",0,G68*$O70) -> 0 | H70: 0 | I70: 0 | J70: 0 | K70: 0 | L70: 0 | M70: =IF(M68="",0,M68*$O70) -> 0 | N70: =SUM(B70:M70,N23) -> 105481779.4 | O70: =$O$23 -> 105481779.4
A71: =$A$24 -> TRECHO 02 - ETA À MONTANHAS | B71: 0.15 | C71: 0.15 | D71: 0.1 | E71: 0.05 | N71: =SUM(B71:M71,N24) -> 1 | O71: 0
O72: 0
B73: =IF(B71="",0,B71*$O73) -> 11656018.42 | C73: =IF(C71="",0,C71*$O73) -> 11656018.42 | D73: =IF(D71="",0,D71*$O73) -> 7770678.945 | E73: =IF(E71="",0,E71*$O73) -> 3885339.472 | F73: =IF(F71="",0,F71*$O73) -> 0 | G73: =IF(G71="",0,G71*$O73) -> 0 | H73: 0 | I73: 0 | J73: 0 | K73: 0 | L73: 0 | M73: =IF(M71="",0,M71*$O73) -> 0 | N73: =SUM(B73:M73,N26) -> 77706789.45 | O73: =$O$26 -> 77706789.45
A74: =$A$27 -> TRECHO 03 - MONTANHAS À NOVA CRUZ | E74: 0.05 | F74: 0.1 | G74: 0.1 | H74: 0.15 | I74: 0.15 | J74: 0.15 | K74: 0.15 | L74: 0.1 | M74: 0.05 | N74: =SUM(B74:M74,N27) -> 1 | O74: 0
O75: 0
B76: =IF(B74="",0,B74*$O76) -> 0 | C76: =IF(C74="",0,C74*$O76) -> 0 | D76: =IF(D74="",0,D74*$O76) -> 0 | E76: =IF(E74="",0,E74*$O76) -> 3027584.199 | F76: =IF(F74="",0,F74*$O76) -> 6055168.397 | G76: =IF(G74="",0,G74*$O76) -> 6055168.397 | H76: 9082752.595 | I76: 9082752.595 | J76: 9082752.595 | K76: 9082752.595 | L76: 6055168.397 | M76: =IF(M74="",0,M74*$O76) -> 3027584.199 | N76: =SUM(B76:M76,N29) -> 60551683.97 | O76: =$O$29 -> 60551683.97
A77: =$A$30 -> TRECHO 04 - NOVA CRUZ À SERRINHA | N77: =SUM(B77:M77,N30) -> 0 | O77: 0
O78: 0
B79: =IF(B77="",0,B77*$O79) -> 0 | C79: =IF(C77="",0,C77*$O79) -> 0 | D79: =IF(D77="",0,D77*$O79) -> 0 | E79: =IF(E77="",0,E77*$O79) -> 0 | F79: =IF(F77="",0,F77*$O79) -> 0 | G79: =IF(G77="",0,G77*$O79) -> 0 | H79: 0 | I79: 0 | J79: 0 | K79: 0 | L79: 0 | M79: =IF(M77="",0,M77*$O79) -> 0 | N79: =SUM(B79:M79,N32) -> 0 | O79: =$O$32 -> 39791281.43
A80: =$A$33 -> TRECHO 05 - NOVA CRUZ À PASSA E FICA | N80: =SUM(B80:M80,N33) -> 0 | O80: 0
O81: 0
B82: =IF(B80="",0,B80*$O82) -> 0 | C82: =IF(C80="",0,C80*$O82) -> 0 | D82: =IF(D80="",0,D80*$O82) -> 0 | E82: =IF(E80="",0,E80*$O82) -> 0 | F82: =IF(F80="",0,F80*$O82) -> 0 | G82: =IF(G80="",0,G80*$O82) -> 0 | H82: 0 | I82: 0 | J82: 0 | K82: 0 | L82: 0 | M82: =IF(M80="",0,M80*$O82) -> 0 | N82: =SUM(B82:M82,N35) -> 0 | O82: =$O$35 -> 48245638.62
A83: =$A$36 -> TRECHO 06 - PASSA E FICA À CAMPESTRE | N83: =SUM(B83:M83,N36) -> 0 | O83: 0
O84: 0
B85: =IF(B83="",0,B83*$O85) -> 0 | C85: =IF(C83="",0,C83*$O85) -> 0 | D85: =IF(D83="",0,D83*$O85) -> 0 | E85: =IF(E83="",0,E83*$O85) -> 0 | F85: =IF(F83="",0,F83*$O85) -> 0 | G85: =IF(G83="",0,G83*$O85) -> 0 | H85: 0 | I85: 0 | J85: 0 | K85: 0 | L85: 0 | M85: =IF(M83="",0,M83*$O85) -> 0 | N85: =SUM(B85:M85,N38) -> 0 | O85: =$O$38 -> 25906365.32
A86: =$A$39 -> TRECHO 07 - CAMPESTRE À TANGARÁ | N86: =SUM(B86:M86,N39) -> 0 | O86: 0
O87: 0
B88: =IF(B86="",0,B86*$O88) -> 0 | C88: =IF(C86="",0,C86*$O88) -> 0 | D88: =IF(D86="",0,D86*$O88) -> 0 | E88: =IF(E86="",0,E86*$O88) -> 0 | F88: =IF(F86="",0,F86*$O88) -> 0 | G88: =IF(G86="",0,G86*$O88) -> 0 | H88: 0 | I88: 0 | J88: 0 | K88: 0 | L88: 0 | M88: =IF(M86="",0,M86*$O88) -> 0 | N88: =SUM(B88:M88,N41) -> 0 | O88: =$O$41 -> 60251276.44
A89: =$A$42 -> TRECHO 08 - TANGARÁ À SANTA CRUZ | N89: =SUM(B89:M89,N42) -> 0 | O89: 0
O90: 0
B91: =IF(B89="",0,B89*$O91) -> 0 | C91: =IF(C89="",0,C89*$O91) -> 0 | D91: =IF(D89="",0,D89*$O91) -> 0 | E91: =IF(E89="",0,E89*$O91) -> 0 | F91: =IF(F89="",0,F89*$O91) -> 0 | G91: =IF(G89="",0,G89*$O91) -> 0 | H91: 0 | I91: 0 | J91: 0 | K91: 0 | L91: 0 | M91: =IF(M89="",0,M89*$O91) -> 0 | N91: =SUM(B91:M91,N44) -> 0 | O91: =$O$44 -> 81230093.83
O92: =O45 -> 0
A94: TOTAIS | B94: =SUM(B55+B58+B61+B64+B67+B70+B73+B76+B82+B85+B88+B91+B79) -> 12227733.08 | C94: =SUM(C55+C58+C61+C64+C67+C70+C73+C76+C82+C85+C88+C91+C79) -> 12227733.08 | D94: 8128000.608 | E94: 7296967.311 | F94: 6352936.45 | G94: 6352936.45 | H94: 9535360.036 | I94: 9535360.036 | J94: 9535360.036 | K94: 9535360.036 | L94: 6343407.872 | M94: 3170512.864 | N94: =SUM(N55,N58,N61,N64,N67,N70,N73,N76,N79,N82,N85,N88,N91) -> 257476666.4 | O94: =SUM(O53:O93) -> 525039506.1 | Q94: =O94-N94 -> 267562839.7
B95: =B94+M48 -> 169462731.7 | C95: =C94+B95 -> 181690464.7 | D95: 189818465.3 | E95: 197115432.7 | F95: 203468369.1 | G95: 209821305.6 | H95: 219356665.6 | I95: 228892025.6 | J95: 238427385.7 | K95: 247962745.7 | L95: 254306153.6 | M95: 257476666.4
A96: PERCENTUAL | B96: =B94/$O$47 -> 0.02328916765 | C96: =C94/$O$47 -> 0.02328916765 | D96: =D94/$O$47 -> 0.015480741 | E96: 0.01389793954 | F96: 0.01209992082 | G96: 0.01209992082 | H96: 0.01816122392 | I96: 0.01816122392 | J96: 0.01816122392 | K96: 0.01816122392 | L96: 0.01208177251 | M96: 0.006038617717
B97: =B96+M50 -> 0.3227618678 | C97: =B97+C96 -> 0.3460510354 | D97: 0.3615317764 | E97: 0.375429716 | F97: 0.3875296368 | G97: 0.3996295576 | H97: 0.4177907815 | I97: 0.4359520055 | J97: 0.4541132294 | K97: 0.4722744533 | L97: 0.4843562258 | M97: 0.4903948435
A100: UNIDADES DO SISTEMA | B100: TEMPO ( DIAS ) | N100: TOTAIS | R100: =100-92.3 -> 7.7
B101: 750 | C101: 780 | D101: =C101+30 -> 810 | E101: 840 | F101: 870 | G101: 900 | H101: 930 | I101: 960 | J101: 990 | K101: 1020 | L101: 1050 | M101: 1080 | N101: ( R$ ) | R101: =40/7 -> 5.714285714
A102: =$A$6 -> ADMINISTRAÇÃO LOCAL | B102: 0.009 | C102: 0.009 | D102: 0.009 | E102: 0.009 | F102: 0.012 | G102: 0.009 | H102: 0.009 | I102: 0.009 | J102: 0.016 | K102: 0.0092 | L102: 0.0092 | M102: 0.0092 | N102: =SUM(B102:M102,N53) -> 0.6142 | O102: =O53 -> 0
O103: =O54 -> 0
B104: =IF(B102="",0,B102*$O104) -> 214392.9981 | C104: =IF(C102="",0,C102*$O104) -> 214392.9981 | D104: =IF(D102="",0,D102*$O104) -> 214392.9981 | E104: =IF(E102="",0,E102*$O104) -> 214392.9981 | F104: =IF(F102="",0,F102*$O104) -> 285857.3308 | G104: =IF(G102="",0,G102*$O104) -> 214392.9981 | H104: 214392.9981 | I104: 214392.9981 | J104: 381143.1077 | K104: 219157.2869 | L104: 219157.2869 | M104: =IF(M102="",0,M102*$O104) -> 219157.2869 | N104: =SUM(B104:M104,N55) -> 14631131.05 | O104: =$O$8 -> 23821444.23 | T104: 0
A105: =$A$9 -> PROJETO EXECUTIVO | N105: =SUM(B105:M105,N56) -> 1 | O105: =O56 -> 0
O106: =O57 -> 0 | T106: 0
B107: =IF(B105="",0,B105*$O107) -> 0 | C107: =IF(C105="",0,C105*$O107) -> 0 | D107: =IF(D105="",0,D105*$O107) -> 0 | E107: =IF(E105="",0,E105*$O107) -> 0 | F107: =IF(F105="",0,F105*$O107) -> 0 | G107: =IF(G105="",0,G105*$O107) -> 0 | H107: 0 | I107: 0 | J107: 0 | K107: 0 | L107: 0 | M107: =IF(M105="",0,M105*$O107) -> 0 | N107: =SUM(B107:M107,N58) -> 551127.14 | O107: =$O$11 -> 551127.14
A108: =$A$12 -> MOBILIZAÇÃO E DESMOBILIZAÇÃO | J108: 0.1 | N108: =SUM(B108:M108,N59) -> 0.6 | O108: =O59 -> 0
O109: =O60 -> 0 | T109: 0
B110: =IF(B108="",0,B108*$O110) -> 0 | C110: =IF(C108="",0,C108*$O110) -> 0 | D110: =IF(D108="",0,D108*$O110) -> 0 | E110: =IF(E108="",0,E108*$O110) -> 0 | F110: =IF(F108="",0,F108*$O110) -> 0 | G110: =IF(G108="",0,G108*$O110) -> 0 | H110: 0 | I110: 0 | J110: 15759.647 | K110: 0 | L110: 0 | M110: =IF(M108="",0,M108*$O110) -> 0 | N110: =SUM(B110:M110,N61) -> 94557.882 | O110: =$O$14 -> 157596.47
A111: =$A$15 -> CANTEIRO CENTRAL DE OBRAS | N111: =SUM(B111:M111,N62) -> 1 | O111: =O62 -> 0
O112: =O63 -> 0
B113: =IF(B111="",0,B111*$O113) -> 0 | C113: =IF(C111="",0,C111*$O113) -> 0 | D113: =IF(D111="",0,D111*$O113) -> 0 | E113: =IF(E111="",0,E111*$O113) -> 0 | F113: =IF(F111="",0,F111*$O113) -> 0 | G113: =IF(G111="",0,G111*$O113) -> 0 | H113: 0 | I113: 0 | J113: 0 | K113: 0 | L113: 0 | M113: =IF(M111="",0,M111*$O113) -> 0 | N113: =SUM(B113:M113,N64) -> 1271347.64 | O113: =$O$17 -> 1271347.64
A114: =$A$18 -> DIVERSOS | J114: 0.15 | N114: =SUM(B114:M114,N65) -> 0.55 | O114: =O65 -> 0
O115: =O66 -> 0 | T115: 0
B116: =IF(B114="",0,B114*$O116) -> 0 | C116: =IF(C114="",0,C114*$O116) -> 0 | D116: =IF(D114="",0,D114*$O116) -> 0 | E116: =IF(E114="",0,E114*$O116) -> 0 | F116: =IF(F114="",0,F114*$O116) -> 0 | G116: =IF(G114="",0,G114*$O116) -> 0 | H116: 0 | I116: 0 | J116: 10962.33 | K116: 0 | L116: 0 | M116: =IF(M114="",0,M114*$O116) -> 0 | N116: =SUM(B116:M116,N67) -> 40195.21 | O116: =$O$20 -> 73082.2
A117: =$A$21 -> SERVIÇOS_ADUTORA TRECHO 01 - CAPTAÇÃO A ETA | N117: =SUM(B117:M117,N68) -> 1 | O117: =O68 -> 0
O118: =O69 -> 0
B119: =IF(B117="",0,B117*$O119) -> 0 | C119: =IF(C117="",0,C117*$O119) -> 0 | D119: =IF(D117="",0,D117*$O119) -> 0 | E119: =IF(E117="",0,E117*$O119) -> 0 | F119: =IF(F117="",0,F117*$O119) -> 0 | G119: =IF(G117="",0,G117*$O119) -> 0 | H119: 0 | I119: 0 | J119: 0 | K119: 0 | L119: 0 | M119: =IF(M117="",0,M117*$O119) -> 0 | N119: =SUM(B119:M119,N70) -> 105481779.4 | O119: =$O$23 -> 105481779.4
A120: =$A$24 -> TRECHO 02 - ETA À MONTANHAS | N120: =SUM(B120:M120,N71) -> 1 | O120: =O71 -> 0
O121: =O72 -> 0
B122: =IF(B120="",0,B120*$O122) -> 0 | C122: =IF(C120="",0,C120*$O122) -> 0 | D122: =IF(D120="",0,D120*$O122) -> 0 | E122: =IF(E120="",0,E120*$O122) -> 0 | F122: =IF(F120="",0,F120*$O122) -> 0 | G122: =IF(G120="",0,G120*$O122) -> 0 | H122: 0 | I122: 0 | J122: 0 | K122: 0 | L122: 0 | M122: =IF(M120="",0,M120*$O122) -> 0 | N122: =SUM(B122:M122,N73) -> 77706789.45 | O122: =$O$26 -> 77706789.45
A123: =$A$27 -> TRECHO 03 - MONTANHAS À NOVA CRUZ | N123: =SUM(B123:M123,N74) -> 1 | O123: =O74 -> 0
O124: =O75 -> 0
B125: =IF(B123="",0,B123*$O125) -> 0 | C125: =IF(C123="",0,C123*$O125) -> 0 | D125: =IF(D123="",0,D123*$O125) -> 0 | E125: =IF(E123="",0,E123*$O125) -> 0 | F125: =IF(F123="",0,F123*$O125) -> 0 | G125: =IF(G123="",0,G123*$O125) -> 0 | H125: 0 | I125: 0 | J125: 0 | K125: 0 | L125: 0 | M125: =IF(M123="",0,M123*$O125) -> 0 | N125: =SUM(B125:M125,N76) -> 60551683.97 | O125: =$O$29 -> 60551683.97
A126: =$A$30 -> TRECHO 04 - NOVA CRUZ À SERRINHA | B126: 0.1 | C126: 0.1 | D126: 0.1 | E126: 0.1 | F126: 0.15 | G126: 0.1 | H126: 0.1 | I126: 0.1 | J126: 0.15 | N126: =SUM(B126:M126,N77) -> 1 | O126: =O77 -> 0
O127: =O78 -> 0
B128: =IF(B126="",0,B126*$O128) -> 3979128.143 | C128: =IF(C126="",0,C126*$O128) -> 3979128.143 | D128: =IF(D126="",0,D126*$O128) -> 3979128.143 | E128: =IF(E126="",0,E126*$O128) -> 3979128.143 | F128: =IF(F126="",0,F126*$O128) -> 5968692.214 | G128: =IF(G126="",0,G126*$O128) -> 3979128.143 | H128: 3979128.143 | I128: 3979128.143 | J128: 5968692.214 | K128: 0 | L128: 0 | M128: =IF(M126="",0,M126*$O128) -> 0 | N128: =SUM(B128:M128,N79) -> 39791281.43 | O128: =$O$32 -> 39791281.43
A129: =$A$33 -> TRECHO 05 - NOVA CRUZ À PASSA E FICA | J129: 0.05 | K129: 0.1 | L129: 0.1 | M129: 0.1 | N129: =SUM(B129:M129,N80) -> 0.35 | O129: =O80 -> 0
O130: =O81 -> 0
B131: =IF(B129="",0,B129*$O131) -> 0 | C131: =IF(C129="",0,C129*$O131) -> 0 | D131: =IF(D129="",0,D129*$O131) -> 0 | E131: =IF(E129="",0,E129*$O131) -> 0 | F131: =IF(F129="",0,F129*$O131) -> 0 | G131: =IF(G129="",0,G129*$O131) -> 0 | H131: 0 | I131: 0 | J131: 2412281.931 | K131: 4824563.862 | L131: 4824563.862 | M131: =IF(M129="",0,M129*$O131) -> 4824563.862 | N131: =SUM(B131:M131,N82) -> 16885973.52 | O131: =$O$35 -> 48245638.62
A132: =$A$36 -> TRECHO 06 - PASSA E FICA À CAMPESTRE | N132: =SUM(B132:M132,N83) -> 0 | O132: =O83 -> 0
O133: =O84 -> 0
B134: =IF(B132="",0,B132*$O134) -> 0 | C134: =IF(C132="",0,C132*$O134) -> 0 | D134: =IF(D132="",0,D132*$O134) -> 0 | E134: =IF(E132="",0,E132*$O134) -> 0 | F134: =IF(F132="",0,F132*$O134) -> 0 | G134: =IF(G132="",0,G132*$O134) -> 0 | H134: 0 | I134: 0 | J134: 0 | K134: 0 | L134: 0 | M134: =IF(M132="",0,M132*$O134) -> 0 | N134: =SUM(B134:M134,N85) -> 0 | O134: =$O$38 -> 25906365.32
A135: =$A$39 -> TRECHO 07 - CAMPESTRE À TANGARÁ | N135: =SUM(B135:M135,N86) -> 0 | O135: =O86 -> 0
O136: =O87 -> 0
B137: =IF(B135="",0,B135*$O137) -> 0 | C137: =IF(C135="",0,C135*$O137) -> 0 | D137: =IF(D135="",0,D135*$O137) -> 0 | E137: =IF(E135="",0,E135*$O137) -> 0 | F137: =IF(F135="",0,F135*$O137) -> 0 | G137: =IF(G135="",0,G135*$O137) -> 0 | H137: 0 | I137: 0 | J137: 0 | K137: 0 | L137: 0 | M137: =IF(M135="",0,M135*$O137) -> 0 | N137: =SUM(B137:M137,N88) -> 0 | O137: =$O$41 -> 60251276.44
A138: =$A$42 -> TRECHO 08 - TANGARÁ À SANTA CRUZ | N138: =SUM(B138:M138,N89) -> 0 | O138: =O89 -> 0
O139: =O90 -> 0
B140: =IF(B138="",0,B138*$O140) -> 0 | C140: =IF(C138="",0,C138*$O140) -> 0 | D140: =IF(D138="",0,D138*$O140) -> 0 | E140: =IF(E138="",0,E138*$O140) -> 0 | F140: =IF(F138="",0,F138*$O140) -> 0 | G140: =IF(G138="",0,G138*$O140) -> 0 | H140: 0 | I140: 0 | J140: 0 | K140: 0 | L140: 0 | M140: =IF(M138="",0,M138*$O140) -> 0 | N140: =SUM(B140:M140,N91) -> 0 | O140: =$O$44 -> 81230093.83
O141: =O92 -> 0
A143: TOTAIS | B143: =SUM(B104+B107+B110+B113+B116+B119+B122+B125+B131+B134+B137+B140+B128) -> 4193521.141 | C143: =SUM(C104+C107+C110+C113+C116+C119+C122+C125+C131+C134+C137+C140+C128) -> 4193521.141 | D143: 4193521.141 | E143: 4193521.141 | F143: 6254549.545 | G143: 4193521.141 | H143: 4193521.141 | I143: 4193521.141 | J143: 8788839.23 | K143: 5043721.149 | L143: 5043721.149 | M143: 5043721.149 | N143: =SUM(N104,N107,N110,N113,N116,N119,N122,N125,N128,N131,N134,N137,N140) -> 317005866.6 | O143: =SUM(O102:O142) -> 525039506.1 | Q143: =O143-N143 -> 208033639.5
B144: =B143+M95 -> 261670187.6 | C144: =C143+B144 -> 265863708.7 | D144: 270057229.9 | E144: 274250751 | F144: 280505300.5 | G144: 284698821.7 | H144: 288892342.8 | I144: 293085864 | J144: 301874703.2 | K144: 306918424.3 | L144: 311962145.5 | M144: 317005866.6
A145: PERCENTUAL | B145: =B143/$O$47 -> 0.007987058292 | C145: =C143/$O$47 -> 0.007987058292 | D145: =D143/$O$47 -> 0.007987058292 | E145: 0.007987058292 | F145: 0.01191253129 | G145: 0.007987058292 | H145: 0.007987058292 | I145: 0.007987058292 | J145: 0.01673938652 | K145: 0.009606365026 | L145: 0.009606365026 | M145: 0.009606365026
B146: =B145+M97 -> 0.4983819018 | C146: =B146+C145 -> 0.5063689601 | D146: 0.5143560184 | E146: 0.5223430767 | F146: 0.534255608 | G146: 0.5422426663 | H146: 0.5502297246 | I146: 0.5582167829 | J146: 0.5749561694 | K146: 0.5845625344 | L146: 0.5941688994 | M146: 0.6037752645
A147: UNIDADES DO SISTEMA | B147: TEMPO ( DIAS ) | N147: TOTAIS | R147: =100-92.3 -> 7.7
B148: =M101+30 -> 1110 | C148: =B148+30 -> 1140 | D148: =C148+30 -> 1170 | E148: 1200 | F148: 1230 | G148: 1260 | H148: 1290 | I148: 1320 | J148: 1350 | K148: 1380 | L148: 1410 | M148: 1440 | N148: ( R$ ) | R148: =40/7 -> 5.714285714
A149: =$A$6 -> ADMINISTRAÇÃO LOCAL | B149: 0.0096 | C149: 0.0096 | D149: 0.0096 | E149: 0.0096 | F149: 0.0096 | G149: 0.0196 | H149: 0.0077 | I149: 0.0077 | J149: 0.0077 | K149: 0.0052 | L149: 0.0172 | M149: 0.0232 | N149: =SUM(B149:M149,N102) -> 0.7505 | O149: =O102 -> 0
O150: 0
B151: =IF(B149="",0,B149*$O151) -> 228685.8646 | C151: =IF(C149="",0,C149*$O151) -> 228685.8646 | D151: =IF(D149="",0,D149*$O151) -> 228685.8646 | E151: =IF(E149="",0,E149*$O151) -> 228685.8646 | F151: =IF(F149="",0,F149*$O151) -> 228685.8646 | G151: =IF(G149="",0,G149*$O151) -> 466900.3069 | H151: 183425.1206 | I151: 183425.1206 | J151: 183425.1206 | K151: 123871.51 | L151: 409728.8408 | M151: =IF(M149="",0,M149*$O151) -> 552657.5061 | N151: =SUM(B151:M151,N104) -> 17877993.89 | O151: =$O$8 -> 23821444.23 | T151: 0
A152: =$A$9 -> PROJETO EXECUTIVO | N152: =SUM(B152:M152,N105) -> 1 | O152: 0
O153: 0 | T153: 0
B154: =IF(B152="",0,B152*$O154) -> 0 | C154: =IF(C152="",0,C152*$O154) -> 0 | D154: =IF(D152="",0,D152*$O154) -> 0 | E154: =IF(E152="",0,E152*$O154) -> 0 | F154: =IF(F152="",0,F152*$O154) -> 0 | G154: =IF(G152="",0,G152*$O154) -> 0 | H154: 0 | I154: 0 | J154: 0 | K154: 0 | L154: 0 | M154: =IF(M152="",0,M152*$O154) -> 0 | N154: =SUM(B154:M154,N107) -> 551127.14 | O154: =$O$11 -> 551127.14
A155: =$A$12 -> MOBILIZAÇÃO E DESMOBILIZAÇÃO | G155: 0.1 | L155: 0.1 | N155: =SUM(B155:M155,N108) -> 0.8 | O155: 0
O156: 0 | T156: 0
B157: =IF(B155="",0,B155*$O157) -> 0 | C157: =IF(C155="",0,C155*$O157) -> 0 | D157: =IF(D155="",0,D155*$O157) -> 0 | E157: =IF(E155="",0,E155*$O157) -> 0 | F157: =IF(F155="",0,F155*$O157) -> 0 | G157: =IF(G155="",0,G155*$O157) -> 15759.647 | H157: 0 | I157: 0 | J157: 0 | K157: 0 | L157: 15759.647 | M157: =IF(M155="",0,M155*$O157) -> 0 | N157: =SUM(B157:M157,N110) -> 126077.176 | O157: =$O$14 -> 157596.47
A158: =$A$15 -> CANTEIRO CENTRAL DE OBRAS | N158: =SUM(B158:M158,N111) -> 1 | O158: 0
O159: 0
B160: =IF(B158="",0,B158*$O160) -> 0 | C160: =IF(C158="",0,C158*$O160) -> 0 | D160: =IF(D158="",0,D158*$O160) -> 0 | E160: =IF(E158="",0,E158*$O160) -> 0 | F160: =IF(F158="",0,F158*$O160) -> 0 | G160: =IF(G158="",0,G158*$O160) -> 0 | H160: 0 | I160: 0 | J160: 0 | K160: 0 | L160: 0 | M160: =IF(M158="",0,M158*$O160) -> 0 | N160: =SUM(B160:M160,N113) -> 1271347.64 | O160: =$O$17 -> 1271347.64
A161: =$A$18 -> DIVERSOS | G161: 0.15 | L161: 0.15 | N161: =SUM(B161:M161,N114) -> 0.85 | O161: 0
O162: 0 | T162: 0
B163: =IF(B161="",0,B161*$O163) -> 0 | C163: =IF(C161="",0,C161*$O163) -> 0 | D163: =IF(D161="",0,D161*$O163) -> 0 | E163: =IF(E161="",0,E161*$O163) -> 0 | F163: =IF(F161="",0,F161*$O163) -> 0 | G163: =IF(G161="",0,G161*$O163) -> 10962.33 | H163: 0 | I163: 0 | J163: 0 | K163: 0 | L163: 10962.33 | M163: =IF(M161="",0,M161*$O163) -> 0 | N163: =SUM(B163:M163,N116) -> 62119.87 | O163: =$O$20 -> 73082.2
A164: =$A$21 -> SERVIÇOS_ADUTORA TRECHO 01 - CAPTAÇÃO A ETA | N164: =SUM(B164:M164,N117) -> 1 | O164: 0
O165: 0
B166: =IF(B164="",0,B164*$O166) -> 0 | C166: =IF(C164="",0,C164*$O166) -> 0 | D166: =IF(D164="",0,D164*$O166) -> 0 | E166: =IF(E164="",0,E164*$O166) -> 0 | F166: =IF(F164="",0,F164*$O166) -> 0 | G166: =IF(G164="",0,G164*$O166) -> 0 | H166: 0 | I166: 0 | J166: 0 | K166: 0 | L166: 0 | M166: =IF(M164="",0,M164*$O166) -> 0 | N166: =SUM(B166:M166,N119) -> 105481779.4 | O166: =$O$23 -> 105481779.4
A167: =$A$24 -> TRECHO 02 - ETA À MONTANHAS | N167: =SUM(B167:M167,N120) -> 1 | O167: 0
O168: 0
B169: =IF(B167="",0,B167*$O169) -> 0 | C169: =IF(C167="",0,C167*$O169) -> 0 | D169: =IF(D167="",0,D167*$O169) -> 0 | E169: =IF(E167="",0,E167*$O169) -> 0 | F169: =IF(F167="",0,F167*$O169) -> 0 | G169: =IF(G167="",0,G167*$O169) -> 0 | H169: 0 | I169: 0 | J169: 0 | K169: 0 | L169: 0 | M169: =IF(M167="",0,M167*$O169) -> 0 | N169: =SUM(B169:M169,N122) -> 77706789.45 | O169: =$O$26 -> 77706789.45
A170: =$A$27 -> TRECHO 03 - MONTANHAS À NOVA CRUZ | N170: =SUM(B170:M170,N123) -> 1 | O170: 0
O171: 0
B172: =IF(B170="",0,B170*$O172) -> 0 | C172: =IF(C170="",0,C170*$O172) -> 0 | D172: =IF(D170="",0,D170*$O172) -> 0 | E172: =IF(E170="",0,E170*$O172) -> 0 | F172: =IF(F170="",0,F170*$O172) -> 0 | G172: =IF(G170="",0,G170*$O172) -> 0 | H172: 0 | I172: 0 | J172: 0 | K172: 0 | L172: 0 | M172: =IF(M170="",0,M170*$O172) -> 0 | N172: =SUM(B172:M172,N125) -> 60551683.97 | O172: =$O$29 -> 60551683.97
A173: =$A$30 -> TRECHO 04 - NOVA CRUZ À SERRINHA | N173: =SUM(B173:M173,N126) -> 1 | O173: 0
O174: 0
B175: =IF(B173="",0,B173*$O175) -> 0 | C175: =IF(C173="",0,C173*$O175) -> 0 | D175: =IF(D173="",0,D173*$O175) -> 0 | E175: =IF(E173="",0,E173*$O175) -> 0 | F175: =IF(F173="",0,F173*$O175) -> 0 | G175: =IF(G173="",0,G173*$O175) -> 0 | H175: 0 | I175: 0 | J175: 0 | K175: 0 | L175: 0 | M175: =IF(M173="",0,M173*$O175) -> 0 | N175: =SUM(B175:M175,N128) -> 39791281.43 | O175: =$O$32 -> 39791281.43
A176: =$A$33 -> TRECHO 05 - NOVA CRUZ À PASSA E FICA | B176: 0.1 | C176: 0.1 | D176: 0.1 | E176: 0.1 | F176: 0.1 | G176: 0.15 | N176: =SUM(B176:M176,N129) -> 1 | O176: 0
O177: 0
B178: =IF(B176="",0,B176*$O178) -> 4824563.862 | C178: =IF(C176="",0,C176*$O178) -> 4824563.862 | D178: =IF(D176="",0,D176*$O178) -> 4824563.862 | E178: =IF(E176="",0,E176*$O178) -> 4824563.862 | F178: =IF(F176="",0,F176*$O178) -> 4824563.862 | G178: =IF(G176="",0,G176*$O178) -> 7236845.793 | H178: 0 | I178: 0 | J178: 0 | K178: 0 | L178: 0 | M178: =IF(M176="",0,M176*$O178) -> 0 | N178: =SUM(B178:M178,N131) -> 48245638.62 | O178: =$O$35 -> 48245638.62
A179: =$A$36 -> TRECHO 06 - PASSA E FICA À CAMPESTRE | G179: 0.1 | H179: 0.15 | I179: 0.15 | J179: 0.15 | K179: 0.1 | L179: 0.1 | M179: 0.1 | N179: =SUM(B179:M179,N132) -> 0.85 | O179: 0
O180: 0
B181: =IF(B179="",0,B179*$O181) -> 0 | C181: =IF(C179="",0,C179*$O181) -> 0 | D181: =IF(D179="",0,D179*$O181) -> 0 | E181: =IF(E179="",0,E179*$O181) -> 0 | F181: =IF(F179="",0,F179*$O181) -> 0 | G181: =IF(G179="",0,G179*$O181) -> 2590636.532 | H181: 3885954.798 | I181: 3885954.798 | J181: 3885954.798 | K181: 2590636.532 | L181: 2590636.532 | M181: =IF(M179="",0,M179*$O181) -> 2590636.532 | N181: =SUM(B181:M181,N134) -> 22020410.52 | O181: =$O$38 -> 25906365.32
A182: =$A$39 -> TRECHO 07 - CAMPESTRE À TANGARÁ | L182: 0.1 | M182: 0.15 | N182: =SUM(B182:M182,N135) -> 0.25 | O182: 0
O183: 0
B184: =IF(B182="",0,B182*$O184) -> 0 | C184: =IF(C182="",0,C182*$O184) -> 0 | D184: =IF(D182="",0,D182*$O184) -> 0 | E184: =IF(E182="",0,E182*$O184) -> 0 | F184: =IF(F182="",0,F182*$O184) -> 0 | G184: =IF(G182="",0,G182*$O184) -> 0 | H184: 0 | I184: 0 | J184: 0 | K184: 0 | L184: 6025127.644 | M184: =IF(M182="",0,M182*$O184) -> 9037691.466 | N184: =SUM(B184:M184,N137) -> 15062819.11 | O184: =$O$41 -> 60251276.44
A185: =$A$42 -> TRECHO 08 - TANGARÁ À SANTA CRUZ | N185: =SUM(B185:M185,N138) -> 0 | O185: 0
O186: 0
B187: =IF(B185="",0,B185*$O187) -> 0 | C187: =IF(C185="",0,C185*$O187) -> 0 | D187: =IF(D185="",0,D185*$O187) -> 0 | E187: =IF(E185="",0,E185*$O187) -> 0 | F187: =IF(F185="",0,F185*$O187) -> 0 | G187: =IF(G185="",0,G185*$O187) -> 0 | H187: 0 | I187: 0 | J187: 0 | K187: 0 | L187: 0 | M187: =IF(M185="",0,M185*$O187) -> 0 | N187: =SUM(B187:M187,N140) -> 0 | O187: =$O$44 -> 81230093.83
O188: =O141 -> 0
A190: TOTAIS | B190: =SUM(B151+B154+B157+B160+B163+B166+B169+B172+B178+B181+B184+B187+B175) -> 5053249.727 | C190: =SUM(C151+C154+C157+C160+C163+C166+C169+C172+C178+C181+C184+C187+C175) -> 5053249.727 | D190: 5053249.727 | E190: 5053249.727 | F190: 5053249.727 | G190: 10321104.61 | H190: 4069379.919 | I190: 4069379.919 | J190: 4069379.919 | K190: 2714508.042 | L190: 9052214.994 | M190: 12180985.5 | N190: =SUM(N151,N154,N157,N160,N163,N166,N169,N172,N175,N178,N181,N184,N187) -> 388749068.2 | O190: =SUM(O149:O189) -> 525039506.1 | Q190: =O190-N190 -> 136290437.9
B191: =B190+M144 -> 322059116.4 | C191: =C190+B191 -> 327112366.1 | D191: 332165615.8 | E191: 337218865.6 | F191: 342272115.3 | G191: 352593219.9 | H191: 356662599.8 | I191: 360731979.7 | J191: 364801359.6 | K191: 367515867.7 | L191: 376568082.7 | M191: 388749068.2
A192: PERCENTUAL | B192: =B190/$O$47 -> 0.009624513333 | C192: =C190/$O$47 -> 0.009624513333 | D192: =D190/$O$47 -> 0.009624513333 | E192: 0.009624513333 | F192: 0.009624513333 | G192: 0.01965776763 | H192: 0.007750616613 | I192: 0.007750616613 | J192: 0.007750616613 | K192: 0.00517010246 | L192: 0.01724101689 | M192: 0.02320013135
B193: =B192+M146 -> 0.6133997778 | C193: =B193+C192 -> 0.6230242911 | D193: 0.6326488045 | E193: 0.6422733178 | F193: 0.6518978311 | G193: 0.6715555988 | H193: 0.6793062154 | I193: 0.687056832 | J193: 0.6948074486 | K193: 0.6999775511 | L193: 0.7172185679 | M193: 0.7404186993
A194: UNIDADES DO SISTEMA | B194: TEMPO ( DIAS ) | N194: TOTAIS | R194: =100-92.3 -> 7.7
B195: =M148+30 -> 1470 | C195: =B195+30 -> 1500 | D195: =C195+30 -> 1530 | E195: 1560 | F195: 1590 | G195: 1620 | H195: 1650 | I195: 1680 | J195: 1710 | K195: 1740 | L195: 1770 | M195: 1800 | N195: ( R$ ) | R195: =40/7 -> 5.714285714
A196: =$A$6 -> ADMINISTRAÇÃO LOCAL | B196: 0.018 | C196: 0.018 | D196: 0.012 | E196: 0.012 | F196: 0.0282 | G196: 0.0423 | H196: 0.0243 | I196: 0.0243 | J196: 0.0162 | K196: 0.0162 | L196: 0.016 | M196: 0.022 | N196: =SUM(B196:M196,N149) -> 1 | O196: =O149 -> 0
O197: 0
B198: =IF(B196="",0,B196*$O198) -> 428785.9961 | C198: =IF(C196="",0,C196*$O198) -> 428785.9961 | D198: =IF(D196="",0,D196*$O198) -> 285857.3308 | E198: =IF(E196="",0,E196*$O198) -> 285857.3308 | F198: =IF(F196="",0,F196*$O198) -> 671764.7273 | G198: =IF(G196="",0,G196*$O198) -> 1007647.091 | H198: 578861.0948 | I198: 578861.0948 | J198: 385907.3965 | K198: 385907.3965 | L198: 381143.1077 | M198: =IF(M196="",0,M196*$O198) -> 524071.7731 | N198: =SUM(B198:M198,N151) -> 23821444.23 | O198: =$O$8 -> 23821444.23 | T198: 0
A199: =$A$9 -> PROJETO EXECUTIVO | N199: =SUM(B199:M199,N152) -> 1 | O199: 0
O200: 0 | T200: 0
B201: =IF(B199="",0,B199*$O201) -> 0 | C201: =IF(C199="",0,C199*$O201) -> 0 | D201: =IF(D199="",0,D199*$O201) -> 0 | E201: =IF(E199="",0,E199*$O201) -> 0 | F201: =IF(F199="",0,F199*$O201) -> 0 | G201: =IF(G199="",0,G199*$O201) -> 0 | H201: 0 | I201: 0 | J201: 0 | K201: 0 | L201: 0 | M201: =IF(M199="",0,M199*$O201) -> 0 | N201: =SUM(B201:M201,N154) -> 551127.14 | O201: =$O$11 -> 551127.14
A202: =$A$12 -> MOBILIZAÇÃO E DESMOBILIZAÇÃO | F202: 0.1 | M202: 0.1 | N202: =SUM(B202:M202,N155) -> 1 | O202: 0
O203: 0 | T203: 0
B204: =IF(B202="",0,B202*$O204) -> 0 | C204: =IF(C202="",0,C202*$O204) -> 0 | D204: =IF(D202="",0,D202*$O204) -> 0 | E204: =IF(E202="",0,E202*$O204) -> 0 | F204: =IF(F202="",0,F202*$O204) -> 15759.647 | G204: =IF(G202="",0,G202*$O204) -> 0 | H204: 0 | I204: 0 | J204: 0 | K204: 0 | L204: 0 | M204: =IF(M202="",0,M202*$O204) -> 15759.647 | N204: =SUM(B204:M204,N157) -> 157596.47 | O204: =$O$14 -> 157596.47
A205: =$A$15 -> CANTEIRO CENTRAL DE OBRAS | N205: =SUM(B205:M205,N158) -> 1 | O205: 0
O206: 0
B207: =IF(B205="",0,B205*$O207) -> 0 | C207: =IF(C205="",0,C205*$O207) -> 0 | D207: =IF(D205="",0,D205*$O207) -> 0 | E207: =IF(E205="",0,E205*$O207) -> 0 | F207: =IF(F205="",0,F205*$O207) -> 0 | G207: =IF(G205="",0,G205*$O207) -> 0 | H207: 0 | I207: 0 | J207: 0 | K207: 0 | L207: 0 | M207: =IF(M205="",0,M205*$O207) -> 0 | N207: =SUM(B207:M207,N160) -> 1271347.64 | O207: =$O$17 -> 1271347.64
A208: =$A$18 -> DIVERSOS | F208: 0.15 | N208: =SUM(B208:M208,N161) -> 1 | O208: 0
O209: 0 | T209: 0
B210: =IF(B208="",0,B208*$O210) -> 0 | C210: =IF(C208="",0,C208*$O210) -> 0 | D210: =IF(D208="",0,D208*$O210) -> 0 | E210: =IF(E208="",0,E208*$O210) -> 0 | F210: =IF(F208="",0,F208*$O210) -> 10962.33 | G210: =IF(G208="",0,G208*$O210) -> 0 | H210: 0 | I210: 0 | J210: 0 | K210: 0 | L210: 0 | M210: =IF(M208="",0,M208*$O210) -> 0 | N210: =SUM(B210:M210,N163) -> 73082.2 | O210: =$O$20 -> 73082.2
A211: =$A$21 -> SERVIÇOS_ADUTORA TRECHO 01 - CAPTAÇÃO A ETA | N211: =SUM(B211:M211,N164) -> 1 | O211: 0
O212: 0
B213: =IF(B211="",0,B211*$O213) -> 0 | C213: =IF(C211="",0,C211*$O213) -> 0 | D213: =IF(D211="",0,D211*$O213) -> 0 | E213: =IF(E211="",0,E211*$O213) -> 0 | F213: =IF(F211="",0,F211*$O213) -> 0 | G213: =IF(G211="",0,G211*$O213) -> 0 | H213: 0 | I213: 0 | J213: 0 | K213: 0 | L213: 0 | M213: =IF(M211="",0,M211*$O213) -> 0 | N213: =SUM(B213:M213,N166) -> 105481779.4 | O213: =$O$23 -> 105481779.4
A214: =$A$24 -> TRECHO 02 - ETA À MONTANHAS | N214: =SUM(B214:M214,N167) -> 1 | O214: 0
O215: 0
B216: =IF(B214="",0,B214*$O216) -> 0 | C216: =IF(C214="",0,C214*$O216) -> 0 | D216: =IF(D214="",0,D214*$O216) -> 0 | E216: =IF(E214="",0,E214*$O216) -> 0 | F216: =IF(F214="",0,F214*$O216) -> 0 | G216: =IF(G214="",0,G214*$O216) -> 0 | H216: 0 | I216: 0 | J216: 0 | K216: 0 | L216: 0 | M216: =IF(M214="",0,M214*$O216) -> 0 | N216: =SUM(B216:M216,N169) -> 77706789.45 | O216: =$O$26 -> 77706789.45
A217: =$A$27 -> TRECHO 03 - MONTANHAS À NOVA CRUZ | N217: =SUM(B217:M217,N170) -> 1 | O217: 0
O218: 0
... 24 more rows

Sheet Orçamento
A1: ESTIMATIVA DE CUSTO
A2: PROJETO: | C2: =RESUMO!C3 -> Sistema Adutor do Agreste Potiguar | F2: REVISÃO: | G2: E.S. MÊS: | I2: 0.7091 | J2: E.S. MÊS: | L2: 0.4696
A3: SERVIÇO: | C3: =RESUMO!C4 -> Trechos 01, 02, 03, 04, 05, 06 e 07 - Captação a Santa Cruz | F3: =RESUMO!D4 -> 01 | G3: E.S. HORA: | I3: 1.1545 | J3: E.S. HORA: | L3: 0.8534 | M3: =TODAY() -> 2024-09-23
A4: LOCAL: | C4: =RESUMO!C5 -> Canguaretama a Santa Cruz/RN | F4: DATA BASE: | G4: BDI SERVIÇO: | I4: =BNCDADOS!$E$8 -> 0.2369 | J4: BDI SERVIÇO: | L4: =BNCDADOS!$G$8 -> 0.2996
A5: REFERÊNCIAS: | C5: =RESUMO!C6 -> SINAPI 07/24, SICRO 04/24, SEINFRA 28, EMBASA 05/24 | F5: =RESUMO!D6 -> 2024-09-01 | G5: BDI MATERIAL E EQUIP.: | I5: ='BDI (equip_mat)'!$G$26 -> 0.12 | J5: BDI MATERIAL E EQUIP.: | L5: ='BDI (equip_mat)'!$I$26 -> 0.1748
A6: ITEM | B6: REFERÊNCIA | C6: CÓDIGO | D6: DISCRIMINAÇÃO | E6: UNID. | F6: QUANT. | G6: MODALIDADE: | H6: SEM DESONERAÇÃO | J6: MODALIDADE: | K6: COM DESONERAÇÃO
G7: PREÇOS (R$) | J7: PREÇOS (R$)
G8: UNITÁRIO | I8: PARCIAL | J8: UNITÁRIO | L8: PARCIAL
G9: SEM BDI | H9: COM BDI | J9: SEM BDI | K9: COM BDI
A10: 1. | D10: SERVIÇOS PRELIMINARES | I10: =I11+I13+I17+I26 -> 28120056.94 | L10: =L11+L13+L17+L26 -> 26024771.87 | M10: QUANT.
A11: 1.1 | B11: =IF(C11=0,"",VLOOKUP(C11,BNCDADOS!$A:$G,8,0)) ->  | D11: ADMINISTRAÇÃO LOCAL | E11: =IF(C11=0,"",VLOOKUP(C11,BNCDADOS!$A:$G,3,0)) ->  | F11: =TRUNC(M11,2) -> 0 | G11: =IF(C11=0,"",VLOOKUP(C11,BNCDADOS!$A:$G,4,0)) ->  | H11: =IF(C11=0,"",VLOOKUP(C11,BNCDADOS!$A:$G,5,0)) ->  | I11: =I12 -> 27213809.22 | J11: =IF(C11=0,"",VLOOKUP(C11,BNCDADOS!$A:$G,6,0)) ->  | K11: =IF(C11=0,"",VLOOKUP(C11,BNCDADOS!$A:$G,7,0)) ->  | L11: =L12 -> 25098171.76
A12: 1.1.1 | B12: =IF(C12=0,"",VLOOKUP(C12,BNCDADOS!$A:$H,8,0)) -> 0 | C12: ADM LOCAL | D12: =IF(C12=0,"",VLOOKUP(C12,BNCDADOS!$A:$G,2,0)) -> ADMINISTRAÇÃO LOCAL DE OBRA | E12: =IF(C12=0,"",VLOOKUP(C12,BNCDADOS!$A:$G,3,0)) -> UN | F12: 1 | G12: =IF(C12=0,"",VLOOKUP(C12,BNCDADOS!$A:$G,4,0)) -> 22001624.4 | H12: =IF(C12=0,"",VLOOKUP(C12,BNCDADOS!$A:$G,5,0)) -> 27213809.22 | I12: =IF(H12="",0,TRUNC(H12*F12,2)) -> 27213809.22 | J12: =IF(C12=0,"",VLOOKUP(C12,BNCDADOS!$A:$G,6,0)) -> 19312228.2 | K12: =IF(C12=0,"",VLOOKUP(C12,BNCDADOS!$A:$G,7,0)) -> 25098171.76 | L12: =IF(K12="",0,TRUNC(K12*F12,2)) -> 25098171.76 | M12: 1
A13: 1.2 | B13: =IF(C13=0,"",VLOOKUP(C13,BNCDADOS!$A:$G,8,0)) ->  | D13: MOBILIZAÇÃO E DESMOBILIZAÇÃO | E13: =IF(C13=0,"",VLOOKUP(C13,BNCDADOS!$A:$G,3,0)) ->  | F13: 0 | G13: =IF(C13=0,"",VLOOKUP(C13,BNCDADOS!$A:$G,4,0)) ->  | H13: =IF(C13=0,"",VLOOKUP(C13,BNCDADOS!$A:$G,5,0)) ->  | I13: =SUM(I14:I15) -> 239065.18 | J13: =IF(C13=0,"",VLOOKUP(C13,BNCDADOS!$A:$G,6,0)) ->  | K13: =IF(C13=0,"",VLOOKUP(C13,BNCDADOS!$A:$G,7,0)) ->  | L13: =SUM(L14:L15) -> 248956.69
A14: 1.2.1 | B14: =IF(C14=0,"",VLOOKUP(C14,BNCDADOS!$A:$H,8,0)) -> 0 | C14: MOB - CD | D14: =IF(C14=0,"",VLOOKUP(C14,BNCDADOS!$A:$G,2,0)) -> MOBILIZACAO E DESMOBILIZACAO DE EQUIPAMENTOS - CARGA E DESCARGA | E14: =IF(C14=0,"",VLOOKUP(C14,BNCDADOS!$A:$G,3,0)) -> T | F14: 23.65 | G14: =IF(C14=0,"",VLOOKUP(C14,BNCDADOS!$A:$G,4,0)) -> 161.25 | H14: =IF(C14=0,"",VLOOKUP(C14,BNCDADOS!$A:$G,5,0)) -> 199.45 | I14: =IF(H14="",0,TRUNC(H14*F14,2)) -> 4716.99 | J14: =IF(C14=0,"",VLOOKUP(C14,BNCDADOS!$A:$G,6,0)) -> 157.61 | K14: =IF(C14=0,"",VLOOKUP(C14,BNCDADOS!$A:$G,7,0)) -> 204.82 | L14: =IF(K14="",0,TRUNC(K14*F14,2)) -> 4843.99 | M14: ='Mobilização e Desmobilização'!E51 -> 23.65
A15: 1.2.2 | B15: =IF(C15=0,"",VLOOKUP(C15,BNCDADOS!$A:$H,8,0)) -> 0 | C15: MOB - TRANSP | D15: =IF(C15=0,"",VLOOKUP(C15,BNCDADOS!$A:$G,2,0)) -> MOBILIZACAO E DESMOBILIZACAO DE EQUIPAMENTOS - TRANSPORTE | E15: =IF(C15=0,"",VLOOKUP(C15,BNCDADOS!$A:$G,3,0)) -> TXKM | F15: 325483.6 | G15: =IF(C15=0,"",VLOOKUP(C15,BNCDADOS!$A:$G,4,0)) -> 0.59 | H15: =IF(C15=0,"",VLOOKUP(C15,BNCDADOS!$A:$G,5,0)) -> 0.72 | I15: =IF(H15="",0,TRUNC(H15*F15,2)) -> 234348.19 | J15: =IF(C15=0,"",VLOOKUP(C15,BNCDADOS!$A:$G,6,0)) -> 0.58 | K15: =IF(C15=0,"",VLOOKUP(C15,BNCDADOS!$A:$G,7,0)) -> 0.75 | L15: =IF(K15="",0,TRUNC(K15*F15,2)) -> 244112.7 | M15: ='Mobilização e Desmobilização'!E52 -> 325483.6
M16: =E10/E83 -> 
A17: 1.3 | B17: =IF(C17=0,"",VLOOKUP(C17,BNCDADOS!$A:$G,8,0)) ->  | D17: CANTEIRO CENTRAL DE OBRAS | E17: =IF(C17=0,"",VLOOKUP(C17,BNCDADOS!$A:$G,3,0)) ->  | F17: =TRUNC(M17,2) -> 0 | G17: =IF(C17=0,"",VLOOKUP(C17,BNCDADOS!$A:$G,4,0)) ->  | H17: =IF(C17=0,"",VLOOKUP(C17,BNCDADOS!$A:$G,5,0)) ->  | I17: =SUM(I18:I24) -> 630641.44 | J17: =IF(C17=0,"",VLOOKUP(C17,BNCDADOS!$A:$G,6,0)) ->  | K17: =IF(C17=0,"",VLOOKUP(C17,BNCDADOS!$A:$G,7,0)) ->  | L17: =SUM(L18:L24) -> 639893.72
A18: 1.3.1 | B18: =IF(C18=0,"",VLOOKUP(C18,BNCDADOS!$A:$H,8,0)) -> SINAPI/RN SERVIÇO | C18: 93206 | D18: =IF(C18=0,"",VLOOKUP(C18,BNCDADOS!$A:$G,2,0)) -> EXECUÇÃO DE ESCRITÓRIO EM CANTEIRO DE OBRA EM ALVENARIA, NÃO INCLUSO MOBILIÁRIO E EQUIPAMENTOS. AF_02/2016 | E18: =IF(C18=0,"",VLOOKUP(C18,BNCDADOS!$A:$G,3,0)) -> m² | F18: =TRUNC(M18,2) -> 100 | G18: =IF(C18=0,"",VLOOKUP(C18,BNCDADOS!$A:$G,4,0)) -> 1084.17 | H18: =IF(C18=0,"",VLOOKUP(C18,BNCDADOS!$A:$G,5,0)) -> 1341 | I18: =IF(H18="",0,TRUNC(H18*F18,2)) -> 134100 | J18: =IF(C18=0,"",VLOOKUP(C18,BNCDADOS!$A:$G,6,0)) -> 1038.15 | K18: =IF(C18=0,"",VLOOKUP(C18,BNCDADOS!$A:$G,7,0)) -> 1349.17 | L18: =IF(K18="",0,TRUNC(K18*F18,2)) -> 134917 | M18: ='MC - CANTEIRO'!P15 -> 100
A19: 1.3.2 | B19: =IF(C19=0,"",VLOOKUP(C19,BNCDADOS!$A:$H,8,0)) -> SINAPI/RN SERVIÇO | C19: 93209 | D19: =IF(C19=0,"",VLOOKUP(C19,BNCDADOS!$A:$G,2,0)) -> EXECUÇÃO DE ALMOXARIFADO EM CANTEIRO DE OBRA EM ALVENARIA, INCLUSO PRATELEIRAS. AF_02/2016 | E19: =IF(C19=0,"",VLOOKUP(C19,BNCDADOS!$A:$G,3,0)) -> m² | F19: =TRUNC(M19,2) -> 200 | G19: =IF(C19=0,"",VLOOKUP(C19,BNCDADOS!$A:$G,4,0)) -> 943.07 | H19: =IF(C19=0,"",VLOOKUP(C19,BNCDADOS!$A:$G,5,0)) -> 1166.48 | I19: =IF(H19="",0,TRUNC(H19*F19,2)) -> 233296 | J19: =IF(C19=0,"",VLOOKUP(C19,BNCDADOS!$A:$G,6,0)) -> 909.05 | K19: =IF(C19=0,"",VLOOKUP(C19,BNCDADOS!$A:$G,7,0)) -> 1181.4 | L19: =IF(K19="",0,TRUNC(K19*F19,2)) -> 236280 | M19: ='MC - CANTEIRO'!P21 -> 200
A20: 1.3.3 | B20: =IF(C20=0,"",VLOOKUP(C20,BNCDADOS!$A:$H,8,0)) -> SINAPI/RN SERVIÇO | C20: 93211 | D20: =IF(C20=0,"",VLOOKUP(C20,BNCDADOS!$A:$G,2,0)) -> EXECUÇÃO DE REFEITÓRIO EM CANTEIRO DE OBRA EM ALVENARIA, NÃO INCLUSO MOBILIÁRIO E EQUIPAMENTOS. AF_02/2016 | E20: =IF(C20=0,"",VLOOKUP(C20,BNCDADOS!$A:$G,3,0)) -> m² | F20: 150 | G20: =IF(C20=0,"",VLOOKUP(C20,BNCDADOS!$A:$G,4,0)) -> 604.87 | H20: =IF(C20=0,"",VLOOKUP(C20,BNCDADOS!$A:$G,5,0)) -> 748.16 | I20: 112224 | J20: =IF(C20=0,"",VLOOKUP(C20,BNCDADOS!$A:$G,6,0)) -> 583.97 | K20: =IF(C20=0,"",VLOOKUP(C20,BNCDADOS!$A:$G,7,0)) -> 758.92 | L20: 113838 | M20: ='MC - CANTEIRO'!P27 -> 150
A21: 1.3.4 | B21: =IF(C21=0,"",VLOOKUP(C21,BNCDADOS!$A:$H,8,0)) -> SINAPI/RN SERVIÇO | C21: 93213 | D21: =IF(C21=0,"",VLOOKUP(C21,BNCDADOS!$A:$G,2,0)) -> EXECUÇÃO DE SANITÁRIO E VESTIÁRIO EM CANTEIRO DE OBRA EM ALVENARIA, NÃO INCLUSO MOBILIÁRIO. AF_02/2016 | E21: =IF(C21=0,"",VLOOKUP(C21,BNCDADOS!$A:$G,3,0)) -> m² | F21: 50 | G21: =IF(C21=0,"",VLOOKUP(C21,BNCDADOS!$A:$G,4,0)) -> 1002.19 | H21: =IF(C21=0,"",VLOOKUP(C21,BNCDADOS!$A:$G,5,0)) -> 1239.6 | I21: 61980 | J21: =IF(C21=0,"",VLOOKUP(C21,BNCDADOS!$A:$G,6,0)) -> 965.44 | K21: =IF(C21=0,"",VLOOKUP(C21,BNCDADOS!$A:$G,7,0)) -> 1254.68 | L21: 62734 | M21: ='MC - CANTEIRO'!R28 -> 50
A22: 1.3.5 | B22: =IF(C22=0,"",VLOOKUP(C22,BNCDADOS!$A:$H,8,0)) -> SINAPI/RN SERVIÇO | C22: 93243 | D22: =IF(C22=0,"",VLOOKUP(C22,BNCDADOS!$A:$G,2,0)) -> EXECUÇÃO DE RESERVATÓRIO ELEVADO DE ÁGUA (2000 LITROS) EM CANTEIRO DE OBRA, APOIADO EM ESTRUTURA DE MADEIRA. AF_02/2016_PA | E22: =IF(C22=0,"",VLOOKUP(C22,BNCDADOS!$A:$G,3,0)) -> m² | F22: 3 | G22: =IF(C22=0,"",VLOOKUP(C22,BNCDADOS!$A:$G,4,0)) -> 10497.6 | H22: =IF(C22=0,"",VLOOKUP(C22,BNCDADOS!$A:$G,5,0)) -> 12984.48 | I22: 38953.44 | J22: =IF(C22=0,"",VLOOKUP(C22,BNCDADOS!$A:$G,6,0)) -> 10440.71 | K22: =IF(C22=0,"",VLOOKUP(C22,BNCDADOS!$A:$G,7,0)) -> 13568.74 | L22: 40706.22 | M22: ='MC - CANTEIRO'!R34 -> 3
A23: 1.3.6 | B23: =IF(C23=0,"",VLOOKUP(C23,BNCDADOS!$A:$H,8,0)) -> SINAPI/RN SERVIÇO | C23: 93582 | D23: =IF(C23=0,"",VLOOKUP(C23,BNCDADOS!$A:$G,2,0)) -> EXECUÇÃO DE CENTRAL DE ARMADURA EM CANTEIRO DE OBRA, NÃO INCLUSO MOBILIÁRIO E EQUIPAMENTOS. AF_04/2016 | E23: =IF(C23=0,"",VLOOKUP(C23,BNCDADOS!$A:$G,3,0)) -> m² | F23: 50 | G23: =IF(C23=0,"",VLOOKUP(C23,BNCDADOS!$A:$G,4,0)) -> 310.76 | H23: =IF(C23=0,"",VLOOKUP(C23,BNCDADOS!$A:$G,5,0)) -> 384.37 | I23: 19218.5 | J23: =IF(C23=0,"",VLOOKUP(C23,BNCDADOS!$A:$G,6,0)) -> 303.85 | K23: =IF(C23=0,"",VLOOKUP(C23,BNCDADOS!$A:$G,7,0)) -> 394.88 | L23: 19744 | M23: ='MC - CANTEIRO'!R40 -> 50
A24: 1.3.7 | B24: =IF(C24=0,"",VLOOKUP(C24,BNCDADOS!$A:$H,8,0)) -> SINAPI/RN SERVIÇO | C24: 93583 | D24: =IF(C24=0,"",VLOOKUP(C24,BNCDADOS!$A:$G,2,0)) -> EXECUÇÃO DE CENTRAL DE FÔRMAS, PRODUÇÃO DE ARGAMASSA OU CONCRETO EM CANTEIRO DE OBRA, NÃO INCLUSO MOBILIÁRIO E EQUIPAMENTOS. AF_04/2016 | E24: =IF(C24=0,"",VLOOKUP(C24,BNCDADOS!$A:$G,3,0)) -> m² | F24: 50 | G24: =IF(C24=0,"",VLOOKUP(C24,BNCDADOS!$A:$G,4,0)) -> 499.15 | H24: =IF(C24=0,"",VLOOKUP(C24,BNCDADOS!$A:$G,5,0)) -> 617.39 | I24: 30869.5 | J24: =IF(C24=0,"",VLOOKUP(C24,BNCDADOS!$A:$G,6,0)) -> 487.45 | K24: =IF(C24=0,"",VLOOKUP(C24,BNCDADOS!$A:$G,7,0)) -> 633.49 | L24: 31674.5 | M24: ='MC - CANTEIRO'!R46 -> 50
B25: =IF(C25=0,"",VLOOKUP(C25,BNCDADOS!$A:$H,8,0)) ->  | D25: =IF(C25=0,"",VLOOKUP(C25,BNCDADOS!$A:$G,2,0)) ->  | E25: =IF(C25=0,"",VLOOKUP(C25,BNCDADOS!$A:$G,3,0)) ->  | F25: 0 | G25: =IF(C25=0,"",VLOOKUP(C25,BNCDADOS!$A:$G,4,0)) ->  | H25: =IF(C25=0,"",VLOOKUP(C25,BNCDADOS!$A:$G,5,0)) ->  | I25: 0 | J25: =IF(C25=0,"",VLOOKUP(C25,BNCDADOS!$A:$G,6,0)) ->  | K25: =IF(C25=0,"",VLOOKUP(C25,BNCDADOS!$A:$G,7,0)) ->  | L25: 0
A26: 1.4 | B26: =IF(C26=0,"",VLOOKUP(C26,BNCDADOS!$A:$G,8,0)) ->  | D26: DIVERSOS | E26: =IF(C26=0,"",VLOOKUP(C26,BNCDADOS!$A:$G,3,0)) ->  | F26: =TRUNC(M26,2) -> 0 | G26: =IF(C26=0,"",VLOOKUP(C26,BNCDADOS!$A:$G,4,0)) ->  | H26: =IF(C26=0,"",VLOOKUP(C26,BNCDADOS!$A:$G,5,0)) ->  | I26: =SUM(I27:I28) -> 36541.1 | J26: =IF(C26=0,"",VLOOKUP(C26,BNCDADOS!$A:$G,6,0)) ->  | K26: =IF(C26=0,"",VLOOKUP(C26,BNCDADOS!$A:$G,7,0)) ->  | L26: =SUM(L27:L28) -> 37749.7
A27: 1.4.1 | B27: =IF(C27=0,"",VLOOKUP(C27,BNCDADOS!$A:$H,8,0)) -> caern | C27: 2010054 | D27: =IF(C27=0,"",VLOOKUP(C27,BNCDADOS!$A:$G,2,0)) -> PLACA DE OBRA EM CHAPA DE ACO GALVANIZADO. INC_05/2020 | E27: =IF(C27=0,"",VLOOKUP(C27,BNCDADOS!$A:$G,3,0)) -> M² | F27: =TRUNC(M27,2) -> 60 | G27: =IF(C27=0,"",VLOOKUP(C27,BNCDADOS!$A:$G,4,0)) -> 383.64 | H27: =IF(C27=0,"",VLOOKUP(C27,BNCDADOS!$A:$G,5,0)) -> 474.52 | I27: =IF(H27="",0,TRUNC(H27*F27,2)) -> 28471.2 | J27: =IF(C27=0,"",VLOOKUP(C27,BNCDADOS!$A:$G,6,0)) -> 377.46 | K27: =IF(C27=0,"",VLOOKUP(C27,BNCDADOS!$A:$G,7,0)) -> 490.54 | L27: =IF(K27="",0,TRUNC(K27*F27,2)) -> 29432.4 | M27: =2*3*10 -> 60
A28: 1.4.2 | B28: =IF(C28=0,"",VLOOKUP(C28,BNCDADOS!$A:$H,8,0)) -> caern | C28: 2010033 | D28: =IF(C28=0,"",VLOOKUP(C28,BNCDADOS!$A:$G,2,0)) -> PLACA (PADRÃO IDEMA) DE LICENCIAMENTO AMBIENTAL | E28: =IF(C28=0,"",VLOOKUP(C28,BNCDADOS!$A:$G,3,0)) -> UN | F28: =TRUNC(M28,2) -> 10 | G28: =IF(C28=0,"",VLOOKUP(C28,BNCDADOS!$A:$G,4,0)) -> 652.43 | H28: =IF(C28=0,"",VLOOKUP(C28,BNCDADOS!$A:$G,5,0)) -> 806.99 | I28: =IF(H28="",0,TRUNC(H28*F28,2)) -> 8069.9 | J28: =IF(C28=0,"",VLOOKUP(C28,BNCDADOS!$A:$G,6,0)) -> 639.99 | K28: =IF(C28=0,"",VLOOKUP(C28,BNCDADOS!$A:$G,7,0)) -> 831.73 | L28: =IF(K28="",0,TRUNC(K28*F28,2)) -> 8317.3 | M28: 10
B29: =IF(C29=0,"",VLOOKUP(C29,BNCDADOS!$A:$H,8,0)) ->  | D29: =IF(C29=0,"",VLOOKUP(C29,BNCDADOS!$A:$G,2,0)) ->  | E29: =IF(C29=0,"",VLOOKUP(C29,BNCDADOS!$A:$G,3,0)) ->  | F29: =TRUNC(M29,2) -> 0 | G29: =IF(C29=0,"",VLOOKUP(C29,BNCDADOS!$A:$G,4,0)) ->  | H29: =IF(C29=0,"",VLOOKUP(C29,BNCDADOS!$A:$G,5,0)) ->  | I29: =IF(H29="",0,TRUNC(H29*F29,2)) -> 0 | J29: =IF(C29=0,"",VLOOKUP(C29,BNCDADOS!$A:$G,6,0)) ->  | K29: =IF(C29=0,"",VLOOKUP(C29,BNCDADOS!$A:$G,7,0)) ->  | L29: =IF(K29="",0,TRUNC(K29*F29,2)) -> 0
A30: 2. | D30: TRECHO 01 - CAPTAÇÃO À ETA | I30: =I31+I70+I163+I265+I310 -> 98564020.42 | L30: =L31+L70+L163+L265+L310 -> 102933846.4
A31: 2.1 | D31: SERVIÇOS_ADUTORA TRECHO 01 - CAPTAÇÃO A ETA | I31: =SUM(I32,I41,I50,I61,I66) -> 10041135.59 | L31: =SUM(L32,L41,L50,L61,L66) -> 10233798.8
A32: 2.1.1 | B32: =IF(C32=0,"",VLOOKUP(C32,[142]BNCDADOS!$A:$G,8,0)) ->  | D32: SERVIÇOS PRELIMINARES | E32: =IF(C32=0,"",VLOOKUP(C32,[142]BNCDADOS!$A:$G,3,0)) ->  | F32: =TRUNC(M32,2) -> 0 | G32: =IF(C32=0,"",VLOOKUP(C32,[142]BNCDADOS!$A:$G,4,0)) ->  | H32: =IF(C32=0,"",VLOOKUP(C32,[142]BNCDADOS!$A:$G,5,0)) ->  | I32: =SUM(I33:I40) -> 437770.12 | J32: =IF(C32=0,"",VLOOKUP(C32,[142]BNCDADOS!$A:$G,6,0)) ->  | K32: =IF(C32=0,"",VLOOKUP(C32,[142]BNCDADOS!$A:$G,7,0)) ->  | L32: =SUM(L33:L40) -> 438402.36
A33: 2.1.1.1 | B33: =IF(C33=0,"",VLOOKUP(C33,BNCDADOS!$A:$H,8,0)) -> caern | C33: 2010050 | D33: =IF(C33=0,"",VLOOKUP(C33,BNCDADOS!$A:$G,2,0)) -> LOCAÇÃO DE ADUTORAS, COLETORES TRONCO E INTERCEPTORES - COM AUXÍLIO DE EQUIPAMENTO TOPOGRÁFICO. R_11/2018 | E33: =IF(C33=0,"",VLOOKUP(C33,BNCDADOS!$A:$G,3,0)) -> M | F33: 20046.03 | G33: =IF(C33=0,"",VLOOKUP(C33,BNCDADOS!$A:$G,4,0)) -> 2.56 | H33: =IF(C33=0,"",VLOOKUP(C33,BNCDADOS!$A:$G,5,0)) -> 3.16 | I33: =IF(H33="",0,TRUNC(H33*F33,2)) -> 63345.45 | J33: =IF(C33=0,"",VLOOKUP(C33,BNCDADOS!$A:$G,6,0)) -> 2.24 | K33: =IF(C33=0,"",VLOOKUP(C33,BNCDADOS!$A:$G,7,0)) -> 2.91 | L33: =IF(K33="",0,TRUNC(K33*F33,2)) -> 58333.94 | M33: =SUMIF('MC - TRECHO 01'!A:A,Orçamento!A33,'MC - TRECHO 01'!R:R) -> 20046.03 | N33: =SUMIF(#REF!,Orçamento!A33,#REF!) -> 
A34: 2.1.1.2 | B34: =IF(C34=0,"",VLOOKUP(C34,BNCDADOS!$A:$H,8,0)) -> SINAPI/RN SERVIÇO | C34: 98525 | D34: =IF(C34=0,"",VLOOKUP(C34,BNCDADOS!$A:$G,2,0)) -> LIMPEZA MECANIZADA DE CAMADA VEGETAL, VEGETAÇÃO E PEQUENAS ÁRVORES (DIÂMETRO DE TRONCO MENOR QUE 0,20 M), COM TRATOR DE ESTEIRAS. AF_03/2024 | E34: =IF(C34=0,"",VLOOKUP(C34,BNCDADOS!$A:$G,3,0)) -> M2 | F34: =TRUNC(M34,2) -> 120276.18 | G34: =IF(C34=0,"",VLOOKUP(C34,BNCDADOS!$A:$G,4,0)) -> 0,61 | H34: =IF(C34=0,"",VLOOKUP(C34,BNCDADOS!$A:$G,5,0)) -> 0.75 | I34: =IF(H34="",0,TRUNC(H34*F34,2)) -> 90207.13 | J34: =IF(C34=0,"",VLOOKUP(C34,BNCDADOS!$A:$G,6,0)) -> 0,58 | K34: =IF(C34=0,"",VLOOKUP(C34,BNCDADOS!$A:$G,7,0)) -> 0.75 | L34: =IF(K34="",0,TRUNC(K34*F34,2)) -> 90207.13 | M34: =SUMIF('MC - TRECHO 01'!A:A,Orçamento!A34,'MC - TRECHO 01'!R:R) -> 120276.18 | N34: =SUMIF(#REF!,Orçamento!A34,#REF!) -> 
A35: 2.1.1.3 | B35: =IF(C35=0,"",VLOOKUP(C35,BNCDADOS!$A:$H,8,0)) -> caern | C35: 2010053 | D35: =IF(C35=0,"",VLOOKUP(C35,BNCDADOS!$A:$G,2,0)) -> SINALIZAÇÃO DE OBRA COM TELA TAPUME, COR LARANJA, COM SUPORTE A CADA 2M E PLACA DE SINALIZAÇÃO SOBRE CAVALETE. INC_11/2019 | E35: =IF(C35=0,"",VLOOKUP(C35,BNCDADOS!$A:$G,3,0)) -> M | F35: 40092.06 | G35: =IF(C35=0,"",VLOOKUP(C35,BNCDADOS!$A:$G,4,0)) -> 4.54 | H35: =IF(C35=0,"",VLOOKUP(C35,BNCDADOS!$A:$G,5,0)) -> 5.61 | I35: 224916.45 | J35: =IF(C35=0,"",VLOOKUP(C35,BNCDADOS!$A:$G,6,0)) -> 4.39 | K35: =IF(C35=0,"",VLOOKUP(C35,BNCDADOS!$A:$G,7,0)) -> 5.7 | L35: 228524.74 | M35: =SUMIF('MC - TRECHO 01'!A:A,Orçamento!A35,'MC - TRECHO 01'!R:R) -> 40092.06 | N35: =SUMIF(#REF!,Orçamento!A35,#REF!) -> 
A36: 2.1.1.4 | B36: =IF(C36=0,"",VLOOKUP(C36,BNCDADOS!$A:$H,8,0)) -> SINAPI/RN SERVIÇO | C36: 97054 | D36: =IF(C36=0,"",VLOOKUP(C36,BNCDADOS!$A:$G,2,0)) -> INSTALAÇÃO DE SINALIZADOR NOTURNO LED. AF_03/2024 | E36: =IF(C36=0,"",VLOOKUP(C36,BNCDADOS!$A:$G,3,0)) -> UN | F36: 407 | G36: =IF(C36=0,"",VLOOKUP(C36,BNCDADOS!$A:$G,4,0)) -> 28,12 | H36: =IF(C36=0,"",VLOOKUP(C36,BNCDADOS!$A:$G,5,0)) -> 34.78 | I36: 14155.46 | J36: =IF(C36=0,"",VLOOKUP(C36,BNCDADOS!$A:$G,6,0)) -> 27,08 | K36: =IF(C36=0,"",VLOOKUP(C36,BNCDADOS!$A:$G,7,0)) -> 35.19 | L36: 14322.33 | M36: =SUMIF('MC - TRECHO 01'!A:A,Orçamento!A36,'MC - TRECHO 01'!R:R) -> 407 | N36: =SUMIF(#REF!,Orçamento!A36,#REF!) -> 
A37: 2.1.1.5 | B37: =IF(C37=0,"",VLOOKUP(C37,BNCDADOS!$A:$H,8,0)) -> caern | C37: 2010037 | D37: =IF(C37=0,"",VLOOKUP(C37,BNCDADOS!$A:$G,2,0)) -> SONDAGEM DE INTERFERÊNCIA, ESCAVAÇÃO MANUAL DE VALA DE 0,60M ATÉ 1,30M, EM RUAS SEM PAVIMENTAÇÃO | E37: =IF(C37=0,"",VLOOKUP(C37,BNCDADOS!$A:$G,3,0)) -> M | F37: 30.07 | G37: =IF(C37=0,"",VLOOKUP(C37,BNCDADOS!$A:$G,4,0)) -> 89.34 | H37: =IF(C37=0,"",VLOOKUP(C37,BNCDADOS!$A:$G,5,0)) -> 110.5 | I37: 3322.73 | J37: =IF(C37=0,"",VLOOKUP(C37,BNCDADOS!$A:$G,6,0)) -> 80.78 | K37: =IF(C37=0,"",VLOOKUP(C37,BNCDADOS!$A:$G,7,0)) -> 104.98 | L37: 3156.74 | M37: =SUMIF('MC - TRECHO 01'!A:A,Orçamento!A37,'MC - TRECHO 01'!R:R) -> 30.07 | N37: =SUMIF(#REF!,Orçamento!A37,#REF!) ->  | Q37: 1
A38: 2.1.1.6 | B38: =IF(C38=0,"",VLOOKUP(C38,BNCDADOS!$A:$H,8,0)) -> 0 | C38: COMP 06 | D38: =IF(C38=0,"",VLOOKUP(C38,BNCDADOS!$A:$G,2,0)) -> PLACA DE SINALIZAÇÃO DE OBRAS EM VIAS DE TRÁFEGO MONTADA EM CAVALETE METÁLICO - 1,25 X 0,4M, INCLUSO REAPROVEITAMENTO | E38: =IF(C38=0,"",VLOOKUP(C38,BNCDADOS!$A:$G,3,0)) -> UN | F38: 12 | G38: =IF(C38=0,"",VLOOKUP(C38,BNCDADOS!$A:$G,4,0)) -> 165.21 | H38: =IF(C38=0,"",VLOOKUP(C38,BNCDADOS!$A:$G,5,0)) -> 204.34 | I38: 2452.08 | J38: =IF(C38=0,"",VLOOKUP(C38,BNCDADOS!$A:$G,6,0)) -> 163.9 | K38: =IF(C38=0,"",VLOOKUP(C38,BNCDADOS!$A:$G,7,0)) -> 213 | L38: 2556 | M38: =SUMIF('MC - TRECHO 01'!A:A,Orçamento!A38,'MC - TRECHO 01'!R:R) -> 12 | N38: =SUMIF(#REF!,Orçamento!A38,#REF!) -> 
A39: 2.1.1.7 | B39: =IF(C39=0,"",VLOOKUP(C39,BNCDADOS!$A:$H,8,0)) -> 0 | C39: COMP 07 | D39: =IF(C39=0,"",VLOOKUP(C39,BNCDADOS!$A:$G,2,0)) -> PLACA DE SINALIZAÇÃO DE OBRAS EM VIAS DE TRÁFEGO MONTADA EM CAVALETE METÁLICO - 1,25 X 0,8M, INCLUSO REAPROVEITAMENTO | E39: =IF(C39=0,"",VLOOKUP(C39,BNCDADOS!$A:$G,3,0)) -> UN | F39: =TRUNC(M39,2) -> 8 | G39: =IF(C39=0,"",VLOOKUP(C39,BNCDADOS!$A:$G,4,0)) -> 326.82 | H39: =IF(C39=0,"",VLOOKUP(C39,BNCDADOS!$A:$G,5,0)) -> 404.24 | I39: =IF(H39="",0,TRUNC(H39*F39,2)) -> 3233.92 | J39: =IF(C39=0,"",VLOOKUP(C39,BNCDADOS!$A:$G,6,0)) -> 324.2 | K39: =IF(C39=0,"",VLOOKUP(C39,BNCDADOS!$A:$G,7,0)) -> 421.33 | L39: =IF(K39="",0,TRUNC(K39*F39,2)) -> 3370.64 | M39: =SUMIF('MC - TRECHO 01'!A:A,Orçamento!A39,'MC - TRECHO 01'!R:R) -> 8 | N39: =SUMIF(#REF!,Orçamento!A39,#REF!) -> 
A40: 2.1.1.8 | B40: =IF(C40=0,"",VLOOKUP(C40,BNCDADOS!$A:$H,8,0)) -> 0 | C40: COMP 01 | D40: =IF(C40=0,"",VLOOKUP(C40,BNCDADOS!$A:$G,2,0)) -> CANTEIRO ITINERANTE COMPOSTO DE TOLDO, CONJUNTO DE MESA E CADEIRAS E BANHEIRO QUÍMICO COM LIMPEZA DIÁRIA INCLUSO COLETA E DESTINAÇÃO FINAL DE EFLUENTES | E40: =IF(C40=0,"",VLOOKUP(C40,BNCDADOS!$A:$G,3,0)) -> UN | F40: 29 | G40: =IF(C40=0,"",VLOOKUP(C40,BNCDADOS!$A:$G,4,0)) -> 1007.44 | H40: =IF(C40=0,"",VLOOKUP(C40,BNCDADOS!$A:$G,5,0)) -> 1246.1 | I40: 36136.9 | J40: =IF(C40=0,"",VLOOKUP(C40,BNCDADOS!$A:$G,6,0)) -> 1006.44 | K40: =IF(C40=0,"",VLOOKUP(C40,BNCDADOS!$A:$G,7,0)) -> 1307.96 | L40: 37930.84 | M40: =SUMIF('MC - TRECHO 01'!A:A,Orçamento!A40,'MC - TRECHO 01'!R:R) -> 29 | N40: =SUMIF(#REF!,Orçamento!A40,#REF!) -> 
A41: 2.1.2 | B41: =IF(C41=0,"",VLOOKUP(C41,[142]BNCDADOS!$A:$G,8,0)) ->  | D41: MOVIMENTO DE TERRA | E41: =IF(C41=0,"",VLOOKUP(C41,[142]BNCDADOS!$A:$G,3,0)) ->  | F41: 0 | G41: =IF(C41=0,"",VLOOKUP(C41,[142]BNCDADOS!$A:$G,4,0)) ->  | H41: =IF(C41=0,"",VLOOKUP(C41,[142]BNCDADOS!$A:$G,5,0)) ->  | I41: =SUM(I42:I49) -> 5845661.03 | J41: =IF(C41=0,"",VLOOKUP(C41,[142]BNCDADOS!$A:$G,6,0)) ->  | K41: =IF(C41=0,"",VLOOKUP(C41,[142]BNCDADOS!$A:$G,7,0)) ->  | L41: =SUM(L42:L49) -> 5951196.8 | M41: 0 | N41: =SUMIF(#REF!,Orçamento!A41,#REF!) -> 
A42: 2.1.2.1 | B42: =IF(C42=0,"",VLOOKUP(C42,BNCDADOS!$A:$H,8,0)) -> 0 | C42: COMP 02 | D42: =IF(C42=0,"",VLOOKUP(C42,BNCDADOS!$A:$G,2,0)) -> ESCAVAÇÃO MANUAL DE VALA COM PROFUNDIDADE MENOR OU IGUAL A 2,00 M | E42: =IF(C42=0,"",VLOOKUP(C42,BNCDADOS!$A:$G,3,0)) -> M³ | F42: 737.69 | G42: =IF(C42=0,"",VLOOKUP(C42,BNCDADOS!$A:$G,4,0)) -> 81.49 | H42: =IF(C42=0,"",VLOOKUP(C42,BNCDADOS!$A:$G,5,0)) -> 100.79 | I42: =IF(H42="",0,TRUNC(H42*F42,2)) -> 74351.77 | J42: =IF(C42=0,"",VLOOKUP(C42,BNCDADOS!$A:$G,6,0)) -> 73.58 | K42: =IF(C42=0,"",VLOOKUP(C42,BNCDADOS!$A:$G,7,0)) -> 95.62 | L42: =IF(K42="",0,TRUNC(K42*F42,2)) -> 70537.91 | M42: =SUMIF('MC - TRECHO 01'!A:A,Orçamento!A42,'MC - TRECHO 01'!R:R) -> 737.69 | N42: =SUMIF(#REF!,Orçamento!A42,#REF!) -> 
A43: 2.1.2.2 | B43: =IF(C43=0,"",VLOOKUP(C43,BNCDADOS!$A:$H,8,0)) -> SINAPI/RN SERVIÇO | C43: 90092 | D43: =IF(C43=0,"",VLOOKUP(C43,BNCDADOS!$A:$G,2,0)) -> ESCAVAÇÃO MECANIZADA DE VALA COM PROF. MAIOR QUE 1,5 M E ATÉ 3,0 M(MÉDIA MONTANTE E JUSANTE/UMA COMPOSIÇÃO POR TRECHO), ESCAVADEIRA (0,8 M3), LARG. MENOR QUE 1,5 M, EM SOLO DE 1A CATEGORIA, LOCAIS COM BAIXO NÍVEL DE INTERFERÊNCIA. AF_02/2021 | E43: =IF(C43=0,"",VLOOKUP(C43,BNCDADOS!$A:$G,3,0)) -> M3 | F43: 61966.29 | G43: =IF(C43=0,"",VLOOKUP(C43,BNCDADOS!$A:$G,4,0)) -> 6,17 | H43: =IF(C43=0,"",VLOOKUP(C43,BNCDADOS!$A:$G,5,0)) -> 7.63 | I43: 472802.79 | J43: =IF(C43=0,"",VLOOKUP(C43,BNCDADOS!$A:$G,6,0)) -> 5,95 | K43: =IF(C43=0,"",VLOOKUP(C43,BNCDADOS!$A:$G,7,0)) -> 7.73 | L43: 478999.42 | M43: =SUMIF('MC - TRECHO 01'!A:A,Orçamento!A43,'MC - TRECHO 01'!R:R) -> 61966.29 | N43: =SUMIF(#REF!,Orçamento!A43,#REF!) -> 
A44: 2.1.2.3 | B44: =IF(C44=0,"",VLOOKUP(C44,BNCDADOS!$A:$H,8,0)) -> SINAPI/RN SERVIÇO | C44: 102319 | D44: =IF(C44=0,"",VLOOKUP(C44,BNCDADOS!$A:$G,2,0)) -> ESCAVAÇÃO MECANIZADA DE VALA COM PROF. MAIOR QUE 1,5 M ATÉ 3,0 M (MÉDIA MONTANTE E JUSANTE/UMA COMPOSIÇÃO POR TRECHO),COM ESCAVADEIRA (1,2 M3),LARG. DE 1,5 M A 2,5 M, EM SOLO DE 2A CATEGORIA, LOCAIS COM BAIXO NÍVEL DE INTERFERÊNCIA. AF_02/2021 | E44: =IF(C44=0,"",VLOOKUP(C44,BNCDADOS!$A:$G,3,0)) -> M3 | F44: 11065.41 | G44: =IF(C44=0,"",VLOOKUP(C44,BNCDADOS!$A:$G,4,0)) -> 6,94 | H44: =IF(C44=0,"",VLOOKUP(C44,BNCDADOS!$A:$G,5,0)) -> 8.58 | I44: 94941.21 | J44: =IF(C44=0,"",VLOOKUP(C44,BNCDADOS!$A:$G,6,0)) -> 6,73 | K44: =IF(C44=0,"",VLOOKUP(C44,BNCDADOS!$A:$G,7,0)) -> 8.74 | L44: 96711.68 | M44: =SUMIF('MC - TRECHO 01'!A:A,Orçamento!A44,'MC - TRECHO 01'!R:R) -> 11065.41 | N44: =SUMIF(#REF!,Orçamento!A44,#REF!) -> 
A45: 2.1.2.4 | B45: =IF(C45=0,"",VLOOKUP(C45,BNCDADOS!$A:$H,8,0)) -> SINAPI/RN SERVIÇO | C45: 101625 | D45: =IF(C45=0,"",VLOOKUP(C45,BNCDADOS!$A:$G,2,0)) -> PREPARO DE FUNDO DE VALA COM LARGURA MAIOR OU IGUAL A 1,5 M E MENOR QUE 2,5 M, COM CAMADA DE AREIA, LANÇAMENTO MECANIZADO. AF_08/2020 | E45: =IF(C45=0,"",VLOOKUP(C45,BNCDADOS!$A:$G,3,0)) -> M3 | F45: 2806.44 | G45: =IF(C45=0,"",VLOOKUP(C45,BNCDADOS!$A:$G,4,0)) -> 155,31 | H45: =IF(C45=0,"",VLOOKUP(C45,BNCDADOS!$A:$G,5,0)) -> 192.1 | I45: 539117.12 | J45: =IF(C45=0,"",VLOOKUP(C45,BNCDADOS!$A:$G,6,0)) -> 151,04 | K45: =IF(C45=0,"",VLOOKUP(C45,BNCDADOS!$A:$G,7,0)) -> 196.29 | L45: 550876.1 | M45: =SUMIF('MC - TRECHO 01'!A:A,Orçamento!A45,'MC - TRECHO 01'!R:R) -> 2806.44 | N45: =SUMIF(#REF!,Orçamento!A45,#REF!) -> 
A46: 2.1.2.5 | B46: =IF(C46=0,"",VLOOKUP(C46,BNCDADOS!$A:$H,8,0)) -> caern | C46: 2040105 | D46: =IF(C46=0,"",VLOOKUP(C46,BNCDADOS!$A:$G,2,0)) -> ESCORAMENTO DE VALA, TIPO BLINDAGEM, COM PROFUNDIDADE DE 1,5 A 3,0 M, LARGURA MAIOR OU IGUAL A 1,5 M E MENOR QUE 2,50 M - EXECUÇÃO E FORNECIMENTO, INCLUI MATERIAL. R_11/2020 | E46: =IF(C46=0,"",VLOOKUP(C46,BNCDADOS!$A:$G,3,0)) -> M² | F46: 73769.39 | G46: =IF(C46=0,"",VLOOKUP(C46,BNCDADOS!$A:$G,4,0)) -> 22.55 | H46: =IF(C46=0,"",VLOOKUP(C46,BNCDADOS!$A:$G,5,0)) -> 27.89 | I46: 2057428.28 | J46: =IF(C46=0,"",VLOOKUP(C46,BNCDADOS!$A:$G,6,0)) -> 21.51 | K46: =IF(C46=0,"",VLOOKUP(C46,BNCDADOS!$A:$G,7,0)) -> 27.95 | L46: 2061854.45 | M46: =SUMIF('MC - TRECHO 01'!A:A,Orçamento!A46,'MC - TRECHO 01'!R:R) -> 73769.39 | N46: =SUMIF(#REF!,Orçamento!A46,#REF!) -> 
A47: 2.1.2.6 | B47: =IF(C47=0,"",VLOOKUP(C47,BNCDADOS!$A:$H,8,0)) -> SINAPI/RN SERVIÇO | C47: 94306 | D47: =IF(C47=0,"",VLOOKUP(C47,BNCDADOS!$A:$G,2,0)) -> ATERRO MECANIZADO DE VALA COM ESCAVADEIRA HIDRÁULICA (CAPACIDADE DA CAÇAMBA: 0,8 M³ / POTÊNCIA: 111 HP), LARGURA ATÉ 2,5 M, PROFUNDIDADE DE 1,5 A 3,0 M, COM SOLO ARGILO-ARENOSO. AF_08/2023 | E47: =IF(C47=0,"",VLOOKUP(C47,BNCDADOS!$A:$G,3,0)) -> M3 | F47: 21997.41 | G47: =IF(C47=0,"",VLOOKUP(C47,BNCDADOS!$A:$G,4,0)) -> 68,70 | H47: =IF(C47=0,"",VLOOKUP(C47,BNCDADOS!$A:$G,5,0)) -> 84.97 | I47: 1869119.92 | J47: =IF(C47=0,"",VLOOKUP(C47,BNCDADOS!$A:$G,6,0)) -> 67,93 | K47: =IF(C47=0,"",VLOOKUP(C47,BNCDADOS!$A:$G,7,0)) -> 88.28 | L47: 1941931.35 | M47: =SUMIF('MC - TRECHO 01'!A:A,Orçamento!A47,'MC - TRECHO 01'!R:R) -> 21997.41 | N47: =SUMIF(#REF!,Orçamento!A47,#REF!) -> 
A48: 2.1.2.7 | B48: =IF(C48=0,"",VLOOKUP(C48,BNCDADOS!$A:$H,8,0)) -> SINAPI/RN SERVIÇO | C48: 104730 | D48: =IF(C48=0,"",VLOOKUP(C48,BNCDADOS!$A:$G,2,0)) -> REATERRO MECANIZADO DE VALA COM ESCAVADEIRA HIDRÁULICA (CAPACIDADE DA CAÇAMBA: 0,8 M³/POTÊNCIA: 111 HP), LARGURA DE 1,5 A 2,5 M, PROFUNDIDADE DE 1,5 A 3,0 M, COM SOLO (SEM SUBSTITUIÇÃO) DE 1ª CATEGORIA, COM PLACA VIBRATÓRIA. AF_08/2023 | E48: =IF(C48=0,"",VLOOKUP(C48,BNCDADOS!$A:$G,3,0)) -> M3 | F48: 41695.74 | G48: =IF(C48=0,"",VLOOKUP(C48,BNCDADOS!$A:$G,4,0)) -> 13,03 | H48: =IF(C48=0,"",VLOOKUP(C48,BNCDADOS!$A:$G,5,0)) -> 16.11 | I48: 671718.37 | J48: =IF(C48=0,"",VLOOKUP(C48,BNCDADOS!$A:$G,6,0)) -> 12,61 | K48: =IF(C48=0,"",VLOOKUP(C48,BNCDADOS!$A:$G,7,0)) -> 16.38 | L48: 682976.22 | M48: =SUMIF('MC - TRECHO 01'!A:A,Orçamento!A48,'MC - TRECHO 01'!R:R) -> 41695.74 | N48: =SUMIF(#REF!,Orçamento!A48,#REF!) -> 
A49: 2.1.2.8 | B49: =IF(C49=0,"",VLOOKUP(C49,BNCDADOS!$A:$H,8,0)) -> SINAPI/RN SERVIÇO | C49: 100574 | D49: =IF(C49=0,"",VLOOKUP(C49,BNCDADOS!$A:$G,2,0)) -> ESPALHAMENTO DE MATERIAL COM TRATOR DE ESTEIRAS. AF_11/2019 | E49: =IF(C49=0,"",VLOOKUP(C49,BNCDADOS!$A:$G,3,0)) -> M3 | F49: 37603.17 | G49: =IF(C49=0,"",VLOOKUP(C49,BNCDADOS!$A:$G,4,0)) -> 1,43 | H49: =IF(C49=0,"",VLOOKUP(C49,BNCDADOS!$A:$G,5,0)) -> 1.76 | I49: 66181.57 | J49: =IF(C49=0,"",VLOOKUP(C49,BNCDADOS!$A:$G,6,0)) -> 1,38 | K49: =IF(C49=0,"",VLOOKUP(C49,BNCDADOS!$A:$G,7,0)) -> 1.79 | L49: 67309.67 | M49: =SUMIF('MC - TRECHO 01'!A:A,Orçamento!A49,'MC - TRECHO 01'!R:R) -> 37603.17 | N49: =SUMIF(#REF!,Orçamento!A49,#REF!) -> 
A50: 2.1.3 | B50: =IF(C50=0,"",VLOOKUP(C50,[142]BNCDADOS!$A:$G,8,0)) ->  | D50: ASSENTAMENTO E MONTAGEM DOS TUBOS E CONEXÕES | E50: =IF(C50=0,"",VLOOKUP(C50,[142]BNCDADOS!$A:$G,3,0)) ->  | F50: 0 | G50: =IF(C50=0,"",VLOOKUP(C50,[142]BNCDADOS!$A:$G,4,0)) ->  | H50: =IF(C50=0,"",VLOOKUP(C50,[142]BNCDADOS!$A:$G,5,0)) ->  | I50: =SUM(I51:I60) -> 2048960.48 | J50: =IF(C50=0,"",VLOOKUP(C50,[142]BNCDADOS!$A:$G,6,0)) ->  | K50: =IF(C50=0,"",VLOOKUP(C50,[142]BNCDADOS!$A:$G,7,0)) ->  | L50: =SUM(L51:L60) -> 2113618.88 | N50: =SUMIF(#REF!,Orçamento!A50,#REF!) -> 
A51: 2.1.3.1 | B51: =IF(C51=0,"",VLOOKUP(C51,BNCDADOS!$A:$H,8,0)) -> caern | C51: 2060305 | D51: =IF(C51=0,"",VLOOKUP(C51,BNCDADOS!$A:$G,2,0)) -> ASSENTAMENTO DE TUBO DE PVC DEFOFO OU PRFV OU RPVC, DN 800 MM, JUNTA ELÁSTICA. R_11/2019 | E51: =IF(C51=0,"",VLOOKUP(C51,BNCDADOS!$A:$G,3,0)) -> M | F51: 20046.03 | G51: =IF(C51=0,"",VLOOKUP(C51,BNCDADOS!$A:$G,4,0)) -> 18.79 | H51: =IF(C51=0,"",VLOOKUP(C51,BNCDADOS!$A:$G,5,0)) -> 23.24 | I51: =IF(H51="",0,TRUNC(H51*F51,2)) -> 465869.73 | J51: =IF(C51=0,"",VLOOKUP(C51,BNCDADOS!$A:$G,6,0)) -> 17.66 | K51: =IF(C51=0,"",VLOOKUP(C51,BNCDADOS!$A:$G,7,0)) -> 22.95 | L51: =IF(K51="",0,TRUNC(K51*F51,2)) -> 460056.38 | M51: =SUMIF('MC - TRECHO 01'!A:A,Orçamento!A51,'MC - TRECHO 01'!R:R) -> 20046.03 | N51: =SUMIF(#REF!,Orçamento!A51,#REF!) -> 
A52: 2.1.3.2 | B52: =IF(C52=0,"",VLOOKUP(C52,BNCDADOS!$A:$H,8,0)) -> caern | C52: 2060562 | D52: =IF(C52=0,"",VLOOKUP(C52,BNCDADOS!$A:$G,2,0)) -> ASSENTAMENTO DE CONEXÕES EM FERRO FUNDIDO, JUNTA ELÁSTICA, DIAM.= 800 MM. INC_05/2020 | E52: =IF(C52=0,"",VLOOKUP(C52,BNCDADOS!$A:$G,3,0)) -> UN | F52: 85 | G52: =IF(C52=0,"",VLOOKUP(C52,BNCDADOS!$A:$G,4,0)) -> 71.53 | H52: =IF(C52=0,"",VLOOKUP(C52,BNCDADOS!$A:$G,5,0)) -> 88.47 | I52: 7519.95 | J52: =IF(C52=0,"",VLOOKUP(C52,BNCDADOS!$A:$G,6,0)) -> 67.02 | K52: =IF(C52=0,"",VLOOKUP(C52,BNCDADOS!$A:$G,7,0)) -> 87.09 | L52: 7402.65 | M52: =SUMIF('MC - TRECHO 01'!A:A,Orçamento!A52,'MC - TRECHO 01'!R:R) -> 85 | N52: =SUMIF(#REF!,Orçamento!A52,#REF!) -> 
A53: 2.1.3.3 | B53: =IF(C53=0,"",VLOOKUP(C53,BNCDADOS!$A:$H,8,0)) -> SINAPI/RN SERVIÇO | C53: 103107 | D53: =IF(C53=0,"",VLOOKUP(C53,BNCDADOS!$A:$G,2,0)) -> ASSENTAMENTO DE CONEXÃO COM 2 ACESSOS, FERRO FUNDIDO PARA REDE DE ÁGUA, DN 150 MM, JUNTA FLANGEADA (NÃO INCLUI O FORNECIMENTO). AF_09/2021 | E53: =IF(C53=0,"",VLOOKUP(C53,BNCDADOS!$A:$G,3,0)) -> UN | F53: 12 | G53: =IF(C53=0,"",VLOOKUP(C53,BNCDADOS!$A:$G,4,0)) -> 80,78 | H53: =IF(C53=0,"",VLOOKUP(C53,BNCDADOS!$A:$G,5,0)) -> 99.91 | I53: 1198.92 | J53: =IF(C53=0,"",VLOOKUP(C53,BNCDADOS!$A:$G,6,0)) -> 76,96 | K53: =IF(C53=0,"",VLOOKUP(C53,BNCDADOS!$A:$G,7,0)) -> 100.01 | L53: 1200.12 | M53: =SUMIF('MC - TRECHO 01'!A:A,Orçamento!A53,'MC - TRECHO 01'!R:R) -> 12 | N53: =SUMIF(#REF!,Orçamento!A53,#REF!) -> 
A54: 2.1.3.4 | B54: =IF(C54=0,"",VLOOKUP(C54,BNCDADOS!$A:$H,8,0)) -> SINAPI/RN SERVIÇO | C54: 103108 | D54: =IF(C54=0,"",VLOOKUP(C54,BNCDADOS!$A:$G,2,0)) -> ASSENTAMENTO DE CONEXÃO COM 2 ACESSOS, FERRO FUNDIDO PARA REDE DE ÁGUA, DN 200 MM, JUNTA FLANGEADA (NÃO INCLUI O FORNECIMENTO). AF_09/2021 | E54: =IF(C54=0,"",VLOOKUP(C54,BNCDADOS!$A:$G,3,0)) -> UN | F54: 22 | G54: =IF(C54=0,"",VLOOKUP(C54,BNCDADOS!$A:$G,4,0)) -> 103,84 | H54: =IF(C54=0,"",VLOOKUP(C54,BNCDADOS!$A:$G,5,0)) -> 128.43 | I54: 2825.46 | J54: =IF(C54=0,"",VLOOKUP(C54,BNCDADOS!$A:$G,6,0)) -> 98,78 | K54: =IF(C54=0,"",VLOOKUP(C54,BNCDADOS!$A:$G,7,0)) -> 128.37 | L54: 2824.14 | M54: =SUMIF('MC - TRECHO 01'!A:A,Orçamento!A54,'MC - TRECHO 01'!R:R) -> 22 | N54: =SUMIF(#REF!,Orçamento!A54,#REF!) -> 
A55: 2.1.3.5 | B55: =IF(C55=0,"",VLOOKUP(C55,BNCDADOS!$A:$H,8,0)) -> SINAPI/RN SERVIÇO | C55: 103117 | D55: =IF(C55=0,"",VLOOKUP(C55,BNCDADOS!$A:$G,2,0)) -> ASSENTAMENTO DE CONEXÃO COM 2 ACESSOS, FERRO FUNDIDO PARA REDE DE ÁGUA, DN 800 MM, JUNTA FLANGEADA (NÃO INCLUI O FORNECIMENTO). AF_09/2021 | E55: =IF(C55=0,"",VLOOKUP(C55,BNCDADOS!$A:$G,3,0)) -> UN | F55: 60 | G55: =IF(C55=0,"",VLOOKUP(C55,BNCDADOS!$A:$G,4,0)) -> 553,83 | H55: =IF(C55=0,"",VLOOKUP(C55,BNCDADOS!$A:$G,5,0)) -> 685.03 | I55: 41101.8 | J55: =IF(C55=0,"",VLOOKUP(C55,BNCDADOS!$A:$G,6,0)) -> 524,59 | K55: =IF(C55=0,"",VLOOKUP(C55,BNCDADOS!$A:$G,7,0)) -> 681.75 | L55: 40905 | M55: =SUMIF('MC - TRECHO 01'!A:A,Orçamento!A55,'MC - TRECHO 01'!R:R) -> 60 | N55: =SUMIF(#REF!,Orçamento!A55,#REF!) -> 
A56: 2.1.3.6 | B56: =IF(C56=0,"",VLOOKUP(C56,BNCDADOS!$A:$H,8,0)) -> caern | C56: 2060587 | D56: =IF(C56=0,"",VLOOKUP(C56,BNCDADOS!$A:$G,2,0)) -> ASSENTAMENTO DE REGISTRO DE GAVETA EM FERRO FUNDIDO COM FLANGES, DIAM. = 50MM A 150MM. INC_05/2020 | E56: =IF(C56=0,"",VLOOKUP(C56,BNCDADOS!$A:$G,3,0)) -> UN | F56: 22 | G56: =IF(C56=0,"",VLOOKUP(C56,BNCDADOS!$A:$G,4,0)) -> 14.12 | H56: =IF(C56=0,"",VLOOKUP(C56,BNCDADOS!$A:$G,5,0)) -> 17.46 | I56: 384.12 | J56: =IF(C56=0,"",VLOOKUP(C56,BNCDADOS!$A:$G,6,0)) -> 12.68 | K56: =IF(C56=0,"",VLOOKUP(C56,BNCDADOS!$A:$G,7,0)) -> 16.47 | L56: 362.34 | M56: =SUMIF('MC - TRECHO 01'!A:A,Orçamento!A56,'MC - TRECHO 01'!R:R) -> 22 | N56: =SUMIF(#REF!,Orçamento!A56,#REF!) -> 
A57: 2.1.3.7 | B57: =IF(C57=0,"",VLOOKUP(C57,BNCDADOS!$A:$H,8,0)) -> caern | C57: 2060591 | D57: =IF(C57=0,"",VLOOKUP(C57,BNCDADOS!$A:$G,2,0)) -> ASSENTAMENTO DE REGISTRO DE GAVETA EM FERRO FUNDIDO COM FLANGES, DIAM. = 800MM A 1200MM. INC_05/2020 | E57: =IF(C57=0,"",VLOOKUP(C57,BNCDADOS!$A:$G,3,0)) -> UN | F57: 8 | G57: =IF(C57=0,"",VLOOKUP(C57,BNCDADOS!$A:$G,4,0)) -> 417.89 | H57: =IF(C57=0,"",VLOOKUP(C57,BNCDADOS!$A:$G,5,0)) -> 516.88 | I57: 4135.04 | J57: =IF(C57=0,"",VLOOKUP(C57,BNCDADOS!$A:$G,6,0)) -> 392.63 | K57: =IF(C57=0,"",VLOOKUP(C57,BNCDADOS!$A:$G,7,0)) -> 510.26 | L57: 4082.08 | M57: =SUMIF('MC - TRECHO 01'!A:A,Orçamento!A57,'MC - TRECHO 01'!R:R) -> 8 | N57: =SUMIF(#REF!,Orçamento!A57,#REF!) -> 
A58: 2.1.3.8 | B58: =IF(C58=0,"",VLOOKUP(C58,BNCDADOS!$A:$H,8,0)) -> caern | C58: 2060592 | D58: =IF(C58=0,"",VLOOKUP(C58,BNCDADOS!$A:$G,2,0)) -> ASSENTAMENTO DE VENTOSA EM FERRO FUNDIDO COM FLANGE, DIAM. = 50MM A 150MM. INC_05/2020 | E58: =IF(C58=0,"",VLOOKUP(C58,BNCDADOS!$A:$G,3,0)) -> UN | F58: 10 | G58: =IF(C58=0,"",VLOOKUP(C58,BNCDADOS!$A:$G,4,0)) -> 14.12 | H58: =IF(C58=0,"",VLOOKUP(C58,BNCDADOS!$A:$G,5,0)) -> 17.46 | I58: 174.6 | J58: =IF(C58=0,"",VLOOKUP(C58,BNCDADOS!$A:$G,6,0)) -> 12.68 | K58: =IF(C58=0,"",VLOOKUP(C58,BNCDADOS!$A:$G,7,0)) -> 16.47 | L58: 164.7 | M58: =SUMIF('MC - TRECHO 01'!A:A,Orçamento!A58,'MC - TRECHO 01'!R:R) -> 10 | N58: =SUMIF(#REF!,Orçamento!A58,#REF!) -> 
A59: 2.1.3.9 | B59: =IF(C59=0,"",VLOOKUP(C59,BNCDADOS!$A:$H,8,0)) -> 0 | C59: COMP 39 | D59: =IF(C59=0,"",VLOOKUP(C59,BNCDADOS!$A:$G,2,0)) -> IMPLANTACAO DE TRAVESSIA PELO METODO NAO DESTRUTIVO COM TUBO CAMISA EM ACO CARBONO 1.200 MM, INCLUSIVE FORNECIMENTO DO TUBO | E59: =IF(C59=0,"",VLOOKUP(C59,BNCDADOS!$A:$G,3,0)) -> M | F59: 87.96 | G59: =IF(C59=0,"",VLOOKUP(C59,BNCDADOS!$A:$G,4,0)) -> 11711.79 | H59: =IF(C59=0,"",VLOOKUP(C59,BNCDADOS!$A:$G,5,0)) -> 14486.31 | I59: 1274215.82 | J59: =IF(C59=0,"",VLOOKUP(C59,BNCDADOS!$A:$G,6,0)) -> 11693.98 | K59: =IF(C59=0,"",VLOOKUP(C59,BNCDADOS!$A:$G,7,0)) -> 15197.49 | L59: 1336771.22 | M59: =SUMIF('MC - TRECHO 01'!A:A,Orçamento!A59,'MC - TRECHO 01'!R:R) -> 87.96 | N59: =SUMIF(#REF!,Orçamento!A59,#REF!) -> 
A60: 2.1.3.10 | B60: =IF(C60=0,"",VLOOKUP(C60,BNCDADOS!$A:$H,8,0)) -> SINAPI/RN SERVIÇO | C60: 100952 | D60: =IF(C60=0,"",VLOOKUP(C60,BNCDADOS!$A:$G,2,0)) -> TRANSPORTE COM CAMINHÃO CARROCERIA COM GUINDAUTO (MUNCK), MOMENTO MÁXIMO DE CARGA 11,7 TM, EM VIA URBANA PAVIMENTADA, DMT ATÉ 30KM (UNIDADE: TXKM). AF_07/2020 | E60: =IF(C60=0,"",VLOOKUP(C60,BNCDADOS!$A:$G,3,0)) -> TXKM | F60: 69293.4 | G60: =IF(C60=0,"",VLOOKUP(C60,BNCDADOS!$A:$G,4,0)) -> 2,94 | H60: =IF(C60=0,"",VLOOKUP(C60,BNCDADOS!$A:$G,5,0)) -> 3.63 | I60: 251535.04 | J60: =IF(C60=0,"",VLOOKUP(C60,BNCDADOS!$A:$G,6,0)) -> 2,89 | K60: =IF(C60=0,"",VLOOKUP(C60,BNCDADOS!$A:$G,7,0)) -> 3.75 | L60: 259850.25 | M60: =SUMIF('MC - TRECHO 01'!A:A,Orçamento!A60,'MC - TRECHO 01'!R:R) -> 69293.4 | N60: =SUMIF(#REF!,Orçamento!A60,#REF!) -> 
A61: 2.1.4 | B61: =IF(C61=0,"",VLOOKUP(C61,[142]BNCDADOS!$A:$G,8,0)) ->  | D61: CAIXAS E BLOCOS DE ANCORAGEM | E61: =IF(C61=0,"",VLOOKUP(C61,[142]BNCDADOS!$A:$G,3,0)) ->  | F61: 0 | G61: =IF(C61=0,"",VLOOKUP(C61,[142]BNCDADOS!$A:$G,4,0)) ->  | H61: =IF(C61=0,"",VLOOKUP(C61,[142]BNCDADOS!$A:$G,5,0)) ->  | I61: =SUM(I62:I65) -> 1541359.62 | J61: =IF(C61=0,"",VLOOKUP(C61,[142]BNCDADOS!$A:$G,6,0)) ->  | K61: =IF(C61=0,"",VLOOKUP(C61,[142]BNCDADOS!$A:$G,7,0)) ->  | L61: =SUM(L62:L65) -> 1565000.56 | N61: =SUMIF(#REF!,Orçamento!A61,#REF!) -> 
A62: 2.1.4.1 | B62: =IF(C62=0,"",VLOOKUP(C62,BNCDADOS!$A:$H,8,0)) -> 0 | C62: COMP 03 | D62: =IF(C62=0,"",VLOOKUP(C62,BNCDADOS!$A:$G,2,0)) -> CAIXA ENTERRADA PARA INSTALAÇÃO DE VENTOSAS E DESCARGAS, DE DIVERSOS DIÂMETROS E MEDIDAS INTERNAS 3,0 X 3,0M | E62: =IF(C62=0,"",VLOOKUP(C62,BNCDADOS!$A:$G,3,0)) -> UN | F62: 22 | G62: =IF(C62=0,"",VLOOKUP(C62,BNCDADOS!$A:$G,4,0)) -> 35231.47 | H62: =IF(C62=0,"",VLOOKUP(C62,BNCDADOS!$A:$G,5,0)) -> 43577.8 | I62: =IF(H62="",0,TRUNC(H62*F62,2)) -> 958711.6 | J62: =IF(C62=0,"",VLOOKUP(C62,BNCDADOS!$A:$G,6,0)) -> 34013 | K62: =IF(C62=0,"",VLOOKUP(C62,BNCDADOS!$A:$G,7,0)) -> 44203.29 | L62: =IF(K62="",0,TRUNC(K62*F62,2)) -> 972472.38 | M62: =SUMIF('MC - TRECHO 01'!A:A,Orçamento!A62,'MC - TRECHO 01'!R:R) -> 22 | N62: =SUMIF(#REF!,Orçamento!A62,#REF!) -> 
A63: 2.1.4.2 | B63: =IF(C63=0,"",VLOOKUP(C63,BNCDADOS!$A:$H,8,0)) -> 0 | C63: COMP 08 | D63: =IF(C63=0,"",VLOOKUP(C63,BNCDADOS!$A:$G,2,0)) -> CAIXA ENTERRADA PARA TRAVESSIAS PELO MÉTODO NÃO DESTRUTIVO, MEDINDO 6,60 X 5,40 M | E63: =IF(C63=0,"",VLOOKUP(C63,BNCDADOS!$A:$G,3,0)) -> UN | F63: 4 | G63: =IF(C63=0,"",VLOOKUP(C63,BNCDADOS!$A:$G,4,0)) -> 108654.7 | H63: =IF(C63=0,"",VLOOKUP(C63,BNCDADOS!$A:$G,5,0)) -> 134394.99 | I63: 537579.96 | J63: =IF(C63=0,"",VLOOKUP(C63,BNCDADOS!$A:$G,6,0)) -> 105206.4 | K63: =IF(C63=0,"",VLOOKUP(C63,BNCDADOS!$A:$G,7,0)) -> 136726.23 | L63: 546904.92 | M63: =SUMIF('MC - TRECHO 01'!A:A,Orçamento!A63,'MC - TRECHO 01'!R:R) -> 4 | N63: =SUMIF(#REF!,Orçamento!A63,#REF!) -> 
A64: 2.1.4.3 | B64: =IF(C64=0,"",VLOOKUP(C64,BNCDADOS!$A:$H,8,0)) -> 0 | C64: COMP 40 | D64: =IF(C64=0,"",VLOOKUP(C64,BNCDADOS!$A:$G,2,0)) -> BLOCO DE ANCORAGEM ARMADO, PARA CURVA 90°, PARA O DIÂMETRO DE 800MM | E64: =IF(C64=0,"",VLOOKUP(C64,BNCDADOS!$A:$G,3,0)) -> UN | F64: 1 | G64: =IF(C64=0,"",VLOOKUP(C64,BNCDADOS!$A:$G,4,0)) -> 1565.03 | H64: =IF(C64=0,"",VLOOKUP(C64,BNCDADOS!$A:$G,5,0)) -> 1935.78 | I64: 1935.78 | J64: =IF(C64=0,"",VLOOKUP(C64,BNCDADOS!$A:$G,6,0)) -> 1507.26 | K64: =IF(C64=0,"",VLOOKUP(C64,BNCDADOS!$A:$G,7,0)) -> 1958.83 | L64: 1958.83 | M64: =SUMIF('MC - TRECHO 01'!A:A,Orçamento!A64,'MC - TRECHO 01'!R:R) -> 1 | N64: =SUMIF(#REF!,Orçamento!A64,#REF!) -> 
A65: 2.1.4.4 | B65: =IF(C65=0,"",VLOOKUP(C65,BNCDADOS!$A:$H,8,0)) -> 0 | C65: COMP 41 | D65: =IF(C65=0,"",VLOOKUP(C65,BNCDADOS!$A:$G,2,0)) -> BLOCO DE ANCORAGEM NÃO ARMADO, PARA CURVA 11°, 22° E 45°, PARA O DIÂMETRO DE 800MM | E65: =IF(C65=0,"",VLOOKUP(C65,BNCDADOS!$A:$G,3,0)) -> UN | F65: 29 | G65: =IF(C65=0,"",VLOOKUP(C65,BNCDADOS!$A:$G,4,0)) -> 1202.46 | H65: =IF(C65=0,"",VLOOKUP(C65,BNCDADOS!$A:$G,5,0)) -> 1487.32 | I65: 43132.28 | J65: =IF(C65=0,"",VLOOKUP(C65,BNCDADOS!$A:$G,6,0)) -> 1158.57 | K65: =IF(C65=0,"",VLOOKUP(C65,BNCDADOS!$A:$G,7,0)) -> 1505.67 | L65: 43664.43 | M65: =SUMIF('MC - TRECHO 01'!A:A,Orçamento!A65,'MC - TRECHO 01'!R:R) -> 29 | N65: =SUMIF(#REF!,Orçamento!A65,#REF!) -> 
A66: 2.1.5 | B66: =IF(C66=0,"",VLOOKUP(C66,[142]BNCDADOS!$A:$G,8,0)) ->  | D66: DIVERSOS | E66: =IF(C66=0,"",VLOOKUP(C66,[142]BNCDADOS!$A:$G,3,0)) ->  | F66: 0 | G66: =IF(C66=0,"",VLOOKUP(C66,[142]BNCDADOS!$A:$G,4,0)) ->  | H66: =IF(C66=0,"",VLOOKUP(C66,[142]BNCDADOS!$A:$G,5,0)) ->  | I66: =SUM(I67:I68) -> 167384.34 | J66: =IF(C66=0,"",VLOOKUP(C66,[142]BNCDADOS!$A:$G,6,0)) ->  | K66: =IF(C66=0,"",VLOOKUP(C66,[142]BNCDADOS!$A:$G,7,0)) ->  | L66: =SUM(L67:L68) -> 165580.2 | M66: 0 | N66: =SUMIF(#REF!,Orçamento!A66,#REF!) -> 
A67: 2.1.5.1 | B67: =IF(C67=0,"",VLOOKUP(C67,BNCDADOS!$A:$H,8,0)) -> 0 | C67: COMP 05 | D67: =IF(C67=0,"",VLOOKUP(C67,BNCDADOS!$A:$G,2,0)) -> LIMPEZA, DESINFECÇÃO E TESTE DE REDES E ADUTORAS DE ABASTECIMENTO DE ÁGUA | E67: =IF(C67=0,"",VLOOKUP(C67,BNCDADOS!$A:$G,3,0)) -> M | F67: 20046.03 | G67: =IF(C67=0,"",VLOOKUP(C67,BNCDADOS!$A:$G,4,0)) -> 5.16 | H67: =IF(C67=0,"",VLOOKUP(C67,BNCDADOS!$A:$G,5,0)) -> 6.38 | I67: =IF(H67="",0,TRUNC(H67*F67,2)) -> 127893.67 | J67: =IF(C67=0,"",VLOOKUP(C67,BNCDADOS!$A:$G,6,0)) -> 4.94 | K67: =IF(C67=0,"",VLOOKUP(C67,BNCDADOS!$A:$G,7,0)) -> 6.42 | L67: =IF(K67="",0,TRUNC(K67*F67,2)) -> 128695.51 | M67: =SUMIF('MC - TRECHO 01'!A:A,Orçamento!A67,'MC - TRECHO 01'!R:R) -> 20046.03 | N67: =SUMIF(#REF!,Orçamento!A67,#REF!) -> 
A68: 2.1.5.2 | B68: =IF(C68=0,"",VLOOKUP(C68,BNCDADOS!$A:$H,8,0)) -> caern | C68: 2220075 | D68: =IF(C68=0,"",VLOOKUP(C68,BNCDADOS!$A:$G,2,0)) -> CADASTRO DE ADUTORAS, COLETORES, INTERCEPTORES E EMISSÁRIOS - INCLUSIVE DESENHISTA. R_11/2021 | E68: =IF(C68=0,"",VLOOKUP(C68,BNCDADOS!$A:$G,3,0)) -> M | F68: 20046.03 | G68: =IF(C68=0,"",VLOOKUP(C68,BNCDADOS!$A:$G,4,0)) -> 1.6 | H68: =IF(C68=0,"",VLOOKUP(C68,BNCDADOS!$A:$G,5,0)) -> 1.97 | I68: 39490.67 | J68: =IF(C68=0,"",VLOOKUP(C68,BNCDADOS!$A:$G,6,0)) -> 1.42 | K68: =IF(C68=0,"",VLOOKUP(C68,BNCDADOS!$A:$G,7,0)) -> 1.84 | L68: 36884.69 | M68: =SUMIF('MC - TRECHO 01'!A:A,Orçamento!A68,'MC - TRECHO 01'!R:R) -> 20046.03 | N68: =SUMIF(#REF!,Orçamento!A68,#REF!) -> 
B69: =IF(C69=0,"",VLOOKUP(C69,[142]BNCDADOS!$A:$H,8,0)) ->  | D69: =IF(C69=0,"",VLOOKUP(C69,[142]BNCDADOS!$A:$G,2,0)) ->  | E69: =IF(C69=0,"",VLOOKUP(C69,[142]BNCDADOS!$A:$G,3,0)) ->  | F69: 0 | G69: =IF(C69=0,"",VLOOKUP(C69,[142]BNCDADOS!$A:$G,4,0)) ->  | H69: =IF(C69=0,"",VLOOKUP(C69,[142]BNCDADOS!$A:$G,5,0)) ->  | I69: =IF(H69="",0,TRUNC(H69*F69,2)) -> 0 | J69: =IF(C69=0,"",VLOOKUP(C69,[142]BNCDADOS!$A:$G,6,0)) ->  | K69: =IF(C69=0,"",VLOOKUP(C69,[142]BNCDADOS!$A:$G,7,0)) ->  | L69: =IF(K69="",0,TRUNC(K69*F69,2)) -> 0 | N69: =SUMIF(#REF!,Orçamento!A69,#REF!) -> 
A70: 2.2 | D70: SERVIÇOS_CAPTAÇÃO | I70: =SUM(I71,I81,I90,I105,I124,I113,I121,I128,I134,I137,I158,I160) -> 809904.23 | L70: =SUM(L71,L81,L90,L105,L124,L113,L121,L128,L134,L137,L158,L160) -> 831342.01 | N70: =SUMIF(#REF!,Orçamento!A70,#REF!) -> 
A71: 2.2.1 | B71: =IF(C71=0,"",VLOOKUP(C71,[142]BNCDADOS!$A:$G,8,0)) ->  | D71: SERVIÇOS PRELIMINARES | E71: =IF(C71=0,"",VLOOKUP(C71,[142]BNCDADOS!$A:$G,3,0)) ->  | F71: =TRUNC(M71,2) -> 0 | G71: =IF(C71=0,"",VLOOKUP(C71,[142]BNCDADOS!$A:$G,4,0)) ->  | H71: =IF(C71=0,"",VLOOKUP(C71,[142]BNCDADOS!$A:$G,5,0)) ->  | I71: =SUM(I72:I80) -> 127461.01 | J71: =IF(C71=0,"",VLOOKUP(C71,[142]BNCDADOS!$A:$G,6,0)) ->  | K71: =IF(C71=0,"",VLOOKUP(C71,[142]BNCDADOS!$A:$G,7,0)) ->  | L71: =SUM(L72:L80) -> 130044.92 | N71: =SUMIF(#REF!,Orçamento!A71,#REF!) -> 
A72: 2.2.1.1 | B72: =IF(C72=0,"",VLOOKUP(C72,BNCDADOS!$A:$H,8,0)) -> SINAPI/RN SERVIÇO | C72: 98525 | D72: =IF(C72=0,"",VLOOKUP(C72,BNCDADOS!$A:$G,2,0)) -> LIMPEZA MECANIZADA DE CAMADA VEGETAL, VEGETAÇÃO E PEQUENAS ÁRVORES (DIÂMETRO DE TRONCO MENOR QUE 0,20 M), COM TRATOR DE ESTEIRAS. AF_03/2024 | E72: =IF(C72=0,"",VLOOKUP(C72,BNCDADOS!$A:$G,3,0)) -> M2 | F72: 415.74 | G72: =IF(C72=0,"",VLOOKUP(C72,BNCDADOS!$A:$G,4,0)) -> 0,61 | H72: =IF(C72=0,"",VLOOKUP(C72,BNCDADOS!$A:$G,5,0)) -> 0.75 | I72: =IF(H72="",0,TRUNC(H72*F72,2)) -> 311.8 | J72: =IF(C72=0,"",VLOOKUP(C72,BNCDADOS!$A:$G,6,0)) -> 0,58 | K72: =IF(C72=0,"",VLOOKUP(C72,BNCDADOS!$A:$G,7,0)) -> 0.75 | L72: =IF(K72="",0,TRUNC(K72*F72,2)) -> 311.8 | M72: =SUMIF('MC - TRECHO 01'!A:A,Orçamento!A72,'MC - TRECHO 01'!R:R) -> 415.74 | N72: =SUMIF(#REF!,Orçamento!A72,#REF!) -> 
A73: 2.2.1.2 | B73: =IF(C73=0,"",VLOOKUP(C73,BNCDADOS!$A:$H,8,0)) -> SINAPI/RN SERVIÇO | C73: 98527 | D73: =IF(C73=0,"",VLOOKUP(C73,BNCDADOS!$A:$G,2,0)) -> REMOÇÃO DE RAÍZES REMANESCENTES DE TRONCO DE ÁRVORE COM DIÂMETRO MAIOR OU IGUAL A 0,40 M E MENOR QUE 0,60 M. AF_03/2024 | E73: =IF(C73=0,"",VLOOKUP(C73,BNCDADOS!$A:$G,3,0)) -> UN | F73: 125 | G73: =IF(C73=0,"",VLOOKUP(C73,BNCDADOS!$A:$G,4,0)) -> 209,89 | H73: =IF(C73=0,"",VLOOKUP(C73,BNCDADOS!$A:$G,5,0)) -> 259.61 | I73: 32451.25 | J73: =IF(C73=0,"",VLOOKUP(C73,BNCDADOS!$A:$G,6,0)) -> 195,46 | K73: =IF(C73=0,"",VLOOKUP(C73,BNCDADOS!$A:$G,7,0)) -> 254.01 | L73: 31751.25 | M73: =SUMIF('MC - TRECHO 01'!A:A,Orçamento!A73,'MC - TRECHO 01'!R:R) -> 125 | N73: =SUMIF(#REF!,Orçamento!A73,#REF!) -> 
A74: 2.2.1.3 | B74: =IF(C74=0,"",VLOOKUP(C74,BNCDADOS!$A:$H,8,0)) -> SINAPI/RN SERVIÇO | C74: 100982 | D74: =IF(C74=0,"",VLOOKUP(C74,BNCDADOS!$A:$G,2,0)) -> CARGA, MANOBRA E DESCARGA DE ENTULHO EM CAMINHÃO BASCULANTE 10 M³ - CARGA COM ESCAVADEIRA HIDRÁULICA (CAÇAMBA DE 0,80 M³ / 111 HP) E DESCARGA LIVRE (UNIDADE: M3). AF_07/2020 | E74: =IF(C74=0,"",VLOOKUP(C74,BNCDADOS!$A:$G,3,0)) -> M3 | F74: 207.87 | G74: =IF(C74=0,"",VLOOKUP(C74,BNCDADOS!$A:$G,4,0)) -> 9,22 | H74: =IF(C74=0,"",VLOOKUP(C74,BNCDADOS!$A:$G,5,0)) -> 11.4 | I74: 2369.71 | J74: =IF(C74=0,"",VLOOKUP(C74,BNCDADOS!$A:$G,6,0)) -> 9,04 | K74: =IF(C74=0,"",VLOOKUP(C74,BNCDADOS!$A:$G,7,0)) -> 11.74 | L74: 2440.39 | M74: =SUMIF('MC - TRECHO 01'!A:A,Orçamento!A74,'MC - TRECHO 01'!R:R) -> 207.87 | N74: =SUMIF(#REF!,Orçamento!A74,#REF!) -> 
A75: 2.2.1.4 | B75: =IF(C75=0,"",VLOOKUP(C75,BNCDADOS!$A:$H,8,0)) -> SINAPI/RN SERVIÇO | C75: 93591 | D75: =IF(C75=0,"",VLOOKUP(C75,BNCDADOS!$A:$G,2,0)) -> TRANSPORTE COM CAMINHÃO BASCULANTE DE 14 M³, EM VIA URBANA EM LEITO NATURAL (UNIDADE: M3XKM). AF_07/2020 | E75: =IF(C75=0,"",VLOOKUP(C75,BNCDADOS!$A:$G,3,0)) -> M3XKM | F75: 3928.74 | G75: =IF(C75=0,"",VLOOKUP(C75,BNCDADOS!$A:$G,4,0)) -> 2,83 | H75: =IF(C75=0,"",VLOOKUP(C75,BNCDADOS!$A:$G,5,0)) -> 3.5 | I75: 13750.59 | J75: =IF(C75=0,"",VLOOKUP(C75,BNCDADOS!$A:$G,6,0)) -> 2,80 | K75: =IF(C75=0,"",VLOOKUP(C75,BNCDADOS!$A:$G,7,0)) -> 3.63 | L75: 14261.32 | M75: =SUMIF('MC - TRECHO 01'!A:A,Orçamento!A75,'MC - TRECHO 01'!R:R) -> 3928.743 | N75: =SUMIF(#REF!,Orçamento!A75,#REF!) -> 
A76: 2.2.1.5 | B76: =IF(C76=0,"",VLOOKUP(C76,BNCDADOS!$A:$H,8,0)) -> SINAPI/RN SERVIÇO | C76: 93592 | D76: =IF(C76=0,"",VLOOKUP(C76,BNCDADOS!$A:$G,2,0)) -> TRANSPORTE COM CAMINHÃO BASCULANTE DE 14 M³, EM VIA URBANA EM REVESTIMENTO PRIMÁRIO (UNIDADE: M3XKM). AF_07/2020 | E76: =IF(C76=0,"",VLOOKUP(C76,BNCDADOS!$A:$G,3,0)) -> M3XKM | F76: 3928.74 | G76: =IF(C76=0,"",VLOOKUP(C76,BNCDADOS!$A:$G,4,0)) -> 2,45 | H76: =IF(C76=0,"",VLOOKUP(C76,BNCDADOS!$A:$G,5,0)) -> 3.03 | I76: 11904.08 | J76: =IF(C76=0,"",VLOOKUP(C76,BNCDADOS!$A:$G,6,0)) -> 2,42 | K76: =IF(C76=0,"",VLOOKUP(C76,BNCDADOS!$A:$G,7,0)) -> 3.14 | L76: 12336.24 | M76: =SUMIF('MC - TRECHO 01'!A:A,Orçamento!A76,'MC - TRECHO 01'!R:R) -> 3928.743 | N76: =SUMIF(#REF!,Orçamento!A76,#REF!) -> 
A77: 2.2.1.6 | B77: =IF(C77=0,"",VLOOKUP(C77,BNCDADOS!$A:$H,8,0)) -> SINAPI/RN SERVIÇO | C77: 98459 | D77: =IF(C77=0,"",VLOOKUP(C77,BNCDADOS!$A:$G,2,0)) -> TAPUME COM TELHA METÁLICA. AF_03/2024 | E77: =IF(C77=0,"",VLOOKUP(C77,BNCDADOS!$A:$G,3,0)) -> M2 | F77: 167 | G77: =IF(C77=0,"",VLOOKUP(C77,BNCDADOS!$A:$G,4,0)) -> 101,37 | H77: =IF(C77=0,"",VLOOKUP(C77,BNCDADOS!$A:$G,5,0)) -> 125.38 | I77: 20938.46 | J77: =IF(C77=0,"",VLOOKUP(C77,BNCDADOS!$A:$G,6,0)) -> 98,15 | K77: =IF(C77=0,"",VLOOKUP(C77,BNCDADOS!$A:$G,7,0)) -> 127.55 | L77: 21300.85 | M77: =SUMIF('MC - TRECHO 01'!A:A,Orçamento!A77,'MC - TRECHO 01'!R:R) -> 167 | N77: =SUMIF(#REF!,Orçamento!A77,#REF!) -> 
A78: 2.2.1.7 | B78: =IF(C78=0,"",VLOOKUP(C78,BNCDADOS!$A:$H,8,0)) -> SINAPI/RN SERVIÇO | C78: 99059 | D78: =IF(C78=0,"",VLOOKUP(C78,BNCDADOS!$A:$G,2,0)) -> LOCAÇÃO CONVENCIONAL DE OBRA, UTILIZANDO GABARITO DE TÁBUAS CORRIDAS PONTALETADAS A CADA 2,00M - 2 UTILIZAÇÕES. AF_03/2024 | E78: =IF(C78=0,"",VLOOKUP(C78,BNCDADOS!$A:$G,3,0)) -> M | F78: =TRUNC(M78,2) -> 82.82 | G78: =IF(C78=0,"",VLOOKUP(C78,BNCDADOS!$A:$G,4,0)) -> 68,49 | H78: =IF(C78=0,"",VLOOKUP(C78,BNCDADOS!$A:$G,5,0)) -> 84.71 | I78: =IF(H78="",0,TRUNC(H78*F78,2)) -> 7015.68 | J78: =IF(C78=0,"",VLOOKUP(C78,BNCDADOS!$A:$G,6,0)) -> 64,82 | K78: =IF(C78=0,"",VLOOKUP(C78,BNCDADOS!$A:$G,7,0)) -> 84.24 | L78: =IF(K78="",0,TRUNC(K78*F78,2)) -> 6976.75 | M78: =SUMIF('MC - TRECHO 01'!A:A,Orçamento!A78,'MC - TRECHO 01'!R:R) -> 82.82 | N78: =SUMIF(#REF!,Orçamento!A78,#REF!) -> 
A79: 2.2.1.8 | B79: =IF(C79=0,"",VLOOKUP(C79,BNCDADOS!$A:$H,8,0)) -> 0 | C79: COMP 13 | D79: =IF(C79=0,"",VLOOKUP(C79,BNCDADOS!$A:$G,2,0)) -> LOCAÇÃO DE CONTÊINER ALMOXARIFADO COM PISO NAVAL - 6,00M X 2,35M - PARA USO EM CANTEIRO DE OBRAS | E79: =IF(C79=0,"",VLOOKUP(C79,BNCDADOS!$A:$G,3,0)) -> UM X MÊS | F79: 24 | G79: =IF(C79=0,"",VLOOKUP(C79,BNCDADOS!$A:$G,4,0)) -> 800.6 | H79: =IF(C79=0,"",VLOOKUP(C79,BNCDADOS!$A:$G,5,0)) -> 990.26 | I79: 23766.24 | J79: =IF(C79=0,"",VLOOKUP(C79,BNCDADOS!$A:$G,6,0)) -> 800.6 | K79: =IF(C79=0,"",VLOOKUP(C79,BNCDADOS!$A:$G,7,0)) -> 1040.45 | L79: 24970.8 | M79: =SUMIF('MC - TRECHO 01'!A:A,Orçamento!A79,'MC - TRECHO 01'!R:R) -> 24 | N79: =SUMIF(#REF!,Orçamento!A79,#REF!) -> 
A80: 2.2.1.9 | B80: =IF(C80=0,"",VLOOKUP(C80,BNCDADOS!$A:$H,8,0)) -> 0 | C80: COMP 01 | D80: =IF(C80=0,"",VLOOKUP(C80,BNCDADOS!$A:$G,2,0)) -> CANTEIRO ITINERANTE COMPOSTO DE TOLDO, CONJUNTO DE MESA E CADEIRAS E BANHEIRO QUÍMICO COM LIMPEZA DIÁRIA INCLUSO COLETA E DESTINAÇÃO FINAL DE EFLUENTES | E80: =IF(C80=0,"",VLOOKUP(C80,BNCDADOS!$A:$G,3,0)) -> UN | F80: 12 | G80: =IF(C80=0,"",VLOOKUP(C80,BNCDADOS!$A:$G,4,0)) -> 1007.44 | H80: =IF(C80=0,"",VLOOKUP(C80,BNCDADOS!$A:$G,5,0)) -> 1246.1 | I80: 14953.2 | J80: =IF(C80=0,"",VLOOKUP(C80,BNCDADOS!$A:$G,6,0)) -> 1006.44 | K80: =IF(C80=0,"",VLOOKUP(C80,BNCDADOS!$A:$G,7,0)) -> 1307.96 | L80: 15695.52 | M80: =SUMIF('MC - TRECHO 01'!A:A,Orçamento!A80,'MC - TRECHO 01'!R:R) -> 12 | N80: =SUMIF(#REF!,Orçamento!A80,#REF!) -> 
A81: 2.2.2 | B81: =IF(C81=0,"",VLOOKUP(C81,[142]BNCDADOS!$A:$G,8,0)) ->  | D81: MOVIMENTO DE TERRA | E81: =IF(C81=0,"",VLOOKUP(C81,[142]BNCDADOS!$A:$G,3,0)) ->  | F81: 0 | G81: =IF(C81=0,"",VLOOKUP(C81,[142]BNCDADOS!$A:$G,4,0)) ->  | H81: =IF(C81=0,"",VLOOKUP(C81,[142]BNCDADOS!$A:$G,5,0)) ->  | I81: =SUM(I82:I89) -> 23794.23 | J81: =IF(C81=0,"",VLOOKUP(C81,[142]BNCDADOS!$A:$G,6,0)) ->  | K81: =IF(C81=0,"",VLOOKUP(C81,[142]BNCDADOS!$A:$G,7,0)) ->  | L81: =SUM(L82:L89) -> 24566.84 | N81: =SUMIF(#REF!,Orçamento!A81,#REF!) -> 
A82: 2.2.2.1 | B82: =IF(C82=0,"",VLOOKUP(C82,BNCDADOS!$A:$H,8,0)) -> SINAPI/RN SERVIÇO | C82: 96385 | D82: =IF(C82=0,"",VLOOKUP(C82,BNCDADOS!$A:$G,2,0)) -> EXECUÇÃO E COMPACTAÇÃO DE ATERRO COM SOLO PREDOMINANTEMENTE ARGILOSO - EXCLUSIVE SOLO, ESCAVAÇÃO, CARGA E TRANSPORTE. AF_11/2019 | E82: =IF(C82=0,"",VLOOKUP(C82,BNCDADOS!$A:$G,3,0)) -> M3 | F82: 149.63 | G82: =IF(C82=0,"",VLOOKUP(C82,BNCDADOS!$A:$G,4,0)) -> 11,83 | H82: =IF(C82=0,"",VLOOKUP(C82,BNCDADOS!$A:$G,5,0)) -> 14.63 | I82: =IF(H82="",0,TRUNC(H82*F82,2)) -> 2189.08 | J82: =IF(C82=0,"",VLOOKUP(C82,BNCDADOS!$A:$G,6,0)) -> 11,38 | K82: =IF(C82=0,"",VLOOKUP(C82,BNCDADOS!$A:$G,7,0)) -> 14.78 | L82: =IF(K82="",0,TRUNC(K82*F82,2)) -> 2211.53 | M82: =SUMIF('MC - TRECHO 01'!A:A,Orçamento!A82,'MC - TRECHO 01'!R:R) -> 149.638 | N82: =SUMIF(#REF!,Orçamento!A82,#REF!) -> 
A83: 2.2.2.2 | B83: =IF(C83=0,"",VLOOKUP(C83,BNCDADOS!$A:$H,8,0)) -> SINAPI/RN SERVIÇO | C83: 101232 | D83: =IF(C83=0,"",VLOOKUP(C83,BNCDADOS!$A:$G,2,0)) -> ESCAVAÇÃO VERTICAL PARA INFRAESTRUTURA, COM CARGA, DESCARGA E TRANSPORTE DE SOLO DE 1ª CATEGORIA, COM ESCAVADEIRA HIDRÁULICA (CAÇAMBA: 1,2 M³ / 155 HP), FROTA DE 3 CAMINHÕES BASCULANTES DE 14 M³, DMT ATÉ 1 KM E VELOCIDADE MÉDIA14 KM/H. AF_05/2020 | E83: =IF(C83=0,"",VLOOKUP(C83,BNCDADOS!$A:$G,3,0)) -> M3 | F83: 149.63 | G83: =IF(C83=0,"",VLOOKUP(C83,BNCDADOS!$A:$G,4,0)) -> 9,80 | H83: =IF(C83=0,"",VLOOKUP(C83,BNCDADOS!$A:$G,5,0)) -> 12.12 | I83: 1813.51 | J83: =IF(C83=0,"",VLOOKUP(C83,BNCDADOS!$A:$G,6,0)) -> 9,66 | K83: =IF(C83=0,"",VLOOKUP(C83,BNCDADOS!$A:$G,7,0)) -> 12.55 | L83: 1877.85 | M83: =SUMIF('MC - TRECHO 01'!A:A,Orçamento!A83,'MC - TRECHO 01'!R:R) -> 149.638 | N83: =SUMIF(#REF!,Orçamento!A83,#REF!) -> 
A84: 2.2.2.3 | B84: =IF(C84=0,"",VLOOKUP(C84,BNCDADOS!$A:$H,8,0)) -> SINAPI/RN SERVIÇO | C84: 93591 | D84: =IF(C84=0,"",VLOOKUP(C84,BNCDADOS!$A:$G,2,0)) -> TRANSPORTE COM CAMINHÃO BASCULANTE DE 14 M³, EM VIA URBANA EM LEITO NATURAL (UNIDADE: M3XKM). AF_07/2020 | E84: =IF(C84=0,"",VLOOKUP(C84,BNCDADOS!$A:$G,3,0)) -> M3XKM | F84: 2693.48 | G84: =IF(C84=0,"",VLOOKUP(C84,BNCDADOS!$A:$G,4,0)) -> 2,83 | H84: =IF(C84=0,"",VLOOKUP(C84,BNCDADOS!$A:$G,5,0)) -> 3.5 | I84: 9427.18 | J84: =IF(C84=0,"",VLOOKUP(C84,BNCDADOS!$A:$G,6,0)) -> 2,80 | K84: =IF(C84=0,"",VLOOKUP(C84,BNCDADOS!$A:$G,7,0)) -> 3.63 | L84: 9777.33 | M84: =SUMIF('MC - TRECHO 01'!A:A,Orçamento!A84,'MC - TRECHO 01'!R:R) -> 2693.484 | N84: =SUMIF(#REF!,Orçamento!A84,#REF!) -> 
A85: 2.2.2.4 | B85: =IF(C85=0,"",VLOOKUP(C85,BNCDADOS!$A:$H,8,0)) -> SINAPI/RN SERVIÇO | C85: 93592 | D85: =IF(C85=0,"",VLOOKUP(C85,BNCDADOS!$A:$G,2,0)) -> TRANSPORTE COM CAMINHÃO BASCULANTE DE 14 M³, EM VIA URBANA EM REVESTIMENTO PRIMÁRIO (UNIDADE: M3XKM). AF_07/2020 | E85: =IF(C85=0,"",VLOOKUP(C85,BNCDADOS!$A:$G,3,0)) -> M3XKM | F85: 2693.48 | G85: =IF(C85=0,"",VLOOKUP(C85,BNCDADOS!$A:$G,4,0)) -> 2,45 | H85: =IF(C85=0,"",VLOOKUP(C85,BNCDADOS!$A:$G,5,0)) -> 3.03 | I85: 8161.24 | J85: =IF(C85=0,"",VLOOKUP(C85,BNCDADOS!$A:$G,6,0)) -> 2,42 | K85: =IF(C85=0,"",VLOOKUP(C85,BNCDADOS!$A:$G,7,0)) -> 3.14 | L85: 8457.52 | M85: =SUMIF('MC - TRECHO 01'!A:A,Orçamento!A85,'MC - TRECHO 01'!R:R) -> 2693.484 | N85: =SUMIF(#REF!,Orçamento!A85,#REF!) -> 
A86: 2.2.2.5 | B86: =IF(C86=0,"",VLOOKUP(C86,BNCDADOS!$A:$H,8,0)) -> SINAPI/RN SERVIÇO | C86: 98520 | D86: =IF(C86=0,"",VLOOKUP(C86,BNCDADOS!$A:$G,2,0)) -> APLICAÇÃO DE ADUBO EM SOLO. AF_07/2024 | E86: =IF(C86=0,"",VLOOKUP(C86,BNCDADOS!$A:$G,3,0)) -> M2 | F86: 70 | G86: =IF(C86=0,"",VLOOKUP(C86,BNCDADOS!$A:$G,4,0)) -> 6,22 | H86: =IF(C86=0,"",VLOOKUP(C86,BNCDADOS!$A:$G,5,0)) -> 7.69 | I86: 538.3 | J86: =IF(C86=0,"",VLOOKUP(C86,BNCDADOS!$A:$G,6,0)) -> 6,09 | K86: =IF(C86=0,"",VLOOKUP(C86,BNCDADOS!$A:$G,7,0)) -> 7.91 | L86: 553.7 | M86: =SUMIF('MC - TRECHO 01'!A:A,Orçamento!A86,'MC - TRECHO 01'!R:R) -> 70 | N86: =SUMIF(#REF!,Orçamento!A86,#REF!) -> 
A87: 2.2.2.6 | B87: =IF(C87=0,"",VLOOKUP(C87,BNCDADOS!$A:$H,8,0)) -> SINAPI/RN SERVIÇO | C87: 98504 | D87: =IF(C87=0,"",VLOOKUP(C87,BNCDADOS!$A:$G,2,0)) -> PLANTIO DE GRAMA BATATAIS EM PLACAS. AF_07/2024 | E87: =IF(C87=0,"",VLOOKUP(C87,BNCDADOS!$A:$G,3,0)) -> M2 | F87: 70 | G87: =IF(C87=0,"",VLOOKUP(C87,BNCDADOS!$A:$G,4,0)) -> 13,41 | H87: =IF(C87=0,"",VLOOKUP(C87,BNCDADOS!$A:$G,5,0)) -> 16.58 | I87: 1160.6 | J87: =IF(C87=0,"",VLOOKUP(C87,BNCDADOS!$A:$G,6,0)) -> 13,08 | K87: =IF(C87=0,"",VLOOKUP(C87,BNCDADOS!$A:$G,7,0)) -> 16.99 | L87: 1189.3 | M87: =SUMIF('MC - TRECHO 01'!A:A,Orçamento!A87,'MC - TRECHO 01'!R:R) -> 70 | N87: =SUMIF(#REF!,Orçamento!A87,#REF!) -> 
A88: 2.2.2.7 | B88: =IF(C88=0,"",VLOOKUP(C88,BNCDADOS!$A:$H,8,0)) -> SINAPI/RN SERVIÇO | C88: 96525 | D88: =IF(C88=0,"",VLOOKUP(C88,BNCDADOS!$A:$G,2,0)) -> ESCAVAÇÃO MECANIZADA PARA VIGA BALDRAME OU SAPATA CORRIDA COM MINI-ESCAVADEIRA (INCLUINDO ESCAVAÇÃO PARA COLOCAÇÃO DE FÔRMAS). AF_01/2024 | E88: =IF(C88=0,"",VLOOKUP(C88,BNCDADOS!$A:$G,3,0)) -> M3 | F88: 5.54 | G88: =IF(C88=0,"",VLOOKUP(C88,BNCDADOS!$A:$G,4,0)) -> 55,00 | H88: =IF(C88=0,"",VLOOKUP(C88,BNCDADOS!$A:$G,5,0)) -> 68.02 | I88: 376.83 | J88: =IF(C88=0,"",VLOOKUP(C88,BNCDADOS!$A:$G,6,0)) -> 52,42 | K88: =IF(C88=0,"",VLOOKUP(C88,BNCDADOS!$A:$G,7,0)) -> 68.12 | L88: 377.38 | M88: =SUMIF('MC - TRECHO 01'!A:A,Orçamento!A88,'MC - TRECHO 01'!R:R) -> 5.544 | N88: =SUMIF(#REF!,Orçamento!A88,#REF!) -> 
A89: 2.2.2.8 | B89: =IF(C89=0,"",VLOOKUP(C89,BNCDADOS!$A:$H,8,0)) -> SINAPI/RN SERVIÇO | C89: 93382 | D89: =IF(C89=0,"",VLOOKUP(C89,BNCDADOS!$A:$G,2,0)) -> REATERRO MANUAL DE VALAS, COM COMPACTADOR DE SOLOS DE PERCUSSÃO. AF_08/2023 | E89: =IF(C89=0,"",VLOOKUP(C89,BNCDADOS!$A:$G,3,0)) -> M3 | F89: 4.11 | G89: =IF(C89=0,"",VLOOKUP(C89,BNCDADOS!$A:$G,4,0)) -> 25,08 | H89: =IF(C89=0,"",VLOOKUP(C89,BNCDADOS!$A:$G,5,0)) -> 31.02 | I89: 127.49 | J89: =IF(C89=0,"",VLOOKUP(C89,BNCDADOS!$A:$G,6,0)) -> 22,89 | K89: =IF(C89=0,"",VLOOKUP(C89,BNCDADOS!$A:$G,7,0)) -> 29.74 | L89: 122.23 | M89: =SUMIF('MC - TRECHO 01'!A:A,Orçamento!A89,'MC - TRECHO 01'!R:R) -> 4.11768 | N89: =SUMIF(#REF!,Orçamento!A89,#REF!) -> 
A90: 2.2.3 | B90: =IF(C90=0,"",VLOOKUP(C90,[142]BNCDADOS!$A:$G,8,0)) ->  | D90: FUNDAÇÕES | E90: =IF(C90=0,"",VLOOKUP(C90,[142]BNCDADOS!$A:$G,3,0)) ->  | F90: 0 | G90: =IF(C90=0,"",VLOOKUP(C90,[142]BNCDADOS!$A:$G,4,0)) ->  | H90: =IF(C90=0,"",VLOOKUP(C90,[142]BNCDADOS!$A:$G,5,0)) ->  | I90: =SUM(I91:I104) -> 55081.7 | J90: =IF(C90=0,"",VLOOKUP(C90,[142]BNCDADOS!$A:$G,6,0)) ->  | K90: =IF(C90=0,"",VLOOKUP(C90,[142]BNCDADOS!$A:$G,7,0)) ->  | L90: =SUM(L91:L104) -> 56146.63 | N90: =SUMIF(#REF!,Orçamento!A90,#REF!) -> 
A91: 2.2.3.1 | B91: =IF(C91=0,"",VLOOKUP(C91,BNCDADOS!$A:$H,8,0)) -> SINAPI/RN SERVIÇO | C91: 96542 | D91: =IF(C91=0,"",VLOOKUP(C91,BNCDADOS!$A:$G,2,0)) -> FABRICAÇÃO, MONTAGEM E DESMONTAGEM DE FÔRMA PARA VIGA BALDRAME, EM CHAPA DE MADEIRA COMPENSADA RESINADA, E=17 MM, 4 UTILIZAÇÕES. AF_01/2024 | E91: =IF(C91=0,"",VLOOKUP(C91,BNCDADOS!$A:$G,3,0)) -> M2 | F91: 63.65 | G91: =IF(C91=0,"",VLOOKUP(C91,BNCDADOS!$A:$G,4,0)) -> 103,01 | H91: =IF(C91=0,"",VLOOKUP(C91,BNCDADOS!$A:$G,5,0)) -> 127.41 | I91: =IF(H91="",0,TRUNC(H91*F91,2)) -> 8109.64 | J91: =IF(C91=0,"",VLOOKUP(C91,BNCDADOS!$A:$G,6,0)) -> 96,60 | K91: =IF(C91=0,"",VLOOKUP(C91,BNCDADOS!$A:$G,7,0)) -> 125.54 | L91: =IF(K91="",0,TRUNC(K91*F91,2)) -> 7990.62 | M91: =SUMIF('MC - TRECHO 01'!A:A,Orçamento!A91,'MC - TRECHO 01'!R:R) -> 63.65 | N91: =SUMIF(#REF!,Orçamento!A91,#REF!) -> 
A92: 2.2.3.2 | B92: =IF(C92=0,"",VLOOKUP(C92,BNCDADOS!$A:$H,8,0)) -> SINAPI/RN SERVIÇO | C92: 95241 | D92: =IF(C92=0,"",VLOOKUP(C92,BNCDADOS!$A:$G,2,0)) -> LASTRO DE CONCRETO MAGRO, APLICADO EM PISOS, LAJES SOBRE SOLO OU RADIERS, ESPESSURA DE 5 CM. AF_01/2024 | E92: =IF(C92=0,"",VLOOKUP(C92,BNCDADOS!$A:$G,3,0)) -> M2 | F92: 32.82 | G92: =IF(C92=0,"",VLOOKUP(C92,BNCDADOS!$A:$G,4,0)) -> 36,15 | H92: =IF(C92=0,"",VLOOKUP(C92,BNCDADOS!$A:$G,5,0)) -> 44.71 | I92: 1467.38 | J92: =IF(C92=0,"",VLOOKUP(C92,BNCDADOS!$A:$G,6,0)) -> 34,74 | K92: =IF(C92=0,"",VLOOKUP(C92,BNCDADOS!$A:$G,7,0)) -> 45.14 | L92: 1481.49 | M92: =SUMIF('MC - TRECHO 01'!A:A,Orçamento!A92,'MC - TRECHO 01'!R:R) -> 32.82 | N92: =SUMIF(#REF!,Orçamento!A92,#REF!) -> 
A93: 2.2.3.3 | B93: =IF(C93=0,"",VLOOKUP(C93,BNCDADOS!$A:$H,8,0)) -> SINAPI/RN SERVIÇO | C93: 97113 | D93: =IF(C93=0,"",VLOOKUP(C93,BNCDADOS!$A:$G,2,0)) -> APLICAÇÃO DE LONA PLÁSTICA PARA EXECUÇÃO DE PAVIMENTOS DE CONCRETO. AF_04/2022 | E93: =IF(C93=0,"",VLOOKUP(C93,BNCDADOS!$A:$G,3,0)) -> M2 | F93: 115.48 | G93: =IF(C93=0,"",VLOOKUP(C93,BNCDADOS!$A:$G,4,0)) -> 3,68 | H93: =IF(C93=0,"",VLOOKUP(C93,BNCDADOS!$A:$G,5,0)) -> 4.55 | I93: 525.43 | J93: =IF(C93=0,"",VLOOKUP(C93,BNCDADOS!$A:$G,6,0)) -> 3,65 | K93: =IF(C93=0,"",VLOOKUP(C93,BNCDADOS!$A:$G,7,0)) -> 4.74 | L93: 547.37 | M93: =SUMIF('MC - TRECHO 01'!A:A,Orçamento!A93,'MC - TRECHO 01'!R:R) -> 115.4881 | N93: =SUMIF(#REF!,Orçamento!A93,#REF!) -> 
A94: 2.2.3.4 | B94: =IF(C94=0,"",VLOOKUP(C94,BNCDADOS!$A:$H,8,0)) -> SINAPI/RN SERVIÇO | C94: 96543 | D94: =IF(C94=0,"",VLOOKUP(C94,BNCDADOS!$A:$G,2,0)) -> ARMAÇÃO DE BLOCO UTILIZANDO AÇO CA-60 DE 5 MM - MONTAGEM. AF_01/2024 | E94: =IF(C94=0,"",VLOOKUP(C94,BNCDADOS!$A:$G,3,0)) -> KG | F94: 42 | G94: =IF(C94=0,"",VLOOKUP(C94,BNCDADOS!$A:$G,4,0)) -> 20,25 | H94: =IF(C94=0,"",VLOOKUP(C94,BNCDADOS!$A:$G,5,0)) -> 25.04 | I94: 1051.68 | J94: =IF(C94=0,"",VLOOKUP(C94,BNCDADOS!$A:$G,6,0)) -> 19,11 | K94: =IF(C94=0,"",VLOOKUP(C94,BNCDADOS!$A:$G,7,0)) -> 24.83 | L94: 1042.86 | M94: =SUMIF('MC - TRECHO 01'!A:A,Orçamento!A94,'MC - TRECHO 01'!R:R) -> 42 | N94: =SUMIF(#REF!,Orçamento!A94,#REF!) -> 
A95: 2.2.3.5 | B95: =IF(C95=0,"",VLOOKUP(C95,BNCDADOS!$A:$H,8,0)) -> SINAPI/RN SERVIÇO | C95: 96544 | D95: =IF(C95=0,"",VLOOKUP(C95,BNCDADOS!$A:$G,2,0)) -> ARMAÇÃO DE BLOCO UTILIZANDO AÇO CA-50 DE 6,3 MM - MONTAGEM. AF_01/2024 | E95: =IF(C95=0,"",VLOOKUP(C95,BNCDADOS!$A:$G,3,0)) -> KG | F95: 27 | G95: =IF(C95=0,"",VLOOKUP(C95,BNCDADOS!$A:$G,4,0)) -> 18,33 | H95: =IF(C95=0,"",VLOOKUP(C95,BNCDADOS!$A:$G,5,0)) -> 22.67 | I95: 612.09 | J95: =IF(C95=0,"",VLOOKUP(C95,BNCDADOS!$A:$G,6,0)) -> 17,48 | K95: =IF(C95=0,"",VLOOKUP(C95,BNCDADOS!$A:$G,7,0)) -> 22.71 | L95: 613.17 | M95: =SUMIF('MC - TRECHO 01'!A:A,Orçamento!A95,'MC - TRECHO 01'!R:R) -> 27 | N95: =SUMIF(#REF!,Orçamento!A95,#REF!) -> 
A96: 2.2.3.6 | B96: =IF(C96=0,"",VLOOKUP(C96,BNCDADOS!$A:$H,8,0)) -> SINAPI/RN SERVIÇO | C96: 96545 | D96: =IF(C96=0,"",VLOOKUP(C96,BNCDADOS!$A:$G,2,0)) -> ARMAÇÃO DE BLOCO UTILIZANDO AÇO CA-50 DE 8 MM - MONTAGEM. AF_01/2024 | E96: =IF(C96=0,"",VLOOKUP(C96,BNCDADOS!$A:$G,3,0)) -> KG | F96: 12 | G96: =IF(C96=0,"",VLOOKUP(C96,BNCDADOS!$A:$G,4,0)) -> 16,57 | H96: =IF(C96=0,"",VLOOKUP(C96,BNCDADOS!$A:$G,5,0)) -> 20.49 | I96: 245.88 | J96: =IF(C96=0,"",VLOOKUP(C96,BNCDADOS!$A:$G,6,0)) -> 15,95 | K96: =IF(C96=0,"",VLOOKUP(C96,BNCDADOS!$A:$G,7,0)) -> 20.72 | L96: 248.64 | M96: =SUMIF('MC - TRECHO 01'!A:A,Orçamento!A96,'MC - TRECHO 01'!R:R) -> 12 | N96: =SUMIF(#REF!,Orçamento!A96,#REF!) -> 
A97: 2.2.3.7 | B97: =IF(C97=0,"",VLOOKUP(C97,BNCDADOS!$A:$H,8,0)) -> SINAPI/RN SERVIÇO | C97: 96546 | D97: =IF(C97=0,"",VLOOKUP(C97,BNCDADOS!$A:$G,2,0)) -> ARMAÇÃO DE BLOCO UTILIZANDO AÇO CA-50 DE 10 MM - MONTAGEM. AF_01/2024 | E97: =IF(C97=0,"",VLOOKUP(C97,BNCDADOS!$A:$G,3,0)) -> KG | F97: 131 | G97: =IF(C97=0,"",VLOOKUP(C97,BNCDADOS!$A:$G,4,0)) -> 14,52 | H97: =IF(C97=0,"",VLOOKUP(C97,BNCDADOS!$A:$G,5,0)) -> 17.95 | I97: 2351.45 | J97: =IF(C97=0,"",VLOOKUP(C97,BNCDADOS!$A:$G,6,0)) -> 14,04 | K97: =IF(C97=0,"",VLOOKUP(C97,BNCDADOS!$A:$G,7,0)) -> 18.24 | L97: 2389.44 | M97: =SUMIF('MC - TRECHO 01'!A:A,Orçamento!A97,'MC - TRECHO 01'!R:R) -> 131 | N97: =SUMIF(#REF!,Orçamento!A97,#REF!) -> 
A98: 2.2.3.8 | B98: =IF(C98=0,"",VLOOKUP(C98,BNCDADOS!$A:$H,8,0)) -> SINAPI/RN SERVIÇO | C98: 96547 | D98: =IF(C98=0,"",VLOOKUP(C98,BNCDADOS!$A:$G,2,0)) -> ARMAÇÃO DE BLOCO, VIGA BALDRAME OU SAPATA UTILIZANDO AÇO CA-50 DE 12,5 MM - MONTAGEM. | E98: =IF(C98=0,"",VLOOKUP(C98,BNCDADOS!$A:$G,3,0)) -> KG | F98: 75 | G98: =IF(C98=0,"",VLOOKUP(C98,BNCDADOS!$A:$G,4,0)) -> 11.86 | H98: =IF(C98=0,"",VLOOKUP(C98,BNCDADOS!$A:$G,5,0)) -> 14.66 | I98: 1099.5 | J98: =IF(C98=0,"",VLOOKUP(C98,BNCDADOS!$A:$G,6,0)) -> 11.61 | K98: =IF(C98=0,"",VLOOKUP(C98,BNCDADOS!$A:$G,7,0)) -> 15.08 | L98: 1131 | M98: =SUMIF('MC - TRECHO 01'!A:A,Orçamento!A98,'MC - TRECHO 01'!R:R) -> 75 | N98: =SUMIF(#REF!,Orçamento!A98,#REF!) -> 
A99: 2.2.3.9 | B99: =IF(C99=0,"",VLOOKUP(C99,BNCDADOS!$A:$H,8,0)) -> SINAPI/RN SERVIÇO | C99: 96548 | D99: =IF(C99=0,"",VLOOKUP(C99,BNCDADOS!$A:$G,2,0)) -> ARMAÇÃO DE BLOCO, VIGA BALDRAME OU SAPATA UTILIZANDO AÇO CA-50 DE 16 MM - MONTAGEM. | E99: =IF(C99=0,"",VLOOKUP(C99,BNCDADOS!$A:$G,3,0)) -> KG | F99: 50 | G99: =IF(C99=0,"",VLOOKUP(C99,BNCDADOS!$A:$G,4,0)) -> 11.15 | H99: =IF(C99=0,"",VLOOKUP(C99,BNCDADOS!$A:$G,5,0)) -> 13.79 | I99: 689.5 | J99: =IF(C99=0,"",VLOOKUP(C99,BNCDADOS!$A:$G,6,0)) -> 10.97 | K99: =IF(C99=0,"",VLOOKUP(C99,BNCDADOS!$A:$G,7,0)) -> 14.25 | L99: 712.5 | M99: =SUMIF('MC - TRECHO 01'!A:A,Orçamento!A99,'MC - TRECHO 01'!R:R) -> 50 | N99: =SUMIF(#REF!,Orçamento!A99,#REF!) -> 
A100: 2.2.3.10 | B100: =IF(C100=0,"",VLOOKUP(C100,BNCDADOS!$A:$H,8,0)) -> SINAPI/RN SERVIÇO | C100: 92916 | D100: =IF(C100=0,"",VLOOKUP(C100,BNCDADOS!$A:$G,2,0)) -> ARMAÇÃO DE ESTRUTURAS DIVERSAS DE CONCRETO ARMADO, EXCETO VIGAS, PILARES, LAJES E FUNDAÇÕES, UTILIZANDO AÇO CA-50 DE 6,3 MM - MONTAGEM. AF_06/2022 | E100: =IF(C100=0,"",VLOOKUP(C100,BNCDADOS!$A:$G,3,0)) -> KG | F100: 809 | G100: =IF(C100=0,"",VLOOKUP(C100,BNCDADOS!$A:$G,4,0)) -> 15,76 | H100: =IF(C100=0,"",VLOOKUP(C100,BNCDADOS!$A:$G,5,0)) -> 19.49 | I100: 15767.41 | J100: =IF(C100=0,"",VLOOKUP(C100,BNCDADOS!$A:$G,6,0)) -> 15,19 | K100: =IF(C100=0,"",VLOOKUP(C100,BNCDADOS!$A:$G,7,0)) -> 19.74 | L100: 15969.66 | M100: =SUMIF('MC - TRECHO 01'!A:A,Orçamento!A100,'MC - TRECHO 01'!R:R) -> 809 | N100: =SUMIF(#REF!,Orçamento!A100,#REF!) -> 
A101: 2.2.3.11 | B101: =IF(C101=0,"",VLOOKUP(C101,BNCDADOS!$A:$H,8,0)) -> SINAPI/RN SERVIÇO | C101: 92919 | D101: =IF(C101=0,"",VLOOKUP(C101,BNCDADOS!$A:$G,2,0)) -> ARMAÇÃO DE ESTRUTURAS DIVERSAS DE CONCRETO ARMADO, EXCETO VIGAS, PILARES, LAJES E FUNDAÇÕES, UTILIZANDO AÇO CA-50 DE 10,0 MM - MONTAGEM. AF_06/2022 | E101: =IF(C101=0,"",VLOOKUP(C101,BNCDADOS!$A:$G,3,0)) -> KG | F101: 351 | G101: =IF(C101=0,"",VLOOKUP(C101,BNCDADOS!$A:$G,4,0)) -> 12,59 | H101: =IF(C101=0,"",VLOOKUP(C101,BNCDADOS!$A:$G,5,0)) -> 15.57 | I101: 5465.07 | J101: =IF(C101=0,"",VLOOKUP(C101,BNCDADOS!$A:$G,6,0)) -> 12,31 | K101: =IF(C101=0,"",VLOOKUP(C101,BNCDADOS!$A:$G,7,0)) -> 15.99 | L101: 5612.49 | M101: =SUMIF('MC - TRECHO 01'!A:A,Orçamento!A101,'MC - TRECHO 01'!R:R) -> 351 | N101: =SUMIF(#REF!,Orçamento!A101,#REF!) -> 
A102: 2.2.3.12 | B102: =IF(C102=0,"",VLOOKUP(C102,BNCDADOS!$A:$H,8,0)) -> SINAPI/RN SERVIÇO | C102: 92921 | D102: =IF(C102=0,"",VLOOKUP(C102,BNCDADOS!$A:$G,2,0)) -> ARMAÇÃO DE ESTRUTURAS DIVERSAS DE CONCRETO ARMADO, EXCETO VIGAS, PILARES, LAJES E FUNDAÇÕES, UTILIZANDO AÇO CA-50 DE 12,5 MM - MONTAGEM. AF_06/2022 | E102: =IF(C102=0,"",VLOOKUP(C102,BNCDADOS!$A:$G,3,0)) -> KG | F102: 125 | G102: =IF(C102=0,"",VLOOKUP(C102,BNCDADOS!$A:$G,4,0)) -> 10,41 | H102: =IF(C102=0,"",VLOOKUP(C102,BNCDADOS!$A:$G,5,0)) -> 12.87 | I102: 1608.75 | J102: =IF(C102=0,"",VLOOKUP(C102,BNCDADOS!$A:$G,6,0)) -> 10,23 | K102: =IF(C102=0,"",VLOOKUP(C102,BNCDADOS!$A:$G,7,0)) -> 13.29 | L102: 1661.25 | M102: =SUMIF('MC - TRECHO 01'!A:A,Orçamento!A102,'MC - TRECHO 01'!R:R) -> 125 | N102: =SUMIF(#REF!,Orçamento!A102,#REF!) -> 
A103: 2.2.3.13 | B103: =IF(C103=0,"",VLOOKUP(C103,BNCDADOS!$A:$H,8,0)) -> SINAPI/RN SERVIÇO | C103: 97096 | D103: =IF(C103=0,"",VLOOKUP(C103,BNCDADOS!$A:$G,2,0)) -> CONCRETAGEM DE RADIER, PISO DE CONCRETO OU LAJE SOBRE SOLO, FCK 30 MPA - LANÇAMENTO, ADENSAMENTO E ACABAMENTO. AF_09/2021 | E103: =IF(C103=0,"",VLOOKUP(C103,BNCDADOS!$A:$G,3,0)) -> M3 | F103: 14.96 | G103: =IF(C103=0,"",VLOOKUP(C103,BNCDADOS!$A:$G,4,0)) -> 658,04 | H103: =IF(C103=0,"",VLOOKUP(C103,BNCDADOS!$A:$G,5,0)) -> 813.92 | I103: 12176.24 | J103: =IF(C103=0,"",VLOOKUP(C103,BNCDADOS!$A:$G,6,0)) -> 656,11 | K103: =IF(C103=0,"",VLOOKUP(C103,BNCDADOS!$A:$G,7,0)) -> 852.68 | L103: 12756.09 | M103: =SUMIF('MC - TRECHO 01'!A:A,Orçamento!A103,'MC - TRECHO 01'!R:R) -> 14.96 | N103: =SUMIF(#REF!,Orçamento!A103,#REF!) -> 
A104: 2.2.3.14 | B104: =IF(C104=0,"",VLOOKUP(C104,BNCDADOS!$A:$H,8,0)) -> SINAPI/RN SERVIÇO | C104: 96555 | D104: =IF(C104=0,"",VLOOKUP(C104,BNCDADOS!$A:$G,2,0)) -> CONCRETAGEM DE BLOCO DE COROAMENTO OU VIGA BALDRAME, FCK 30 MPA, COM USO DE JERICA - LANÇAMENTO, ADENSAMENTO E ACABAMENTO. AF_01/2024 | E104: =IF(C104=0,"",VLOOKUP(C104,BNCDADOS!$A:$G,3,0)) -> M3 | F104: 4.44 | G104: =IF(C104=0,"",VLOOKUP(C104,BNCDADOS!$A:$G,4,0)) -> 712,28 | H104: =IF(C104=0,"",VLOOKUP(C104,BNCDADOS!$A:$G,5,0)) -> 881.01 | I104: 3911.68 | J104: =IF(C104=0,"",VLOOKUP(C104,BNCDADOS!$A:$G,6,0)) -> 691,49 | K104: =IF(C104=0,"",VLOOKUP(C104,BNCDADOS!$A:$G,7,0)) -> 898.66 | L104: 3990.05 | M104: =SUMIF('MC - TRECHO 01'!A:A,Orçamento!A104,'MC - TRECHO 01'!R:R) -> 4.44 | N104: =SUMIF(#REF!,Orçamento!A104,#REF!) -> 
A105: 2.2.4 | B105: =IF(C105=0,"",VLOOKUP(C105,[142]BNCDADOS!$A:$G,8,0)) ->  | D105: SUPERESTRUTURA | E105: =IF(C105=0,"",VLOOKUP(C105,[142]BNCDADOS!$A:$G,3,0)) ->  | F105: =TRUNC(M105,2) -> 0 | G105: =IF(C105=0,"",VLOOKUP(C105,[142]BNCDADOS!$A:$G,4,0)) ->  | H105: =IF(C105=0,"",VLOOKUP(C105,[142]BNCDADOS!$A:$G,5,0)) ->  | I105: =SUM(I106:I112) -> 22892.16 | J105: =IF(C105=0,"",VLOOKUP(C105,[142]BNCDADOS!$A:$G,6,0)) ->  | K105: =IF(C105=0,"",VLOOKUP(C105,[142]BNCDADOS!$A:$G,7,0)) ->  | L105: =SUM(L106:L112) -> 23161.29 | N105: =SUMIF(#REF!,Orçamento!A105,#REF!) -> 
A106: 2.2.4.1 | B106: =IF(C106=0,"",VLOOKUP(C106,BNCDADOS!$A:$H,8,0)) -> SINAPI/RN SERVIÇO | C106: 92425 | D106: =IF(C106=0,"",VLOOKUP(C106,BNCDADOS!$A:$G,2,0)) -> MONTAGEM E DESMONTAGEM DE FÔRMA DE PILARES RETANGULARES E ESTRUTURAS SIMILARES, PÉ-DIREITO DUPLO, EM CHAPA DE MADEIRA COMPENSADA RESINADA, 6 UTILIZAÇÕES. AF_09/2020 | E106: =IF(C106=0,"",VLOOKUP(C106,BNCDADOS!$A:$G,3,0)) -> M2 | F106: =TRUNC(M106,2) -> 39.74 | G106: =IF(C106=0,"",VLOOKUP(C106,BNCDADOS!$A:$G,4,0)) -> 90,69 | H106: =IF(C106=0,"",VLOOKUP(C106,BNCDADOS!$A:$G,5,0)) -> 112.17 | I106: =IF(H106="",0,TRUNC(H106*F106,2)) -> 4457.63 | J106: =IF(C106=0,"",VLOOKUP(C106,BNCDADOS!$A:$G,6,0)) -> 86,00 | K106: =IF(C106=0,"",VLOOKUP(C106,BNCDADOS!$A:$G,7,0)) -> 111.76 | L106: =IF(K106="",0,TRUNC(K106*F106,2)) -> 4441.34 | M106: =SUMIF('MC - TRECHO 01'!A:A,Orçamento!A106,'MC - TRECHO 01'!R:R) -> 39.74 | N106: =SUMIF(#REF!,Orçamento!A106,#REF!) -> 
A107: 2.2.4.2 | B107: =IF(C107=0,"",VLOOKUP(C107,BNCDADOS!$A:$H,8,0)) -> SINAPI/RN SERVIÇO | C107: 92460 | D107: =IF(C107=0,"",VLOOKUP(C107,BNCDADOS!$A:$G,2,0)) -> MONTAGEM E DESMONTAGEM DE FÔRMA DE VIGA, ESCORAMENTO METÁLICO, PÉ-DIREITO SIMPLES, EM CHAPA DE MADEIRA RESINADA, 6 UTILIZAÇÕES. AF_09/2020 | E107: =IF(C107=0,"",VLOOKUP(C107,BNCDADOS!$A:$G,3,0)) -> M2 | F107: 46.02 | G107: =IF(C107=0,"",VLOOKUP(C107,BNCDADOS!$A:$G,4,0)) -> 126,28 | H107: =IF(C107=0,"",VLOOKUP(C107,BNCDADOS!$A:$G,5,0)) -> 156.19 | I107: 7187.86 | J107: =IF(C107=0,"",VLOOKUP(C107,BNCDADOS!$A:$G,6,0)) -> 120,51 | K107: =IF(C107=0,"",VLOOKUP(C107,BNCDADOS!$A:$G,7,0)) -> 156.61 | L107: 7207.19 | M107: =SUMIF('MC - TRECHO 01'!A:A,Orçamento!A107,'MC - TRECHO 01'!R:R) -> 46.02 | N107: =SUMIF(#REF!,Orçamento!A107,#REF!) -> 
A108: 2.2.4.3 | B108: =IF(C108=0,"",VLOOKUP(C108,BNCDADOS!$A:$H,8,0)) -> SINAPI/RN SERVIÇO | C108: 92759 | D108: =IF(C108=0,"",VLOOKUP(C108,BNCDADOS!$A:$G,2,0)) -> ARMAÇÃO DE PILAR OU VIGA DE ESTRUTURA CONVENCIONAL DE CONCRETO ARMADO UTILIZANDO AÇO CA-60 DE 5,0 MM - MONTAGEM. AF_06/2022 | E108: =IF(C108=0,"",VLOOKUP(C108,BNCDADOS!$A:$G,3,0)) -> KG | F108: 85 | G108: =IF(C108=0,"",VLOOKUP(C108,BNCDADOS!$A:$G,4,0)) -> 14,54 | H108: =IF(C108=0,"",VLOOKUP(C108,BNCDADOS!$A:$G,5,0)) -> 17.98 | I108: 1528.3 | J108: =IF(C108=0,"",VLOOKUP(C108,BNCDADOS!$A:$G,6,0)) -> 14,00 | K108: =IF(C108=0,"",VLOOKUP(C108,BNCDADOS!$A:$G,7,0)) -> 18.19 | L108: 1546.15 | M108: =SUMIF('MC - TRECHO 01'!A:A,Orçamento!A108,'MC - TRECHO 01'!R:R) -> 85 | N108: =SUMIF(#REF!,Orçamento!A108,#REF!) -> 
A109: 2.2.4.4 | B109: =IF(C109=0,"",VLOOKUP(C109,BNCDADOS!$A:$H,8,0)) -> SINAPI/RN SERVIÇO | C109: 92761 | D109: =IF(C109=0,"",VLOOKUP(C109,BNCDADOS!$A:$G,2,0)) -> ARMAÇÃO DE PILAR OU VIGA DE ESTRUTURA CONVENCIONAL DE CONCRETO ARMADO UTILIZANDO AÇO CA-50 DE 8,0 MM - MONTAGEM. AF_06/2022 | E109: =IF(C109=0,"",VLOOKUP(C109,BNCDADOS!$A:$G,3,0)) -> KG | F109: 34 | G109: =IF(C109=0,"",VLOOKUP(C109,BNCDADOS!$A:$G,4,0)) -> 12,98 | H109: =IF(C109=0,"",VLOOKUP(C109,BNCDADOS!$A:$G,5,0)) -> 16.05 | I109: 545.7 | J109: =IF(C109=0,"",VLOOKUP(C109,BNCDADOS!$A:$G,6,0)) -> 12,75 | K109: =IF(C109=0,"",VLOOKUP(C109,BNCDADOS!$A:$G,7,0)) -> 16.56 | L109: 563.04 | M109: =SUMIF('MC - TRECHO 01'!A:A,Orçamento!A109,'MC - TRECHO 01'!R:R) -> 34 | N109: =SUMIF(#REF!,Orçamento!A109,#REF!) -> 
A110: 2.2.4.5 | B110: =IF(C110=0,"",VLOOKUP(C110,BNCDADOS!$A:$H,8,0)) -> SINAPI/RN SERVIÇO | C110: 92762 | D110: =IF(C110=0,"",VLOOKUP(C110,BNCDADOS!$A:$G,2,0)) -> ARMAÇÃO DE PILAR OU VIGA DE ESTRUTURA CONVENCIONAL DE CONCRETO ARMADO UTILIZANDO AÇO CA-50 DE 10,0 MM - MONTAGEM. AF_06/2022 | E110: =IF(C110=0,"",VLOOKUP(C110,BNCDADOS!$A:$G,3,0)) -> KG | F110: 246 | G110: =IF(C110=0,"",VLOOKUP(C110,BNCDADOS!$A:$G,4,0)) -> 11,61 | H110: =IF(C110=0,"",VLOOKUP(C110,BNCDADOS!$A:$G,5,0)) -> 14.36 | I110: 3532.56 | J110: =IF(C110=0,"",VLOOKUP(C110,BNCDADOS!$A:$G,6,0)) -> 11,43 | K110: =IF(C110=0,"",VLOOKUP(C110,BNCDADOS!$A:$G,7,0)) -> 14.85 | L110: 3653.1 | M110: =SUMIF('MC - TRECHO 01'!A:A,Orçamento!A110,'MC - TRECHO 01'!R:R) -> 246 | N110: =SUMIF(#REF!,Orçamento!A110,#REF!) -> 
A111: 2.2.4.6 | B111: =IF(C111=0,"",VLOOKUP(C111,BNCDADOS!$A:$H,8,0)) -> 0 | C111: COMP 42 | D111: =IF(C111=0,"",VLOOKUP(C111,BNCDADOS!$A:$G,2,0)) -> CONCRETAGEM DE PILARES, FCK = 30 MPA, COM USO DE BALDES - LANÇAMENTO, ADENSAMENTO E ACABAMENTO. | E111: =IF(C111=0,"",VLOOKUP(C111,BNCDADOS!$A:$G,3,0)) -> M3 | F111: 1.94 | G111: =IF(C111=0,"",VLOOKUP(C111,BNCDADOS!$A:$G,4,0)) -> 968.62 | H111: =IF(C111=0,"",VLOOKUP(C111,BNCDADOS!$A:$G,5,0)) -> 1198.08 | I111: 2324.27 | J111: =IF(C111=0,"",VLOOKUP(C111,BNCDADOS!$A:$G,6,0)) -> 940.61 | K111: =IF(C111=0,"",VLOOKUP(C111,BNCDADOS!$A:$G,7,0)) -> 1222.41 | L111: 2371.47 | M111: =SUMIF('MC - TRECHO 01'!A:A,Orçamento!A111,'MC - TRECHO 01'!R:R) -> 1.94 | N111: =SUMIF(#REF!,Orçamento!A111,#REF!) -> 
A112: 2.2.4.7 | B112: =IF(C112=0,"",VLOOKUP(C112,BNCDADOS!$A:$H,8,0)) -> 0 | C112: COMP 43 | D112: =IF(C112=0,"",VLOOKUP(C112,BNCDADOS!$A:$G,2,0)) -> CONCRETAGEM DE VIGAS E LAJES, FCK=30 MPA, PARA QUALQUER TIPO DE LAJE COM BALDES EM EDIFICAÇÃO TÉRREA - LANÇAMENTO, ADENSAMENTO E ACABAMENTO | E112: =IF(C112=0,"",VLOOKUP(C112,BNCDADOS!$A:$G,3,0)) -> M3 | F112: 2.72 | G112: =IF(C112=0,"",VLOOKUP(C112,BNCDADOS!$A:$G,4,0)) -> 985.58 | H112: =IF(C112=0,"",VLOOKUP(C112,BNCDADOS!$A:$G,5,0)) -> 1219.06 | I112: 3315.84 | J112: =IF(C112=0,"",VLOOKUP(C112,BNCDADOS!$A:$G,6,0)) -> 955.9 | K112: =IF(C112=0,"",VLOOKUP(C112,BNCDADOS!$A:$G,7,0)) -> 1242.28 | L112: 3379 | M112: =SUMIF('MC - TRECHO 01'!A:A,Orçamento!A112,'MC - TRECHO 01'!R:R) -> 2.72 | N112: =SUMIF(#REF!,Orçamento!A112,#REF!) -> 
A113: 2.2.5 | B113: =IF(C113=0,"",VLOOKUP(C113,[142]BNCDADOS!$A:$G,8,0)) ->  | D113: ALVENARIA E REVESTIMENTOS | E113: =IF(C113=0,"",VLOOKUP(C113,[142]BNCDADOS!$A:$G,3,0)) ->  | F113: =TRUNC(M113,2) -> 0 | G113: =IF(C113=0,"",VLOOKUP(C113,[142]BNCDADOS!$A:$G,4,0)) ->  | H113: =IF(C113=0,"",VLOOKUP(C113,[142]BNCDADOS!$A:$G,5,0)) ->  | I113: =SUM(I114:I120) -> 31515.64 | J113: =IF(C113=0,"",VLOOKUP(C113,[142]BNCDADOS!$A:$G,6,0)) ->  | K113: =IF(C113=0,"",VLOOKUP(C113,[142]BNCDADOS!$A:$G,7,0)) ->  | L113: =SUM(L114:L120) -> 31662.78 | N113: =SUMIF(#REF!,Orçamento!A113,#REF!) -> 
A114: 2.2.5.1 | B114: =IF(C114=0,"",VLOOKUP(C114,BNCDADOS!$A:$H,8,0)) -> SINAPI/RN SERVIÇO | C114: 103338 | D114: =IF(C114=0,"",VLOOKUP(C114,BNCDADOS!$A:$G,2,0)) -> ALVENARIA DE VEDAÇÃO DE BLOCOS VAZADOS DE CONCRETO APARENTE DE 14X19X39 CM (ESPESSURA 14 CM) E ARGAMASSA DE ASSENTAMENTO COM PREPARO EM BETONEIRA. AF_12/2021 | E114: =IF(C114=0,"",VLOOKUP(C114,BNCDADOS!$A:$G,3,0)) -> M2 | F114: =TRUNC(M114,2) -> 178.46 | G114: =IF(C114=0,"",VLOOKUP(C114,BNCDADOS!$A:$G,4,0)) -> 111,81 | H114: =IF(C114=0,"",VLOOKUP(C114,BNCDADOS!$A:$G,5,0)) -> 138.29 | I114: =IF(H114="",0,TRUNC(H114*F114,2)) -> 24679.23 | J114: =IF(C114=0,"",VLOOKUP(C114,BNCDADOS!$A:$G,6,0)) -> 106,87 | K114: =IF(C114=0,"",VLOOKUP(C114,BNCDADOS!$A:$G,7,0)) -> 138.88 | L114: =IF(K114="",0,TRUNC(K114*F114,2)) -> 24784.52 | M114: =SUMIF('MC - TRECHO 01'!A:A,Orçamento!A114,'MC - TRECHO 01'!R:R) -> 178.46 | N114: =SUMIF(#REF!,Orçamento!A114,#REF!) -> 
A115: 2.2.5.2 | B115: =IF(C115=0,"",VLOOKUP(C115,BNCDADOS!$A:$H,8,0)) -> SINAPI/RN SERVIÇO | C115: 101161 | D115: =IF(C115=0,"",VLOOKUP(C115,BNCDADOS!$A:$G,2,0)) -> ALVENARIA DE VEDAÇÃO COM ELEMENTO VAZADO DE CONCRETO (COBOGÓ) DE 7X50X50CM E ARGAMASSA DE ASSENTAMENTO COM PREPARO EM BETONEIRA. AF_05/2020 | E115: =IF(C115=0,"",VLOOKUP(C115,BNCDADOS!$A:$G,3,0)) -> M2 | F115: 5.5 | G115: =IF(C115=0,"",VLOOKUP(C115,BNCDADOS!$A:$G,4,0)) -> 233,42 | H115: =IF(C115=0,"",VLOOKUP(C115,BNCDADOS!$A:$G,5,0)) -> 288.71 | I115: 1587.9 | J115: =IF(C115=0,"",VLOOKUP(C115,BNCDADOS!$A:$G,6,0)) -> 225,72 | K115: =IF(C115=0,"",VLOOKUP(C115,BNCDADOS!$A:$G,7,0)) -> 293.34 | L115: 1613.37 | M115: =SUMIF('MC - TRECHO 01'!A:A,Orçamento!A115,'MC - TRECHO 01'!R:R) -> 5.5 | N115: =SUMIF(#REF!,Orçamento!A115,#REF!) -> 
A116: 2.2.5.3 | B116: =IF(C116=0,"",VLOOKUP(C116,BNCDADOS!$A:$H,8,0)) -> SINAPI/RN SERVIÇO | C116: 93189 | D116: =IF(C116=0,"",VLOOKUP(C116,BNCDADOS!$A:$G,2,0)) -> VERGA MOLDADA IN LOCO EM CONCRETO PARA PORTAS COM MAIS DE 1,5 M DE VÃO. AF_03/2016 | E116: =IF(C116=0,"",VLOOKUP(C116,BNCDADOS!$A:$G,3,0)) -> M | F116: 9.9 | G116: =IF(C116=0,"",VLOOKUP(C116,BNCDADOS!$A:$G,4,0)) -> 119.84 | H116: =IF(C116=0,"",VLOOKUP(C116,BNCDADOS!$A:$G,5,0)) -> 148.23 | I116: 1467.47 | J116: =IF(C116=0,"",VLOOKUP(C116,BNCDADOS!$A:$G,6,0)) -> 117.08 | K116: =IF(C116=0,"",VLOOKUP(C116,BNCDADOS!$A:$G,7,0)) -> 152.15 | L116: 1506.28 | M116: =SUMIF('MC - TRECHO 01'!A:A,Orçamento!A116,'MC - TRECHO 01'!R:R) -> 9.9 | N116: =SUMIF(#REF!,Orçamento!A116,#REF!) -> 
A117: 2.2.5.4 | B117: =IF(C117=0,"",VLOOKUP(C117,BNCDADOS!$A:$H,8,0)) -> SINAPI/RN SERVIÇO | C117: 93187 | D117: =IF(C117=0,"",VLOOKUP(C117,BNCDADOS!$A:$G,2,0)) -> VERGA MOLDADA IN LOCO EM CONCRETO, ESPESSURA DE *20* CM. AF_03/2024 | E117: =IF(C117=0,"",VLOOKUP(C117,BNCDADOS!$A:$G,3,0)) -> M | F117: 10.5 | G117: =IF(C117=0,"",VLOOKUP(C117,BNCDADOS!$A:$G,4,0)) -> 78,39 | H117: =IF(C117=0,"",VLOOKUP(C117,BNCDADOS!$A:$G,5,0)) -> 96.96 | I117: 1018.08 | J117: =IF(C117=0,"",VLOOKUP(C117,BNCDADOS!$A:$G,6,0)) -> 75,28 | K117: =IF(C117=0,"",VLOOKUP(C117,BNCDADOS!$A:$G,7,0)) -> 97.83 | L117: 1027.21 | M117: =SUMIF('MC - TRECHO 01'!A:A,Orçamento!A117,'MC - TRECHO 01'!R:R) -> 10.5 | N117: =SUMIF(#REF!,Orçamento!A117,#REF!) -> 
A118: 2.2.5.5 | B118: =IF(C118=0,"",VLOOKUP(C118,BNCDADOS!$A:$H,8,0)) -> SINAPI/RN SERVIÇO | C118: 93197 | D118: =IF(C118=0,"",VLOOKUP(C118,BNCDADOS!$A:$G,2,0)) -> CONTRAVERGA MOLDADA IN LOCO EM CONCRETO, ESPESSURA DE *20* CM. AF_03/2024 | E118: =IF(C118=0,"",VLOOKUP(C118,BNCDADOS!$A:$G,3,0)) -> M | F118: 10.5 | G118: =IF(C118=0,"",VLOOKUP(C118,BNCDADOS!$A:$G,4,0)) -> 57,72 | H118: =IF(C118=0,"",VLOOKUP(C118,BNCDADOS!$A:$G,5,0)) -> 71.39 | I118: 749.59 | J118: =IF(C118=0,"",VLOOKUP(C118,BNCDADOS!$A:$G,6,0)) -> 55,77 | K118: =IF(C118=0,"",VLOOKUP(C118,BNCDADOS!$A:$G,7,0)) -> 72.47 | L118: 760.93 | M118: =SUMIF('MC - TRECHO 01'!A:A,Orçamento!A118,'MC - TRECHO 01'!R:R) -> 10.5 | N118: =SUMIF(#REF!,Orçamento!A118,#REF!) -> 
A119: 2.2.5.6 | B119: =IF(C119=0,"",VLOOKUP(C119,BNCDADOS!$A:$H,8,0)) -> SINAPI/RN SERVIÇO | C119: 87879 | D119: =IF(C119=0,"",VLOOKUP(C119,BNCDADOS!$A:$G,2,0)) -> CHAPISCO APLICADO EM ALVENARIAS E ESTRUTURAS DE CONCRETO INTERNAS, COM COLHER DE PEDREIRO. ARGAMASSA TRAÇO 1:3 COM PREPARO EM BETONEIRA 400L. AF_10/2022 | E119: =IF(C119=0,"",VLOOKUP(C119,BNCDADOS!$A:$G,3,0)) -> M2 | F119: 356.92 | G119: =IF(C119=0,"",VLOOKUP(C119,BNCDADOS!$A:$G,4,0)) -> 4,06 | H119: =IF(C119=0,"",VLOOKUP(C119,BNCDADOS!$A:$G,5,0)) -> 5.02 | I119: 1791.73 | J119: =IF(C119=0,"",VLOOKUP(C119,BNCDADOS!$A:$G,6,0)) -> 3,78 | K119: =IF(C119=0,"",VLOOKUP(C119,BNCDADOS!$A:$G,7,0)) -> 4.91 | L119: 1752.47 | M119: =SUMIF('MC - TRECHO 01'!A:A,Orçamento!A119,'MC - TRECHO 01'!R:R) -> 356.92 | N119: =SUMIF(#REF!,Orçamento!A119,#REF!) -> 
A120: 2.2.5.7 | B120: =IF(C120=0,"",VLOOKUP(C120,BNCDADOS!$A:$H,8,0)) -> SINAPI/RN SERVIÇO | C120: 89173 | D120: =IF(C120=0,"",VLOOKUP(C120,BNCDADOS!$A:$G,2,0)) -> (COMPOSIÇÃO REPRESENTATIVA) DO SERVIÇO DE EMBOÇO/MASSA ÚNICA, APLICADO MANUALMENTE, TRAÇO 1:2:8, EM BETONEIRA DE 400L, PAREDES INTERNAS, COM EXECUÇÃO DE TALISCAS, EDIFICAÇÃO HABITACIONAL UNIFAMILIAR (CASAS) E EDIFICAÇÃO PÚBLICA PADRÃO. AF_12/2014 | E120: =IF(C120=0,"",VLOOKUP(C120,BNCDADOS!$A:$G,3,0)) -> m² | F120: 5.6 | G120: =IF(C120=0,"",VLOOKUP(C120,BNCDADOS!$A:$G,4,0)) -> 32 | H120: =IF(C120=0,"",VLOOKUP(C120,BNCDADOS!$A:$G,5,0)) -> 39.58 | I120: 221.64 | J120: =IF(C120=0,"",VLOOKUP(C120,BNCDADOS!$A:$G,6,0)) -> 29.96 | K120: =IF(C120=0,"",VLOOKUP(C120,BNCDADOS!$A:$G,7,0)) -> 38.93 | L120: 218 | M120: =SUMIF('MC - TRECHO 01'!A:A,Orçamento!A120,'MC - TRECHO 01'!R:R) -> 5.6 | N120: =SUMIF(#REF!,Orçamento!A120,#REF!) -> 
A121: 2.2.6 | B121: =IF(C121=0,"",VLOOKUP(C121,[142]BNCDADOS!$A:$G,8,0)) ->  | D121: COBERTURA | E121: =IF(C121=0,"",VLOOKUP(C121,[142]BNCDADOS!$A:$G,3,0)) ->  | F121: =TRUNC(M121,2) -> 0 | G121: =IF(C121=0,"",VLOOKUP(C121,[142]BNCDADOS!$A:$G,4,0)) ->  | H121: =IF(C121=0,"",VLOOKUP(C121,[142]BNCDADOS!$A:$G,5,0)) ->  | I121: =SUM(I122:I123) -> 25970.92 | J121: =IF(C121=0,"",VLOOKUP(C121,[142]BNCDADOS!$A:$G,6,0)) ->  | K121: =IF(C121=0,"",VLOOKUP(C121,[142]BNCDADOS!$A:$G,7,0)) ->  | L121: =SUM(L122:L123) -> 27115.28 | N121: =SUMIF(#REF!,Orçamento!A121,#REF!) -> 
A122: 2.2.6.1 | B122: =IF(C122=0,"",VLOOKUP(C122,BNCDADOS!$A:$H,8,0)) -> SINAPI/RN SERVIÇO | C122: 92544 | D122: =IF(C122=0,"",VLOOKUP(C122,BNCDADOS!$A:$G,2,0)) -> TRAMA DE MADEIRA COMPOSTA POR TERÇAS PARA TELHADOS DE ATÉ 2 ÁGUAS PARA TELHA ESTRUTURAL DE FIBROCIMENTO, INCLUSO TRANSPORTE VERTICAL. AF_07/2019 | E122: =IF(C122=0,"",VLOOKUP(C122,BNCDADOS!$A:$G,3,0)) -> M2 | F122: =TRUNC(M122,2) -> 120.84 | G122: =IF(C122=0,"",VLOOKUP(C122,BNCDADOS!$A:$G,4,0)) -> 20,78 | H122: =IF(C122=0,"",VLOOKUP(C122,BNCDADOS!$A:$G,5,0)) -> 25.7 | I122: =IF(H122="",0,TRUNC(H122*F122,2)) -> 3105.58 | J122: =IF(C122=0,"",VLOOKUP(C122,BNCDADOS!$A:$G,6,0)) -> 20,39 | K122: =IF(C122=0,"",VLOOKUP(C122,BNCDADOS!$A:$G,7,0)) -> 26.49 | L122: =IF(K122="",0,TRUNC(K122*F122,2)) -> 3201.05 | M122: =SUMIF('MC - TRECHO 01'!A:A,Orçamento!A122,'MC - TRECHO 01'!R:R) -> 120.845 | N122: =SUMIF(#REF!,Orçamento!A122,#REF!) -> 
A123: 2.2.6.2 | B123: =IF(C123=0,"",VLOOKUP(C123,BNCDADOS!$A:$H,8,0)) -> SINAPI/RN SERVIÇO | C123: 94218 | D123: =IF(C123=0,"",VLOOKUP(C123,BNCDADOS!$A:$G,2,0)) -> TELHAMENTO COM TELHA ESTRUTURAL DE FIBROCIMENTO E= 8 MM, COM ATÉ 2 ÁGUAS, INCLUSO IÇAMENTO. AF_07/2019_PS | E123: =IF(C123=0,"",VLOOKUP(C123,BNCDADOS!$A:$G,3,0)) -> M2 | F123: 120.84 | G123: =IF(C123=0,"",VLOOKUP(C123,BNCDADOS!$A:$G,4,0)) -> 152,98 | H123: =IF(C123=0,"",VLOOKUP(C123,BNCDADOS!$A:$G,5,0)) -> 189.22 | I123: 22865.34 | J123: =IF(C123=0,"",VLOOKUP(C123,BNCDADOS!$A:$G,6,0)) -> 152,28 | K123: =IF(C123=0,"",VLOOKUP(C123,BNCDADOS!$A:$G,7,0)) -> 197.9 | L123: 23914.23 | M123: =SUMIF('MC - TRECHO 01'!A:A,Orçamento!A123,'MC - TRECHO 01'!R:R) -> 120.845 | N123: =SUMIF(#REF!,Orçamento!A123,#REF!) -> 
A124: 2.2.7 | B124: =IF(C124=0,"",VLOOKUP(C124,[142]BNCDADOS!$A:$G,8,0)) ->  | D124: ESQUADRIAS | E124: =IF(C124=0,"",VLOOKUP(C124,[142]BNCDADOS!$A:$G,3,0)) ->  | F124: =TRUNC(M124,2) -> 0 | G124: =IF(C124=0,"",VLOOKUP(C124,[142]BNCDADOS!$A:$G,4,0)) ->  | H124: =IF(C124=0,"",VLOOKUP(C124,[142]BNCDADOS!$A:$G,5,0)) ->  | I124: =SUM(I125:I127) -> 21545.3 | J124: =IF(C124=0,"",VLOOKUP(C124,[142]BNCDADOS!$A:$G,6,0)) ->  | K124: =IF(C124=0,"",VLOOKUP(C124,[142]BNCDADOS!$A:$G,7,0)) ->  | L124: =SUM(L125:L127) -> 22402.14 | M124: 0 | N124: =SUMIF(#REF!,Orçamento!A124,#REF!) -> 
A125: 2.2.7.1 | B125: =IF(C125=0,"",VLOOKUP(C125,BNCDADOS!$A:$H,8,0)) -> 0 | C125: COMP 21 | D125: =IF(C125=0,"",VLOOKUP(C125,BNCDADOS!$A:$G,2,0)) -> PORTAO DE CORRER EM GRADIL FIXO DE BARRA DE FERRO CHATA DE 3 X 1/4" NA VERTICAL, SEM REQUADRO, ACABAMENTO NATURAL, COM TRILHOS E ROLDANAS | E125: =IF(C125=0,"",VLOOKUP(C125,BNCDADOS!$A:$G,3,0)) -> M2 | F125: 12.4 | G125: =IF(C125=0,"",VLOOKUP(C125,BNCDADOS!$A:$G,4,0)) -> 703.96 | H125: =IF(C125=0,"",VLOOKUP(C125,BNCDADOS!$A:$G,5,0)) -> 870.72 | I125: =IF(H125="",0,TRUNC(H125*F125,2)) -> 10796.92 | J125: =IF(C125=0,"",VLOOKUP(C125,BNCDADOS!$A:$G,6,0)) -> 696.5 | K125: =IF(C125=0,"",VLOOKUP(C125,BNCDADOS!$A:$G,7,0)) -> 905.17 | L125: =IF(K125="",0,TRUNC(K125*F125,2)) -> 11224.1 | M125: =SUMIF('MC - TRECHO 01'!A:A,Orçamento!A125,'MC - TRECHO 01'!R:R) -> 12.4 | N125: =SUMIF(#REF!,Orçamento!A125,#REF!) -> 
A126: 2.2.7.2 | B126: =IF(C126=0,"",VLOOKUP(C126,BNCDADOS!$A:$H,8,0)) -> SINAPI/RN SERVIÇO | C126: 100701 | D126: =IF(C126=0,"",VLOOKUP(C126,BNCDADOS!$A:$G,2,0)) -> PORTA DE FERRO, DE ABRIR, TIPO GRADE COM CHAPA, COM GUARNIÇÕES. AF_12/2019 | E126: =IF(C126=0,"",VLOOKUP(C126,BNCDADOS!$A:$G,3,0)) -> M2 | F126: 9.87 | G126: =IF(C126=0,"",VLOOKUP(C126,BNCDADOS!$A:$G,4,0)) -> 561,07 | H126: =IF(C126=0,"",VLOOKUP(C126,BNCDADOS!$A:$G,5,0)) -> 693.98 | I126: 6849.58 | J126: =IF(C126=0,"",VLOOKUP(C126,BNCDADOS!$A:$G,6,0)) -> 559,17 | K126: =IF(C126=0,"",VLOOKUP(C126,BNCDADOS!$A:$G,7,0)) -> 726.69 | L126: 7172.43 | M126: =SUMIF('MC - TRECHO 01'!A:A,Orçamento!A126,'MC - TRECHO 01'!R:R) -> 9.87 | N126: =SUMIF(#REF!,Orçamento!A126,#REF!) -> 
A127: 2.2.7.3 | B127: =IF(C127=0,"",VLOOKUP(C127,BNCDADOS!$A:$H,8,0)) -> 0 | C127: COMP 30 | D127: =IF(C127=0,"",VLOOKUP(C127,BNCDADOS!$A:$G,2,0)) -> TELA DE PROTEÇÃO COM 1 PORTA COM ARMAÇÃO DE CANTONEIRAS E TELA DE ARAME, GALVANIZADO Nº12 BWG E MALHA DE 50mmx50mm COM TRATAMENTO ANTI-CORROSIVO. | E127: =IF(C127=0,"",VLOOKUP(C127,BNCDADOS!$A:$G,3,0)) -> M2 | F127: 10.8 | G127: =IF(C127=0,"",VLOOKUP(C127,BNCDADOS!$A:$G,4,0)) -> 291.86 | H127: =IF(C127=0,"",VLOOKUP(C127,BNCDADOS!$A:$G,5,0)) -> 361 | I127: 3898.8 | J127: =IF(C127=0,"",VLOOKUP(C127,BNCDADOS!$A:$G,6,0)) -> 285.39 | K127: =IF(C127=0,"",VLOOKUP(C127,BNCDADOS!$A:$G,7,0)) -> 370.89 | L127: 4005.61 | M127: =SUMIF('MC - TRECHO 01'!A:A,Orçamento!A127,'MC - TRECHO 01'!R:R) -> 10.8 | N127: =SUMIF(#REF!,Orçamento!A127,#REF!) -> 
A128: 2.2.8 | B128: =IF(C128=0,"",VLOOKUP(C128,[142]BNCDADOS!$A:$G,8,0)) ->  | D128: PINTURA | E128: =IF(C128=0,"",VLOOKUP(C128,[142]BNCDADOS!$A:$G,3,0)) ->  | F128: 0 | G128: =IF(C128=0,"",VLOOKUP(C128,[142]BNCDADOS!$A:$G,4,0)) ->  | H128: =IF(C128=0,"",VLOOKUP(C128,[142]BNCDADOS!$A:$G,5,0)) ->  | I128: =SUM(I129:I133) -> 7860.48 | J128: =IF(C128=0,"",VLOOKUP(C128,[142]BNCDADOS!$A:$G,6,0)) ->  | K128: =IF(C128=0,"",VLOOKUP(C128,[142]BNCDADOS!$A:$G,7,0)) ->  | L128: =SUM(L129:L133) -> 7681.65 | N128: =SUMIF(#REF!,Orçamento!A128,#REF!) -> 
A129: 2.2.8.1 | B129: =IF(C129=0,"",VLOOKUP(C129,BNCDADOS!$A:$H,8,0)) -> SINAPI/RN SERVIÇO | C129: 88485 | D129: =IF(C129=0,"",VLOOKUP(C129,BNCDADOS!$A:$G,2,0)) -> FUNDO SELADOR ACRÍLICO, APLICAÇÃO MANUAL EM PAREDE, UMA DEMÃO. AF_04/2023 | E129: =IF(C129=0,"",VLOOKUP(C129,BNCDADOS!$A:$G,3,0)) -> M2 | F129: 189.46 | G129: =IF(C129=0,"",VLOOKUP(C129,BNCDADOS!$A:$G,4,0)) -> 3,30 | H129: =IF(C129=0,"",VLOOKUP(C129,BNCDADOS!$A:$G,5,0)) -> 4.08 | I129: =IF(H129="",0,TRUNC(H129*F129,2)) -> 772.99 | J129: =IF(C129=0,"",VLOOKUP(C129,BNCDADOS!$A:$G,6,0)) -> 3,06 | K129: =IF(C129=0,"",VLOOKUP(C129,BNCDADOS!$A:$G,7,0)) -> 3.97 | L129: =IF(K129="",0,TRUNC(K129*F129,2)) -> 752.15 | M129: =SUMIF('MC - TRECHO 01'!A:A,Orçamento!A129,'MC - TRECHO 01'!R:R) -> 189.46 | N129: =SUMIF(#REF!,Orçamento!A129,#REF!) -> 
A130: 2.2.8.2 | B130: =IF(C130=0,"",VLOOKUP(C130,BNCDADOS!$A:$H,8,0)) -> SINAPI/RN SERVIÇO | C130: 104642 | D130: =IF(C130=0,"",VLOOKUP(C130,BNCDADOS!$A:$G,2,0)) -> PINTURA LÁTEX ACRÍLICA STANDARD, APLICAÇÃO MANUAL EM PAREDES, DUAS DEMÃOS. AF_04/2023 | E130: =IF(C130=0,"",VLOOKUP(C130,BNCDADOS!$A:$G,3,0)) -> M2 | F130: 189.46 | G130: =IF(C130=0,"",VLOOKUP(C130,BNCDADOS!$A:$G,4,0)) -> 10,29 | H130: =IF(C130=0,"",VLOOKUP(C130,BNCDADOS!$A:$G,5,0)) -> 12.72 | I130: 2409.93 | J130: =IF(C130=0,"",VLOOKUP(C130,BNCDADOS!$A:$G,6,0)) -> 9,70 | K130: =IF(C130=0,"",VLOOKUP(C130,BNCDADOS!$A:$G,7,0)) -> 12.6 | L130: 2387.19 | M130: =SUMIF('MC - TRECHO 01'!A:A,Orçamento!A130,'MC - TRECHO 01'!R:R) -> 189.46 | N130: =SUMIF(#REF!,Orçamento!A130,#REF!) -> 
A131: 2.2.8.3 | B131: =IF(C131=0,"",VLOOKUP(C131,BNCDADOS!$A:$H,8,0)) -> SINAPI/RN SERVIÇO | C131: 100720 | D131: =IF(C131=0,"",VLOOKUP(C131,BNCDADOS!$A:$G,2,0)) -> PINTURA COM TINTA ALQUÍDICA DE FUNDO (TIPO ZARCÃO) APLICADA A ROLO OU PINCEL SOBRE PERFIL METÁLICO EXECUTADO EM FÁBRICA (POR DEMÃO). AF_01/2020 | E131: =IF(C131=0,"",VLOOKUP(C131,BNCDADOS!$A:$G,3,0)) -> M2 | F131: 44.54 | G131: =IF(C131=0,"",VLOOKUP(C131,BNCDADOS!$A:$G,4,0)) -> 10,27 | H131: =IF(C131=0,"",VLOOKUP(C131,BNCDADOS!$A:$G,5,0)) -> 12.7 | I131: 565.65 | J131: =IF(C131=0,"",VLOOKUP(C131,BNCDADOS!$A:$G,6,0)) -> 9,65 | K131: =IF(C131=0,"",VLOOKUP(C131,BNCDADOS!$A:$G,7,0)) -> 12.54 | L131: 558.53 | M131: =SUMIF('MC - TRECHO 01'!A:A,Orçamento!A131,'MC - TRECHO 01'!R:R) -> 44.54 | N131: =SUMIF(#REF!,Orçamento!A131,#REF!) -> 
A132: 2.2.8.4 | B132: =IF(C132=0,"",VLOOKUP(C132,BNCDADOS!$A:$H,8,0)) -> SINAPI/RN SERVIÇO | C132: 100758 | D132: =IF(C132=0,"",VLOOKUP(C132,BNCDADOS!$A:$G,2,0)) -> PINTURA COM TINTA ALQUÍDICA DE ACABAMENTO (ESMALTE SINTÉTICO ACETINADO) APLICADA A ROLO OU PINCEL SOBRE SUPERFÍCIES METÁLICAS (EXCETO PERFIL) EXECUTADO EM OBRA (02 DEMÃOS). AF_01/2020 | E132: =IF(C132=0,"",VLOOKUP(C132,BNCDADOS!$A:$G,3,0)) -> M2 | F132: 44.54 | G132: =IF(C132=0,"",VLOOKUP(C132,BNCDADOS!$A:$G,4,0)) -> 48,50 | H132: =IF(C132=0,"",VLOOKUP(C132,BNCDADOS!$A:$G,5,0)) -> 59.98 | I132: 2671.5 | J132: =IF(C132=0,"",VLOOKUP(C132,BNCDADOS!$A:$G,6,0)) -> 44,55 | K132: =IF(C132=0,"",VLOOKUP(C132,BNCDADOS!$A:$G,7,0)) -> 57.89 | L132: 2578.42 | M132: =SUMIF('MC - TRECHO 01'!A:A,Orçamento!A132,'MC - TRECHO 01'!R:R) -> 44.54 | N132: =SUMIF(#REF!,Orçamento!A132,#REF!) -> 
A133: 2.2.8.5 | B133: =IF(C133=0,"",VLOOKUP(C133,BNCDADOS!$A:$H,8,0)) -> SINAPI/RN SERVIÇO | C133: 102203 | D133: =IF(C133=0,"",VLOOKUP(C133,BNCDADOS!$A:$G,2,0)) -> PINTURA VERNIZ (INCOLOR) ALQUÍDICO EM MADEIRA, USO INTERNO E EXTERNO, 1 DEMÃO. AF_01/2021 | E133: =IF(C133=0,"",VLOOKUP(C133,BNCDADOS!$A:$G,3,0)) -> M2 | F133: 120.84 | G133: =IF(C133=0,"",VLOOKUP(C133,BNCDADOS!$A:$G,4,0)) -> 9,64 | H133: =IF(C133=0,"",VLOOKUP(C133,BNCDADOS!$A:$G,5,0)) -> 11.92 | I133: 1440.41 | J133: =IF(C133=0,"",VLOOKUP(C133,BNCDADOS!$A:$G,6,0)) -> 8,95 | K133: =IF(C133=0,"",VLOOKUP(C133,BNCDADOS!$A:$G,7,0)) -> 11.63 | L133: 1405.36 | M133: =SUMIF('MC - TRECHO 01'!A:A,Orçamento!A133,'MC - TRECHO 01'!R:R) -> 120.845 | N133: =SUMIF(#REF!,Orçamento!A133,#REF!) -> 
A134: 2.2.9 | B134: =IF(C134=0,"",VLOOKUP(C134,[142]BNCDADOS!$A:$G,8,0)) ->  | D134: PAVIMENTAÇÃO | E134: =IF(C134=0,"",VLOOKUP(C134,[142]BNCDADOS!$A:$G,3,0)) ->  | F134: 0 | G134: =IF(C134=0,"",VLOOKUP(C134,[142]BNCDADOS!$A:$G,4,0)) ->  | H134: =IF(C134=0,"",VLOOKUP(C134,[142]BNCDADOS!$A:$G,5,0)) ->  | I134: =SUM(I135:I136) -> 33546.66 | J134: =IF(C134=0,"",VLOOKUP(C134,[142]BNCDADOS!$A:$G,6,0)) ->  | K134: =IF(C134=0,"",VLOOKUP(C134,[142]BNCDADOS!$A:$G,7,0)) ->  | L134: =SUM(L135:L136) -> 34994.21 | M134: 0 | N134: =SUMIF(#REF!,Orçamento!A134,#REF!) -> 
A135: 2.2.9.1 | B135: =IF(C135=0,"",VLOOKUP(C135,BNCDADOS!$A:$H,8,0)) -> SINAPI/RN SERVIÇO | C135: 87680 | D135: =IF(C135=0,"",VLOOKUP(C135,BNCDADOS!$A:$G,2,0)) -> CONTRAPISO EM ARGAMASSA TRAÇO 1:4 (CIMENTO E AREIA), PREPARO MECÂNICO COM BETONEIRA 400 L, APLICADO EM ÁREAS SECAS SOBRE LAJE, NÃO ADERIDO, ACABAMENTO NÃO REFORÇADO, ESPESSURA 4CM. AF_07/2021 | E135: =IF(C135=0,"",VLOOKUP(C135,BNCDADOS!$A:$G,3,0)) -> M2 | F135: 75.6 | G135: =IF(C135=0,"",VLOOKUP(C135,BNCDADOS!$A:$G,4,0)) -> 38,50 | H135: =IF(C135=0,"",VLOOKUP(C135,BNCDADOS!$A:$G,5,0)) -> 47.62 | I135: =IF(H135="",0,TRUNC(H135*F135,2)) -> 3600.07 | J135: =IF(C135=0,"",VLOOKUP(C135,BNCDADOS!$A:$G,6,0)) -> 36,87 | K135: =IF(C135=0,"",VLOOKUP(C135,BNCDADOS!$A:$G,7,0)) -> 47.91 | L135: =IF(K135="",0,TRUNC(K135*F135,2)) -> 3621.99 | M135: =SUMIF('MC - TRECHO 01'!A:A,Orçamento!A135,'MC - TRECHO 01'!R:R) -> 75.6 | N135: =SUMIF(#REF!,Orçamento!A135,#REF!) -> 
A136: 2.2.9.2 | B136: =IF(C136=0,"",VLOOKUP(C136,BNCDADOS!$A:$H,8,0)) -> 0 | C136: COMP 29 | D136: =IF(C136=0,"",VLOOKUP(C136,BNCDADOS!$A:$G,2,0)) -> PISO EMBORRACHADO COM NÍVEL DE ISOLAMENTO PARA 15KV - FORNECIMENTO E INSTALAÇÃO | E136: =IF(C136=0,"",VLOOKUP(C136,BNCDADOS!$A:$G,3,0)) -> M2 | F136: 41.6 | G136: =IF(C136=0,"",VLOOKUP(C136,BNCDADOS!$A:$G,4,0)) -> 582 | H136: =IF(C136=0,"",VLOOKUP(C136,BNCDADOS!$A:$G,5,0)) -> 719.87 | I136: 29946.59 | J136: =IF(C136=0,"",VLOOKUP(C136,BNCDADOS!$A:$G,6,0)) -> 580.29 | K136: =IF(C136=0,"",VLOOKUP(C136,BNCDADOS!$A:$G,7,0)) -> 754.14 | L136: 31372.22 | M136: =SUMIF('MC - TRECHO 01'!A:A,Orçamento!A136,'MC - TRECHO 01'!R:R) -> 41.6 | N136: =SUMIF(#REF!,Orçamento!A136,#REF!) -> 
A137: 2.2.10 | B137: =IF(C137=0,"",VLOOKUP(C137,[142]BNCDADOS!$A:$G,8,0)) ->  | D137: INSTALAÇÕES ELÉTRICAS | E137: =IF(C137=0,"",VLOOKUP(C137,[142]BNCDADOS!$A:$G,3,0)) ->  | F137: =TRUNC(M137,2) -> 0 | G137: =IF(C137=0,"",VLOOKUP(C137,[142]BNCDADOS!$A:$G,4,0)) ->  | H137: =IF(C137=0,"",VLOOKUP(C137,[142]BNCDADOS!$A:$G,5,0)) ->  | I137: =SUM(I138:I157) -> 421749.97 | J137: =IF(C137=0,"",VLOOKUP(C137,[142]BNCDADOS!$A:$G,6,0)) ->  | K137: =IF(C137=0,"",VLOOKUP(C137,[142]BNCDADOS!$A:$G,7,0)) ->  | L137: =SUM(L138:L157) -> 433923.71 | M137: 0 | N137: =SUMIF(#REF!,Orçamento!A137,#REF!) -> 
A138: 2.2.10.1 | B138: =IF(C138=0,"",VLOOKUP(C138,BNCDADOS!$A:$H,8,0)) -> 0 | C138: COMP 27 | D138: =IF(C138=0,"",VLOOKUP(C138,BNCDADOS!$A:$G,2,0)) -> INSTALAÇÃO DE POSTE DE ENTRADA DE ENERGIA PARA SUBSTAÇÃO ABRIGADA, PROTEÇÃO GERAL, POSTES, CRUZETAS, E CAIXA DE PASSAGEM | E138: =IF(C138=0,"",VLOOKUP(C138,BNCDADOS!$A:$G,3,0)) -> UN | F138: =TRUNC(M138,2) -> 1 | G138: =IF(C138=0,"",VLOOKUP(C138,BNCDADOS!$A:$G,4,0)) -> 14431.3 | H138: =IF(C138=0,"",VLOOKUP(C138,BNCDADOS!$A:$G,5,0)) -> 17850.07 | I138: =IF(H138="",0,TRUNC(H138*F138,2)) -> 17850.07 | J138: =IF(C138=0,"",VLOOKUP(C138,BNCDADOS!$A:$G,6,0)) -> 14205.92 | K138: =IF(C138=0,"",VLOOKUP(C138,BNCDADOS!$A:$G,7,0)) -> 18462.01 | L138: =IF(K138="",0,TRUNC(K138*F138,2)) -> 18462.01 | M138: =SUMIF('MC - TRECHO 01'!A:A,Orçamento!A138,'MC - TRECHO 01'!R:R) -> 1 | N138: =SUMIF(#REF!,Orçamento!A138,#REF!) -> 
A139: 2.2.10.2 | B139: =IF(C139=0,"",VLOOKUP(C139,BNCDADOS!$A:$H,8,0)) -> SINAPI/RN SERVIÇO | C139: 93000 | D139: =IF(C139=0,"",VLOOKUP(C139,BNCDADOS!$A:$G,2,0)) -> CABO DE COBRE FLEXÍVEL ISOLADO, 240 MM², ANTI-CHAMA 0,6/1,0 KV, PARA REDE ENTERRADA DE DISTRIBUIÇÃO DE ENERGIA ELÉTRICA - FORNECIMENTO E INSTALAÇÃO. AF_12/2021 | E139: =IF(C139=0,"",VLOOKUP(C139,BNCDADOS!$A:$G,3,0)) -> M | F139: 810 | G139: =IF(C139=0,"",VLOOKUP(C139,BNCDADOS!$A:$G,4,0)) -> 293,85 | H139: =IF(C139=0,"",VLOOKUP(C139,BNCDADOS!$A:$G,5,0)) -> 363.46 | I139: 294402.6 | J139: =IF(C139=0,"",VLOOKUP(C139,BNCDADOS!$A:$G,6,0)) -> 292,50 | K139: =IF(C139=0,"",VLOOKUP(C139,BNCDADOS!$A:$G,7,0)) -> 380.13 | L139: 307905.3 | M139: =SUMIF('MC - TRECHO 01'!A:A,Orçamento!A139,'MC - TRECHO 01'!R:R) -> 810 | N139: =SUMIF(#REF!,Orçamento!A139,#REF!) -> 
A140: 2.2.10.3 | B140: =IF(C140=0,"",VLOOKUP(C140,BNCDADOS!$A:$H,8,0)) -> SINAPI/RN SERVIÇO | C140: 91931 | D140: =IF(C140=0,"",VLOOKUP(C140,BNCDADOS!$A:$G,2,0)) -> CABO DE COBRE FLEXÍVEL ISOLADO, 6 MM², ANTI-CHAMA 0,6/1,0 KV, PARA CIRCUITOS TERMINAIS - FORNECIMENTO E INSTALAÇÃO. AF_03/2023 | E140: =IF(C140=0,"",VLOOKUP(C140,BNCDADOS!$A:$G,3,0)) -> M | F140: 17.5 | G140: =IF(C140=0,"",VLOOKUP(C140,BNCDADOS!$A:$G,4,0)) -> 11,29 | H140: =IF(C140=0,"",VLOOKUP(C140,BNCDADOS!$A:$G,5,0)) -> 13.96 | I140: 244.3 | J140: =IF(C140=0,"",VLOOKUP(C140,BNCDADOS!$A:$G,6,0)) -> 11,02 | K140: =IF(C140=0,"",VLOOKUP(C140,BNCDADOS!$A:$G,7,0)) -> 14.32 | L140: 250.6 | M140: =SUMIF('MC - TRECHO 01'!A:A,Orçamento!A140,'MC - TRECHO 01'!R:R) -> 17.5 | N140: =SUMIF(#REF!,Orçamento!A140,#REF!) -> 
A141: 2.2.10.4 | B141: =IF(C141=0,"",VLOOKUP(C141,BNCDADOS!$A:$H,8,0)) -> SINAPI/RN SERVIÇO | C141: 91929 | D141: =IF(C141=0,"",VLOOKUP(C141,BNCDADOS!$A:$G,2,0)) -> CABO DE COBRE FLEXÍVEL ISOLADO, 4 MM², ANTI-CHAMA 0,6/1,0 KV, PARA CIRCUITOS TERMINAIS - FORNECIMENTO E INSTALAÇÃO. AF_03/2023 | E141: =IF(C141=0,"",VLOOKUP(C141,BNCDADOS!$A:$G,3,0)) -> M | F141: 115.5 | G141: =IF(C141=0,"",VLOOKUP(C141,BNCDADOS!$A:$G,4,0)) -> 7,98 | H141: =IF(C141=0,"",VLOOKUP(C141,BNCDADOS!$A:$G,5,0)) -> 9.87 | I141: 1139.98 | J141: =IF(C141=0,"",VLOOKUP(C141,BNCDADOS!$A:$G,6,0)) -> 7,76 | K141: =IF(C141=0,"",VLOOKUP(C141,BNCDADOS!$A:$G,7,0)) -> 10.08 | L141: 1164.24 | M141: =SUMIF('MC - TRECHO 01'!A:A,Orçamento!A141,'MC - TRECHO 01'!R:R) -> 115.5 | N141: =SUMIF(#REF!,Orçamento!A141,#REF!) -> 
A142: 2.2.10.5 | B142: =IF(C142=0,"",VLOOKUP(C142,BNCDADOS!$A:$H,8,0)) -> SINAPI/RN SERVIÇO | C142: 91927 | D142: =IF(C142=0,"",VLOOKUP(C142,BNCDADOS!$A:$G,2,0)) -> CABO DE COBRE FLEXÍVEL ISOLADO, 2,5 MM², ANTI-CHAMA 0,6/1,0 KV, PARA CIRCUITOS TERMINAIS - FORNECIMENTO E INSTALAÇÃO. AF_03/2023 | E142: =IF(C142=0,"",VLOOKUP(C142,BNCDADOS!$A:$G,3,0)) -> M | F142: 90 | G142: =IF(C142=0,"",VLOOKUP(C142,BNCDADOS!$A:$G,4,0)) -> 5,38 | H142: =IF(C142=0,"",VLOOKUP(C142,BNCDADOS!$A:$G,5,0)) -> 6.65 | I142: 598.5 | J142: =IF(C142=0,"",VLOOKUP(C142,BNCDADOS!$A:$G,6,0)) -> 5,22 | K142: =IF(C142=0,"",VLOOKUP(C142,BNCDADOS!$A:$G,7,0)) -> 6.78 | L142: 610.2 | M142: =SUMIF('MC - TRECHO 01'!A:A,Orçamento!A142,'MC - TRECHO 01'!R:R) -> 90 | N142: =SUMIF(#REF!,Orçamento!A142,#REF!) -> 
A143: 2.2.10.6 | B143: =IF(C143=0,"",VLOOKUP(C143,BNCDADOS!$A:$H,8,0)) -> SINAPI/RN SERVIÇO | C143: 91854 | D143: =IF(C143=0,"",VLOOKUP(C143,BNCDADOS!$A:$G,2,0)) -> ELETRODUTO FLEXÍVEL CORRUGADO, PVC, DN 25 MM (3/4"), PARA CIRCUITOS TERMINAIS, INSTALADO EM PAREDE - FORNECIMENTO E INSTALAÇÃO. AF_03/2023 | E143: =IF(C143=0,"",VLOOKUP(C143,BNCDADOS!$A:$G,3,0)) -> M | F143: 5.5 | G143: =IF(C143=0,"",VLOOKUP(C143,BNCDADOS!$A:$G,4,0)) -> 8,73 | H143: =IF(C143=0,"",VLOOKUP(C143,BNCDADOS!$A:$G,5,0)) -> 10.79 | I143: 59.34 | J143: =IF(C143=0,"",VLOOKUP(C143,BNCDADOS!$A:$G,6,0)) -> 8,01 | K143: =IF(C143=0,"",VLOOKUP(C143,BNCDADOS!$A:$G,7,0)) -> 10.4 | L143: 57.2 | M143: =SUMIF('MC - TRECHO 01'!A:A,Orçamento!A143,'MC - TRECHO 01'!R:R) -> 5.5 | N143: =SUMIF(#REF!,Orçamento!A143,#REF!) -> 
A144: 2.2.10.7 | B144: =IF(C144=0,"",VLOOKUP(C144,BNCDADOS!$A:$H,8,0)) -> SINAPI/RN SERVIÇO | C144: 95728 | D144: =IF(C144=0,"",VLOOKUP(C144,BNCDADOS!$A:$G,2,0)) -> ELETRODUTO RÍGIDO SOLDÁVEL, PVC, DN 32 MM (1), APARENTE - FORNECIMENTO E INSTALAÇÃO. AF_10/2022_PA | E144: =IF(C144=0,"",VLOOKUP(C144,BNCDADOS!$A:$G,3,0)) -> M | F144: 38 | G144: =IF(C144=0,"",VLOOKUP(C144,BNCDADOS!$A:$G,4,0)) -> 23,88 | H144: =IF(C144=0,"",VLOOKUP(C144,BNCDADOS!$A:$G,5,0)) -> 29.53 | I144: 1122.14 | J144: =IF(C144=0,"",VLOOKUP(C144,BNCDADOS!$A:$G,6,0)) -> 22,13 | K144: =IF(C144=0,"",VLOOKUP(C144,BNCDADOS!$A:$G,7,0)) -> 28.76 | L144: 1092.88 | M144: =SUMIF('MC - TRECHO 01'!A:A,Orçamento!A144,'MC - TRECHO 01'!R:R) -> 38 | N144: =SUMIF(#REF!,Orçamento!A144,#REF!) -> 
A145: 2.2.10.8 | B145: =IF(C145=0,"",VLOOKUP(C145,BNCDADOS!$A:$H,8,0)) -> SINAPI/RN SERVIÇO | C145: 93011 | D145: =IF(C145=0,"",VLOOKUP(C145,BNCDADOS!$A:$G,2,0)) -> ELETRODUTO RÍGIDO ROSCÁVEL, PVC, DN 85 MM (3"), PARA REDE ENTERRADA DE DISTRIBUIÇÃO DE ENERGIA ELÉTRICA - FORNECIMENTO E INSTALAÇÃO. AF_12/2021 | E145: =IF(C145=0,"",VLOOKUP(C145,BNCDADOS!$A:$G,3,0)) -> M | F145: 25.5 | G145: =IF(C145=0,"",VLOOKUP(C145,BNCDADOS!$A:$G,4,0)) -> 34,98 | H145: =IF(C145=0,"",VLOOKUP(C145,BNCDADOS!$A:$G,5,0)) -> 43.26 | I145: 1103.13 | J145: =IF(C145=0,"",VLOOKUP(C145,BNCDADOS!$A:$G,6,0)) -> 34,06 | K145: =IF(C145=0,"",VLOOKUP(C145,BNCDADOS!$A:$G,7,0)) -> 44.26 | L145: 1128.63 | M145: =SUMIF('MC - TRECHO 01'!A:A,Orçamento!A145,'MC - TRECHO 01'!R:R) -> 25.5 | N145: =SUMIF(#REF!,Orçamento!A145,#REF!) -> 
A146: 2.2.10.9 | B146: =IF(C146=0,"",VLOOKUP(C146,BNCDADOS!$A:$H,8,0)) -> SINAPI/RN SERVIÇO | C146: 97882 | D146: =IF(C146=0,"",VLOOKUP(C146,BNCDADOS!$A:$G,2,0)) -> CAIXA ENTERRADA ELÉTRICA RETANGULAR, EM CONCRETO PRÉ-MOLDADO, FUNDO COM BRITA, DIMENSÕES INTERNAS: 0,4X0,4X0,4 M. AF_12/2020 | E146: =IF(C146=0,"",VLOOKUP(C146,BNCDADOS!$A:$G,3,0)) -> UN | F146: 9 | G146: =IF(C146=0,"",VLOOKUP(C146,BNCDADOS!$A:$G,4,0)) -> 215,84 | H146: =IF(C146=0,"",VLOOKUP(C146,BNCDADOS!$A:$G,5,0)) -> 266.97 | I146: 2402.73 | J146: =IF(C146=0,"",VLOOKUP(C146,BNCDADOS!$A:$G,6,0)) -> 212,07 | K146: =IF(C146=0,"",VLOOKUP(C146,BNCDADOS!$A:$G,7,0)) -> 275.6 | L146: 2480.4 | M146: =SUMIF('MC - TRECHO 01'!A:A,Orçamento!A146,'MC - TRECHO 01'!R:R) -> 9 | N146: =SUMIF(#REF!,Orçamento!A146,#REF!) -> 
A147: 2.2.10.10 | B147: =IF(C147=0,"",VLOOKUP(C147,BNCDADOS!$A:$H,8,0)) -> caern | C147: 2070408 | D147: =IF(C147=0,"",VLOOKUP(C147,BNCDADOS!$A:$G,2,0)) -> CONJUNTO ILUMINAÇÃO EXTERNA TIPO PÉTALA COM 02 REFLETORES LED DE 100 W E POSTE CIRCULAR DE 9M EM CONCRETO. INC_05/2020 | E147: =IF(C147=0,"",VLOOKUP(C147,BNCDADOS!$A:$G,3,0)) -> UN | F147: 2 | G147: =IF(C147=0,"",VLOOKUP(C147,BNCDADOS!$A:$G,4,0)) -> 2500.16 | H147: =IF(C147=0,"",VLOOKUP(C147,BNCDADOS!$A:$G,5,0)) -> 3092.44 | I147: 6184.88 | J147: =IF(C147=0,"",VLOOKUP(C147,BNCDADOS!$A:$G,6,0)) -> 2464.55 | K147: =IF(C147=0,"",VLOOKUP(C147,BNCDADOS!$A:$G,7,0)) -> 3202.92 | L147: 6405.84 | M147: =SUMIF('MC - TRECHO 01'!A:A,Orçamento!A147,'MC - TRECHO 01'!R:R) -> 2 | N147: =SUMIF(#REF!,Orçamento!A147,#REF!) -> 
A148: 2.2.10.11 | B148: =IF(C148=0,"",VLOOKUP(C148,BNCDADOS!$A:$H,8,0)) -> caern | C148: 2070410 | D148: =IF(C148=0,"",VLOOKUP(C148,BNCDADOS!$A:$G,2,0)) -> CONJUNTO ILUMINAÇÃO EXTERNA TIPO PÉTALA COM 04 REFLETORES LED DE 100 W E POSTE CIRCULAR DE 9M EM CONCRETO. INC_05/2020 | E148: =IF(C148=0,"",VLOOKUP(C148,BNCDADOS!$A:$G,3,0)) -> UN | F148: 4 | G148: =IF(C148=0,"",VLOOKUP(C148,BNCDADOS!$A:$G,4,0)) -> 2737.22 | H148: =IF(C148=0,"",VLOOKUP(C148,BNCDADOS!$A:$G,5,0)) -> 3385.66 | I148: 13542.64 | J148: =IF(C148=0,"",VLOOKUP(C148,BNCDADOS!$A:$G,6,0)) -> 2701.61 | K148: =IF(C148=0,"",VLOOKUP(C148,BNCDADOS!$A:$G,7,0)) -> 3511.01 | L148: 14044.04 | M148: =SUMIF('MC - TRECHO 01'!A:A,Orçamento!A148,'MC - TRECHO 01'!R:R) -> 4 | N148: =SUMIF(#REF!,Orçamento!A148,#REF!) -> 
A149: 2.2.10.12 | B149: =IF(C149=0,"",VLOOKUP(C149,BNCDADOS!$A:$H,8,0)) -> 0 | C149: COMP 33 | D149: =IF(C149=0,"",VLOOKUP(C149,BNCDADOS!$A:$G,2,0)) -> SERVIÇOS DE MONTAGEM E INSTALAÇÃO DA SUBSTAÇÃO ABRIGADA DA EEAT COM CARGA TOTAL DE 1000KVA | E149: =IF(C149=0,"",VLOOKUP(C149,BNCDADOS!$A:$G,3,0)) -> UN | F149: 2 | G149: =IF(C149=0,"",VLOOKUP(C149,BNCDADOS!$A:$G,4,0)) -> 30375.24 | H149: =IF(C149=0,"",VLOOKUP(C149,BNCDADOS!$A:$G,5,0)) -> 37571.13 | I149: 75142.26 | J149: =IF(C149=0,"",VLOOKUP(C149,BNCDADOS!$A:$G,6,0)) -> 27732.28 | K149: =IF(C149=0,"",VLOOKUP(C149,BNCDADOS!$A:$G,7,0)) -> 36040.87 | L149: 72081.74 | M149: =SUMIF('MC - TRECHO 01'!A:A,Orçamento!A149,'MC - TRECHO 01'!R:R) -> 1 | N149: =SUMIF(#REF!,Orçamento!A149,#REF!) -> 
A150: 2.2.10.13 | B150: =IF(C150=0,"",VLOOKUP(C150,BNCDADOS!$A:$H,8,0)) -> SINAPI/RN SERVIÇO | C150: 96977 | D150: =IF(C150=0,"",VLOOKUP(C150,BNCDADOS!$A:$G,2,0)) -> CORDOALHA DE COBRE NU 50 MM², ENTERRADA - FORNECIMENTO E INSTALAÇÃO. AF_08/2023 | E150: =IF(C150=0,"",VLOOKUP(C150,BNCDADOS!$A:$G,3,0)) -> M | F150: 32.2 | G150: =IF(C150=0,"",VLOOKUP(C150,BNCDADOS!$A:$G,4,0)) -> 66,73 | H150: =IF(C150=0,"",VLOOKUP(C150,BNCDADOS!$A:$G,5,0)) -> 82.53 | I150: 2657.46 | J150: =IF(C150=0,"",VLOOKUP(C150,BNCDADOS!$A:$G,6,0)) -> 66,56 | K150: =IF(C150=0,"",VLOOKUP(C150,BNCDADOS!$A:$G,7,0)) -> 86.5 | L150: 2785.3 | M150: =SUMIF('MC - TRECHO 01'!A:A,Orçamento!A150,'MC - TRECHO 01'!R:R) -> 32.2 | N150: =SUMIF(#REF!,Orçamento!A150,#REF!) -> 
A151: 2.2.10.14 | B151: =IF(C151=0,"",VLOOKUP(C151,BNCDADOS!$A:$H,8,0)) -> SINAPI/RN SERVIÇO | C151: 96986 | D151: =IF(C151=0,"",VLOOKUP(C151,BNCDADOS!$A:$G,2,0)) -> HASTE DE ATERRAMENTO, DIÂMETRO 3/4", COM 3 METROS - FORNECIMENTO E INSTALAÇÃO. AF_08/2023 | E151: =IF(C151=0,"",VLOOKUP(C151,BNCDADOS!$A:$G,3,0)) -> UN | F151: 6 | G151: =IF(C151=0,"",VLOOKUP(C151,BNCDADOS!$A:$G,4,0)) -> 152,63 | H151: =IF(C151=0,"",VLOOKUP(C151,BNCDADOS!$A:$G,5,0)) -> 188.78 | I151: 1132.68 | J151: =IF(C151=0,"",VLOOKUP(C151,BNCDADOS!$A:$G,6,0)) -> 150,55 | K151: =IF(C151=0,"",VLOOKUP(C151,BNCDADOS!$A:$G,7,0)) -> 195.65 | L151: 1173.9 | M151: =SUMIF('MC - TRECHO 01'!A:A,Orçamento!A151,'MC - TRECHO 01'!R:R) -> 6 | N151: =SUMIF(#REF!,Orçamento!A151,#REF!) -> 
A152: 2.2.10.15 | B152: =IF(C152=0,"",VLOOKUP(C152,BNCDADOS!$A:$H,8,0)) -> SINAPI/RN INSUMOS | C152: 34641 | D152: =IF(C152=0,"",VLOOKUP(C152,BNCDADOS!$A:$G,2,0)) -> CAIXA DE ATERRAMENTO EM CONCRETO PRE-MOLDADO, DIAMETRO DE 0,30 M E ALTURA DE 0,35 M, SEM FUNDO E COM TAMPA | E152: =IF(C152=0,"",VLOOKUP(C152,BNCDADOS!$A:$G,3,0)) -> UN | F152: 6 | G152: =IF(C152=0,"",VLOOKUP(C152,BNCDADOS!$A:$G,4,0)) -> 107,66 | H152: =TRUNC(G152*$I$4,2) -> 25.5 | I152: 153 | J152: =IF(C152=0,"",VLOOKUP(C152,BNCDADOS!$A:$G,6,0)) -> 107,66 | K152: =TRUNC(J152*$L$4,2) -> 32.25 | L152: 193.5 | M152: =SUMIF('MC - TRECHO 01'!A:A,Orçamento!A152,'MC - TRECHO 01'!R:R) -> 6 | N152: =SUMIF(#REF!,Orçamento!A152,#REF!) -> 
A153: 2.2.10.16 | B153: =IF(C153=0,"",VLOOKUP(C153,BNCDADOS!$A:$H,8,0)) -> SINAPI/RN SERVIÇO | C153: 104750 | D153: =IF(C153=0,"",VLOOKUP(C153,BNCDADOS!$A:$G,2,0)) -> CONECTOR GRAMPO METÁLICO TIPO OLHAL, PARA SPDA, PARA HASTE DE ATERRAMENTO DE 5/8'' E CABOS DE 10 A 50 MM2 - FORNECIMENTO E INSTALAÇÃO. AF_08/2023 | E153: =IF(C153=0,"",VLOOKUP(C153,BNCDADOS!$A:$G,3,0)) -> UN | F153: 6 | G153: =IF(C153=0,"",VLOOKUP(C153,BNCDADOS!$A:$G,4,0)) -> 18,06 | H153: =IF(C153=0,"",VLOOKUP(C153,BNCDADOS!$A:$G,5,0)) -> 22.33 | I153: 133.98 | J153: =IF(C153=0,"",VLOOKUP(C153,BNCDADOS!$A:$G,6,0)) -> 17,06 | K153: =IF(C153=0,"",VLOOKUP(C153,BNCDADOS!$A:$G,7,0)) -> 22.17 | L153: 133.02 | M153: =SUMIF('MC - TRECHO 01'!A:A,Orçamento!A153,'MC - TRECHO 01'!R:R) -> 6 | N153: =SUMIF(#REF!,Orçamento!A153,#REF!) -> 
A154: 2.2.10.17 | B154: =IF(C154=0,"",VLOOKUP(C154,BNCDADOS!$A:$H,8,0)) -> SINAPI/RN SERVIÇO | C154: 96973 | D154: =IF(C154=0,"",VLOOKUP(C154,BNCDADOS!$A:$G,2,0)) -> CORDOALHA DE COBRE NU 35 MM², NÃO ENTERRADA, COM ISOLADOR - FORNECIMENTO E INSTALAÇÃO. AF_08/2023 | E154: =IF(C154=0,"",VLOOKUP(C154,BNCDADOS!$A:$G,3,0)) -> M | F154: 35 | G154: =IF(C154=0,"",VLOOKUP(C154,BNCDADOS!$A:$G,4,0)) -> 76,41 | H154: =IF(C154=0,"",VLOOKUP(C154,BNCDADOS!$A:$G,5,0)) -> 94.51 | I154: 3307.85 | J154: =IF(C154=0,"",VLOOKUP(C154,BNCDADOS!$A:$G,6,0)) -> 73,96 | K154: =IF(C154=0,"",VLOOKUP(C154,BNCDADOS!$A:$G,7,0)) -> 96.11 | L154: 3363.85 | M154: =SUMIF('MC - TRECHO 01'!A:A,Orçamento!A154,'MC - TRECHO 01'!R:R) -> 35 | N154: =SUMIF(#REF!,Orçamento!A154,#REF!) -> 
A155: 2.2.10.18 | B155: =IF(C155=0,"",VLOOKUP(C155,BNCDADOS!$A:$H,8,0)) -> SINAPI/RN SERVIÇO | C155: 96987 | D155: =IF(C155=0,"",VLOOKUP(C155,BNCDADOS!$A:$G,2,0)) -> BASE METÁLICA PARA MASTRO 1 ½" PARA SPDA - FORNECIMENTO E INSTALAÇÃO. AF_08/2023 | E155: =IF(C155=0,"",VLOOKUP(C155,BNCDADOS!$A:$G,3,0)) -> UN | F155: 1 | G155: =IF(C155=0,"",VLOOKUP(C155,BNCDADOS!$A:$G,4,0)) -> 129,68 | H155: =IF(C155=0,"",VLOOKUP(C155,BNCDADOS!$A:$G,5,0)) -> 160.4 | I155: 160.4 | J155: =IF(C155=0,"",VLOOKUP(C155,BNCDADOS!$A:$G,6,0)) -> 123,32 | K155: =IF(C155=0,"",VLOOKUP(C155,BNCDADOS!$A:$G,7,0)) -> 160.26 | L155: 160.26 | M155: =SUMIF('MC - TRECHO 01'!A:A,Orçamento!A155,'MC - TRECHO 01'!R:R) -> 1 | N155: =SUMIF(#REF!,Orçamento!A155,#REF!) -> 
A156: 2.2.10.19 | B156: =IF(C156=0,"",VLOOKUP(C156,BNCDADOS!$A:$H,8,0)) -> SINAPI/RN SERVIÇO | C156: 96988 | D156: =IF(C156=0,"",VLOOKUP(C156,BNCDADOS!$A:$G,2,0)) -> MASTRO 1 ½", COM 3 METROS, PARA SPDA - FORNECIMENTO E INSTALAÇÃO. AF_08/2023 | E156: =IF(C156=0,"",VLOOKUP(C156,BNCDADOS!$A:$G,3,0)) -> UN | F156: 1 | G156: =IF(C156=0,"",VLOOKUP(C156,BNCDADOS!$A:$G,4,0)) -> 181,32 | H156: =IF(C156=0,"",VLOOKUP(C156,BNCDADOS!$A:$G,5,0)) -> 224.27 | I156: 224.27 | J156: =IF(C156=0,"",VLOOKUP(C156,BNCDADOS!$A:$G,6,0)) -> 180,42 | K156: =IF(C156=0,"",VLOOKUP(C156,BNCDADOS!$A:$G,7,0)) -> 234.47 | L156: 234.47 | M156: =SUMIF('MC - TRECHO 01'!A:A,Orçamento!A156,'MC - TRECHO 01'!R:R) -> 1 | N156: =SUMIF(#REF!,Orçamento!A156,#REF!) -> 
A157: 2.2.10.20 | B157: =IF(C157=0,"",VLOOKUP(C157,BNCDADOS!$A:$H,8,0)) -> SINAPI/RN SERVIÇO | C157: 96989 | D157: =IF(C157=0,"",VLOOKUP(C157,BNCDADOS!$A:$G,2,0)) -> CAPTOR TIPO FRANKLIN PARA SPDA - FORNECIMENTO E INSTALAÇÃO. AF_08/2023 | E157: =IF(C157=0,"",VLOOKUP(C157,BNCDADOS!$A:$G,3,0)) -> UN | F157: 1 | G157: =IF(C157=0,"",VLOOKUP(C157,BNCDADOS!$A:$G,4,0)) -> 151,80 | H157: =IF(C157=0,"",VLOOKUP(C157,BNCDADOS!$A:$G,5,0)) -> 187.76 | I157: 187.76 | J157: =IF(C157=0,"",VLOOKUP(C157,BNCDADOS!$A:$G,6,0)) -> 151,07 | K157: =IF(C157=0,"",VLOOKUP(C157,BNCDADOS!$A:$G,7,0)) -> 196.33 | L157: 196.33 | M157: =SUMIF('MC - TRECHO 01'!A:A,Orçamento!A157,'MC - TRECHO 01'!R:R) -> 1 | N157: =SUMIF(#REF!,Orçamento!A157,#REF!) -> 
A158: 2.2.11 | B158: =IF(C158=0,"",VLOOKUP(C158,[142]BNCDADOS!$A:$G,8,0)) ->  | D158: MONTAGENS HIDRAÚLICAS | E158: =IF(C158=0,"",VLOOKUP(C158,[142]BNCDADOS!$A:$G,3,0)) ->  | F158: =TRUNC(M158,2) -> 0 | G158: =IF(C158=0,"",VLOOKUP(C158,[142]BNCDADOS!$A:$G,4,0)) ->  | H158: =IF(C158=0,"",VLOOKUP(C158,[142]BNCDADOS!$A:$G,5,0)) ->  | I158: =SUM(I159) -> 5293.08 | J158: =IF(C158=0,"",VLOOKUP(C158,[142]BNCDADOS!$A:$G,6,0)) ->  | K158: =IF(C158=0,"",VLOOKUP(C158,[142]BNCDADOS!$A:$G,7,0)) ->  | L158: =SUM(L159) -> 4995.08 | M158: 0 | N158: =SUMIF(#REF!,Orçamento!A158,#REF!) -> 
A159: 2.2.11.1 | B159: =IF(C159=0,"",VLOOKUP(C159,BNCDADOS!$A:$H,8,0)) -> caern | C159: 2090008 | D159: =IF(C159=0,"",VLOOKUP(C159,BNCDADOS!$A:$G,2,0)) -> INSTALAÇÃO ELETROMECÂNICA DE CONJUNTO MOTO-BOMBA MAIOR QUE 200 CV E MENOR OU IGUAL A 500 CV. R_11/2021 | E159: =IF(C159=0,"",VLOOKUP(C159,BNCDADOS!$A:$G,3,0)) -> UN | F159: =TRUNC(M159,2) -> 4 | G159: =IF(C159=0,"",VLOOKUP(C159,BNCDADOS!$A:$G,4,0)) -> 1069.83 | H159: =IF(C159=0,"",VLOOKUP(C159,BNCDADOS!$A:$G,5,0)) -> 1323.27 | I159: =IF(H159="",0,TRUNC(H159*F159,2)) -> 5293.08 | J159: =IF(C159=0,"",VLOOKUP(C159,BNCDADOS!$A:$G,6,0)) -> 960.89 | K159: =IF(C159=0,"",VLOOKUP(C159,BNCDADOS!$A:$G,7,0)) -> 1248.77 | L159: =IF(K159="",0,TRUNC(K159*F159,2)) -> 4995.08 | M159: =SUMIF('MC - TRECHO 01'!A:A,Orçamento!A159,'MC - TRECHO 01'!R:R) -> 4 | N159: =SUMIF(#REF!,Orçamento!A159,#REF!) -> 
A160: 2.2.12 | B160: =IF(C160=0,"",VLOOKUP(C160,[142]BNCDADOS!$A:$G,8,0)) ->  | D160: MONTAGENS HIDRAÚLICAS | E160: =IF(C160=0,"",VLOOKUP(C160,[142]BNCDADOS!$A:$G,3,0)) ->  | F160: =TRUNC(M160,2) -> 0 | G160: =IF(C160=0,"",VLOOKUP(C160,[142]BNCDADOS!$A:$G,4,0)) ->  | H160: =IF(C160=0,"",VLOOKUP(C160,[142]BNCDADOS!$A:$G,5,0)) ->  | I160: =SUM(I161) -> 33193.08 | J160: =IF(C160=0,"",VLOOKUP(C160,[142]BNCDADOS!$A:$G,6,0)) ->  | K160: =IF(C160=0,"",VLOOKUP(C160,[142]BNCDADOS!$A:$G,7,0)) ->  | L160: =SUM(L161) -> 34647.48 | M160: 0 | N160: =SUMIF(#REF!,Orçamento!A160,#REF!) -> 
A161: 2.2.12.1 | B161: =IF(C161=0,"",VLOOKUP(C161,BNCDADOS!$A:$H,8,0)) -> 0 | C161: COMP 44 | D161: =IF(C161=0,"",VLOOKUP(C161,BNCDADOS!$A:$G,2,0)) -> CONSTRUÇÃO E INSTALAÇÃO DE FLUTUADOR PARA CAPTAÇÃO | E161: =IF(C161=0,"",VLOOKUP(C161,BNCDADOS!$A:$G,3,0)) -> UN | F161: =TRUNC(M161,2) -> 4 | G161: =IF(C161=0,"",VLOOKUP(C161,BNCDADOS!$A:$G,4,0)) -> 6708.93 | H161: =IF(C161=0,"",VLOOKUP(C161,BNCDADOS!$A:$G,5,0)) -> 8298.27 | I161: =IF(H161="",0,TRUNC(H161*F161,2)) -> 33193.08 | J161: =IF(C161=0,"",VLOOKUP(C161,BNCDADOS!$A:$G,6,0)) -> 6665.03 | K161: =IF(C161=0,"",VLOOKUP(C161,BNCDADOS!$A:$G,7,0)) -> 8661.87 | L161: =IF(K161="",0,TRUNC(K161*F161,2)) -> 34647.48 | M161: =SUMIF('MC - TRECHO 01'!A:A,Orçamento!A161,'MC - TRECHO 01'!R:R) -> 4 | N161: =SUMIF(#REF!,Orçamento!A161,#REF!) -> 
B162: =IF(C162=0,"",VLOOKUP(C162,[142]BNCDADOS!$A:$H,8,0)) ->  | D162: =IF(C162=0,"",VLOOKUP(C162,[142]BNCDADOS!$A:$G,2,0)) ->  | E162: =IF(C162=0,"",VLOOKUP(C162,[142]BNCDADOS!$A:$G,3,0)) ->  | F162: =TRUNC(M162,2) -> 0 | G162: =IF(C162=0,"",VLOOKUP(C162,[142]BNCDADOS!$A:$G,4,0)) ->  | H162: =IF(C162=0,"",VLOOKUP(C162,[142]BNCDADOS!$A:$G,5,0)) ->  | I162: =IF(H162="",0,TRUNC(H162*F162,2)) -> 0 | J162: =IF(C162=0,"",VLOOKUP(C162,[142]BNCDADOS!$A:$G,6,0)) ->  | K162: =IF(C162=0,"",VLOOKUP(C162,[142]BNCDADOS!$A:$G,7,0)) ->  | L162: =IF(K162="",0,TRUNC(K162*F162,2)) -> 0
A163: 2.3 | D163: SERVIÇOS_ESTAÇÃO DE TRATAMENTO DE ÁGUA | I163: =SUM(I164,I174,I187,I200,I223,I212,I220,I227,I233,I236,I258) -> 6888913.28 | L163: =SUM(L164,L174,L187,L200,L223,L212,L220,L227,L233,L236,L258) -> 7089996.09 | N163: =SUMIF(#REF!,Orçamento!A163,#REF!) -> 
A164: 2.3.1 | B164: =IF(C164=0,"",VLOOKUP(C164,[142]BNCDADOS!$A:$G,8,0)) ->  | D164: SERVIÇOS PRELIMINARES | E164: =IF(C164=0,"",VLOOKUP(C164,[142]BNCDADOS!$A:$G,3,0)) ->  | F164: =TRUNC(M164,2) -> 0 | G164: =IF(C164=0,"",VLOOKUP(C164,[142]BNCDADOS!$A:$G,4,0)) ->  | H164: =IF(C164=0,"",VLOOKUP(C164,[142]BNCDADOS!$A:$G,5,0)) ->  | I164: =SUM(I165:I173) -> 1531226.31 | J164: =IF(C164=0,"",VLOOKUP(C164,[142]BNCDADOS!$A:$G,6,0)) ->  | K164: =IF(C164=0,"",VLOOKUP(C164,[142]BNCDADOS!$A:$G,7,0)) ->  | L164: =SUM(L165:L173) -> 1572805.26 | N164: =SUMIF(#REF!,Orçamento!A164,#REF!) -> 
A165: 2.3.1.1 | B165: =IF(C165=0,"",VLOOKUP(C165,BNCDADOS!$A:$H,8,0)) -> SINAPI/RN SERVIÇO | C165: 98525 | D165: =IF(C165=0,"",VLOOKUP(C165,BNCDADOS!$A:$G,2,0)) -> LIMPEZA MECANIZADA DE CAMADA VEGETAL, VEGETAÇÃO E PEQUENAS ÁRVORES (DIÂMETRO DE TRONCO MENOR QUE 0,20 M), COM TRATOR DE ESTEIRAS. AF_03/2024 | E165: =IF(C165=0,"",VLOOKUP(C165,BNCDADOS!$A:$G,3,0)) -> M2 | F165: 15498 | G165: =IF(C165=0,"",VLOOKUP(C165,BNCDADOS!$A:$G,4,0)) -> 0,61 | H165: =IF(C165=0,"",VLOOKUP(C165,BNCDADOS!$A:$G,5,0)) -> 0.75 | I165: =IF(H165="",0,TRUNC(H165*F165,2)) -> 11623.5 | J165: =IF(C165=0,"",VLOOKUP(C165,BNCDADOS!$A:$G,6,0)) -> 0,58 | K165: =IF(C165=0,"",VLOOKUP(C165,BNCDADOS!$A:$G,7,0)) -> 0.75 | L165: =IF(K165="",0,TRUNC(K165*F165,2)) -> 11623.5 | M165: =SUMIF('MC - TRECHO 01'!A:A,Orçamento!A165,'MC - TRECHO 01'!R:R) -> 15498 | N165: =SUMIF(#REF!,Orçamento!A165,#REF!) -> 
A166: 2.3.1.2 | B166: =IF(C166=0,"",VLOOKUP(C166,BNCDADOS!$A:$H,8,0)) -> SINAPI/RN SERVIÇO | C166: 98527 | D166: =IF(C166=0,"",VLOOKUP(C166,BNCDADOS!$A:$G,2,0)) -> REMOÇÃO DE RAÍZES REMANESCENTES DE TRONCO DE ÁRVORE COM DIÂMETRO MAIOR OU IGUAL A 0,40 M E MENOR QUE 0,60 M. AF_03/2024 | E166: =IF(C166=0,"",VLOOKUP(C166,BNCDADOS!$A:$G,3,0)) -> UN | F166: 775 | G166: =IF(C166=0,"",VLOOKUP(C166,BNCDADOS!$A:$G,4,0)) -> 209,89 | H166: =IF(C166=0,"",VLOOKUP(C166,BNCDADOS!$A:$G,5,0)) -> 259.61 | I166: 201197.75 | J166: =IF(C166=0,"",VLOOKUP(C166,BNCDADOS!$A:$G,6,0)) -> 195,46 | K166: =IF(C166=0,"",VLOOKUP(C166,BNCDADOS!$A:$G,7,0)) -> 254.01 | L166: 196857.75 | M166: =SUMIF('MC - TRECHO 01'!A:A,Orçamento!A166,'MC - TRECHO 01'!R:R) -> 775 | N166: =SUMIF(#REF!,Orçamento!A166,#REF!) -> 
A167: 2.3.1.3 | B167: =IF(C167=0,"",VLOOKUP(C167,BNCDADOS!$A:$H,8,0)) -> SINAPI/RN SERVIÇO | C167: 100982 | D167: =IF(C167=0,"",VLOOKUP(C167,BNCDADOS!$A:$G,2,0)) -> CARGA, MANOBRA E DESCARGA DE ENTULHO EM CAMINHÃO BASCULANTE 10 M³ - CARGA COM ESCAVADEIRA HIDRÁULICA (CAÇAMBA DE 0,80 M³ / 111 HP) E DESCARGA LIVRE (UNIDADE: M3). AF_07/2020 | E167: =IF(C167=0,"",VLOOKUP(C167,BNCDADOS!$A:$G,3,0)) -> M3 | F167: 7749 | G167: =IF(C167=0,"",VLOOKUP(C167,BNCDADOS!$A:$G,4,0)) -> 9,22 | H167: =IF(C167=0,"",VLOOKUP(C167,BNCDADOS!$A:$G,5,0)) -> 11.4 | I167: 88338.6 | J167: =IF(C167=0,"",VLOOKUP(C167,BNCDADOS!$A:$G,6,0)) -> 9,04 | K167: =IF(C167=0,"",VLOOKUP(C167,BNCDADOS!$A:$G,7,0)) -> 11.74 | L167: 90973.26 | M167: =SUMIF('MC - TRECHO 01'!A:A,Orçamento!A167,'MC - TRECHO 01'!R:R) -> 7749 | N167: =SUMIF(#REF!,Orçamento!A167,#REF!) -> 
A168: 2.3.1.4 | B168: =IF(C168=0,"",VLOOKUP(C168,BNCDADOS!$A:$H,8,0)) -> SINAPI/RN SERVIÇO | C168: 93591 | D168: =IF(C168=0,"",VLOOKUP(C168,BNCDADOS!$A:$G,2,0)) -> TRANSPORTE COM CAMINHÃO BASCULANTE DE 14 M³, EM VIA URBANA EM LEITO NATURAL (UNIDADE: M3XKM). AF_07/2020 | E168: =IF(C168=0,"",VLOOKUP(C168,BNCDADOS!$A:$G,3,0)) -> M3XKM | F168: 146456.1 | G168: =IF(C168=0,"",VLOOKUP(C168,BNCDADOS!$A:$G,4,0)) -> 2,83 | H168: =IF(C168=0,"",VLOOKUP(C168,BNCDADOS!$A:$G,5,0)) -> 3.5 | I168: 512596.35 | J168: =IF(C168=0,"",VLOOKUP(C168,BNCDADOS!$A:$G,6,0)) -> 2,80 | K168: =IF(C168=0,"",VLOOKUP(C168,BNCDADOS!$A:$G,7,0)) -> 3.63 | L168: 531635.64 | M168: =SUMIF('MC - TRECHO 01'!A:A,Orçamento!A168,'MC - TRECHO 01'!R:R) -> 146456.1 | N168: =SUMIF(#REF!,Orçamento!A168,#REF!) -> 
A169: 2.3.1.5 | B169: =IF(C169=0,"",VLOOKUP(C169,BNCDADOS!$A:$H,8,0)) -> SINAPI/RN SERVIÇO | C169: 93592 | D169: =IF(C169=0,"",VLOOKUP(C169,BNCDADOS!$A:$G,2,0)) -> TRANSPORTE COM CAMINHÃO BASCULANTE DE 14 M³, EM VIA URBANA EM REVESTIMENTO PRIMÁRIO (UNIDADE: M3XKM). AF_07/2020 | E169: =IF(C169=0,"",VLOOKUP(C169,BNCDADOS!$A:$G,3,0)) -> M3XKM | F169: 146456.1 | G169: =IF(C169=0,"",VLOOKUP(C169,BNCDADOS!$A:$G,4,0)) -> 2,45 | H169: =IF(C169=0,"",VLOOKUP(C169,BNCDADOS!$A:$G,5,0)) -> 3.03 | I169: 443761.98 | J169: =IF(C169=0,"",VLOOKUP(C169,BNCDADOS!$A:$G,6,0)) -> 2,42 | K169: =IF(C169=0,"",VLOOKUP(C169,BNCDADOS!$A:$G,7,0)) -> 3.14 | L169: 459872.15 | M169: =SUMIF('MC - TRECHO 01'!A:A,Orçamento!A169,'MC - TRECHO 01'!R:R) -> 146456.1 | N169: =SUMIF(#REF!,Orçamento!A169,#REF!) -> 
A170: 2.3.1.6 | B170: =IF(C170=0,"",VLOOKUP(C170,BNCDADOS!$A:$H,8,0)) -> SINAPI/RN SERVIÇO | C170: 98459 | D170: =IF(C170=0,"",VLOOKUP(C170,BNCDADOS!$A:$G,2,0)) -> TAPUME COM TELHA METÁLICA. AF_03/2024 | E170: =IF(C170=0,"",VLOOKUP(C170,BNCDADOS!$A:$G,3,0)) -> M2 | F170: 996 | G170: =IF(C170=0,"",VLOOKUP(C170,BNCDADOS!$A:$G,4,0)) -> 101,37 | H170: =IF(C170=0,"",VLOOKUP(C170,BNCDADOS!$A:$G,5,0)) -> 125.38 | I170: 124878.48 | J170: =IF(C170=0,"",VLOOKUP(C170,BNCDADOS!$A:$G,6,0)) -> 98,15 | K170: =IF(C170=0,"",VLOOKUP(C170,BNCDADOS!$A:$G,7,0)) -> 127.55 | L170: 127039.8 | M170: =SUMIF('MC - TRECHO 01'!A:A,Orçamento!A170,'MC - TRECHO 01'!R:R) -> 996 | N170: =SUMIF(#REF!,Orçamento!A170,#REF!) -> 
A171: 2.3.1.7 | B171: =IF(C171=0,"",VLOOKUP(C171,BNCDADOS!$A:$H,8,0)) -> SINAPI/RN SERVIÇO | C171: 99059 | D171: =IF(C171=0,"",VLOOKUP(C171,BNCDADOS!$A:$G,2,0)) -> LOCAÇÃO CONVENCIONAL DE OBRA, UTILIZANDO GABARITO DE TÁBUAS CORRIDAS PONTALETADAS A CADA 2,00M - 2 UTILIZAÇÕES. AF_03/2024 | E171: =IF(C171=0,"",VLOOKUP(C171,BNCDADOS!$A:$G,3,0)) -> M | F171: 313.2 | G171: =IF(C171=0,"",VLOOKUP(C171,BNCDADOS!$A:$G,4,0)) -> 68,49 | H171: =IF(C171=0,"",VLOOKUP(C171,BNCDADOS!$A:$G,5,0)) -> 84.71 | I171: 26531.17 | J171: =IF(C171=0,"",VLOOKUP(C171,BNCDADOS!$A:$G,6,0)) -> 64,82 | K171: =IF(C171=0,"",VLOOKUP(C171,BNCDADOS!$A:$G,7,0)) -> 84.24 | L171: 26383.96 | M171: =SUMIF('MC - TRECHO 01'!A:A,Orçamento!A171,'MC - TRECHO 01'!R:R) -> 313.2 | N171: =SUMIF(#REF!,Orçamento!A171,#REF!) -> 
A172: 2.3.1.8 | B172: =IF(C172=0,"",VLOOKUP(C172,BNCDADOS!$A:$H,8,0)) -> 0 | C172: COMP 13 | D172: =IF(C172=0,"",VLOOKUP(C172,BNCDADOS!$A:$G,2,0)) -> LOCAÇÃO DE CONTÊINER ALMOXARIFADO COM PISO NAVAL - 6,00M X 2,35M - PARA USO EM CANTEIRO DE OBRAS | E172: =IF(C172=0,"",VLOOKUP(C172,BNCDADOS!$A:$G,3,0)) -> UM X MÊS | F172: 48 | G172: =IF(C172=0,"",VLOOKUP(C172,BNCDADOS!$A:$G,4,0)) -> 800.6 | H172: =IF(C172=0,"",VLOOKUP(C172,BNCDADOS!$A:$G,5,0)) -> 990.26 | I172: 47532.48 | J172: =IF(C172=0,"",VLOOKUP(C172,BNCDADOS!$A:$G,6,0)) -> 800.6 | K172: =IF(C172=0,"",VLOOKUP(C172,BNCDADOS!$A:$G,7,0)) -> 1040.45 | L172: 49941.6 | M172: =SUMIF('MC - TRECHO 01'!A:A,Orçamento!A172,'MC - TRECHO 01'!R:R) -> 48 | N172: =SUMIF(#REF!,Orçamento!A172,#REF!) -> 
A173: 2.3.1.9 | B173: =IF(C173=0,"",VLOOKUP(C173,BNCDADOS!$A:$H,8,0)) -> 0 | C173: COMP 01 | D173: =IF(C173=0,"",VLOOKUP(C173,BNCDADOS!$A:$G,2,0)) -> CANTEIRO ITINERANTE COMPOSTO DE TOLDO, CONJUNTO DE MESA E CADEIRAS E BANHEIRO QUÍMICO COM LIMPEZA DIÁRIA INCLUSO COLETA E DESTINAÇÃO FINAL DE EFLUENTES | E173: =IF(C173=0,"",VLOOKUP(C173,BNCDADOS!$A:$G,3,0)) -> UN | F173: 60 | G173: =IF(C173=0,"",VLOOKUP(C173,BNCDADOS!$A:$G,4,0)) -> 1007.44 | H173: =IF(C173=0,"",VLOOKUP(C173,BNCDADOS!$A:$G,5,0)) -> 1246.1 | I173: 74766 | J173: =IF(C173=0,"",VLOOKUP(C173,BNCDADOS!$A:$G,6,0)) -> 1006.44 | K173: =IF(C173=0,"",VLOOKUP(C173,BNCDADOS!$A:$G,7,0)) -> 1307.96 | L173: 78477.6 | M173: =SUMIF('MC - TRECHO 01'!A:A,Orçamento!A173,'MC - TRECHO 01'!R:R) -> 60 | N173: =SUMIF(#REF!,Orçamento!A173,#REF!) -> 
A174: 2.3.2 | B174: =IF(C174=0,"",VLOOKUP(C174,[142]BNCDADOS!$A:$G,8,0)) ->  | D174: MOVIMENTO DE TERRA | E174: =IF(C174=0,"",VLOOKUP(C174,[142]BNCDADOS!$A:$G,3,0)) ->  | F174: 0 | G174: =IF(C174=0,"",VLOOKUP(C174,[142]BNCDADOS!$A:$G,4,0)) ->  | H174: =IF(C174=0,"",VLOOKUP(C174,[142]BNCDADOS!$A:$G,5,0)) ->  | I174: =SUM(I176:I186) -> 3474835.51 | J174: =IF(C174=0,"",VLOOKUP(C174,[142]BNCDADOS!$A:$G,6,0)) ->  | K174: =IF(C174=0,"",VLOOKUP(C174,[142]BNCDADOS!$A:$G,7,0)) ->  | L174: =SUM(L176:L186) -> 3590035.64 | M174: 0 | N174: =SUMIF(#REF!,Orçamento!A174,#REF!) -> 
B175: =IF(C175=0,"",VLOOKUP(C175,[142]BNCDADOS!$A:$G,8,0)) ->  | D175: ='[142]MC - TRECHO 01'!D900 -> ATERRO DA ÁREA | E175: =IF(C175=0,"",VLOOKUP(C175,[142]BNCDADOS!$A:$G,3,0)) ->  | F175: 0 | G175: =IF(C175=0,"",VLOOKUP(C175,[142]BNCDADOS!$A:$G,4,0)) -> 
A176: 2.3.2.1 | B176: =IF(C176=0,"",VLOOKUP(C176,BNCDADOS!$A:$H,8,0)) -> SINAPI/RN SERVIÇO | C176: 96385 | D176: =IF(C176=0,"",VLOOKUP(C176,BNCDADOS!$A:$G,2,0)) -> EXECUÇÃO E COMPACTAÇÃO DE ATERRO COM SOLO PREDOMINANTEMENTE ARGILOSO - EXCLUSIVE SOLO, ESCAVAÇÃO, CARGA E TRANSPORTE. AF_11/2019 | E176: =IF(C176=0,"",VLOOKUP(C176,BNCDADOS!$A:$G,3,0)) -> M3 | F176: 29145.36 | G176: =IF(C176=0,"",VLOOKUP(C176,BNCDADOS!$A:$G,4,0)) -> 11,83 | H176: =IF(C176=0,"",VLOOKUP(C176,BNCDADOS!$A:$G,5,0)) -> 14.63 | I176: =IF(H176="",0,TRUNC(H176*F176,2)) -> 426396.61 | J176: =IF(C176=0,"",VLOOKUP(C176,BNCDADOS!$A:$G,6,0)) -> 11,38 | K176: =IF(C176=0,"",VLOOKUP(C176,BNCDADOS!$A:$G,7,0)) -> 14.78 | L176: =IF(K176="",0,TRUNC(K176*F176,2)) -> 430768.42 | M176: =SUMIF('MC - TRECHO 01'!A:A,Orçamento!A176,'MC - TRECHO 01'!R:R) -> 29145.36 | N176: =SUMIF(#REF!,Orçamento!A176,#REF!) -> 
A177: 2.3.2.2 | B177: =IF(C177=0,"",VLOOKUP(C177,BNCDADOS!$A:$H,8,0)) -> SINAPI/RN SERVIÇO | C177: 101232 | D177: =IF(C177=0,"",VLOOKUP(C177,BNCDADOS!$A:$G,2,0)) -> ESCAVAÇÃO VERTICAL PARA INFRAESTRUTURA, COM CARGA, DESCARGA E TRANSPORTE DE SOLO DE 1ª CATEGORIA, COM ESCAVADEIRA HIDRÁULICA (CAÇAMBA: 1,2 M³ / 155 HP), FROTA DE 3 CAMINHÕES BASCULANTES DE 14 M³, DMT ATÉ 1 KM E VELOCIDADE MÉDIA14 KM/H. AF_05/2020 | E177: =IF(C177=0,"",VLOOKUP(C177,BNCDADOS!$A:$G,3,0)) -> M3 | F177: 29145.36 | G177: =IF(C177=0,"",VLOOKUP(C177,BNCDADOS!$A:$G,4,0)) -> 9,80 | H177: =IF(C177=0,"",VLOOKUP(C177,BNCDADOS!$A:$G,5,0)) -> 12.12 | I177: 353241.76 | J177: =IF(C177=0,"",VLOOKUP(C177,BNCDADOS!$A:$G,6,0)) -> 9,66 | K177: =IF(C177=0,"",VLOOKUP(C177,BNCDADOS!$A:$G,7,0)) -> 12.55 | L177: 365774.26 | M177: =SUMIF('MC - TRECHO 01'!A:A,Orçamento!A177,'MC - TRECHO 01'!R:R) -> 29145.36 | N177: =SUMIF(#REF!,Orçamento!A177,#REF!) -> 
A178: 2.3.2.3 | B178: =IF(C178=0,"",VLOOKUP(C178,BNCDADOS!$A:$H,8,0)) -> SINAPI/RN SERVIÇO | C178: 93591 | D178: =IF(C178=0,"",VLOOKUP(C178,BNCDADOS!$A:$G,2,0)) -> TRANSPORTE COM CAMINHÃO BASCULANTE DE 14 M³, EM VIA URBANA EM LEITO NATURAL (UNIDADE: M3XKM). AF_07/2020 | E178: =IF(C178=0,"",VLOOKUP(C178,BNCDADOS!$A:$G,3,0)) -> M3XKM | F178: 408035.04 | G178: =IF(C178=0,"",VLOOKUP(C178,BNCDADOS!$A:$G,4,0)) -> 2,83 | H178: =IF(C178=0,"",VLOOKUP(C178,BNCDADOS!$A:$G,5,0)) -> 3.5 | I178: 1428122.64 | J178: =IF(C178=0,"",VLOOKUP(C178,BNCDADOS!$A:$G,6,0)) -> 2,80 | K178: =IF(C178=0,"",VLOOKUP(C178,BNCDADOS!$A:$G,7,0)) -> 3.63 | L178: 1481167.19 | M178: =SUMIF('MC - TRECHO 01'!A:A,Orçamento!A178,'MC - TRECHO 01'!R:R) -> 408035.04 | N178: =SUMIF(#REF!,Orçamento!A178,#REF!) -> 
A179: 2.3.2.4 | B179: =IF(C179=0,"",VLOOKUP(C179,BNCDADOS!$A:$H,8,0)) -> SINAPI/RN SERVIÇO | C179: 93592 | D179: =IF(C179=0,"",VLOOKUP(C179,BNCDADOS!$A:$G,2,0)) -> TRANSPORTE COM CAMINHÃO BASCULANTE DE 14 M³, EM VIA URBANA EM REVESTIMENTO PRIMÁRIO (UNIDADE: M3XKM). AF_07/2020 | E179: =IF(C179=0,"",VLOOKUP(C179,BNCDADOS!$A:$G,3,0)) -> M3XKM | F179: 408035.04 | G179: =IF(C179=0,"",VLOOKUP(C179,BNCDADOS!$A:$G,4,0)) -> 2,45 | H179: =IF(C179=0,"",VLOOKUP(C179,BNCDADOS!$A:$G,5,0)) -> 3.03 | I179: 1236346.17 | J179: =IF(C179=0,"",VLOOKUP(C179,BNCDADOS!$A:$G,6,0)) -> 2,42 | K179: =IF(C179=0,"",VLOOKUP(C179,BNCDADOS!$A:$G,7,0)) -> 3.14 | L179: 1281230.02 | M179: =SUMIF('MC - TRECHO 01'!A:A,Orçamento!A179,'MC - TRECHO 01'!R:R) -> 408035.04 | N179: =SUMIF(#REF!,Orçamento!A179,#REF!) -> 
A180: 2.3.2.5 | B180: =IF(C180=0,"",VLOOKUP(C180,BNCDADOS!$A:$H,8,0)) -> SINAPI/RN SERVIÇO | C180: 98520 | D180: =IF(C180=0,"",VLOOKUP(C180,BNCDADOS!$A:$G,2,0)) -> APLICAÇÃO DE ADUBO EM SOLO. AF_07/2024 | E180: =IF(C180=0,"",VLOOKUP(C180,BNCDADOS!$A:$G,3,0)) -> M2 | F180: 240 | G180: =IF(C180=0,"",VLOOKUP(C180,BNCDADOS!$A:$G,4,0)) -> 6,22 | H180: =IF(C180=0,"",VLOOKUP(C180,BNCDADOS!$A:$G,5,0)) -> 7.69 | I180: 1845.6 | J180: =IF(C180=0,"",VLOOKUP(C180,BNCDADOS!$A:$G,6,0)) -> 6,09 | K180: =IF(C180=0,"",VLOOKUP(C180,BNCDADOS!$A:$G,7,0)) -> 7.91 | L180: 1898.4 | M180: =SUMIF('MC - TRECHO 01'!A:A,Orçamento!A180,'MC - TRECHO 01'!R:R) -> 240 | N180: =SUMIF(#REF!,Orçamento!A180,#REF!) -> 
A181: 2.3.2.6 | B181: =IF(C181=0,"",VLOOKUP(C181,BNCDADOS!$A:$H,8,0)) -> SINAPI/RN SERVIÇO | C181: 98504 | D181: =IF(C181=0,"",VLOOKUP(C181,BNCDADOS!$A:$G,2,0)) -> PLANTIO DE GRAMA BATATAIS EM PLACAS. AF_07/2024 | E181: =IF(C181=0,"",VLOOKUP(C181,BNCDADOS!$A:$G,3,0)) -> M2 | F181: 240 | G181: =IF(C181=0,"",VLOOKUP(C181,BNCDADOS!$A:$G,4,0)) -> 13,41 | H181: =IF(C181=0,"",VLOOKUP(C181,BNCDADOS!$A:$G,5,0)) -> 16.58 | I181: 3979.2 | J181: =IF(C181=0,"",VLOOKUP(C181,BNCDADOS!$A:$G,6,0)) -> 13,08 | K181: =IF(C181=0,"",VLOOKUP(C181,BNCDADOS!$A:$G,7,0)) -> 16.99 | L181: 4077.6 | M181: =SUMIF('MC - TRECHO 01'!A:A,Orçamento!A181,'MC - TRECHO 01'!R:R) -> 240 | N181: =SUMIF(#REF!,Orçamento!A181,#REF!) -> 
B182: =IF(C182=0,"",VLOOKUP(C182,[142]BNCDADOS!$A:$G,8,0)) ->  | D182: ='[142]MC - TRECHO 01'!D941 -> SERVIÇOS DE TERRA PARA A EXECUÇÃO DAS ESTRUTURAS | E182: =IF(C182=0,"",VLOOKUP(C182,[142]BNCDADOS!$A:$G,3,0)) ->  | F182: 0 | G182: =IF(C182=0,"",VLOOKUP(C182,[142]BNCDADOS!$A:$G,4,0)) -> 
A183: 2.3.2.7 | B183: =IF(C183=0,"",VLOOKUP(C183,BNCDADOS!$A:$H,8,0)) -> SINAPI/RN SERVIÇO | C183: 96525 | D183: =IF(C183=0,"",VLOOKUP(C183,BNCDADOS!$A:$G,2,0)) -> ESCAVAÇÃO MECANIZADA PARA VIGA BALDRAME OU SAPATA CORRIDA COM MINI-ESCAVADEIRA (INCLUINDO ESCAVAÇÃO PARA COLOCAÇÃO DE FÔRMAS). AF_01/2024 | E183: =IF(C183=0,"",VLOOKUP(C183,BNCDADOS!$A:$G,3,0)) -> M3 | F183: 72 | G183: =IF(C183=0,"",VLOOKUP(C183,BNCDADOS!$A:$G,4,0)) -> 55,00 | H183: =IF(C183=0,"",VLOOKUP(C183,BNCDADOS!$A:$G,5,0)) -> 68.02 | I183: =IF(H183="",0,TRUNC(H183*F183,2)) -> 4897.44 | J183: =IF(C183=0,"",VLOOKUP(C183,BNCDADOS!$A:$G,6,0)) -> 52,42 | K183: =IF(C183=0,"",VLOOKUP(C183,BNCDADOS!$A:$G,7,0)) -> 68.12 | L183: =IF(K183="",0,TRUNC(K183*F183,2)) -> 4904.64 | M183: =SUMIF('MC - TRECHO 01'!A:A,Orçamento!A183,'MC - TRECHO 01'!R:R) -> 72 | N183: =SUMIF(#REF!,Orçamento!A183,#REF!) -> 
A184: 2.3.2.8 | B184: =IF(C184=0,"",VLOOKUP(C184,BNCDADOS!$A:$H,8,0)) -> SINAPI/RN SERVIÇO | C184: 93382 | D184: =IF(C184=0,"",VLOOKUP(C184,BNCDADOS!$A:$G,2,0)) -> REATERRO MANUAL DE VALAS, COM COMPACTADOR DE SOLOS DE PERCUSSÃO. AF_08/2023 | E184: =IF(C184=0,"",VLOOKUP(C184,BNCDADOS!$A:$G,3,0)) -> M3 | F184: 63.56 | G184: =IF(C184=0,"",VLOOKUP(C184,BNCDADOS!$A:$G,4,0)) -> 25,08 | H184: =IF(C184=0,"",VLOOKUP(C184,BNCDADOS!$A:$G,5,0)) -> 31.02 | I184: 1971.63 | J184: =IF(C184=0,"",VLOOKUP(C184,BNCDADOS!$A:$G,6,0)) -> 22,89 | K184: =IF(C184=0,"",VLOOKUP(C184,BNCDADOS!$A:$G,7,0)) -> 29.74 | L184: 1890.27 | M184: =SUMIF('MC - TRECHO 01'!A:A,Orçamento!A184,'MC - TRECHO 01'!R:R) -> 63.56136 | N184: =SUMIF(#REF!,Orçamento!A184,#REF!) -> 
A185: 2.3.2.9 | B185: =IF(C185=0,"",VLOOKUP(C185,BNCDADOS!$A:$H,8,0)) -> SINAPI/RN SERVIÇO | C185: 101206 | D185: =IF(C185=0,"",VLOOKUP(C185,BNCDADOS!$A:$G,2,0)) -> ESCAVAÇÃO VERTICAL PARA EDIFICAÇÃO, COM CARGA, DESCARGA E TRANSPORTE DE SOLO DE 1ª CATEGORIA, COM ESCAVADEIRA HIDRÁULICA (CAÇAMBA: 0,8 M³ / 111 HP), FROTA DE 3 CAMINHÕES BASCULANTES DE 14 M³, DMT ATÉ 1 KM E VELOCIDADE MÉDIA 14 KM/H. AF_05/2020 | E185: =IF(C185=0,"",VLOOKUP(C185,BNCDADOS!$A:$G,3,0)) -> M3 | F185: 681.01 | G185: =IF(C185=0,"",VLOOKUP(C185,BNCDADOS!$A:$G,4,0)) -> 13,00 | H185: =IF(C185=0,"",VLOOKUP(C185,BNCDADOS!$A:$G,5,0)) -> 16.07 | I185: 10943.83 | J185: =IF(C185=0,"",VLOOKUP(C185,BNCDADOS!$A:$G,6,0)) -> 12,77 | K185: =IF(C185=0,"",VLOOKUP(C185,BNCDADOS!$A:$G,7,0)) -> 16.59 | L185: 11297.95 | M185: =SUMIF('MC - TRECHO 01'!A:A,Orçamento!A185,'MC - TRECHO 01'!R:R) -> 681.01 | N185: =SUMIF(#REF!,Orçamento!A185,#REF!) -> 
A186: 2.3.2.10 | B186: =IF(C186=0,"",VLOOKUP(C186,BNCDADOS!$A:$H,8,0)) -> SINAPI/RN SERVIÇO | C186: 93379 | D186: =IF(C186=0,"",VLOOKUP(C186,BNCDADOS!$A:$G,2,0)) -> REATERRO MECANIZADO DE VALA COM RETROESCAVADEIRA (CAPACIDADE DA CAÇAMBA DA RETRO: 0,26 M³/POTÊNCIA: 88 HP), LARGURA 0,8 A 1,5 M, PROFUNDIDADE ATÉ 1,5 M, COM SOLO (SEM SUBSTITUIÇÃO) DE 1ª CATEGORIA, COM COMPACTADOR DE SOLOS DE PERCUSSÃO AF_08/2023 | E186: =IF(C186=0,"",VLOOKUP(C186,BNCDADOS!$A:$G,3,0)) -> M3 | F186: 318.68 | G186: =IF(C186=0,"",VLOOKUP(C186,BNCDADOS!$A:$G,4,0)) -> 17,99 | H186: =IF(C186=0,"",VLOOKUP(C186,BNCDADOS!$A:$G,5,0)) -> 22.25 | I186: 7090.63 | J186: =IF(C186=0,"",VLOOKUP(C186,BNCDADOS!$A:$G,6,0)) -> 16,97 | K186: =IF(C186=0,"",VLOOKUP(C186,BNCDADOS!$A:$G,7,0)) -> 22.05 | L186: 7026.89 | M186: =SUMIF('MC - TRECHO 01'!A:A,Orçamento!A186,'MC - TRECHO 01'!R:R) -> 318.685 | N186: =SUMIF(#REF!,Orçamento!A186,#REF!) -> 
A187: 2.3.3 | B187: =IF(C187=0,"",VLOOKUP(C187,[142]BNCDADOS!$A:$G,8,0)) ->  | D187: FUNDAÇÕES | E187: =IF(C187=0,"",VLOOKUP(C187,[142]BNCDADOS!$A:$G,3,0)) ->  | F187: 0 | G187: =IF(C187=0,"",VLOOKUP(C187,[142]BNCDADOS!$A:$G,4,0)) ->  | H187: =IF(C187=0,"",VLOOKUP(C187,[142]BNCDADOS!$A:$G,5,0)) ->  | I187: =SUM(I188:I199) -> 272423.45 | J187: =IF(C187=0,"",VLOOKUP(C187,[142]BNCDADOS!$A:$G,6,0)) ->  | K187: =IF(C187=0,"",VLOOKUP(C187,[142]BNCDADOS!$A:$G,7,0)) ->  | L187: =SUM(L188:L199) -> 272881.45 | M187: 0 | N187: =SUMIF(#REF!,Orçamento!A187,#REF!) -> 
A188: 2.3.3.1 | B188: =IF(C188=0,"",VLOOKUP(C188,BNCDADOS!$A:$H,8,0)) -> SINAPI/RN SERVIÇO | C188: 96542 | D188: =IF(C188=0,"",VLOOKUP(C188,BNCDADOS!$A:$G,2,0)) -> FABRICAÇÃO, MONTAGEM E DESMONTAGEM DE FÔRMA PARA VIGA BALDRAME, EM CHAPA DE MADEIRA COMPENSADA RESINADA, E=17 MM, 4 UTILIZAÇÕES. AF_01/2024 | E188: =IF(C188=0,"",VLOOKUP(C188,BNCDADOS!$A:$G,3,0)) -> M2 | F188: 969.87 | G188: =IF(C188=0,"",VLOOKUP(C188,BNCDADOS!$A:$G,4,0)) -> 103,01 | H188: =IF(C188=0,"",VLOOKUP(C188,BNCDADOS!$A:$G,5,0)) -> 127.41 | I188: =IF(H188="",0,TRUNC(H188*F188,2)) -> 123571.13 | J188: =IF(C188=0,"",VLOOKUP(C188,BNCDADOS!$A:$G,6,0)) -> 96,60 | K188: =IF(C188=0,"",VLOOKUP(C188,BNCDADOS!$A:$G,7,0)) -> 125.54 | L188: =IF(K188="",0,TRUNC(K188*F188,2)) -> 121757.47 | M188: =SUMIF('MC - TRECHO 01'!A:A,Orçamento!A188,'MC - TRECHO 01'!R:R) -> 969.87 | N188: =SUMIF(#REF!,Orçamento!A188,#REF!) -> 
A189: 2.3.3.2 | B189: =IF(C189=0,"",VLOOKUP(C189,BNCDADOS!$A:$H,8,0)) -> SINAPI/RN SERVIÇO | C189: 95241 | D189: =IF(C189=0,"",VLOOKUP(C189,BNCDADOS!$A:$G,2,0)) -> LASTRO DE CONCRETO MAGRO, APLICADO EM PISOS, LAJES SOBRE SOLO OU RADIERS, ESPESSURA DE 5 CM. AF_01/2024 | E189: =IF(C189=0,"",VLOOKUP(C189,BNCDADOS!$A:$G,3,0)) -> M2 | F189: 1449.3 | G189: =IF(C189=0,"",VLOOKUP(C189,BNCDADOS!$A:$G,4,0)) -> 36,15 | H189: =IF(C189=0,"",VLOOKUP(C189,BNCDADOS!$A:$G,5,0)) -> 44.71 | I189: 64798.2 | J189: =IF(C189=0,"",VLOOKUP(C189,BNCDADOS!$A:$G,6,0)) -> 34,74 | K189: =IF(C189=0,"",VLOOKUP(C189,BNCDADOS!$A:$G,7,0)) -> 45.14 | L189: 65421.4 | M189: =SUMIF('MC - TRECHO 01'!A:A,Orçamento!A189,'MC - TRECHO 01'!R:R) -> 1449.3 | N189: =SUMIF(#REF!,Orçamento!A189,#REF!) -> 
A190: 2.3.3.3 | B190: =IF(C190=0,"",VLOOKUP(C190,BNCDADOS!$A:$H,8,0)) -> SINAPI/RN SERVIÇO | C190: 96543 | D190: =IF(C190=0,"",VLOOKUP(C190,BNCDADOS!$A:$G,2,0)) -> ARMAÇÃO DE BLOCO UTILIZANDO AÇO CA-60 DE 5 MM - MONTAGEM. AF_01/2024 | E190: =IF(C190=0,"",VLOOKUP(C190,BNCDADOS!$A:$G,3,0)) -> KG | F190: 168 | G190: =IF(C190=0,"",VLOOKUP(C190,BNCDADOS!$A:$G,4,0)) -> 20,25 | H190: =IF(C190=0,"",VLOOKUP(C190,BNCDADOS!$A:$G,5,0)) -> 25.04 | I190: 4206.72 | J190: =IF(C190=0,"",VLOOKUP(C190,BNCDADOS!$A:$G,6,0)) -> 19,11 | K190: =IF(C190=0,"",VLOOKUP(C190,BNCDADOS!$A:$G,7,0)) -> 24.83 | L190: 4171.44 | M190: =SUMIF('MC - TRECHO 01'!A:A,Orçamento!A190,'MC - TRECHO 01'!R:R) -> 168 | N190: =SUMIF(#REF!,Orçamento!A190,#REF!) -> 
A191: 2.3.3.4 | B191: =IF(C191=0,"",VLOOKUP(C191,BNCDADOS!$A:$H,8,0)) -> SINAPI/RN SERVIÇO | C191: 96544 | D191: =IF(C191=0,"",VLOOKUP(C191,BNCDADOS!$A:$G,2,0)) -> ARMAÇÃO DE BLOCO UTILIZANDO AÇO CA-50 DE 6,3 MM - MONTAGEM. AF_01/2024 | E191: =IF(C191=0,"",VLOOKUP(C191,BNCDADOS!$A:$G,3,0)) -> KG | F191: 876 | G191: =IF(C191=0,"",VLOOKUP(C191,BNCDADOS!$A:$G,4,0)) -> 18,33 | H191: =IF(C191=0,"",VLOOKUP(C191,BNCDADOS!$A:$G,5,0)) -> 22.67 | I191: 19858.92 | J191: =IF(C191=0,"",VLOOKUP(C191,BNCDADOS!$A:$G,6,0)) -> 17,48 | K191: =IF(C191=0,"",VLOOKUP(C191,BNCDADOS!$A:$G,7,0)) -> 22.71 | L191: 19893.96 | M191: =SUMIF('MC - TRECHO 01'!A:A,Orçamento!A191,'MC - TRECHO 01'!R:R) -> 876 | N191: =SUMIF(#REF!,Orçamento!A191,#REF!) -> 
A192: 2.3.3.5 | B192: =IF(C192=0,"",VLOOKUP(C192,BNCDADOS!$A:$H,8,0)) -> SINAPI/RN SERVIÇO | C192: 96545 | D192: =IF(C192=0,"",VLOOKUP(C192,BNCDADOS!$A:$G,2,0)) -> ARMAÇÃO DE BLOCO UTILIZANDO AÇO CA-50 DE 8 MM - MONTAGEM. AF_01/2024 | E192: =IF(C192=0,"",VLOOKUP(C192,BNCDADOS!$A:$G,3,0)) -> KG | F192: 410 | G192: =IF(C192=0,"",VLOOKUP(C192,BNCDADOS!$A:$G,4,0)) -> 16,57 | H192: =IF(C192=0,"",VLOOKUP(C192,BNCDADOS!$A:$G,5,0)) -> 20.49 | I192: 8400.9 | J192: =IF(C192=0,"",VLOOKUP(C192,BNCDADOS!$A:$G,6,0)) -> 15,95 | K192: =IF(C192=0,"",VLOOKUP(C192,BNCDADOS!$A:$G,7,0)) -> 20.72 | L192: 8495.2 | M192: =SUMIF('MC - TRECHO 01'!A:A,Orçamento!A192,'MC - TRECHO 01'!R:R) -> 410 | N192: =SUMIF(#REF!,Orçamento!A192,#REF!) -> 
A193: 2.3.3.6 | B193: =IF(C193=0,"",VLOOKUP(C193,BNCDADOS!$A:$H,8,0)) -> SINAPI/RN SERVIÇO | C193: 96546 | D193: =IF(C193=0,"",VLOOKUP(C193,BNCDADOS!$A:$G,2,0)) -> ARMAÇÃO DE BLOCO UTILIZANDO AÇO CA-50 DE 10 MM - MONTAGEM. AF_01/2024 | E193: =IF(C193=0,"",VLOOKUP(C193,BNCDADOS!$A:$G,3,0)) -> KG | F193: 1018 | G193: =IF(C193=0,"",VLOOKUP(C193,BNCDADOS!$A:$G,4,0)) -> 14,52 | H193: =IF(C193=0,"",VLOOKUP(C193,BNCDADOS!$A:$G,5,0)) -> 17.95 | I193: 18273.1 | J193: =IF(C193=0,"",VLOOKUP(C193,BNCDADOS!$A:$G,6,0)) -> 14,04 | K193: =IF(C193=0,"",VLOOKUP(C193,BNCDADOS!$A:$G,7,0)) -> 18.24 | L193: 18568.32 | M193: =SUMIF('MC - TRECHO 01'!A:A,Orçamento!A193,'MC - TRECHO 01'!R:R) -> 1018 | N193: =SUMIF(#REF!,Orçamento!A193,#REF!) -> 
A194: 2.3.3.7 | B194: =IF(C194=0,"",VLOOKUP(C194,BNCDADOS!$A:$H,8,0)) -> SINAPI/RN SERVIÇO | C194: 96547 | D194: =IF(C194=0,"",VLOOKUP(C194,BNCDADOS!$A:$G,2,0)) -> ARMAÇÃO DE BLOCO, VIGA BALDRAME OU SAPATA UTILIZANDO AÇO CA-50 DE 12,5 MM - MONTAGEM. | E194: =IF(C194=0,"",VLOOKUP(C194,BNCDADOS!$A:$G,3,0)) -> KG | F194: 368 | G194: =IF(C194=0,"",VLOOKUP(C194,BNCDADOS!$A:$G,4,0)) -> 11.86 | H194: =IF(C194=0,"",VLOOKUP(C194,BNCDADOS!$A:$G,5,0)) -> 14.66 | I194: 5394.88 | J194: =IF(C194=0,"",VLOOKUP(C194,BNCDADOS!$A:$G,6,0)) -> 11.61 | K194: =IF(C194=0,"",VLOOKUP(C194,BNCDADOS!$A:$G,7,0)) -> 15.08 | L194: 5549.44 | M194: =SUMIF('MC - TRECHO 01'!A:A,Orçamento!A194,'MC - TRECHO 01'!R:R) -> 368 | N194: =SUMIF(#REF!,Orçamento!A194,#REF!) -> 
A195: 2.3.3.8 | B195: =IF(C195=0,"",VLOOKUP(C195,BNCDADOS!$A:$H,8,0)) -> SINAPI/RN SERVIÇO | C195: 96548 | D195: =IF(C195=0,"",VLOOKUP(C195,BNCDADOS!$A:$G,2,0)) -> ARMAÇÃO DE BLOCO, VIGA BALDRAME OU SAPATA UTILIZANDO AÇO CA-50 DE 16 MM - MONTAGEM. | E195: =IF(C195=0,"",VLOOKUP(C195,BNCDADOS!$A:$G,3,0)) -> KG | F195: 284 | G195: =IF(C195=0,"",VLOOKUP(C195,BNCDADOS!$A:$G,4,0)) -> 11.15 | H195: =IF(C195=0,"",VLOOKUP(C195,BNCDADOS!$A:$G,5,0)) -> 13.79 | I195: 3916.36 | J195: =IF(C195=0,"",VLOOKUP(C195,BNCDADOS!$A:$G,6,0)) -> 10.97 | K195: =IF(C195=0,"",VLOOKUP(C195,BNCDADOS!$A:$G,7,0)) -> 14.25 | L195: 4047 | M195: =SUMIF('MC - TRECHO 01'!A:A,Orçamento!A195,'MC - TRECHO 01'!R:R) -> 284 | N195: =SUMIF(#REF!,Orçamento!A195,#REF!) -> 
A196: 2.3.3.9 | B196: =IF(C196=0,"",VLOOKUP(C196,BNCDADOS!$A:$H,8,0)) -> SINAPI/RN SERVIÇO | C196: 96549 | D196: =IF(C196=0,"",VLOOKUP(C196,BNCDADOS!$A:$G,2,0)) -> ARMAÇÃO DE BLOCO, VIGA BALDRAME OU SAPATA UTILIZANDO AÇO CA-50 DE 20 MM - MONTAGEM. | E196: =IF(C196=0,"",VLOOKUP(C196,BNCDADOS!$A:$G,3,0)) -> KG | F196: 300 | G196: =IF(C196=0,"",VLOOKUP(C196,BNCDADOS!$A:$G,4,0)) -> 12.28 | H196: =IF(C196=0,"",VLOOKUP(C196,BNCDADOS!$A:$G,5,0)) -> 15.18 | I196: 4554 | J196: =IF(C196=0,"",VLOOKUP(C196,BNCDADOS!$A:$G,6,0)) -> 12.15 | K196: =IF(C196=0,"",VLOOKUP(C196,BNCDADOS!$A:$G,7,0)) -> 15.79 | L196: 4737 | M196: =SUMIF('MC - TRECHO 01'!A:A,Orçamento!A196,'MC - TRECHO 01'!R:R) -> 300 | N196: =SUMIF(#REF!,Orçamento!A196,#REF!) -> 
A197: 2.3.3.10 | B197: =IF(C197=0,"",VLOOKUP(C197,BNCDADOS!$A:$H,8,0)) -> SINAPI/RN SERVIÇO | C197: 96550 | D197: =IF(C197=0,"",VLOOKUP(C197,BNCDADOS!$A:$G,2,0)) -> ARMAÇÃO DE BLOCO, VIGA BALDRAME OU SAPATA UTILIZANDO AÇO CA-50 DE 25 MM - MONTAGEM. | E197: =IF(C197=0,"",VLOOKUP(C197,BNCDADOS!$A:$G,3,0)) -> KG | F197: 73 | G197: =IF(C197=0,"",VLOOKUP(C197,BNCDADOS!$A:$G,4,0)) -> 11.91 | H197: =IF(C197=0,"",VLOOKUP(C197,BNCDADOS!$A:$G,5,0)) -> 14.73 | I197: 1075.29 | J197: =IF(C197=0,"",VLOOKUP(C197,BNCDADOS!$A:$G,6,0)) -> 11.82 | K197: =IF(C197=0,"",VLOOKUP(C197,BNCDADOS!$A:$G,7,0)) -> 15.36 | L197: 1121.28 | M197: =SUMIF('MC - TRECHO 01'!A:A,Orçamento!A197,'MC - TRECHO 01'!R:R) -> 73 | N197: =SUMIF(#REF!,Orçamento!A197,#REF!) -> 
A198: 2.3.3.11 | B198: =IF(C198=0,"",VLOOKUP(C198,BNCDADOS!$A:$H,8,0)) -> SINAPI/RN SERVIÇO | C198: 97096 | D198: =IF(C198=0,"",VLOOKUP(C198,BNCDADOS!$A:$G,2,0)) -> CONCRETAGEM DE RADIER, PISO DE CONCRETO OU LAJE SOBRE SOLO, FCK 30 MPA - LANÇAMENTO, ADENSAMENTO E ACABAMENTO. AF_09/2021 | E198: =IF(C198=0,"",VLOOKUP(C198,BNCDADOS!$A:$G,3,0)) -> M3 | F198: 11.98 | G198: =IF(C198=0,"",VLOOKUP(C198,BNCDADOS!$A:$G,4,0)) -> 658,04 | H198: =IF(C198=0,"",VLOOKUP(C198,BNCDADOS!$A:$G,5,0)) -> 813.92 | I198: 9750.76 | J198: =IF(C198=0,"",VLOOKUP(C198,BNCDADOS!$A:$G,6,0)) -> 656,11 | K198: =IF(C198=0,"",VLOOKUP(C198,BNCDADOS!$A:$G,7,0)) -> 852.68 | L198: 10215.1 | M198: =SUMIF('MC - TRECHO 01'!A:A,Orçamento!A198,'MC - TRECHO 01'!R:R) -> 11.98 | N198: =SUMIF(#REF!,Orçamento!A198,#REF!) -> 
A199: 2.3.3.12 | B199: =IF(C199=0,"",VLOOKUP(C199,BNCDADOS!$A:$H,8,0)) -> 0 | C199: COMP 20 | D199: =IF(C199=0,"",VLOOKUP(C199,BNCDADOS!$A:$G,2,0)) -> CONCRETAGEM DE ESTRUTURAS, FCK = 40 MPA, COM USO DE BOMBA EM EDIFICAÇÕES DIVERSAS - LANÇAMENTO, ADENSAMENTO E ACABAMENTO | E199: =IF(C199=0,"",VLOOKUP(C199,BNCDADOS!$A:$G,3,0)) -> M3 | F199: 8.18 | G199: =IF(C199=0,"",VLOOKUP(C199,BNCDADOS!$A:$G,4,0)) -> 852.28 | H199: =IF(C199=0,"",VLOOKUP(C199,BNCDADOS!$A:$G,5,0)) -> 1054.18 | I199: 8623.19 | J199: =IF(C199=0,"",VLOOKUP(C199,BNCDADOS!$A:$G,6,0)) -> 837.56 | K199: =IF(C199=0,"",VLOOKUP(C199,BNCDADOS!$A:$G,7,0)) -> 1088.49 | L199: 8903.84 | M199: =SUMIF('MC - TRECHO 01'!A:A,Orçamento!A199,'MC - TRECHO 01'!R:R) -> 8.18 | N199: =SUMIF(#REF!,Orçamento!A199,#REF!) -> 
A200: 2.3.4 | B200: =IF(C200=0,"",VLOOKUP(C200,[142]BNCDADOS!$A:$G,8,0)) ->  | D200: SUPERESTRUTURA | E200: =IF(C200=0,"",VLOOKUP(C200,[142]BNCDADOS!$A:$G,3,0)) ->  | F200: 0 | G200: =IF(C200=0,"",VLOOKUP(C200,[142]BNCDADOS!$A:$G,4,0)) ->  | H200: =IF(C200=0,"",VLOOKUP(C200,[142]BNCDADOS!$A:$G,5,0)) ->  | I200: =SUM(I201:I211) -> 479489.81 | J200: =IF(C200=0,"",VLOOKUP(C200,[142]BNCDADOS!$A:$G,6,0)) ->  | K200: =IF(C200=0,"",VLOOKUP(C200,[142]BNCDADOS!$A:$G,7,0)) ->  | L200: =SUM(L201:L211) -> 490652.79 | M200: 0 | N200: =SUMIF(#REF!,Orçamento!A200,#REF!) -> 
... 2562 more rows

Sheet MC - SERVIÇO ADUTORA - 1-3
B1: MEMÓRIA DE CÁLCULO
B2: Os dados de entrada foram retirados na planta, C3D_PERF_TRECHO 01_CAPTAÇÃO ETA_R00, que possui o perfil da adutora, sendo indicado como premissa o comprimento de 10m na saída da captação e entrada da ETA Foi adotado um acréscimo de 10cm para implantação do colchão de areia | K2: Conforme indicado em planta, C3D_GERAL_TRECHO 01_CAPTAÇÃO ETA_GERAL_R00, toda a adutora é executada em faixa alocada ao lado da via, sendo necessário a limpeza e retirada de pequenas vegetações. Foi indicado uma sobrelargura de 4m para a faixa de execução dos serviços | Q2: Como premisssa foi indicado 1 kit a cada 700m | R2: Como premissa indicamos a realização de 01 sondagem para verificação de futuras interferências como redes elétricas, drenagem e tubulações de água e esgoto. Para estes itens e está obra indicamos a realização de sondagens a cada 2KM | U2: Foi indicado a execução de tela tapume nos 02 lados da vala, visando a proteção. Foi indicado como premissa a execução 1 luminária noturna a cada 10m, sendo indicado um percentual de 20% como reaproveitamento do material | Y2: De acordo com a tipologia do solo, apresentados nos relatórios de sondagens a trado e poços de inspeção e visando cumprir as normas de segurando, indicamos a utilização de escoramento do tipo blindado. | AD2: De acordo com a tipologia do solo, apresentados nos relatórios de sondagens a trado e poços de inspeção. Indicamos como premissas a execução de 84% de escavação mecanizada em solo de 1 categoria, 15% de escavação mecanizada em solo de 2 categoria e 1% de escavação manual para o acerto do solo no final da vala e retiradas de qualquer imprevistos. | AT2: Para a base envoltória do tubo devido a tipologia do solo, foi indicado o aterro com material de empréstimo e a compacatção hidráulica e manual. Para a camada de 30cm acima do tubo, foi indicado o aterro mecânico e compactação mecânica | BG2: Devido o local que a obra está inserida, levamos como premissa que o material que não será utilizado para o reaterro será espalhado na área da execução dos serviços
B3: PARÂMETROS DE ENTRADA | K3: PAVIMENTAÇÃO | Q3: CANTEIRO ITINERANTE | R3: SONDAGEM | U3: SINALIZAÇÃO DE VALA (m²) | W3: PREPARO DE FUNDO DE VALA | Y3: ESCORAMENTO DE VALA | AD3: ESCAVAÇÃO MANUAL | AG3: ESCAVAÇÃO MECÂNICA | AT3: ATERRO/REATERRO
B4: ADUTORA | E4: Extensão (m) | F4: Diâmetro (mm) | G4: Profundidade montante (m) | H4: Profundidade jusante (m) | I4: Profundidade média (m) | J4: Largura da vala (m) | K4: Tipo de pavimento | L4: Desmatamento e Limpeza da Área (m2) | M4: Área demolição/ recomposição - Paralelo (m2) | N4: Área demolição/ recomposição - Asfalto (m2) | O4: Volume demolição/ recomposição - Asfalto (m³) | P4: Área de Varrição (m²) | R4: Sem pavimento | S4: Paralelo | T4: Asfalto c/ paralelo | U4: Sinalização Noturna | V4: Fechamento com Tela Tapume Laranja | W4: ACERTO COM 10 CM DE AREIA | Y4: Blindado - Larg. Da vala até 1,5m | AA4: Blindado - Larg. Da vala de 1,50 a 2,50m | AG4: 1ª Catergoria Com retroescavadeira larg. Da vala de 0,8 a 1,50m | AI4: 1ª Catergoria Com escavadeira hidraúlica larg. Da vala de 1,51 a 2,50m | AM4: 2ª Catergoria | AP4: 3ª Categoria C/ Rompedor | AQ4: 3ª Categoria C/ Explosivos | AT4: Volume do tubo (m³) | AU4: ATERRO Mecânico c/ retroescavadeira larg. Da vala de 0,8 a 1,50m | AW4: ATERRO Mecânico c/ escavadeira hidraúlica larg. Da vala de 1,51 a 2,50m | BA4: REATERRO Mecânico c/ retroescavadeira larg. Da vala de 0,8 a 1,50m | BC4: REATERRO Mecânico c/ escavadeira hidraúlica larg. Da vala de 1,51 a 2,50m | BG4: ESPALHAMENTOl (M³)
B5: ADUTORA | C5: ESTACA MONTANTE | D5: ESTACA JUSANTE | W5: Largura <1,5M (m³) | X5: Largura>=1,5m (m³) | Y5: Profundidade Até 1,50 | Z5: Profundidade De 1,5m até 3,0m | AA5: Profundidade Até 1,50 | AB5: Profundidade De 1,5m até 3,0m | AC5: Profundidade maior que 3,0m | AD5: Profundidade Até 2,00 | AE5: Profundidade De 2,01m até 4,0m | AF5: Profundidade De 4,01m até 6,0m | AG5: Profundidade Até 1,50 | AH5: Profundidade De 1,5m até 3,0m | AI5: Profundidade Até 1,50 | AJ5: Profundidade De 1,5m até 3,0m | AK5: Profundidade De 3,01m até 4,50m | AL5: Profundidade maior que 4,51m | AM5: Profundidade Até 1,50 | AN5: Profundidade De 1,5m até 3,0m | AO5: Profundidade De 3,01m até 4,50m | AP5: Profundidade Até 2,00 | AQ5: Profundidade Até 2,00 | AR5: Profundidade De 2,01m até 4,0m | AS5: Profundidade De 4,01m até 6,0m | AU5: Profundidade Até 1,50 | AV5: Profundidade De 1,5m até 3,0m | AW5: Profundidade Até 1,50 | AX5: Profundidade De 1,5m até 3,0m | AY5: Profundidade De 3,01m até 4,50m | AZ5: Profundidade maior que 4,51m | BA5: Profundidade Até 1,50 | BB5: Profundidade De 1,5m até 3,0m | BC5: Profundidade Até 1,50 | BD5: Profundidade De 1,5m até 3,0m | BE5: Profundidade De 3,01m até 4,50m | BF5: Profundidade maior que 4,51m | BG5: Areia / Entulho | BH5: Asfalto
B6: Saída da Captação | E6: 10 | F6: 800 | G6: 1.84 | H6: 1.84 | I6: =ROUND(0.5*(G6+H6),2) -> 1.84 | J6: =IF(F6="","",INDEX([144]Tabelas!A$1:G$17,VLOOKUP('MC - SERVIÇO ADUTORA - 1-3'!F6,[144]Tabelas!I$4:J$17,2,0),IF(AVERAGE(G6:H6)<1.25,2,IF(AVERAGE(G6:H6)<1.5,3,IF(AVERAGE(G6:H6)<3,4,IF(AVERAGE(G6:H6)<4.5,5,IF(AVERAGE(G6:H6)<6,6,IF(AVERAGE(G6:H6)>6,7)))))))) -> 2 | K6: Sem Pavimento | L6: =IF(K6="","",IF(K6="Sem Pavimento",(J6+4)*E6,0)) -> 60 | M6: =IF(K6="","",IF(K6="Paralelo",(J6+0.4)*E6,0)) -> 0 | N6: =IF(K6="","",IF(K6="Asfalto c/ paralelo",(J6+0.4)*E6,0)) -> 0 | O6: =N6*0.05 -> 0 | P6: =IF(K6="","",IF(K6="Sem Pavimento",0,(7*E6-J6))) -> 0 | Q6: =E6/700 -> 0.01428571429 | R6: =IF(K6="","",IF(K6="Paralelo",0,IF(K6="Sem Pavimento",E6/2000*3,IF(L6="Asfalto c/ Paralelo",0,"")))) -> 0.015 | S6: =IF(K6="","",IF(K6="Paralelo",E6/2000*3,IF(K6="Sem Pavimento",0,IF(K6="Asfalto c/ Paralelo",0,"")))) -> 0 | T6: =IF(K6="","",IF(K6="Paralelo",0,IF(K6="Sem Pavimento",0,IF(K6="Asfalto c/ Paralelo",E6/2000*3,"")))) -> 0 | U6: =ROUND((E6/10*0.2),0) -> 0 | V6: =ROUND((E6*2),2) -> 20 | W6: =IF(J6<1.5,E6*J6*0.7*0.1,"-") -> - | X6: =IF(J6>=1.5,E6*J6*0.7*0.1,"-") -> 1.4 | Y6: =IF(I6>1.4,IF(I6<=1.5,IF(J6<1.5,(E6*I6*2),""),"-"),"-") -> - | Z6: =IF(I6>1.5,IF(I6<=3,IF(J6<1.5,(E6*I6*2),""),"-"),"-") ->  | AA6: =IF(I6>1.4,IF(I6<=1.5,IF(J6>=1.5,(E6*I6*2),""),"-"),"-") -> - | AB6: =IF(I6>1.5,IF(I6<=3,IF(J6>=1.5,(E6*I6*2),""),"-"),"-") -> 36.8 | AC6: =IF(I6>3,(E6*I6*2),"-") -> - | AD6: =IF(I6<=2,IF(K6="Paralelo",((E6*I6*J6-E6*J6*0.11)*0.01),IF(K6="Sem Pavimento",(E6*I6*J6*0.01),IF(K6="Asfalto c/ Paralelo",((E6*I6*J6-E6*J6*0.16)*0.01),""))),"-") -> 0.368 | AE6: =IF(I6>2,IF(I6<=4,IF(K6="Paralelo",((E6*I6*J6-E6*J6*0.11)*0.01),IF(K6="Sem Pavimento",(E6*I6*J6*0.01),IF(K6="Asfalto c/ Paralelo",((E6*I6*J6-E6*J6*0.16)*0.01),""))),"-"),"-") -> - | AF6: =IF(I6>4,IF(I6<=6,IF(K6="Paralelo",((E6*I6*J6-E6*J6*0.11)*0.01),IF(K6="Sem Pavimento",(E6*I6*J6*0.01),IF(K6="Asfalto c/ Paralelo",((E6*I6*J6-E6*J6*0.16)*0.01),""))),"-"),"-") -> - | AG6: =IF(I6<=1.5,IF(J6<1.5,IF(K6="Paralelo",((E6*I6*J6-E6*J6*0.11)*0.84),IF(K6="Sem Pavimento",((E6*I6*J6*0.84)),IF(K6="Asfalto c/ Paralelo",((E6*I6*J6-E6*J6*0.16)*0.84),""))),"-"),"-") -> - | AH6: =IF(I6>1.5,IF(I6<=3,IF(J6<1.5,IF(K6="Paralelo",((E6*I6*J6-E6*J6*0.11)*0.84),IF(K6="Sem Pavimento",(E6*I6*J6*0.84),IF(K6="Asfalto c/ Paralelo",((E6*I6*J6-E6*J6*0.16)*0.84),0))),"-"),"-"),"-") -> - | AI6: =IF(I6<=1.5,IF(J6>=1.5,IF(K6="Paralelo",((E6*I6*J6-E6*J6*0.11)*0.84),IF(K6="Sem Pavimento",(E6*I6*J6*0.84),IF(K6="Asfalto c/ Paralelo",((E6*I6*J6-E6*J6*0.16)*0.84),""))),"-"),"-") -> - | AJ6: =IF(I6>1.5,IF(I6<=3,IF(J6>=1.5,IF(K6="Paralelo",((E6*I6*J6-E6*J6*0.11)*0.8),IF(K6="Sem Pavimento",(E6*I6*J6*0.84),IF(K6="Asfalto c/ Paralelo",((E6*I6*J6-E6*J6*0.16)*0.84),""))),"-"),"-"),"-") -> 30.912 | AK6: =IF(I6>3,IF(I6<=4.5,IF(K6="Paralelo",((E6*I6*J6-E6*J6*0.11)*0.8),IF(K6="Sem Pavimento",(E6*I6*J6*0.8),IF(K6="Asfalto c/ Paralelo",((E6*I6*J6-E6*J6*0.16)*0.8),""))),"-"),"-") -> - | AL6: =IF(I6>4.5,IF(K6="Paralelo",((E6*I6*J6-E6*J6*0.11)*0.8),IF(K6="Sem Pavimento",(E6*I6*J6*0.8),IF(K6="Asfalto c/ Paralelo",((E6*I6*J6-E6*J6*0.16)*0.8),""))),"-") -> - | AM6: =IF(I6<=1.5,IF(K6="Paralelo",((E6*I6*J6-E6*J6*0.11)*0.15),IF(K6="Sem Pavimento",(E6*I6*J6*0.15),IF(K6="Asfalto c/ Paralelo",((E6*I6*J6-E6*J6*0.16)*0.15),""))),"-") -> - | AN6: =IF(I6>1.5,IF(I6<=3,IF(K6="Paralelo",((E6*I6*J6-E6*J6*0.11)*0.15),IF(K6="Sem Pavimento",(E6*I6*J6*0.15),IF(K6="Asfalto c/ Paralelo",((E6*I6*J6-E6*J6*0.16)*0.15),""))),"-"),"-") -> 5.52 | AO6: =IF(I6>3,IF(I6<=4.5,IF(K6="Paralelo",((E6*I6*J6-E6*J6*0.11)*0.15),IF(K6="Sem Pavimento",(E6*I6*J6*0.15),IF(K6="Asfalto c/ Paralelo",((E6*I6*J6-E6*J6*0.16)*0.15),""))),"-"),"-") -> - | AP6: - | AQ6: - | AR6: =IF(I6>2,IF(I6<=4,IF(K6="Paralelo",(E6*I6*J6-E6*J6*0.11),IF(K6="Sem Pavimento",(E6*I6*J6*0.1),IF(K6="Asfalto c/ Paralelo",(E6*I6*J6-E6*J6*0.16),""))),"-"),"-") -> - | AS6: =IF(I6>4,IF(I6<=6,IF(K6="Paralelo",(E6*I6*J6-E6*J6*0.11),IF(K6="Sem Pavimento",(E6*I6*J6*0.1),IF(K6="Asfalto c/ Paralelo",(E6*I6*J6-E6*J6*0.16),""))),"-"),"-") -> - | AT6: =((PI()*((F6/1000)^2))/4)*E6 -> 5.026548246 | AU6: =IF(I6<=1.5,IF(J6<1.5,IF(K6="Paralelo",((E6*I6*J6-E6*J6*0.11-AT6-#REF!)*0.3)),IF(K6="Sem Pavimento",((E6*I6*J6-AT6-#REF!)*0.3),IF(K6="Asfalto c/ Paralelo",((E6*I6*J6-E6*J6*0.16-AT6-#REF!)*0.3),""))),"-") -> - | AV6: =IF(I6>1.5,IF(I6<=3,IF(J6<1.5,IF(K6="Paralelo",(E6*I6*J6-E6*J6*0.11-AT6-#REF!)*0.3,IF(K6="Sem Pavimento",((E6*I6*J6-AT6-#REF!)*0.3),IF(K6="Asfalto c/ Paralelo",(E6*I6*J6-E6*J6*0.16-AT6-#REF!)*0))),"-"),"-"),"-") -> - | AW6: =IF(I6<=1.5,IF(J6>=1.5,IF(K6="Paralelo",((E6*I6*J6-E6*J6*0.11-AT6-#REF!)*0.3)),IF(K6="Sem Pavimento",((E6*I6*J6-AT6-#REF!)*0.3),IF(K6="Asfalto c/ Paralelo",((E6*I6*J6-E6*J6*0.16-AT6-#REF!)*0.3),""))),"-") -> - | AX6: =IF(I6>1.5,IF(I6<=3,IF(J6>=1.5,IF(K6="Paralelo",(((J6*E6*((F6/1000)))-AT6)),IF(K6="Sem Pavimento",(((J6*E6*((F6/1000)))-AT6)),IF(K6="Asfalto c/ Paralelo",(E6*I6*J6*0.75-E6*J6*0.16-AT6-#REF!)*0.3))),"-"),"-"),"-") -> 10.97345175 | AY6: =IF(I6>3,IF(I6<=4.5,IF(J6>=1.5,IF(K6="Paralelo",(E6*I6*J6-E6*J6*0.11-AT6-#REF!)*0.3,IF(K6="Sem Pavimento",((E6*I6*J6-AT6-#REF!)*0.3),IF(K6="Asfalto c/ Paralelo",(E6*I6*J6-E6*J6*0.16-AT6-#REF!)*0.3))),"-"),"-"),"-") -> - | AZ6: =IF(I6>4.5,IF(I6<=6,IF(J6>=1.5,IF(K6="Paralelo",(E6*I6*J6-E6*J6*0.11-AT6-#REF!)*0.3,IF(K6="Sem Pavimento",(E6*I6*J6-AT6-#REF!)*0.3,IF(K6="Asfalto c/ Paralelo",(E6*I6*J6-E6*J6*0.16-AT6-#REF!)*0.3))),"-"),"-"),"-") -> - | BA6: =IF(I6<=1.5,IF(J6<1.5,IF(K6="Paralelo",((E6*I6*J6-E6*J6*0.11-AT6-#REF!)*0.7)),IF(K6="Sem Pavimento",((E6*I6*J6-AT6-#REF!)*0.7),IF(K6="Asfalto c/ Paralelo",((E6*I6*J6-E6*J6*0.16-AT6-#REF!)*0.7),""))),"-") -> - | BB6: =IF(I6>1.5,IF(I6<=3,IF(J6<1.5,IF(K6="Paralelo",(E6*I6*J6-E6*J6*0.11-AT6-#REF!)*0.7,IF(K6="Sem Pavimento",(E6*I6*J6-AT6-#REF!)*0.7,IF(K6="Asfalto c/ Paralelo",(E6*I6*J6-E6*J6*0.16-AT6-#REF!)*0.7))),"-"),"-"),"-") -> - | BC6: =IF(I6<=1.5,IF(J6>=1.5,IF(K6="Paralelo",((E6*I6*J6-E6*J6*0.11-AT6-#REF!)*0.7)),IF(K6="Sem Pavimento",((E6*I6*J6-AT6-#REF!)*0.7),IF(K6="Asfalto c/ Paralelo",((E6*I6*J6-E6*J6*0.16-AT6-#REF!)*0.7),""))),"-") -> - | BD6: =IF(I6>1.5,IF(I6<=3,IF(J6>=1.5,IF(K6="Paralelo",(E6*I6*J6-E6*J6*0.11-AT6-AX6),IF(K6="Sem Pavimento",(E6*I6*J6-AT6-AX6),IF(K6="Asfalto c/ Paralelo",(E6*I6*J6*0.75-E6*J6*0.16-AT6-AX6)))),"-"),"-"),"-") -> 20.8 | BE6: =IF(I6>3,IF(I6<=4.5,IF(J6>=1.5,IF(K6="Paralelo",(E6*I6*J6-E6*J6*0.11-AT6-#REF!)*0.7,IF(K6="Sem Pavimento",(E6*I6*J6-AT6-#REF!)*0.7,IF(K6="Asfalto c/ Paralelo",(E6*I6*J6-E6*J6*0.16-AT6-#REF!)*0.7))),"-"),"-"),"-") -> - | BF6: =IF(I6>4.5,IF(I6<=6,IF(J6>=1.5,IF(K6="Paralelo",(E6*I6*J6-E6*J6*0.11-AT6-#REF!)*0.7,IF(K6="Sem Pavimento",(E6*I6*J6-AT6-#REF!)*0.7,IF(K6="Asfalto c/ Paralelo",(E6*I6*J6-E6*J6*0.16-AT6-#REF!)*0.7))),"-"),"-"),"-") -> - | BG6: =ROUND((SUM(AG6:AS6)-SUM(BA6:BF6))*1.2,2) -> 18.76 | BH6: =IF(K6="-","-",ROUND(O6*1.3,2)) -> 0
B7: T1 | C7: 1 | D7: 2 | E7: 155.09 | F7: 800 | G7: =H6 -> 1.84 | H7: 1.84 | I7: =ROUND(0.5*(G7+H7),2) -> 1.84 | J7: =IF(F7="","",INDEX([144]Tabelas!A$1:G$17,VLOOKUP('MC - SERVIÇO ADUTORA - 1-3'!F7,[144]Tabelas!I$4:J$17,2,0),IF(AVERAGE(G7:H7)<1.25,2,IF(AVERAGE(G7:H7)<1.5,3,IF(AVERAGE(G7:H7)<3,4,IF(AVERAGE(G7:H7)<4.5,5,IF(AVERAGE(G7:H7)<6,6,IF(AVERAGE(G7:H7)>6,7)))))))) -> 2 | K7: Sem Pavimento | L7: =IF(K7="","",IF(K7="Sem Pavimento",(J7+4)*E7,0)) -> 930.54 | M7: 0 | N7: 0 | O7: =N7*0.05 -> 0 | P7: 0 | Q7: =E7/700 -> 0.2215571429 | R7: =IF(K7="","",IF(K7="Paralelo",0,IF(K7="Sem Pavimento",E7/2000*3,IF(L7="Asfalto c/ Paralelo",0,"")))) -> 0.232635 | S7: =IF(K7="","",IF(K7="Paralelo",E7/2000*3,IF(K7="Sem Pavimento",0,IF(K7="Asfalto c/ Paralelo",0,"")))) -> 0 | T7: =IF(K7="","",IF(K7="Paralelo",0,IF(K7="Sem Pavimento",0,IF(K7="Asfalto c/ Paralelo",E7/2000*3,"")))) -> 0 | U7: =ROUND((E7/10*0.2),0) -> 3 | V7: 310.18 | W7: =IF(J7<1.5,E7*J7*0.7*0.1,"-") -> - | X7: =IF(J7>=1.5,E7*J7*0.7*0.1,"-") -> 21.7126 | Y7: - | AA7: - | AB7: 570.7312 | AC7: - | AD7: =IF(I7<=2,IF(K7="Paralelo",((E7*I7*J7-E7*J7*0.11)*0.01),IF(K7="Sem Pavimento",(E7*I7*J7*0.01),IF(K7="Asfalto c/ Paralelo",((E7*I7*J7-E7*J7*0.16)*0.01),""))),"-") -> 5.707312 | AE7: =IF(I7>2,IF(I7<=4,IF(K7="Paralelo",((E7*I7*J7-E7*J7*0.11)*0.01),IF(K7="Sem Pavimento",(E7*I7*J7*0.01),IF(K7="Asfalto c/ Paralelo",((E7*I7*J7-E7*J7*0.16)*0.01),""))),"-"),"-") -> - | AF7: =IF(I7>4,IF(I7<=6,IF(K7="Paralelo",((E7*I7*J7-E7*J7*0.11)*0.01),IF(K7="Sem Pavimento",(E7*I7*J7*0.01),IF(K7="Asfalto c/ Paralelo",((E7*I7*J7-E7*J7*0.16)*0.01),""))),"-"),"-") -> - | AG7: =IF(I7<=1.5,IF(J7<1.5,IF(K7="Paralelo",((E7*I7*J7-E7*J7*0.11)*0.84),IF(K7="Sem Pavimento",((E7*I7*J7*0.84)),IF(K7="Asfalto c/ Paralelo",((E7*I7*J7-E7*J7*0.16)*0.84),""))),"-"),"-") -> - | AH7: =IF(I7>1.5,IF(I7<=3,IF(J7<1.5,IF(K7="Paralelo",((E7*I7*J7-E7*J7*0.11)*0.84),IF(K7="Sem Pavimento",(E7*I7*J7*0.84),IF(K7="Asfalto c/ Paralelo",((E7*I7*J7-E7*J7*0.16)*0.84),0))),"-"),"-"),"-") -> - | AI7: =IF(I7<=1.5,IF(J7>=1.5,IF(K7="Paralelo",((E7*I7*J7-E7*J7*0.11)*0.84),IF(K7="Sem Pavimento",(E7*I7*J7*0.84),IF(K7="Asfalto c/ Paralelo",((E7*I7*J7-E7*J7*0.16)*0.84),""))),"-"),"-") -> - | AJ7: =IF(I7>1.5,IF(I7<=3,IF(J7>=1.5,IF(K7="Paralelo",((E7*I7*J7-E7*J7*0.11)*0.8),IF(K7="Sem Pavimento",(E7*I7*J7*0.84),IF(K7="Asfalto c/ Paralelo",((E7*I7*J7-E7*J7*0.16)*0.84),""))),"-"),"-"),"-") -> 479.414208 | AK7: =IF(I7>3,IF(I7<=4.5,IF(K7="Paralelo",((E7*I7*J7-E7*J7*0.11)*0.8),IF(K7="Sem Pavimento",(E7*I7*J7*0.8),IF(K7="Asfalto c/ Paralelo",((E7*I7*J7-E7*J7*0.16)*0.8),""))),"-"),"-") -> - | AL7: =IF(I7>4.5,IF(K7="Paralelo",((E7*I7*J7-E7*J7*0.11)*0.8),IF(K7="Sem Pavimento",(E7*I7*J7*0.8),IF(K7="Asfalto c/ Paralelo",((E7*I7*J7-E7*J7*0.16)*0.8),""))),"-") -> - | AM7: =IF(I7<=1.5,IF(K7="Paralelo",((E7*I7*J7-E7*J7*0.11)*0.15),IF(K7="Sem Pavimento",(E7*I7*J7*0.15),IF(K7="Asfalto c/ Paralelo",((E7*I7*J7-E7*J7*0.16)*0.15),""))),"-") -> - | AN7: =IF(I7>1.5,IF(I7<=3,IF(K7="Paralelo",((E7*I7*J7-E7*J7*0.11)*0.15),IF(K7="Sem Pavimento",(E7*I7*J7*0.15),IF(K7="Asfalto c/ Paralelo",((E7*I7*J7-E7*J7*0.16)*0.15),""))),"-"),"-") -> 85.60968 | AO7: =IF(I7>3,IF(I7<=4.5,IF(K7="Paralelo",((E7*I7*J7-E7*J7*0.11)*0.15),IF(K7="Sem Pavimento",(E7*I7*J7*0.15),IF(K7="Asfalto c/ Paralelo",((E7*I7*J7-E7*J7*0.16)*0.15),""))),"-"),"-") -> - | AP7: - | AQ7: - | AR7: - | AS7: - | AT7: 77.95673674 | AU7: =IF(I7<=1.5,IF(J7<1.5,IF(K7="Paralelo",((E7*I7*J7-E7*J7*0.11-AT7-#REF!)*0.3)),IF(K7="Sem Pavimento",((E7*I7*J7-AT7-#REF!)*0.3),IF(K7="Asfalto c/ Paralelo",((E7*I7*J7-E7*J7*0.16-AT7-#REF!)*0.3),""))),"-") -> - | AV7: =IF(I7>1.5,IF(I7<=3,IF(J7<1.5,IF(K7="Paralelo",(E7*I7*J7-E7*J7*0.11-AT7-#REF!)*0.3,IF(K7="Sem Pavimento",((E7*I7*J7-AT7-#REF!)*0.3),IF(K7="Asfalto c/ Paralelo",(E7*I7*J7-E7*J7*0.16-AT7-#REF!)*0))),"-"),"-"),"-") -> - | AW7: =IF(I7<=1.5,IF(J7>=1.5,IF(K7="Paralelo",((E7*I7*J7-E7*J7*0.11-AT7-#REF!)*0.3)),IF(K7="Sem Pavimento",((E7*I7*J7-AT7-#REF!)*0.3),IF(K7="Asfalto c/ Paralelo",((E7*I7*J7-E7*J7*0.16-AT7-#REF!)*0.3),""))),"-") -> - | AX7: =IF(I7>1.5,IF(I7<=3,IF(J7>=1.5,IF(K7="Paralelo",(((J7*E7*((F7/1000)))-AT7)),IF(K7="Sem Pavimento",(((J7*E7*((F7/1000)))-AT7)),IF(K7="Asfalto c/ Paralelo",(E7*I7*J7*0.75-E7*J7*0.16-AT7-#REF!)*0.3))),"-"),"-"),"-") -> 170.1872633 | AY7: =IF(I7>3,IF(I7<=4.5,IF(J7>=1.5,IF(K7="Paralelo",(E7*I7*J7-E7*J7*0.11-AT7-#REF!)*0.3,IF(K7="Sem Pavimento",((E7*I7*J7-AT7-#REF!)*0.3),IF(K7="Asfalto c/ Paralelo",(E7*I7*J7-E7*J7*0.16-AT7-#REF!)*0.3))),"-"),"-"),"-") -> - | AZ7: =IF(I7>4.5,IF(I7<=6,IF(J7>=1.5,IF(K7="Paralelo",(E7*I7*J7-E7*J7*0.11-AT7-#REF!)*0.3,IF(K7="Sem Pavimento",(E7*I7*J7-AT7-#REF!)*0.3,IF(K7="Asfalto c/ Paralelo",(E7*I7*J7-E7*J7*0.16-AT7-#REF!)*0.3))),"-"),"-"),"-") -> - | BA7: =IF(I7<=1.5,IF(J7<1.5,IF(K7="Paralelo",((E7*I7*J7-E7*J7*0.11-AT7-#REF!)*0.7)),IF(K7="Sem Pavimento",((E7*I7*J7-AT7-#REF!)*0.7),IF(K7="Asfalto c/ Paralelo",((E7*I7*J7-E7*J7*0.16-AT7-#REF!)*0.7),""))),"-") -> - | BB7: =IF(I7>1.5,IF(I7<=3,IF(J7<1.5,IF(K7="Paralelo",(E7*I7*J7-E7*J7*0.11-AT7-#REF!)*0.7,IF(K7="Sem Pavimento",(E7*I7*J7-AT7-#REF!)*0.7,IF(K7="Asfalto c/ Paralelo",(E7*I7*J7-E7*J7*0.16-AT7-#REF!)*0.7))),"-"),"-"),"-") -> - | BC7: =IF(I7<=1.5,IF(J7>=1.5,IF(K7="Paralelo",((E7*I7*J7-E7*J7*0.11-AT7-#REF!)*0.7)),IF(K7="Sem Pavimento",((E7*I7*J7-AT7-#REF!)*0.7),IF(K7="Asfalto c/ Paralelo",((E7*I7*J7-E7*J7*0.16-AT7-#REF!)*0.7),""))),"-") -> - | BD7: =IF(I7>1.5,IF(I7<=3,IF(J7>=1.5,IF(K7="Paralelo",(E7*I7*J7-E7*J7*0.11-AT7-AX7),IF(K7="Sem Pavimento",(E7*I7*J7-AT7-AX7),IF(K7="Asfalto c/ Paralelo",(E7*I7*J7*0.75-E7*J7*0.16-AT7-AX7)))),"-"),"-"),"-") -> 322.5872 | BE7: =IF(I7>3,IF(I7<=4.5,IF(J7>=1.5,IF(K7="Paralelo",(E7*I7*J7-E7*J7*0.11-AT7-#REF!)*0.7,IF(K7="Sem Pavimento",(E7*I7*J7-AT7-#REF!)*0.7,IF(K7="Asfalto c/ Paralelo",(E7*I7*J7-E7*J7*0.16-AT7-#REF!)*0.7))),"-"),"-"),"-") -> - | BF7: =IF(I7>4.5,IF(I7<=6,IF(J7>=1.5,IF(K7="Paralelo",(E7*I7*J7-E7*J7*0.11-AT7-#REF!)*0.7,IF(K7="Sem Pavimento",(E7*I7*J7-AT7-#REF!)*0.7,IF(K7="Asfalto c/ Paralelo",(E7*I7*J7-E7*J7*0.16-AT7-#REF!)*0.7))),"-"),"-"),"-") -> - | BG7: =ROUND((SUM(AG7:AS7)-SUM(BA7:BF7))*1.2,2) -> 290.92 | BH7: 0
B8: T2 | C8: 1 | D8: 2 | E8: 138.8 | F8: 800 | G8: =H6 -> 1.84 | H8: 1.84 | I8: =ROUND(0.5*(G8+H8),2) -> 1.84 | J8: =IF(F8="","",INDEX([144]Tabelas!A$1:G$17,VLOOKUP('MC - SERVIÇO ADUTORA - 1-3'!F8,[144]Tabelas!I$4:J$17,2,0),IF(AVERAGE(G8:H8)<1.25,2,IF(AVERAGE(G8:H8)<1.5,3,IF(AVERAGE(G8:H8)<3,4,IF(AVERAGE(G8:H8)<4.5,5,IF(AVERAGE(G8:H8)<6,6,IF(AVERAGE(G8:H8)>6,7)))))))) -> 2 | K8: Sem Pavimento | L8: 832.8 | M8: 0 | N8: 0 | O8: =N8*0.05 -> 0 | P8: 0 | Q8: =E8/700 -> 0.1982857143 | R8: 0.2082 | S8: 0 | T8: 0 | U8: 3 | V8: 277.6 | W8: - | X8: 19.432 | Y8: - | AA8: - | AB8: 510.784 | AC8: - | AD8: 5.10784 | AE8: - | AF8: - | AG8: - | AH8: - | AI8: - | AJ8: 429.05856 | AK8: - | AL8: - | AM8: - | AN8: 76.6176 | AO8: - | AP8: - | AQ8: - | AR8: - | AS8: - | AT8: 69.76848965 | AU8: =IF(I8<=1.5,IF(J8<1.5,IF(K8="Paralelo",((E8*I8*J8-E8*J8*0.11-AT8-#REF!)*0.3)),IF(K8="Sem Pavimento",((E8*I8*J8-AT8-#REF!)*0.3),IF(K8="Asfalto c/ Paralelo",((E8*I8*J8-E8*J8*0.16-AT8-#REF!)*0.3),""))),"-") -> - | AV8: =IF(I8>1.5,IF(I8<=3,IF(J8<1.5,IF(K8="Paralelo",(E8*I8*J8-E8*J8*0.11-AT8-#REF!)*0.3,IF(K8="Sem Pavimento",((E8*I8*J8-AT8-#REF!)*0.3),IF(K8="Asfalto c/ Paralelo",(E8*I8*J8-E8*J8*0.16-AT8-#REF!)*0))),"-"),"-"),"-") -> - | AW8: =IF(I8<=1.5,IF(J8>=1.5,IF(K8="Paralelo",((E8*I8*J8-E8*J8*0.11-AT8-#REF!)*0.3)),IF(K8="Sem Pavimento",((E8*I8*J8-AT8-#REF!)*0.3),IF(K8="Asfalto c/ Paralelo",((E8*I8*J8-E8*J8*0.16-AT8-#REF!)*0.3),""))),"-") -> - | AX8: =IF(I8>1.5,IF(I8<=3,IF(J8>=1.5,IF(K8="Paralelo",(((J8*E8*((F8/1000)))-AT8)),IF(K8="Sem Pavimento",(((J8*E8*((F8/1000)))-AT8)),IF(K8="Asfalto c/ Paralelo",(E8*I8*J8*0.75-E8*J8*0.16-AT8-#REF!)*0.3))),"-"),"-"),"-") -> 152.3115103 | AY8: =IF(I8>3,IF(I8<=4.5,IF(J8>=1.5,IF(K8="Paralelo",(E8*I8*J8-E8*J8*0.11-AT8-#REF!)*0.3,IF(K8="Sem Pavimento",((E8*I8*J8-AT8-#REF!)*0.3),IF(K8="Asfalto c/ Paralelo",(E8*I8*J8-E8*J8*0.16-AT8-#REF!)*0.3))),"-"),"-"),"-") -> - | AZ8: =IF(I8>4.5,IF(I8<=6,IF(J8>=1.5,IF(K8="Paralelo",(E8*I8*J8-E8*J8*0.11-AT8-#REF!)*0.3,IF(K8="Sem Pavimento",(E8*I8*J8-AT8-#REF!)*0.3,IF(K8="Asfalto c/ Paralelo",(E8*I8*J8-E8*J8*0.16-AT8-#REF!)*0.3))),"-"),"-"),"-") -> - | BA8: =IF(I8<=1.5,IF(J8<1.5,IF(K8="Paralelo",((E8*I8*J8-E8*J8*0.11-AT8-#REF!)*0.7)),IF(K8="Sem Pavimento",((E8*I8*J8-AT8-#REF!)*0.7),IF(K8="Asfalto c/ Paralelo",((E8*I8*J8-E8*J8*0.16-AT8-#REF!)*0.7),""))),"-") -> - | BB8: =IF(I8>1.5,IF(I8<=3,IF(J8<1.5,IF(K8="Paralelo",(E8*I8*J8-E8*J8*0.11-AT8-#REF!)*0.7,IF(K8="Sem Pavimento",(E8*I8*J8-AT8-#REF!)*0.7,IF(K8="Asfalto c/ Paralelo",(E8*I8*J8-E8*J8*0.16-AT8-#REF!)*0.7))),"-"),"-"),"-") -> - | BC8: =IF(I8<=1.5,IF(J8>=1.5,IF(K8="Paralelo",((E8*I8*J8-E8*J8*0.11-AT8-#REF!)*0.7)),IF(K8="Sem Pavimento",((E8*I8*J8-AT8-#REF!)*0.7),IF(K8="Asfalto c/ Paralelo",((E8*I8*J8-E8*J8*0.16-AT8-#REF!)*0.7),""))),"-") -> - | BD8: 288.704 | BE8: =IF(I8>3,IF(I8<=4.5,IF(J8>=1.5,IF(K8="Paralelo",(E8*I8*J8-E8*J8*0.11-AT8-#REF!)*0.7,IF(K8="Sem Pavimento",(E8*I8*J8-AT8-#REF!)*0.7,IF(K8="Asfalto c/ Paralelo",(E8*I8*J8-E8*J8*0.16-AT8-#REF!)*0.7))),"-"),"-"),"-") -> - | BF8: =IF(I8>4.5,IF(I8<=6,IF(J8>=1.5,IF(K8="Paralelo",(E8*I8*J8-E8*J8*0.11-AT8-#REF!)*0.7,IF(K8="Sem Pavimento",(E8*I8*J8-AT8-#REF!)*0.7,IF(K8="Asfalto c/ Paralelo",(E8*I8*J8-E8*J8*0.16-AT8-#REF!)*0.7))),"-"),"-"),"-") -> - | BG8: 260.37 | BH8: 0
B9: T3 | C9: 2 | D9: 3 | E9: 102.01 | F9: 800 | G9: =H8 -> 1.84 | H9: 1.84 | I9: 1.84 | J9: =IF(F9="","",INDEX([144]Tabelas!A$1:G$17,VLOOKUP('MC - SERVIÇO ADUTORA - 1-3'!F9,[144]Tabelas!I$4:J$17,2,0),IF(AVERAGE(G9:H9)<1.25,2,IF(AVERAGE(G9:H9)<1.5,3,IF(AVERAGE(G9:H9)<3,4,IF(AVERAGE(G9:H9)<4.5,5,IF(AVERAGE(G9:H9)<6,6,IF(AVERAGE(G9:H9)>6,7)))))))) -> 2 | K9: Sem Pavimento | L9: 612.06 | M9: 0 | N9: 0 | O9: 0 | P9: 0 | Q9: 0.1457285714 | R9: 0.153015 | S9: 0 | T9: 0 | U9: 2 | V9: 204.02 | W9: - | X9: 14.2814 | Y9: - | AA9: - | AB9: 375.3968 | AC9: - | AD9: 3.753968 | AE9: - | AF9: - | AG9: - | AH9: - | AI9: - | AJ9: 315.333312 | AK9: - | AL9: - | AM9: - | AN9: 56.30952 | AO9: - | AP9: - | AQ9: - | AR9: - | AS9: - | AT9: 51.27581865 | AU9: =IF(I9<=1.5,IF(J9<1.5,IF(K9="Paralelo",((E9*I9*J9-E9*J9*0.11-AT9-#REF!)*0.3)),IF(K9="Sem Pavimento",((E9*I9*J9-AT9-#REF!)*0.3),IF(K9="Asfalto c/ Paralelo",((E9*I9*J9-E9*J9*0.16-AT9-#REF!)*0.3),""))),"-") -> - | AV9: =IF(I9>1.5,IF(I9<=3,IF(J9<1.5,IF(K9="Paralelo",(E9*I9*J9-E9*J9*0.11-AT9-#REF!)*0.3,IF(K9="Sem Pavimento",((E9*I9*J9-AT9-#REF!)*0.3),IF(K9="Asfalto c/ Paralelo",(E9*I9*J9-E9*J9*0.16-AT9-#REF!)*0))),"-"),"-"),"-") -> - | AW9: =IF(I9<=1.5,IF(J9>=1.5,IF(K9="Paralelo",((E9*I9*J9-E9*J9*0.11-AT9-#REF!)*0.3)),IF(K9="Sem Pavimento",((E9*I9*J9-AT9-#REF!)*0.3),IF(K9="Asfalto c/ Paralelo",((E9*I9*J9-E9*J9*0.16-AT9-#REF!)*0.3),""))),"-") -> - | AX9: =IF(I9>1.5,IF(I9<=3,IF(J9>=1.5,IF(K9="Paralelo",(((J9*E9*((F9/1000)))-AT9)),IF(K9="Sem Pavimento",(((J9*E9*((F9/1000)))-AT9)),IF(K9="Asfalto c/ Paralelo",(E9*I9*J9*0.75-E9*J9*0.16-AT9-#REF!)*0.3))),"-"),"-"),"-") -> 111.9401813 | AY9: =IF(I9>3,IF(I9<=4.5,IF(J9>=1.5,IF(K9="Paralelo",(E9*I9*J9-E9*J9*0.11-AT9-#REF!)*0.3,IF(K9="Sem Pavimento",((E9*I9*J9-AT9-#REF!)*0.3),IF(K9="Asfalto c/ Paralelo",(E9*I9*J9-E9*J9*0.16-AT9-#REF!)*0.3))),"-"),"-"),"-") -> - | AZ9: =IF(I9>4.5,IF(I9<=6,IF(J9>=1.5,IF(K9="Paralelo",(E9*I9*J9-E9*J9*0.11-AT9-#REF!)*0.3,IF(K9="Sem Pavimento",(E9*I9*J9-AT9-#REF!)*0.3,IF(K9="Asfalto c/ Paralelo",(E9*I9*J9-E9*J9*0.16-AT9-#REF!)*0.3))),"-"),"-"),"-") -> - | BA9: =IF(I9<=1.5,IF(J9<1.5,IF(K9="Paralelo",((E9*I9*J9-E9*J9*0.11-AT9-#REF!)*0.7)),IF(K9="Sem Pavimento",((E9*I9*J9-AT9-#REF!)*0.7),IF(K9="Asfalto c/ Paralelo",((E9*I9*J9-E9*J9*0.16-AT9-#REF!)*0.7),""))),"-") -> - | BB9: =IF(I9>1.5,IF(I9<=3,IF(J9<1.5,IF(K9="Paralelo",(E9*I9*J9-E9*J9*0.11-AT9-#REF!)*0.7,IF(K9="Sem Pavimento",(E9*I9*J9-AT9-#REF!)*0.7,IF(K9="Asfalto c/ Paralelo",(E9*I9*J9-E9*J9*0.16-AT9-#REF!)*0.7))),"-"),"-"),"-") -> - | BC9: =IF(I9<=1.5,IF(J9>=1.5,IF(K9="Paralelo",((E9*I9*J9-E9*J9*0.11-AT9-#REF!)*0.7)),IF(K9="Sem Pavimento",((E9*I9*J9-AT9-#REF!)*0.7),IF(K9="Asfalto c/ Paralelo",((E9*I9*J9-E9*J9*0.16-AT9-#REF!)*0.7),""))),"-") -> - | BD9: 212.1808 | BE9: =IF(I9>3,IF(I9<=4.5,IF(J9>=1.5,IF(K9="Paralelo",(E9*I9*J9-E9*J9*0.11-AT9-#REF!)*0.7,IF(K9="Sem Pavimento",(E9*I9*J9-AT9-#REF!)*0.7,IF(K9="Asfalto c/ Paralelo",(E9*I9*J9-E9*J9*0.16-AT9-#REF!)*0.7))),"-"),"-"),"-") -> - | BF9: =IF(I9>4.5,IF(I9<=6,IF(J9>=1.5,IF(K9="Paralelo",(E9*I9*J9-E9*J9*0.11-AT9-#REF!)*0.7,IF(K9="Sem Pavimento",(E9*I9*J9-AT9-#REF!)*0.7,IF(K9="Asfalto c/ Paralelo",(E9*I9*J9-E9*J9*0.16-AT9-#REF!)*0.7))),"-"),"-"),"-") -> - | BG9: 191.35 | BH9: 0
B10: T4 | C10: 3 | D10: 4 | E10: 80.59 | F10: 800 | G10: 1.84 | H10: 1.84 | I10: 1.84 | J10: =IF(F10="","",INDEX([144]Tabelas!A$1:G$17,VLOOKUP('MC - SERVIÇO ADUTORA - 1-3'!F10,[144]Tabelas!I$4:J$17,2,0),IF(AVERAGE(G10:H10)<1.25,2,IF(AVERAGE(G10:H10)<1.5,3,IF(AVERAGE(G10:H10)<3,4,IF(AVERAGE(G10:H10)<4.5,5,IF(AVERAGE(G10:H10)<6,6,IF(AVERAGE(G10:H10)>6,7)))))))) -> 2 | K10: Sem Pavimento | L10: 483.54 | M10: 0 | N10: 0 | O10: 0 | P10: 0 | Q10: 0.1151285714 | R10: 0.120885 | S10: 0 | T10: 0 | U10: 2 | V10: 161.18 | W10: - | X10: 11.2826 | Y10: - | AA10: - | AB10: 296.5712 | AC10: - | AD10: 2.965712 | AE10: - | AF10: - | AG10: - | AH10: - | AI10: - | AJ10: 249.119808 | AK10: - | AL10: - | AM10: - | AN10: 44.48568 | AO10: - | AP10: - | AQ10: - | AR10: - | AS10: - | AT10: 40.50895231 | AU10: =IF(I10<=1.5,IF(J10<1.5,IF(K10="Paralelo",((E10*I10*J10-E10*J10*0.11-AT10-#REF!)*0.3)),IF(K10="Sem Pavimento",((E10*I10*J10-AT10-#REF!)*0.3),IF(K10="Asfalto c/ Paralelo",((E10*I10*J10-E10*J10*0.16-AT10-#REF!)*0.3),""))),"-") -> - | AV10: =IF(I10>1.5,IF(I10<=3,IF(J10<1.5,IF(K10="Paralelo",(E10*I10*J10-E10*J10*0.11-AT10-#REF!)*0.3,IF(K10="Sem Pavimento",((E10*I10*J10-AT10-#REF!)*0.3),IF(K10="Asfalto c/ Paralelo",(E10*I10*J10-E10*J10*0.16-AT10-#REF!)*0))),"-"),"-"),"-") -> - | AW10: =IF(I10<=1.5,IF(J10>=1.5,IF(K10="Paralelo",((E10*I10*J10-E10*J10*0.11-AT10-#REF!)*0.3)),IF(K10="Sem Pavimento",((E10*I10*J10-AT10-#REF!)*0.3),IF(K10="Asfalto c/ Paralelo",((E10*I10*J10-E10*J10*0.16-AT10-#REF!)*0.3),""))),"-") -> - | AX10: =IF(I10>1.5,IF(I10<=3,IF(J10>=1.5,IF(K10="Paralelo",(((J10*E10*((F10/1000)))-AT10)),IF(K10="Sem Pavimento",(((J10*E10*((F10/1000)))-AT10)),IF(K10="Asfalto c/ Paralelo",(E10*I10*J10*0.75-E10*J10*0.16-AT10-#REF!)*0.3))),"-"),"-"),"-") -> 88.43504769 | AY10: =IF(I10>3,IF(I10<=4.5,IF(J10>=1.5,IF(K10="Paralelo",(E10*I10*J10-E10*J10*0.11-AT10-#REF!)*0.3,IF(K10="Sem Pavimento",((E10*I10*J10-AT10-#REF!)*0.3),IF(K10="Asfalto c/ Paralelo",(E10*I10*J10-E10*J10*0.16-AT10-#REF!)*0.3))),"-"),"-"),"-") -> - | AZ10: =IF(I10>4.5,IF(I10<=6,IF(J10>=1.5,IF(K10="Paralelo",(E10*I10*J10-E10*J10*0.11-AT10-#REF!)*0.3,IF(K10="Sem Pavimento",(E10*I10*J10-AT10-#REF!)*0.3,IF(K10="Asfalto c/ Paralelo",(E10*I10*J10-E10*J10*0.16-AT10-#REF!)*0.3))),"-"),"-"),"-") -> - | BA10: =IF(I10<=1.5,IF(J10<1.5,IF(K10="Paralelo",((E10*I10*J10-E10*J10*0.11-AT10-#REF!)*0.7)),IF(K10="Sem Pavimento",((E10*I10*J10-AT10-#REF!)*0.7),IF(K10="Asfalto c/ Paralelo",((E10*I10*J10-E10*J10*0.16-AT10-#REF!)*0.7),""))),"-") -> - | BB10: =IF(I10>1.5,IF(I10<=3,IF(J10<1.5,IF(K10="Paralelo",(E10*I10*J10-E10*J10*0.11-AT10-#REF!)*0.7,IF(K10="Sem Pavimento",(E10*I10*J10-AT10-#REF!)*0.7,IF(K10="Asfalto c/ Paralelo",(E10*I10*J10-E10*J10*0.16-AT10-#REF!)*0.7))),"-"),"-"),"-") -> - | BC10: =IF(I10<=1.5,IF(J10>=1.5,IF(K10="Paralelo",((E10*I10*J10-E10*J10*0.11-AT10-#REF!)*0.7)),IF(K10="Sem Pavimento",((E10*I10*J10-AT10-#REF!)*0.7),IF(K10="Asfalto c/ Paralelo",((E10*I10*J10-E10*J10*0.16-AT10-#REF!)*0.7),""))),"-") -> - | BD10: 167.6272 | BE10: =IF(I10>3,IF(I10<=4.5,IF(J10>=1.5,IF(K10="Paralelo",(E10*I10*J10-E10*J10*0.11-AT10-#REF!)*0.7,IF(K10="Sem Pavimento",(E10*I10*J10-AT10-#REF!)*0.7,IF(K10="Asfalto c/ Paralelo",(E10*I10*J10-E10*J10*0.16-AT10-#REF!)*0.7))),"-"),"-"),"-") -> - | BF10: =IF(I10>4.5,IF(I10<=6,IF(J10>=1.5,IF(K10="Paralelo",(E10*I10*J10-E10*J10*0.11-AT10-#REF!)*0.7,IF(K10="Sem Pavimento",(E10*I10*J10-AT10-#REF!)*0.7,IF(K10="Asfalto c/ Paralelo",(E10*I10*J10-E10*J10*0.16-AT10-#REF!)*0.7))),"-"),"-"),"-") -> - | BG10: 151.17 | BH10: 0
B11: T5 | C11: 4 | D11: 5 | E11: 145.61 | F11: 800 | G11: 1.84 | H11: 1.84 | I11: 1.84 | J11: =IF(F11="","",INDEX([144]Tabelas!A$1:G$17,VLOOKUP('MC - SERVIÇO ADUTORA - 1-3'!F11,[144]Tabelas!I$4:J$17,2,0),IF(AVERAGE(G11:H11)<1.25,2,IF(AVERAGE(G11:H11)<1.5,3,IF(AVERAGE(G11:H11)<3,4,IF(AVERAGE(G11:H11)<4.5,5,IF(AVERAGE(G11:H11)<6,6,IF(AVERAGE(G11:H11)>6,7)))))))) -> 2 | K11: Sem Pavimento | L11: 873.66 | M11: 0 | N11: 0 | O11: 0 | P11: 0 | Q11: 0.2080142857 | R11: 0.218415 | S11: 0 | T11: 0 | U11: 3 | V11: 291.22 | W11: - | X11: 20.3854 | Y11: - | AA11: - | AB11: 535.8448 | AC11: - | AD11: 5.358448 | AE11: - | AF11: - | AG11: - | AH11: - | AI11: - | AJ11: 450.109632 | AK11: - | AL11: - | AM11: - | AN11: 80.37672 | AO11: - | AP11: - | AQ11: - | AR11: - | AS11: - | AT11: 73.19156901 | AU11: =IF(I11<=1.5,IF(J11<1.5,IF(K11="Paralelo",((E11*I11*J11-E11*J11*0.11-AT11-#REF!)*0.3)),IF(K11="Sem Pavimento",((E11*I11*J11-AT11-#REF!)*0.3),IF(K11="Asfalto c/ Paralelo",((E11*I11*J11-E11*J11*0.16-AT11-#REF!)*0.3),""))),"-") -> - | AV11: =IF(I11>1.5,IF(I11<=3,IF(J11<1.5,IF(K11="Paralelo",(E11*I11*J11-E11*J11*0.11-AT11-#REF!)*0.3,IF(K11="Sem Pavimento",((E11*I11*J11-AT11-#REF!)*0.3),IF(K11="Asfalto c/ Paralelo",(E11*I11*J11-E11*J11*0.16-AT11-#REF!)*0))),"-"),"-"),"-") -> - | AW11: =IF(I11<=1.5,IF(J11>=1.5,IF(K11="Paralelo",((E11*I11*J11-E11*J11*0.11-AT11-#REF!)*0.3)),IF(K11="Sem Pavimento",((E11*I11*J11-AT11-#REF!)*0.3),IF(K11="Asfalto c/ Paralelo",((E11*I11*J11-E11*J11*0.16-AT11-#REF!)*0.3),""))),"-") -> - | AX11: =IF(I11>1.5,IF(I11<=3,IF(J11>=1.5,IF(K11="Paralelo",(((J11*E11*((F11/1000)))-AT11)),IF(K11="Sem Pavimento",(((J11*E11*((F11/1000)))-AT11)),IF(K11="Asfalto c/ Paralelo",(E11*I11*J11*0.75-E11*J11*0.16-AT11-#REF!)*0.3))),"-"),"-"),"-") -> 159.784431 | AY11: =IF(I11>3,IF(I11<=4.5,IF(J11>=1.5,IF(K11="Paralelo",(E11*I11*J11-E11*J11*0.11-AT11-#REF!)*0.3,IF(K11="Sem Pavimento",((E11*I11*J11-AT11-#REF!)*0.3),IF(K11="Asfalto c/ Paralelo",(E11*I11*J11-E11*J11*0.16-AT11-#REF!)*0.3))),"-"),"-"),"-") -> - | AZ11: =IF(I11>4.5,IF(I11<=6,IF(J11>=1.5,IF(K11="Paralelo",(E11*I11*J11-E11*J11*0.11-AT11-#REF!)*0.3,IF(K11="Sem Pavimento",(E11*I11*J11-AT11-#REF!)*0.3,IF(K11="Asfalto c/ Paralelo",(E11*I11*J11-E11*J11*0.16-AT11-#REF!)*0.3))),"-"),"-"),"-") -> - | BA11: =IF(I11<=1.5,IF(J11<1.5,IF(K11="Paralelo",((E11*I11*J11-E11*J11*0.11-AT11-#REF!)*0.7)),IF(K11="Sem Pavimento",((E11*I11*J11-AT11-#REF!)*0.7),IF(K11="Asfalto c/ Paralelo",((E11*I11*J11-E11*J11*0.16-AT11-#REF!)*0.7),""))),"-") -> - | BB11: =IF(I11>1.5,IF(I11<=3,IF(J11<1.5,IF(K11="Paralelo",(E11*I11*J11-E11*J11*0.11-AT11-#REF!)*0.7,IF(K11="Sem Pavimento",(E11*I11*J11-AT11-#REF!)*0.7,IF(K11="Asfalto c/ Paralelo",(E11*I11*J11-E11*J11*0.16-AT11-#REF!)*0.7))),"-"),"-"),"-") -> - | BC11: =IF(I11<=1.5,IF(J11>=1.5,IF(K11="Paralelo",((E11*I11*J11-E11*J11*0.11-AT11-#REF!)*0.7)),IF(K11="Sem Pavimento",((E11*I11*J11-AT11-#REF!)*0.7),IF(K11="Asfalto c/ Paralelo",((E11*I11*J11-E11*J11*0.16-AT11-#REF!)*0.7),""))),"-") -> - | BD11: 302.8688 | BE11: =IF(I11>3,IF(I11<=4.5,IF(J11>=1.5,IF(K11="Paralelo",(E11*I11*J11-E11*J11*0.11-AT11-#REF!)*0.7,IF(K11="Sem Pavimento",(E11*I11*J11-AT11-#REF!)*0.7,IF(K11="Asfalto c/ Paralelo",(E11*I11*J11-E11*J11*0.16-AT11-#REF!)*0.7))),"-"),"-"),"-") -> - | BF11: =IF(I11>4.5,IF(I11<=6,IF(J11>=1.5,IF(K11="Paralelo",(E11*I11*J11-E11*J11*0.11-AT11-#REF!)*0.7,IF(K11="Sem Pavimento",(E11*I11*J11-AT11-#REF!)*0.7,IF(K11="Asfalto c/ Paralelo",(E11*I11*J11-E11*J11*0.16-AT11-#REF!)*0.7))),"-"),"-"),"-") -> - | BG11: 273.14 | BH11: 0
B12: T6 | C12: 5 | D12: 6 | E12: 47.32 | F12: 800 | G12: 1.84 | H12: 1.84 | I12: 1.84 | J12: =IF(F12="","",INDEX([144]Tabelas!A$1:G$17,VLOOKUP('MC - SERVIÇO ADUTORA - 1-3'!F12,[144]Tabelas!I$4:J$17,2,0),IF(AVERAGE(G12:H12)<1.25,2,IF(AVERAGE(G12:H12)<1.5,3,IF(AVERAGE(G12:H12)<3,4,IF(AVERAGE(G12:H12)<4.5,5,IF(AVERAGE(G12:H12)<6,6,IF(AVERAGE(G12:H12)>6,7)))))))) -> 2 | K12: Sem Pavimento | L12: 283.92 | M12: 0 | N12: 0 | O12: 0 | P12: 0 | Q12: 0.0676 | R12: 0.07098 | S12: 0 | T12: 0 | U12: 1 | V12: 94.64 | W12: - | X12: 6.6248 | Y12: - | AA12: - | AB12: 174.1376 | AC12: - | AD12: 1.741376 | AE12: - | AF12: - | AG12: - | AH12: - | AI12: - | AJ12: 146.275584 | AK12: - | AL12: - | AM12: - | AN12: 26.12064 | AO12: - | AP12: - | AQ12: - | AR12: - | AS12: - | AT12: 23.7856263 | AU12: =IF(I12<=1.5,IF(J12<1.5,IF(K12="Paralelo",((E12*I12*J12-E12*J12*0.11-AT12-#REF!)*0.3)),IF(K12="Sem Pavimento",((E12*I12*J12-AT12-#REF!)*0.3),IF(K12="Asfalto c/ Paralelo",((E12*I12*J12-E12*J12*0.16-AT12-#REF!)*0.3),""))),"-") -> - | AV12: =IF(I12>1.5,IF(I12<=3,IF(J12<1.5,IF(K12="Paralelo",(E12*I12*J12-E12*J12*0.11-AT12-#REF!)*0.3,IF(K12="Sem Pavimento",((E12*I12*J12-AT12-#REF!)*0.3),IF(K12="Asfalto c/ Paralelo",(E12*I12*J12-E12*J12*0.16-AT12-#REF!)*0))),"-"),"-"),"-") -> - | AW12: =IF(I12<=1.5,IF(J12>=1.5,IF(K12="Paralelo",((E12*I12*J12-E12*J12*0.11-AT12-#REF!)*0.3)),IF(K12="Sem Pavimento",((E12*I12*J12-AT12-#REF!)*0.3),IF(K12="Asfalto c/ Paralelo",((E12*I12*J12-E12*J12*0.16-AT12-#REF!)*0.3),""))),"-") -> - | AX12: =IF(I12>1.5,IF(I12<=3,IF(J12>=1.5,IF(K12="Paralelo",(((J12*E12*((F12/1000)))-AT12)),IF(K12="Sem Pavimento",(((J12*E12*((F12/1000)))-AT12)),IF(K12="Asfalto c/ Paralelo",(E12*I12*J12*0.75-E12*J12*0.16-AT12-#REF!)*0.3))),"-"),"-"),"-") -> 51.9263737 | AY12: =IF(I12>3,IF(I12<=4.5,IF(J12>=1.5,IF(K12="Paralelo",(E12*I12*J12-E12*J12*0.11-AT12-#REF!)*0.3,IF(K12="Sem Pavimento",((E12*I12*J12-AT12-#REF!)*0.3),IF(K12="Asfalto c/ Paralelo",(E12*I12*J12-E12*J12*0.16-AT12-#REF!)*0.3))),"-"),"-"),"-") -> - | AZ12: =IF(I12>4.5,IF(I12<=6,IF(J12>=1.5,IF(K12="Paralelo",(E12*I12*J12-E12*J12*0.11-AT12-#REF!)*0.3,IF(K12="Sem Pavimento",(E12*I12*J12-AT12-#REF!)*0.3,IF(K12="Asfalto c/ Paralelo",(E12*I12*J12-E12*J12*0.16-AT12-#REF!)*0.3))),"-"),"-"),"-") -> - | BA12: =IF(I12<=1.5,IF(J12<1.5,IF(K12="Paralelo",((E12*I12*J12-E12*J12*0.11-AT12-#REF!)*0.7)),IF(K12="Sem Pavimento",((E12*I12*J12-AT12-#REF!)*0.7),IF(K12="Asfalto c/ Paralelo",((E12*I12*J12-E12*J12*0.16-AT12-#REF!)*0.7),""))),"-") -> - | BB12: =IF(I12>1.5,IF(I12<=3,IF(J12<1.5,IF(K12="Paralelo",(E12*I12*J12-E12*J12*0.11-AT12-#REF!)*0.7,IF(K12="Sem Pavimento",(E12*I12*J12-AT12-#REF!)*0.7,IF(K12="Asfalto c/ Paralelo",(E12*I12*J12-E12*J12*0.16-AT12-#REF!)*0.7))),"-"),"-"),"-") -> - | BC12: =IF(I12<=1.5,IF(J12>=1.5,IF(K12="Paralelo",((E12*I12*J12-E12*J12*0.11-AT12-#REF!)*0.7)),IF(K12="Sem Pavimento",((E12*I12*J12-AT12-#REF!)*0.7),IF(K12="Asfalto c/ Paralelo",((E12*I12*J12-E12*J12*0.16-AT12-#REF!)*0.7),""))),"-") -> - | BD12: 98.4256 | BE12: =IF(I12>3,IF(I12<=4.5,IF(J12>=1.5,IF(K12="Paralelo",(E12*I12*J12-E12*J12*0.11-AT12-#REF!)*0.7,IF(K12="Sem Pavimento",(E12*I12*J12-AT12-#REF!)*0.7,IF(K12="Asfalto c/ Paralelo",(E12*I12*J12-E12*J12*0.16-AT12-#REF!)*0.7))),"-"),"-"),"-") -> - | BF12: =IF(I12>4.5,IF(I12<=6,IF(J12>=1.5,IF(K12="Paralelo",(E12*I12*J12-E12*J12*0.11-AT12-#REF!)*0.7,IF(K12="Sem Pavimento",(E12*I12*J12-AT12-#REF!)*0.7,IF(K12="Asfalto c/ Paralelo",(E12*I12*J12-E12*J12*0.16-AT12-#REF!)*0.7))),"-"),"-"),"-") -> - | BG12: 88.76 | BH12: 0
B13: T7 | C13: 6 | D13: 7 | E13: 82.8 | F13: 800 | G13: 1.84 | H13: 1.84 | I13: 1.84 | J13: =IF(F13="","",INDEX([144]Tabelas!A$1:G$17,VLOOKUP('MC - SERVIÇO ADUTORA - 1-3'!F13,[144]Tabelas!I$4:J$17,2,0),IF(AVERAGE(G13:H13)<1.25,2,IF(AVERAGE(G13:H13)<1.5,3,IF(AVERAGE(G13:H13)<3,4,IF(AVERAGE(G13:H13)<4.5,5,IF(AVERAGE(G13:H13)<6,6,IF(AVERAGE(G13:H13)>6,7)))))))) -> 2 | K13: Sem Pavimento | L13: 496.8 | M13: 0 | N13: 0 | O13: 0 | P13: 0 | Q13: 0.1182857143 | R13: 0.1242 | S13: 0 | T13: 0 | U13: 2 | V13: 165.6 | W13: - | X13: 11.592 | Y13: - | AA13: - | AB13: 304.704 | AC13: - | AD13: 3.04704 | AE13: - | AF13: - | AG13: - | AH13: - | AI13: - | AJ13: 255.95136 | AK13: - | AL13: - | AM13: - | AN13: 45.7056 | AO13: - | AP13: - | AQ13: - | AR13: - | AS13: - | AT13: 41.61981947 | AU13: =IF(I13<=1.5,IF(J13<1.5,IF(K13="Paralelo",((E13*I13*J13-E13*J13*0.11-AT13-#REF!)*0.3)),IF(K13="Sem Pavimento",((E13*I13*J13-AT13-#REF!)*0.3),IF(K13="Asfalto c/ Paralelo",((E13*I13*J13-E13*J13*0.16-AT13-#REF!)*0.3),""))),"-") -> - | AV13: =IF(I13>1.5,IF(I13<=3,IF(J13<1.5,IF(K13="Paralelo",(E13*I13*J13-E13*J13*0.11-AT13-#REF!)*0.3,IF(K13="Sem Pavimento",((E13*I13*J13-AT13-#REF!)*0.3),IF(K13="Asfalto c/ Paralelo",(E13*I13*J13-E13*J13*0.16-AT13-#REF!)*0))),"-"),"-"),"-") -> - | AW13: =IF(I13<=1.5,IF(J13>=1.5,IF(K13="Paralelo",((E13*I13*J13-E13*J13*0.11-AT13-#REF!)*0.3)),IF(K13="Sem Pavimento",((E13*I13*J13-AT13-#REF!)*0.3),IF(K13="Asfalto c/ Paralelo",((E13*I13*J13-E13*J13*0.16-AT13-#REF!)*0.3),""))),"-") -> - | AX13: =IF(I13>1.5,IF(I13<=3,IF(J13>=1.5,IF(K13="Paralelo",(((J13*E13*((F13/1000)))-AT13)),IF(K13="Sem Pavimento",(((J13*E13*((F13/1000)))-AT13)),IF(K13="Asfalto c/ Paralelo",(E13*I13*J13*0.75-E13*J13*0.16-AT13-#REF!)*0.3))),"-"),"-"),"-") -> 90.86018053 | AY13: =IF(I13>3,IF(I13<=4.5,IF(J13>=1.5,IF(K13="Paralelo",(E13*I13*J13-E13*J13*0.11-AT13-#REF!)*0.3,IF(K13="Sem Pavimento",((E13*I13*J13-AT13-#REF!)*0.3),IF(K13="Asfalto c/ Paralelo",(E13*I13*J13-E13*J13*0.16-AT13-#REF!)*0.3))),"-"),"-"),"-") -> - | AZ13: =IF(I13>4.5,IF(I13<=6,IF(J13>=1.5,IF(K13="Paralelo",(E13*I13*J13-E13*J13*0.11-AT13-#REF!)*0.3,IF(K13="Sem Pavimento",(E13*I13*J13-AT13-#REF!)*0.3,IF(K13="Asfalto c/ Paralelo",(E13*I13*J13-E13*J13*0.16-AT13-#REF!)*0.3))),"-"),"-"),"-") -> - | BA13: =IF(I13<=1.5,IF(J13<1.5,IF(K13="Paralelo",((E13*I13*J13-E13*J13*0.11-AT13-#REF!)*0.7)),IF(K13="Sem Pavimento",((E13*I13*J13-AT13-#REF!)*0.7),IF(K13="Asfalto c/ Paralelo",((E13*I13*J13-E13*J13*0.16-AT13-#REF!)*0.7),""))),"-") -> - | BB13: =IF(I13>1.5,IF(I13<=3,IF(J13<1.5,IF(K13="Paralelo",(E13*I13*J13-E13*J13*0.11-AT13-#REF!)*0.7,IF(K13="Sem Pavimento",(E13*I13*J13-AT13-#REF!)*0.7,IF(K13="Asfalto c/ Paralelo",(E13*I13*J13-E13*J13*0.16-AT13-#REF!)*0.7))),"-"),"-"),"-") -> - | BC13: =IF(I13<=1.5,IF(J13>=1.5,IF(K13="Paralelo",((E13*I13*J13-E13*J13*0.11-AT13-#REF!)*0.7)),IF(K13="Sem Pavimento",((E13*I13*J13-AT13-#REF!)*0.7),IF(K13="Asfalto c/ Paralelo",((E13*I13*J13-E13*J13*0.16-AT13-#REF!)*0.7),""))),"-") -> - | BD13: 172.224 | BE13: =IF(I13>3,IF(I13<=4.5,IF(J13>=1.5,IF(K13="Paralelo",(E13*I13*J13-E13*J13*0.11-AT13-#REF!)*0.7,IF(K13="Sem Pavimento",(E13*I13*J13-AT13-#REF!)*0.7,IF(K13="Asfalto c/ Paralelo",(E13*I13*J13-E13*J13*0.16-AT13-#REF!)*0.7))),"-"),"-"),"-") -> - | BF13: =IF(I13>4.5,IF(I13<=6,IF(J13>=1.5,IF(K13="Paralelo",(E13*I13*J13-E13*J13*0.11-AT13-#REF!)*0.7,IF(K13="Sem Pavimento",(E13*I13*J13-AT13-#REF!)*0.7,IF(K13="Asfalto c/ Paralelo",(E13*I13*J13-E13*J13*0.16-AT13-#REF!)*0.7))),"-"),"-"),"-") -> - | BG13: 155.32 | BH13: 0
B14: T8 | C14: 7 | D14: 8 | E14: 122.93 | F14: 800 | G14: 1.84 | H14: 1.84 | I14: 1.84 | J14: =IF(F14="","",INDEX([144]Tabelas!A$1:G$17,VLOOKUP('MC - SERVIÇO ADUTORA - 1-3'!F14,[144]Tabelas!I$4:J$17,2,0),IF(AVERAGE(G14:H14)<1.25,2,IF(AVERAGE(G14:H14)<1.5,3,IF(AVERAGE(G14:H14)<3,4,IF(AVERAGE(G14:H14)<4.5,5,IF(AVERAGE(G14:H14)<6,6,IF(AVERAGE(G14:H14)>6,7)))))))) -> 2 | K14: Sem Pavimento | L14: 737.58 | M14: 0 | N14: 0 | O14: 0 | P14: 0 | Q14: 0.1756142857 | R14: 0.184395 | S14: 0 | T14: 0 | U14: 2 | V14: 245.86 | W14: - | X14: 17.2102 | Y14: - | AA14: - | AB14: 452.3824 | AC14: - | AD14: 4.523824 | AE14: - | AF14: - | AG14: - | AH14: - | AI14: - | AJ14: 380.001216 | AK14: - | AL14: - | AM14: - | AN14: 67.85736 | AO14: - | AP14: - | AQ14: - | AR14: - | AS14: - | AT14: 61.79135758 | AU14: =IF(I14<=1.5,IF(J14<1.5,IF(K14="Paralelo",((E14*I14*J14-E14*J14*0.11-AT14-#REF!)*0.3)),IF(K14="Sem Pavimento",((E14*I14*J14-AT14-#REF!)*0.3),IF(K14="Asfalto c/ Paralelo",((E14*I14*J14-E14*J14*0.16-AT14-#REF!)*0.3),""))),"-") -> - | AV14: =IF(I14>1.5,IF(I14<=3,IF(J14<1.5,IF(K14="Paralelo",(E14*I14*J14-E14*J14*0.11-AT14-#REF!)*0.3,IF(K14="Sem Pavimento",((E14*I14*J14-AT14-#REF!)*0.3),IF(K14="Asfalto c/ Paralelo",(E14*I14*J14-E14*J14*0.16-AT14-#REF!)*0))),"-"),"-"),"-") -> - | AW14: =IF(I14<=1.5,IF(J14>=1.5,IF(K14="Paralelo",((E14*I14*J14-E14*J14*0.11-AT14-#REF!)*0.3)),IF(K14="Sem Pavimento",((E14*I14*J14-AT14-#REF!)*0.3),IF(K14="Asfalto c/ Paralelo",((E14*I14*J14-E14*J14*0.16-AT14-#REF!)*0.3),""))),"-") -> - | AX14: =IF(I14>1.5,IF(I14<=3,IF(J14>=1.5,IF(K14="Paralelo",(((J14*E14*((F14/1000)))-AT14)),IF(K14="Sem Pavimento",(((J14*E14*((F14/1000)))-AT14)),IF(K14="Asfalto c/ Paralelo",(E14*I14*J14*0.75-E14*J14*0.16-AT14-#REF!)*0.3))),"-"),"-"),"-") -> 134.8966424 | AY14: =IF(I14>3,IF(I14<=4.5,IF(J14>=1.5,IF(K14="Paralelo",(E14*I14*J14-E14*J14*0.11-AT14-#REF!)*0.3,IF(K14="Sem Pavimento",((E14*I14*J14-AT14-#REF!)*0.3),IF(K14="Asfalto c/ Paralelo",(E14*I14*J14-E14*J14*0.16-AT14-#REF!)*0.3))),"-"),"-"),"-") -> - | AZ14: =IF(I14>4.5,IF(I14<=6,IF(J14>=1.5,IF(K14="Paralelo",(E14*I14*J14-E14*J14*0.11-AT14-#REF!)*0.3,IF(K14="Sem Pavimento",(E14*I14*J14-AT14-#REF!)*0.3,IF(K14="Asfalto c/ Paralelo",(E14*I14*J14-E14*J14*0.16-AT14-#REF!)*0.3))),"-"),"-"),"-") -> - | BA14: =IF(I14<=1.5,IF(J14<1.5,IF(K14="Paralelo",((E14*I14*J14-E14*J14*0.11-AT14-#REF!)*0.7)),IF(K14="Sem Pavimento",((E14*I14*J14-AT14-#REF!)*0.7),IF(K14="Asfalto c/ Paralelo",((E14*I14*J14-E14*J14*0.16-AT14-#REF!)*0.7),""))),"-") -> - | BB14: =IF(I14>1.5,IF(I14<=3,IF(J14<1.5,IF(K14="Paralelo",(E14*I14*J14-E14*J14*0.11-AT14-#REF!)*0.7,IF(K14="Sem Pavimento",(E14*I14*J14-AT14-#REF!)*0.7,IF(K14="Asfalto c/ Paralelo",(E14*I14*J14-E14*J14*0.16-AT14-#REF!)*0.7))),"-"),"-"),"-") -> - | BC14: =IF(I14<=1.5,IF(J14>=1.5,IF(K14="Paralelo",((E14*I14*J14-E14*J14*0.11-AT14-#REF!)*0.7)),IF(K14="Sem Pavimento",((E14*I14*J14-AT14-#REF!)*0.7),IF(K14="Asfalto c/ Paralelo",((E14*I14*J14-E14*J14*0.16-AT14-#REF!)*0.7),""))),"-") -> - | BD14: 255.6944 | BE14: =IF(I14>3,IF(I14<=4.5,IF(J14>=1.5,IF(K14="Paralelo",(E14*I14*J14-E14*J14*0.11-AT14-#REF!)*0.7,IF(K14="Sem Pavimento",(E14*I14*J14-AT14-#REF!)*0.7,IF(K14="Asfalto c/ Paralelo",(E14*I14*J14-E14*J14*0.16-AT14-#REF!)*0.7))),"-"),"-"),"-") -> - | BF14: =IF(I14>4.5,IF(I14<=6,IF(J14>=1.5,IF(K14="Paralelo",(E14*I14*J14-E14*J14*0.11-AT14-#REF!)*0.7,IF(K14="Sem Pavimento",(E14*I14*J14-AT14-#REF!)*0.7,IF(K14="Asfalto c/ Paralelo",(E14*I14*J14-E14*J14*0.16-AT14-#REF!)*0.7))),"-"),"-"),"-") -> - | BG14: 230.6 | BH14: 0
B15: T9 | C15: 8 | D15: 9 | E15: 122.8 | F15: 800 | G15: 1.84 | H15: 1.84 | I15: 1.84 | J15: =IF(F15="","",INDEX([144]Tabelas!A$1:G$17,VLOOKUP('MC - SERVIÇO ADUTORA - 1-3'!F15,[144]Tabelas!I$4:J$17,2,0),IF(AVERAGE(G15:H15)<1.25,2,IF(AVERAGE(G15:H15)<1.5,3,IF(AVERAGE(G15:H15)<3,4,IF(AVERAGE(G15:H15)<4.5,5,IF(AVERAGE(G15:H15)<6,6,IF(AVERAGE(G15:H15)>6,7)))))))) -> 2 | K15: Sem Pavimento | L15: 736.8 | M15: 0 | N15: 0 | O15: 0 | P15: 0 | Q15: 0.1754285714 | R15: 0.1842 | S15: 0 | T15: 0 | U15: 2 | V15: 245.6 | W15: - | X15: 17.192 | Y15: - | AA15: - | AB15: 451.904 | AC15: - | AD15: 4.51904 | AE15: - | AF15: - | AG15: - | AH15: - | AI15: - | AJ15: 379.59936 | AK15: - | AL15: - | AM15: - | AN15: 67.7856 | AO15: - | AP15: - | AQ15: - | AR15: - | AS15: - | AT15: 61.72601246 | AU15: =IF(I15<=1.5,IF(J15<1.5,IF(K15="Paralelo",((E15*I15*J15-E15*J15*0.11-AT15-#REF!)*0.3)),IF(K15="Sem Pavimento",((E15*I15*J15-AT15-#REF!)*0.3),IF(K15="Asfalto c/ Paralelo",((E15*I15*J15-E15*J15*0.16-AT15-#REF!)*0.3),""))),"-") -> - | AV15: =IF(I15>1.5,IF(I15<=3,IF(J15<1.5,IF(K15="Paralelo",(E15*I15*J15-E15*J15*0.11-AT15-#REF!)*0.3,IF(K15="Sem Pavimento",((E15*I15*J15-AT15-#REF!)*0.3),IF(K15="Asfalto c/ Paralelo",(E15*I15*J15-E15*J15*0.16-AT15-#REF!)*0))),"-"),"-"),"-") -> - | AW15: =IF(I15<=1.5,IF(J15>=1.5,IF(K15="Paralelo",((E15*I15*J15-E15*J15*0.11-AT15-#REF!)*0.3)),IF(K15="Sem Pavimento",((E15*I15*J15-AT15-#REF!)*0.3),IF(K15="Asfalto c/ Paralelo",((E15*I15*J15-E15*J15*0.16-AT15-#REF!)*0.3),""))),"-") -> - | AX15: =IF(I15>1.5,IF(I15<=3,IF(J15>=1.5,IF(K15="Paralelo",(((J15*E15*((F15/1000)))-AT15)),IF(K15="Sem Pavimento",(((J15*E15*((F15/1000)))-AT15)),IF(K15="Asfalto c/ Paralelo",(E15*I15*J15*0.75-E15*J15*0.16-AT15-#REF!)*0.3))),"-"),"-"),"-") -> 134.7539875 | AY15: =IF(I15>3,IF(I15<=4.5,IF(J15>=1.5,IF(K15="Paralelo",(E15*I15*J15-E15*J15*0.11-AT15-#REF!)*0.3,IF(K15="Sem Pavimento",((E15*I15*J15-AT15-#REF!)*0.3),IF(K15="Asfalto c/ Paralelo",(E15*I15*J15-E15*J15*0.16-AT15-#REF!)*0.3))),"-"),"-"),"-") -> - | AZ15: =IF(I15>4.5,IF(I15<=6,IF(J15>=1.5,IF(K15="Paralelo",(E15*I15*J15-E15*J15*0.11-AT15-#REF!)*0.3,IF(K15="Sem Pavimento",(E15*I15*J15-AT15-#REF!)*0.3,IF(K15="Asfalto c/ Paralelo",(E15*I15*J15-E15*J15*0.16-AT15-#REF!)*0.3))),"-"),"-"),"-") -> - | BA15: =IF(I15<=1.5,IF(J15<1.5,IF(K15="Paralelo",((E15*I15*J15-E15*J15*0.11-AT15-#REF!)*0.7)),IF(K15="Sem Pavimento",((E15*I15*J15-AT15-#REF!)*0.7),IF(K15="Asfalto c/ Paralelo",((E15*I15*J15-E15*J15*0.16-AT15-#REF!)*0.7),""))),"-") -> - | BB15: =IF(I15>1.5,IF(I15<=3,IF(J15<1.5,IF(K15="Paralelo",(E15*I15*J15-E15*J15*0.11-AT15-#REF!)*0.7,IF(K15="Sem Pavimento",(E15*I15*J15-AT15-#REF!)*0.7,IF(K15="Asfalto c/ Paralelo",(E15*I15*J15-E15*J15*0.16-AT15-#REF!)*0.7))),"-"),"-"),"-") -> - | BC15: =IF(I15<=1.5,IF(J15>=1.5,IF(K15="Paralelo",((E15*I15*J15-E15*J15*0.11-AT15-#REF!)*0.7)),IF(K15="Sem Pavimento",((E15*I15*J15-AT15-#REF!)*0.7),IF(K15="Asfalto c/ Paralelo",((E15*I15*J15-E15*J15*0.16-AT15-#REF!)*0.7),""))),"-") -> - | BD15: 255.424 | BE15: =IF(I15>3,IF(I15<=4.5,IF(J15>=1.5,IF(K15="Paralelo",(E15*I15*J15-E15*J15*0.11-AT15-#REF!)*0.7,IF(K15="Sem Pavimento",(E15*I15*J15-AT15-#REF!)*0.7,IF(K15="Asfalto c/ Paralelo",(E15*I15*J15-E15*J15*0.16-AT15-#REF!)*0.7))),"-"),"-"),"-") -> - | BF15: =IF(I15>4.5,IF(I15<=6,IF(J15>=1.5,IF(K15="Paralelo",(E15*I15*J15-E15*J15*0.11-AT15-#REF!)*0.7,IF(K15="Sem Pavimento",(E15*I15*J15-AT15-#REF!)*0.7,IF(K15="Asfalto c/ Paralelo",(E15*I15*J15-E15*J15*0.16-AT15-#REF!)*0.7))),"-"),"-"),"-") -> - | BG15: 230.35 | BH15: 0
B16: T10 | C16: 9 | D16: 10 | E16: 120.17 | F16: 800 | G16: 1.84 | H16: 1.84 | I16: 1.84 | J16: =IF(F16="","",INDEX([144]Tabelas!A$1:G$17,VLOOKUP('MC - SERVIÇO ADUTORA - 1-3'!F16,[144]Tabelas!I$4:J$17,2,0),IF(AVERAGE(G16:H16)<1.25,2,IF(AVERAGE(G16:H16)<1.5,3,IF(AVERAGE(G16:H16)<3,4,IF(AVERAGE(G16:H16)<4.5,5,IF(AVERAGE(G16:H16)<6,6,IF(AVERAGE(G16:H16)>6,7)))))))) -> 2 | K16: Sem Pavimento | L16: 721.02 | M16: 0 | N16: 0 | O16: 0 | P16: 0 | Q16: 0.1716714286 | R16: 0.180255 | S16: 0 | T16: 0 | U16: 2 | V16: 240.34 | W16: - | X16: 16.8238 | Y16: - | AA16: - | AB16: 442.2256 | AC16: - | AD16: 4.422256 | AE16: - | AF16: - | AG16: - | AH16: - | AI16: - | AJ16: 371.469504 | AK16: - | AL16: - | AM16: - | AN16: 66.33384 | AO16: - | AP16: - | AQ16: - | AR16: - | AS16: - | AT16: 60.40403027 | AU16: =IF(I16<=1.5,IF(J16<1.5,IF(K16="Paralelo",((E16*I16*J16-E16*J16*0.11-AT16-#REF!)*0.3)),IF(K16="Sem Pavimento",((E16*I16*J16-AT16-#REF!)*0.3),IF(K16="Asfalto c/ Paralelo",((E16*I16*J16-E16*J16*0.16-AT16-#REF!)*0.3),""))),"-") -> - | AV16: =IF(I16>1.5,IF(I16<=3,IF(J16<1.5,IF(K16="Paralelo",(E16*I16*J16-E16*J16*0.11-AT16-#REF!)*0.3,IF(K16="Sem Pavimento",((E16*I16*J16-AT16-#REF!)*0.3),IF(K16="Asfalto c/ Paralelo",(E16*I16*J16-E16*J16*0.16-AT16-#REF!)*0))),"-"),"-"),"-") -> - | AW16: =IF(I16<=1.5,IF(J16>=1.5,IF(K16="Paralelo",((E16*I16*J16-E16*J16*0.11-AT16-#REF!)*0.3)),IF(K16="Sem Pavimento",((E16*I16*J16-AT16-#REF!)*0.3),IF(K16="Asfalto c/ Paralelo",((E16*I16*J16-E16*J16*0.16-AT16-#REF!)*0.3),""))),"-") -> - | AX16: =IF(I16>1.5,IF(I16<=3,IF(J16>=1.5,IF(K16="Paralelo",(((J16*E16*((F16/1000)))-AT16)),IF(K16="Sem Pavimento",(((J16*E16*((F16/1000)))-AT16)),IF(K16="Asfalto c/ Paralelo",(E16*I16*J16*0.75-E16*J16*0.16-AT16-#REF!)*0.3))),"-"),"-"),"-") -> 131.8679697 | AY16: =IF(I16>3,IF(I16<=4.5,IF(J16>=1.5,IF(K16="Paralelo",(E16*I16*J16-E16*J16*0.11-AT16-#REF!)*0.3,IF(K16="Sem Pavimento",((E16*I16*J16-AT16-#REF!)*0.3),IF(K16="Asfalto c/ Paralelo",(E16*I16*J16-E16*J16*0.16-AT16-#REF!)*0.3))),"-"),"-"),"-") -> - | AZ16: =IF(I16>4.5,IF(I16<=6,IF(J16>=1.5,IF(K16="Paralelo",(E16*I16*J16-E16*J16*0.11-AT16-#REF!)*0.3,IF(K16="Sem Pavimento",(E16*I16*J16-AT16-#REF!)*0.3,IF(K16="Asfalto c/ Paralelo",(E16*I16*J16-E16*J16*0.16-AT16-#REF!)*0.3))),"-"),"-"),"-") -> - | BA16: =IF(I16<=1.5,IF(J16<1.5,IF(K16="Paralelo",((E16*I16*J16-E16*J16*0.11-AT16-#REF!)*0.7)),IF(K16="Sem Pavimento",((E16*I16*J16-AT16-#REF!)*0.7),IF(K16="Asfalto c/ Paralelo",((E16*I16*J16-E16*J16*0.16-AT16-#REF!)*0.7),""))),"-") -> - | BB16: =IF(I16>1.5,IF(I16<=3,IF(J16<1.5,IF(K16="Paralelo",(E16*I16*J16-E16*J16*0.11-AT16-#REF!)*0.7,IF(K16="Sem Pavimento",(E16*I16*J16-AT16-#REF!)*0.7,IF(K16="Asfalto c/ Paralelo",(E16*I16*J16-E16*J16*0.16-AT16-#REF!)*0.7))),"-"),"-"),"-") -> - | BC16: =IF(I16<=1.5,IF(J16>=1.5,IF(K16="Paralelo",((E16*I16*J16-E16*J16*0.11-AT16-#REF!)*0.7)),IF(K16="Sem Pavimento",((E16*I16*J16-AT16-#REF!)*0.7),IF(K16="Asfalto c/ Paralelo",((E16*I16*J16-E16*J16*0.16-AT16-#REF!)*0.7),""))),"-") -> - | BD16: 249.9536 | BE16: =IF(I16>3,IF(I16<=4.5,IF(J16>=1.5,IF(K16="Paralelo",(E16*I16*J16-E16*J16*0.11-AT16-#REF!)*0.7,IF(K16="Sem Pavimento",(E16*I16*J16-AT16-#REF!)*0.7,IF(K16="Asfalto c/ Paralelo",(E16*I16*J16-E16*J16*0.16-AT16-#REF!)*0.7))),"-"),"-"),"-") -> - | BF16: =IF(I16>4.5,IF(I16<=6,IF(J16>=1.5,IF(K16="Paralelo",(E16*I16*J16-E16*J16*0.11-AT16-#REF!)*0.7,IF(K16="Sem Pavimento",(E16*I16*J16-AT16-#REF!)*0.7,IF(K16="Asfalto c/ Paralelo",(E16*I16*J16-E16*J16*0.16-AT16-#REF!)*0.7))),"-"),"-"),"-") -> - | BG16: 225.42 | BH16: 0
B17: T11 | C17: 10 | D17: 11 | E17: 157.54 | F17: 800 | G17: 1.84 | H17: 1.84 | I17: 1.84 | J17: =IF(F17="","",INDEX([144]Tabelas!A$1:G$17,VLOOKUP('MC - SERVIÇO ADUTORA - 1-3'!F17,[144]Tabelas!I$4:J$17,2,0),IF(AVERAGE(G17:H17)<1.25,2,IF(AVERAGE(G17:H17)<1.5,3,IF(AVERAGE(G17:H17)<3,4,IF(AVERAGE(G17:H17)<4.5,5,IF(AVERAGE(G17:H17)<6,6,IF(AVERAGE(G17:H17)>6,7)))))))) -> 2 | K17: Sem Pavimento | L17: 945.24 | M17: 0 | N17: 0 | O17: 0 | P17: 0 | Q17: 0.2250571429 | R17: 0.23631 | S17: 0 | T17: 0 | U17: 3 | V17: 315.08 | W17: - | X17: 22.0556 | Y17: - | AA17: - | AB17: 579.7472 | AC17: - | AD17: 5.797472 | AE17: - | AF17: - | AG17: - | AH17: - | AI17: - | AJ17: 486.987648 | AK17: - | AL17: - | AM17: - | AN17: 86.96208 | AO17: - | AP17: - | AQ17: - | AR17: - | AS17: - | AT17: 79.18824106 | AU17: =IF(I17<=1.5,IF(J17<1.5,IF(K17="Paralelo",((E17*I17*J17-E17*J17*0.11-AT17-#REF!)*0.3)),IF(K17="Sem Pavimento",((E17*I17*J17-AT17-#REF!)*0.3),IF(K17="Asfalto c/ Paralelo",((E17*I17*J17-E17*J17*0.16-AT17-#REF!)*0.3),""))),"-") -> - | AV17: =IF(I17>1.5,IF(I17<=3,IF(J17<1.5,IF(K17="Paralelo",(E17*I17*J17-E17*J17*0.11-AT17-#REF!)*0.3,IF(K17="Sem Pavimento",((E17*I17*J17-AT17-#REF!)*0.3),IF(K17="Asfalto c/ Paralelo",(E17*I17*J17-E17*J17*0.16-AT17-#REF!)*0))),"-"),"-"),"-") -> - | AW17: =IF(I17<=1.5,IF(J17>=1.5,IF(K17="Paralelo",((E17*I17*J17-E17*J17*0.11-AT17-#REF!)*0.3)),IF(K17="Sem Pavimento",((E17*I17*J17-AT17-#REF!)*0.3),IF(K17="Asfalto c/ Paralelo",((E17*I17*J17-E17*J17*0.16-AT17-#REF!)*0.3),""))),"-") -> - | AX17: =IF(I17>1.5,IF(I17<=3,IF(J17>=1.5,IF(K17="Paralelo",(((J17*E17*((F17/1000)))-AT17)),IF(K17="Sem Pavimento",(((J17*E17*((F17/1000)))-AT17)),IF(K17="Asfalto c/ Paralelo",(E17*I17*J17*0.75-E17*J17*0.16-AT17-#REF!)*0.3))),"-"),"-"),"-") -> 172.8757589 | AY17: =IF(I17>3,IF(I17<=4.5,IF(J17>=1.5,IF(K17="Paralelo",(E17*I17*J17-E17*J17*0.11-AT17-#REF!)*0.3,IF(K17="Sem Pavimento",((E17*I17*J17-AT17-#REF!)*0.3),IF(K17="Asfalto c/ Paralelo",(E17*I17*J17-E17*J17*0.16-AT17-#REF!)*0.3))),"-"),"-"),"-") -> - | AZ17: =IF(I17>4.5,IF(I17<=6,IF(J17>=1.5,IF(K17="Paralelo",(E17*I17*J17-E17*J17*0.11-AT17-#REF!)*0.3,IF(K17="Sem Pavimento",(E17*I17*J17-AT17-#REF!)*0.3,IF(K17="Asfalto c/ Paralelo",(E17*I17*J17-E17*J17*0.16-AT17-#REF!)*0.3))),"-"),"-"),"-") -> - | BA17: =IF(I17<=1.5,IF(J17<1.5,IF(K17="Paralelo",((E17*I17*J17-E17*J17*0.11-AT17-#REF!)*0.7)),IF(K17="Sem Pavimento",((E17*I17*J17-AT17-#REF!)*0.7),IF(K17="Asfalto c/ Paralelo",((E17*I17*J17-E17*J17*0.16-AT17-#REF!)*0.7),""))),"-") -> - | BB17: =IF(I17>1.5,IF(I17<=3,IF(J17<1.5,IF(K17="Paralelo",(E17*I17*J17-E17*J17*0.11-AT17-#REF!)*0.7,IF(K17="Sem Pavimento",(E17*I17*J17-AT17-#REF!)*0.7,IF(K17="Asfalto c/ Paralelo",(E17*I17*J17-E17*J17*0.16-AT17-#REF!)*0.7))),"-"),"-"),"-") -> - | BC17: =IF(I17<=1.5,IF(J17>=1.5,IF(K17="Paralelo",((E17*I17*J17-E17*J17*0.11-AT17-#REF!)*0.7)),IF(K17="Sem Pavimento",((E17*I17*J17-AT17-#REF!)*0.7),IF(K17="Asfalto c/ Paralelo",((E17*I17*J17-E17*J17*0.16-AT17-#REF!)*0.7),""))),"-") -> - | BD17: 327.6832 | BE17: =IF(I17>3,IF(I17<=4.5,IF(J17>=1.5,IF(K17="Paralelo",(E17*I17*J17-E17*J17*0.11-AT17-#REF!)*0.7,IF(K17="Sem Pavimento",(E17*I17*J17-AT17-#REF!)*0.7,IF(K17="Asfalto c/ Paralelo",(E17*I17*J17-E17*J17*0.16-AT17-#REF!)*0.7))),"-"),"-"),"-") -> - | BF17: =IF(I17>4.5,IF(I17<=6,IF(J17>=1.5,IF(K17="Paralelo",(E17*I17*J17-E17*J17*0.11-AT17-#REF!)*0.7,IF(K17="Sem Pavimento",(E17*I17*J17-AT17-#REF!)*0.7,IF(K17="Asfalto c/ Paralelo",(E17*I17*J17-E17*J17*0.16-AT17-#REF!)*0.7))),"-"),"-"),"-") -> - | BG17: 295.52 | BH17: 0
B18: T12 | C18: 11 | D18: 12 | E18: 122.92 | F18: 800 | G18: 1.84 | H18: 1.84 | I18: 1.84 | J18: =IF(F18="","",INDEX([144]Tabelas!A$1:G$17,VLOOKUP('MC - SERVIÇO ADUTORA - 1-3'!F18,[144]Tabelas!I$4:J$17,2,0),IF(AVERAGE(G18:H18)<1.25,2,IF(AVERAGE(G18:H18)<1.5,3,IF(AVERAGE(G18:H18)<3,4,IF(AVERAGE(G18:H18)<4.5,5,IF(AVERAGE(G18:H18)<6,6,IF(AVERAGE(G18:H18)>6,7)))))))) -> 2 | K18: Sem Pavimento | L18: 737.52 | M18: 0 | N18: 0 | O18: 0 | P18: 0 | Q18: 0.1756 | R18: 0.18438 | S18: 0 | T18: 0 | U18: 2 | V18: 245.84 | W18: - | X18: 17.2088 | Y18: - | AA18: - | AB18: 452.3456 | AC18: - | AD18: 4.523456 | AE18: - | AF18: - | AG18: - | AH18: - | AI18: - | AJ18: 379.970304 | AK18: - | AL18: - | AM18: - | AN18: 67.85184 | AO18: - | AP18: - | AQ18: - | AR18: - | AS18: - | AT18: 61.78633104 | AU18: =IF(I18<=1.5,IF(J18<1.5,IF(K18="Paralelo",((E18*I18*J18-E18*J18*0.11-AT18-#REF!)*0.3)),IF(K18="Sem Pavimento",((E18*I18*J18-AT18-#REF!)*0.3),IF(K18="Asfalto c/ Paralelo",((E18*I18*J18-E18*J18*0.16-AT18-#REF!)*0.3),""))),"-") -> - | AV18: =IF(I18>1.5,IF(I18<=3,IF(J18<1.5,IF(K18="Paralelo",(E18*I18*J18-E18*J18*0.11-AT18-#REF!)*0.3,IF(K18="Sem Pavimento",((E18*I18*J18-AT18-#REF!)*0.3),IF(K18="Asfalto c/ Paralelo",(E18*I18*J18-E18*J18*0.16-AT18-#REF!)*0))),"-"),"-"),"-") -> - | AW18: =IF(I18<=1.5,IF(J18>=1.5,IF(K18="Paralelo",((E18*I18*J18-E18*J18*0.11-AT18-#REF!)*0.3)),IF(K18="Sem Pavimento",((E18*I18*J18-AT18-#REF!)*0.3),IF(K18="Asfalto c/ Paralelo",((E18*I18*J18-E18*J18*0.16-AT18-#REF!)*0.3),""))),"-") -> - | AX18: =IF(I18>1.5,IF(I18<=3,IF(J18>=1.5,IF(K18="Paralelo",(((J18*E18*((F18/1000)))-AT18)),IF(K18="Sem Pavimento",(((J18*E18*((F18/1000)))-AT18)),IF(K18="Asfalto c/ Paralelo",(E18*I18*J18*0.75-E18*J18*0.16-AT18-#REF!)*0.3))),"-"),"-"),"-") -> 134.885669 | AY18: =IF(I18>3,IF(I18<=4.5,IF(J18>=1.5,IF(K18="Paralelo",(E18*I18*J18-E18*J18*0.11-AT18-#REF!)*0.3,IF(K18="Sem Pavimento",((E18*I18*J18-AT18-#REF!)*0.3),IF(K18="Asfalto c/ Paralelo",(E18*I18*J18-E18*J18*0.16-AT18-#REF!)*0.3))),"-"),"-"),"-") -> - | AZ18: =IF(I18>4.5,IF(I18<=6,IF(J18>=1.5,IF(K18="Paralelo",(E18*I18*J18-E18*J18*0.11-AT18-#REF!)*0.3,IF(K18="Sem Pavimento",(E18*I18*J18-AT18-#REF!)*0.3,IF(K18="Asfalto c/ Paralelo",(E18*I18*J18-E18*J18*0.16-AT18-#REF!)*0.3))),"-"),"-"),"-") -> - | BA18: =IF(I18<=1.5,IF(J18<1.5,IF(K18="Paralelo",((E18*I18*J18-E18*J18*0.11-AT18-#REF!)*0.7)),IF(K18="Sem Pavimento",((E18*I18*J18-AT18-#REF!)*0.7),IF(K18="Asfalto c/ Paralelo",((E18*I18*J18-E18*J18*0.16-AT18-#REF!)*0.7),""))),"-") -> - | BB18: =IF(I18>1.5,IF(I18<=3,IF(J18<1.5,IF(K18="Paralelo",(E18*I18*J18-E18*J18*0.11-AT18-#REF!)*0.7,IF(K18="Sem Pavimento",(E18*I18*J18-AT18-#REF!)*0.7,IF(K18="Asfalto c/ Paralelo",(E18*I18*J18-E18*J18*0.16-AT18-#REF!)*0.7))),"-"),"-"),"-") -> - | BC18: =IF(I18<=1.5,IF(J18>=1.5,IF(K18="Paralelo",((E18*I18*J18-E18*J18*0.11-AT18-#REF!)*0.7)),IF(K18="Sem Pavimento",((E18*I18*J18-AT18-#REF!)*0.7),IF(K18="Asfalto c/ Paralelo",((E18*I18*J18-E18*J18*0.16-AT18-#REF!)*0.7),""))),"-") -> - | BD18: 255.6736 | BE18: =IF(I18>3,IF(I18<=4.5,IF(J18>=1.5,IF(K18="Paralelo",(E18*I18*J18-E18*J18*0.11-AT18-#REF!)*0.7,IF(K18="Sem Pavimento",(E18*I18*J18-AT18-#REF!)*0.7,IF(K18="Asfalto c/ Paralelo",(E18*I18*J18-E18*J18*0.16-AT18-#REF!)*0.7))),"-"),"-"),"-") -> - | BF18: =IF(I18>4.5,IF(I18<=6,IF(J18>=1.5,IF(K18="Paralelo",(E18*I18*J18-E18*J18*0.11-AT18-#REF!)*0.7,IF(K18="Sem Pavimento",(E18*I18*J18-AT18-#REF!)*0.7,IF(K18="Asfalto c/ Paralelo",(E18*I18*J18-E18*J18*0.16-AT18-#REF!)*0.7))),"-"),"-"),"-") -> - | BG18: 230.58 | BH18: 0
B19: T13 | C19: 12 | D19: 13 | E19: 176.2 | F19: 800 | G19: 1.84 | H19: 1.84 | I19: 1.84 | J19: =IF(F19="","",INDEX([144]Tabelas!A$1:G$17,VLOOKUP('MC - SERVIÇO ADUTORA - 1-3'!F19,[144]Tabelas!I$4:J$17,2,0),IF(AVERAGE(G19:H19)<1.25,2,IF(AVERAGE(G19:H19)<1.5,3,IF(AVERAGE(G19:H19)<3,4,IF(AVERAGE(G19:H19)<4.5,5,IF(AVERAGE(G19:H19)<6,6,IF(AVERAGE(G19:H19)>6,7)))))))) -> 2 | K19: Sem Pavimento | L19: 1057.2 | M19: 0 | N19: 0 | O19: 0 | P19: 0 | Q19: 0.2517142857 | R19: 0.2643 | S19: 0 | T19: 0 | U19: 4 | V19: 352.4 | W19: - | X19: 24.668 | Y19: - | AA19: - | AB19: 648.416 | AC19: - | AD19: 6.48416 | AE19: - | AF19: - | AG19: - | AH19: - | AI19: - | AJ19: 544.66944 | AK19: - | AL19: - | AM19: - | AN19: 97.2624 | AO19: - | AP19: - | AQ19: - | AR19: - | AS19: - | AT19: 88.56778009 | AU19: =IF(I19<=1.5,IF(J19<1.5,IF(K19="Paralelo",((E19*I19*J19-E19*J19*0.11-AT19-#REF!)*0.3)),IF(K19="Sem Pavimento",((E19*I19*J19-AT19-#REF!)*0.3),IF(K19="Asfalto c/ Paralelo",((E19*I19*J19-E19*J19*0.16-AT19-#REF!)*0.3),""))),"-") -> - | AV19: =IF(I19>1.5,IF(I19<=3,IF(J19<1.5,IF(K19="Paralelo",(E19*I19*J19-E19*J19*0.11-AT19-#REF!)*0.3,IF(K19="Sem Pavimento",((E19*I19*J19-AT19-#REF!)*0.3),IF(K19="Asfalto c/ Paralelo",(E19*I19*J19-E19*J19*0.16-AT19-#REF!)*0))),"-"),"-"),"-") -> - | AW19: =IF(I19<=1.5,IF(J19>=1.5,IF(K19="Paralelo",((E19*I19*J19-E19*J19*0.11-AT19-#REF!)*0.3)),IF(K19="Sem Pavimento",((E19*I19*J19-AT19-#REF!)*0.3),IF(K19="Asfalto c/ Paralelo",((E19*I19*J19-E19*J19*0.16-AT19-#REF!)*0.3),""))),"-") -> - | AX19: =IF(I19>1.5,IF(I19<=3,IF(J19>=1.5,IF(K19="Paralelo",(((J19*E19*((F19/1000)))-AT19)),IF(K19="Sem Pavimento",(((J19*E19*((F19/1000)))-AT19)),IF(K19="Asfalto c/ Paralelo",(E19*I19*J19*0.75-E19*J19*0.16-AT19-#REF!)*0.3))),"-"),"-"),"-") -> 193.3522199 | AY19: =IF(I19>3,IF(I19<=4.5,IF(J19>=1.5,IF(K19="Paralelo",(E19*I19*J19-E19*J19*0.11-AT19-#REF!)*0.3,IF(K19="Sem Pavimento",((E19*I19*J19-AT19-#REF!)*0.3),IF(K19="Asfalto c/ Paralelo",(E19*I19*J19-E19*J19*0.16-AT19-#REF!)*0.3))),"-"),"-"),"-") -> - | AZ19: =IF(I19>4.5,IF(I19<=6,IF(J19>=1.5,IF(K19="Paralelo",(E19*I19*J19-E19*J19*0.11-AT19-#REF!)*0.3,IF(K19="Sem Pavimento",(E19*I19*J19-AT19-#REF!)*0.3,IF(K19="Asfalto c/ Paralelo",(E19*I19*J19-E19*J19*0.16-AT19-#REF!)*0.3))),"-"),"-"),"-") -> - | BA19: =IF(I19<=1.5,IF(J19<1.5,IF(K19="Paralelo",((E19*I19*J19-E19*J19*0.11-AT19-#REF!)*0.7)),IF(K19="Sem Pavimento",((E19*I19*J19-AT19-#REF!)*0.7),IF(K19="Asfalto c/ Paralelo",((E19*I19*J19-E19*J19*0.16-AT19-#REF!)*0.7),""))),"-") -> - | BB19: =IF(I19>1.5,IF(I19<=3,IF(J19<1.5,IF(K19="Paralelo",(E19*I19*J19-E19*J19*0.11-AT19-#REF!)*0.7,IF(K19="Sem Pavimento",(E19*I19*J19-AT19-#REF!)*0.7,IF(K19="Asfalto c/ Paralelo",(E19*I19*J19-E19*J19*0.16-AT19-#REF!)*0.7))),"-"),"-"),"-") -> - | BC19: =IF(I19<=1.5,IF(J19>=1.5,IF(K19="Paralelo",((E19*I19*J19-E19*J19*0.11-AT19-#REF!)*0.7)),IF(K19="Sem Pavimento",((E19*I19*J19-AT19-#REF!)*0.7),IF(K19="Asfalto c/ Paralelo",((E19*I19*J19-E19*J19*0.16-AT19-#REF!)*0.7),""))),"-") -> - | BD19: 366.496 | BE19: =IF(I19>3,IF(I19<=4.5,IF(J19>=1.5,IF(K19="Paralelo",(E19*I19*J19-E19*J19*0.11-AT19-#REF!)*0.7,IF(K19="Sem Pavimento",(E19*I19*J19-AT19-#REF!)*0.7,IF(K19="Asfalto c/ Paralelo",(E19*I19*J19-E19*J19*0.16-AT19-#REF!)*0.7))),"-"),"-"),"-") -> - | BF19: =IF(I19>4.5,IF(I19<=6,IF(J19>=1.5,IF(K19="Paralelo",(E19*I19*J19-E19*J19*0.11-AT19-#REF!)*0.7,IF(K19="Sem Pavimento",(E19*I19*J19-AT19-#REF!)*0.7,IF(K19="Asfalto c/ Paralelo",(E19*I19*J19-E19*J19*0.16-AT19-#REF!)*0.7))),"-"),"-"),"-") -> - | BG19: 330.52 | BH19: 0
B20: T14 | C20: 13 | D20: 14 | E20: 229.84 | F20: 800 | G20: 1.84 | H20: 1.84 | I20: 1.84 | J20: =IF(F20="","",INDEX([144]Tabelas!A$1:G$17,VLOOKUP('MC - SERVIÇO ADUTORA - 1-3'!F20,[144]Tabelas!I$4:J$17,2,0),IF(AVERAGE(G20:H20)<1.25,2,IF(AVERAGE(G20:H20)<1.5,3,IF(AVERAGE(G20:H20)<3,4,IF(AVERAGE(G20:H20)<4.5,5,IF(AVERAGE(G20:H20)<6,6,IF(AVERAGE(G20:H20)>6,7)))))))) -> 2 | K20: Sem Pavimento | L20: 1379.04 | M20: 0 | N20: 0 | O20: 0 | P20: 0 | Q20: 0.3283428571 | R20: 0.34476 | S20: 0 | T20: 0 | U20: 5 | V20: 459.68 | W20: - | X20: 32.1776 | Y20: - | AA20: - | AB20: 845.8112 | AC20: - | AD20: 8.458112 | AE20: - | AF20: - | AG20: - | AH20: - | AI20: - | AJ20: 710.481408 | AK20: - | AL20: - | AM20: - | AN20: 126.87168 | AO20: - | AP20: - | AQ20: - | AR20: - | AS20: - | AT20: 115.5301849 | AU20: =IF(I20<=1.5,IF(J20<1.5,IF(K20="Paralelo",((E20*I20*J20-E20*J20*0.11-AT20-#REF!)*0.3)),IF(K20="Sem Pavimento",((E20*I20*J20-AT20-#REF!)*0.3),IF(K20="Asfalto c/ Paralelo",((E20*I20*J20-E20*J20*0.16-AT20-#REF!)*0.3),""))),"-") -> - | AV20: =IF(I20>1.5,IF(I20<=3,IF(J20<1.5,IF(K20="Paralelo",(E20*I20*J20-E20*J20*0.11-AT20-#REF!)*0.3,IF(K20="Sem Pavimento",((E20*I20*J20-AT20-#REF!)*0.3),IF(K20="Asfalto c/ Paralelo",(E20*I20*J20-E20*J20*0.16-AT20-#REF!)*0))),"-"),"-"),"-") -> - | AW20: =IF(I20<=1.5,IF(J20>=1.5,IF(K20="Paralelo",((E20*I20*J20-E20*J20*0.11-AT20-#REF!)*0.3)),IF(K20="Sem Pavimento",((E20*I20*J20-AT20-#REF!)*0.3),IF(K20="Asfalto c/ Paralelo",((E20*I20*J20-E20*J20*0.16-AT20-#REF!)*0.3),""))),"-") -> - | AX20: =IF(I20>1.5,IF(I20<=3,IF(J20>=1.5,IF(K20="Paralelo",(((J20*E20*((F20/1000)))-AT20)),IF(K20="Sem Pavimento",(((J20*E20*((F20/1000)))-AT20)),IF(K20="Asfalto c/ Paralelo",(E20*I20*J20*0.75-E20*J20*0.16-AT20-#REF!)*0.3))),"-"),"-"),"-") -> 252.2138151 | AY20: =IF(I20>3,IF(I20<=4.5,IF(J20>=1.5,IF(K20="Paralelo",(E20*I20*J20-E20*J20*0.11-AT20-#REF!)*0.3,IF(K20="Sem Pavimento",((E20*I20*J20-AT20-#REF!)*0.3),IF(K20="Asfalto c/ Paralelo",(E20*I20*J20-E20*J20*0.16-AT20-#REF!)*0.3))),"-"),"-"),"-") -> - | AZ20: =IF(I20>4.5,IF(I20<=6,IF(J20>=1.5,IF(K20="Paralelo",(E20*I20*J20-E20*J20*0.11-AT20-#REF!)*0.3,IF(K20="Sem Pavimento",(E20*I20*J20-AT20-#REF!)*0.3,IF(K20="Asfalto c/ Paralelo",(E20*I20*J20-E20*J20*0.16-AT20-#REF!)*0.3))),"-"),"-"),"-") -> - | BA20: =IF(I20<=1.5,IF(J20<1.5,IF(K20="Paralelo",((E20*I20*J20-E20*J20*0.11-AT20-#REF!)*0.7)),IF(K20="Sem Pavimento",((E20*I20*J20-AT20-#REF!)*0.7),IF(K20="Asfalto c/ Paralelo",((E20*I20*J20-E20*J20*0.16-AT20-#REF!)*0.7),""))),"-") -> - | BB20: =IF(I20>1.5,IF(I20<=3,IF(J20<1.5,IF(K20="Paralelo",(E20*I20*J20-E20*J20*0.11-AT20-#REF!)*0.7,IF(K20="Sem Pavimento",(E20*I20*J20-AT20-#REF!)*0.7,IF(K20="Asfalto c/ Paralelo",(E20*I20*J20-E20*J20*0.16-AT20-#REF!)*0.7))),"-"),"-"),"-") -> - | BC20: =IF(I20<=1.5,IF(J20>=1.5,IF(K20="Paralelo",((E20*I20*J20-E20*J20*0.11-AT20-#REF!)*0.7)),IF(K20="Sem Pavimento",((E20*I20*J20-AT20-#REF!)*0.7),IF(K20="Asfalto c/ Paralelo",((E20*I20*J20-E20*J20*0.16-AT20-#REF!)*0.7),""))),"-") -> - | BD20: 478.0672 | BE20: =IF(I20>3,IF(I20<=4.5,IF(J20>=1.5,IF(K20="Paralelo",(E20*I20*J20-E20*J20*0.11-AT20-#REF!)*0.7,IF(K20="Sem Pavimento",(E20*I20*J20-AT20-#REF!)*0.7,IF(K20="Asfalto c/ Paralelo",(E20*I20*J20-E20*J20*0.16-AT20-#REF!)*0.7))),"-"),"-"),"-") -> - | BF20: =IF(I20>4.5,IF(I20<=6,IF(J20>=1.5,IF(K20="Paralelo",(E20*I20*J20-E20*J20*0.11-AT20-#REF!)*0.7,IF(K20="Sem Pavimento",(E20*I20*J20-AT20-#REF!)*0.7,IF(K20="Asfalto c/ Paralelo",(E20*I20*J20-E20*J20*0.16-AT20-#REF!)*0.7))),"-"),"-"),"-") -> - | BG20: 431.14 | BH20: 0
B21: T15 | C21: 14 | D21: 15 | E21: 138.82 | F21: 800 | G21: 1.84 | H21: 1.84 | I21: 1.84 | J21: =IF(F21="","",INDEX([144]Tabelas!A$1:G$17,VLOOKUP('MC - SERVIÇO ADUTORA - 1-3'!F21,[144]Tabelas!I$4:J$17,2,0),IF(AVERAGE(G21:H21)<1.25,2,IF(AVERAGE(G21:H21)<1.5,3,IF(AVERAGE(G21:H21)<3,4,IF(AVERAGE(G21:H21)<4.5,5,IF(AVERAGE(G21:H21)<6,6,IF(AVERAGE(G21:H21)>6,7)))))))) -> 2 | K21: Sem Pavimento | L21: 832.92 | M21: 0 | N21: 0 | O21: 0 | P21: 0 | Q21: 0.1983142857 | R21: 0.20823 | S21: 0 | T21: 0 | U21: 3 | V21: 277.64 | W21: - | X21: 19.4348 | Y21: - | AA21: - | AB21: 510.8576 | AC21: - | AD21: 5.108576 | AE21: - | AF21: - | AG21: - | AH21: - | AI21: - | AJ21: 429.120384 | AK21: - | AL21: - | AM21: - | AN21: 76.62864 | AO21: - | AP21: - | AQ21: - | AR21: - | AS21: - | AT21: 69.77854275 | AU21: =IF(I21<=1.5,IF(J21<1.5,IF(K21="Paralelo",((E21*I21*J21-E21*J21*0.11-AT21-#REF!)*0.3)),IF(K21="Sem Pavimento",((E21*I21*J21-AT21-#REF!)*0.3),IF(K21="Asfalto c/ Paralelo",((E21*I21*J21-E21*J21*0.16-AT21-#REF!)*0.3),""))),"-") -> - | AV21: =IF(I21>1.5,IF(I21<=3,IF(J21<1.5,IF(K21="Paralelo",(E21*I21*J21-E21*J21*0.11-AT21-#REF!)*0.3,IF(K21="Sem Pavimento",((E21*I21*J21-AT21-#REF!)*0.3),IF(K21="Asfalto c/ Paralelo",(E21*I21*J21-E21*J21*0.16-AT21-#REF!)*0))),"-"),"-"),"-") -> - | AW21: =IF(I21<=1.5,IF(J21>=1.5,IF(K21="Paralelo",((E21*I21*J21-E21*J21*0.11-AT21-#REF!)*0.3)),IF(K21="Sem Pavimento",((E21*I21*J21-AT21-#REF!)*0.3),IF(K21="Asfalto c/ Paralelo",((E21*I21*J21-E21*J21*0.16-AT21-#REF!)*0.3),""))),"-") -> - | AX21: =IF(I21>1.5,IF(I21<=3,IF(J21>=1.5,IF(K21="Paralelo",(((J21*E21*((F21/1000)))-AT21)),IF(K21="Sem Pavimento",(((J21*E21*((F21/1000)))-AT21)),IF(K21="Asfalto c/ Paralelo",(E21*I21*J21*0.75-E21*J21*0.16-AT21-#REF!)*0.3))),"-"),"-"),"-") -> 152.3334573 | AY21: =IF(I21>3,IF(I21<=4.5,IF(J21>=1.5,IF(K21="Paralelo",(E21*I21*J21-E21*J21*0.11-AT21-#REF!)*0.3,IF(K21="Sem Pavimento",((E21*I21*J21-AT21-#REF!)*0.3),IF(K21="Asfalto c/ Paralelo",(E21*I21*J21-E21*J21*0.16-AT21-#REF!)*0.3))),"-"),"-"),"-") -> - | AZ21: =IF(I21>4.5,IF(I21<=6,IF(J21>=1.5,IF(K21="Paralelo",(E21*I21*J21-E21*J21*0.11-AT21-#REF!)*0.3,IF(K21="Sem Pavimento",(E21*I21*J21-AT21-#REF!)*0.3,IF(K21="Asfalto c/ Paralelo",(E21*I21*J21-E21*J21*0.16-AT21-#REF!)*0.3))),"-"),"-"),"-") -> - | BA21: =IF(I21<=1.5,IF(J21<1.5,IF(K21="Paralelo",((E21*I21*J21-E21*J21*0.11-AT21-#REF!)*0.7)),IF(K21="Sem Pavimento",((E21*I21*J21-AT21-#REF!)*0.7),IF(K21="Asfalto c/ Paralelo",((E21*I21*J21-E21*J21*0.16-AT21-#REF!)*0.7),""))),"-") -> - | BB21: =IF(I21>1.5,IF(I21<=3,IF(J21<1.5,IF(K21="Paralelo",(E21*I21*J21-E21*J21*0.11-AT21-#REF!)*0.7,IF(K21="Sem Pavimento",(E21*I21*J21-AT21-#REF!)*0.7,IF(K21="Asfalto c/ Paralelo",(E21*I21*J21-E21*J21*0.16-AT21-#REF!)*0.7))),"-"),"-"),"-") -> - | BC21: =IF(I21<=1.5,IF(J21>=1.5,IF(K21="Paralelo",((E21*I21*J21-E21*J21*0.11-AT21-#REF!)*0.7)),IF(K21="Sem Pavimento",((E21*I21*J21-AT21-#REF!)*0.7),IF(K21="Asfalto c/ Paralelo",((E21*I21*J21-E21*J21*0.16-AT21-#REF!)*0.7),""))),"-") -> - | BD21: 288.7456 | BE21: =IF(I21>3,IF(I21<=4.5,IF(J21>=1.5,IF(K21="Paralelo",(E21*I21*J21-E21*J21*0.11-AT21-#REF!)*0.7,IF(K21="Sem Pavimento",(E21*I21*J21-AT21-#REF!)*0.7,IF(K21="Asfalto c/ Paralelo",(E21*I21*J21-E21*J21*0.16-AT21-#REF!)*0.7))),"-"),"-"),"-") -> - | BF21: =IF(I21>4.5,IF(I21<=6,IF(J21>=1.5,IF(K21="Paralelo",(E21*I21*J21-E21*J21*0.11-AT21-#REF!)*0.7,IF(K21="Sem Pavimento",(E21*I21*J21-AT21-#REF!)*0.7,IF(K21="Asfalto c/ Paralelo",(E21*I21*J21-E21*J21*0.16-AT21-#REF!)*0.7))),"-"),"-"),"-") -> - | BG21: 260.4 | BH21: 0
B22: T16 | C22: 15 | D22: 16 | E22: 130.85 | F22: 800 | G22: 1.84 | H22: 1.84 | I22: 1.84 | J22: =IF(F22="","",INDEX([144]Tabelas!A$1:G$17,VLOOKUP('MC - SERVIÇO ADUTORA - 1-3'!F22,[144]Tabelas!I$4:J$17,2,0),IF(AVERAGE(G22:H22)<1.25,2,IF(AVERAGE(G22:H22)<1.5,3,IF(AVERAGE(G22:H22)<3,4,IF(AVERAGE(G22:H22)<4.5,5,IF(AVERAGE(G22:H22)<6,6,IF(AVERAGE(G22:H22)>6,7)))))))) -> 2 | K22: Sem Pavimento | L22: 785.1 | M22: 0 | N22: 0 | O22: 0 | P22: 0 | Q22: 0.1869285714 | R22: 0.196275 | S22: 0 | T22: 0 | U22: 3 | V22: 261.7 | W22: - | X22: 18.319 | Y22: - | AA22: - | AB22: 481.528 | AC22: - | AD22: 4.81528 | AE22: - | AF22: - | AG22: - | AH22: - | AI22: - | AJ22: 404.48352 | AK22: - | AL22: - | AM22: - | AN22: 72.2292 | AO22: - | AP22: - | AQ22: - | AR22: - | AS22: - | AT22: 65.7723838 | AU22: =IF(I22<=1.5,IF(J22<1.5,IF(K22="Paralelo",((E22*I22*J22-E22*J22*0.11-AT22-#REF!)*0.3)),IF(K22="Sem Pavimento",((E22*I22*J22-AT22-#REF!)*0.3),IF(K22="Asfalto c/ Paralelo",((E22*I22*J22-E22*J22*0.16-AT22-#REF!)*0.3),""))),"-") -> - | AV22: =IF(I22>1.5,IF(I22<=3,IF(J22<1.5,IF(K22="Paralelo",(E22*I22*J22-E22*J22*0.11-AT22-#REF!)*0.3,IF(K22="Sem Pavimento",((E22*I22*J22-AT22-#REF!)*0.3),IF(K22="Asfalto c/ Paralelo",(E22*I22*J22-E22*J22*0.16-AT22-#REF!)*0))),"-"),"-"),"-") -> - | AW22: =IF(I22<=1.5,IF(J22>=1.5,IF(K22="Paralelo",((E22*I22*J22-E22*J22*0.11-AT22-#REF!)*0.3)),IF(K22="Sem Pavimento",((E22*I22*J22-AT22-#REF!)*0.3),IF(K22="Asfalto c/ Paralelo",((E22*I22*J22-E22*J22*0.16-AT22-#REF!)*0.3),""))),"-") -> - | AX22: =IF(I22>1.5,IF(I22<=3,IF(J22>=1.5,IF(K22="Paralelo",(((J22*E22*((F22/1000)))-AT22)),IF(K22="Sem Pavimento",(((J22*E22*((F22/1000)))-AT22)),IF(K22="Asfalto c/ Paralelo",(E22*I22*J22*0.75-E22*J22*0.16-AT22-#REF!)*0.3))),"-"),"-"),"-") -> 143.5876162 | AY22: =IF(I22>3,IF(I22<=4.5,IF(J22>=1.5,IF(K22="Paralelo",(E22*I22*J22-E22*J22*0.11-AT22-#REF!)*0.3,IF(K22="Sem Pavimento",((E22*I22*J22-AT22-#REF!)*0.3),IF(K22="Asfalto c/ Paralelo",(E22*I22*J22-E22*J22*0.16-AT22-#REF!)*0.3))),"-"),"-"),"-") -> - | AZ22: =IF(I22>4.5,IF(I22<=6,IF(J22>=1.5,IF(K22="Paralelo",(E22*I22*J22-E22*J22*0.11-AT22-#REF!)*0.3,IF(K22="Sem Pavimento",(E22*I22*J22-AT22-#REF!)*0.3,IF(K22="Asfalto c/ Paralelo",(E22*I22*J22-E22*J22*0.16-AT22-#REF!)*0.3))),"-"),"-"),"-") -> - | BA22: =IF(I22<=1.5,IF(J22<1.5,IF(K22="Paralelo",((E22*I22*J22-E22*J22*0.11-AT22-#REF!)*0.7)),IF(K22="Sem Pavimento",((E22*I22*J22-AT22-#REF!)*0.7),IF(K22="Asfalto c/ Paralelo",((E22*I22*J22-E22*J22*0.16-AT22-#REF!)*0.7),""))),"-") -> - | BB22: =IF(I22>1.5,IF(I22<=3,IF(J22<1.5,IF(K22="Paralelo",(E22*I22*J22-E22*J22*0.11-AT22-#REF!)*0.7,IF(K22="Sem Pavimento",(E22*I22*J22-AT22-#REF!)*0.7,IF(K22="Asfalto c/ Paralelo",(E22*I22*J22-E22*J22*0.16-AT22-#REF!)*0.7))),"-"),"-"),"-") -> - | BC22: =IF(I22<=1.5,IF(J22>=1.5,IF(K22="Paralelo",((E22*I22*J22-E22*J22*0.11-AT22-#REF!)*0.7)),IF(K22="Sem Pavimento",((E22*I22*J22-AT22-#REF!)*0.7),IF(K22="Asfalto c/ Paralelo",((E22*I22*J22-E22*J22*0.16-AT22-#REF!)*0.7),""))),"-") -> - | BD22: 272.168 | BE22: =IF(I22>3,IF(I22<=4.5,IF(J22>=1.5,IF(K22="Paralelo",(E22*I22*J22-E22*J22*0.11-AT22-#REF!)*0.7,IF(K22="Sem Pavimento",(E22*I22*J22-AT22-#REF!)*0.7,IF(K22="Asfalto c/ Paralelo",(E22*I22*J22-E22*J22*0.16-AT22-#REF!)*0.7))),"-"),"-"),"-") -> - | BF22: =IF(I22>4.5,IF(I22<=6,IF(J22>=1.5,IF(K22="Paralelo",(E22*I22*J22-E22*J22*0.11-AT22-#REF!)*0.7,IF(K22="Sem Pavimento",(E22*I22*J22-AT22-#REF!)*0.7,IF(K22="Asfalto c/ Paralelo",(E22*I22*J22-E22*J22*0.16-AT22-#REF!)*0.7))),"-"),"-"),"-") -> - | BG22: 245.45 | BH22: 0
B23: T17 | C23: 16 | D23: 17 | E23: 283.18 | F23: 800 | G23: 1.84 | H23: 1.84 | I23: 1.84 | J23: =IF(F23="","",INDEX([144]Tabelas!A$1:G$17,VLOOKUP('MC - SERVIÇO ADUTORA - 1-3'!F23,[144]Tabelas!I$4:J$17,2,0),IF(AVERAGE(G23:H23)<1.25,2,IF(AVERAGE(G23:H23)<1.5,3,IF(AVERAGE(G23:H23)<3,4,IF(AVERAGE(G23:H23)<4.5,5,IF(AVERAGE(G23:H23)<6,6,IF(AVERAGE(G23:H23)>6,7)))))))) -> 2 | K23: Sem Pavimento | L23: 1699.08 | M23: 0 | N23: 0 | O23: 0 | P23: 0 | Q23: 0.4045428571 | R23: 0.42477 | S23: 0 | T23: 0 | U23: 6 | V23: 566.36 | W23: - | X23: 39.6452 | Y23: - | AA23: - | AB23: 1042.1024 | AC23: - | AD23: 10.421024 | AE23: - | AF23: - | AG23: - | AH23: - | AI23: - | AJ23: 875.366016 | AK23: - | AL23: - | AM23: - | AN23: 156.31536 | AO23: - | AP23: - | AQ23: - | AR23: - | AS23: - | AT23: 142.3417932 | AU23: =IF(I23<=1.5,IF(J23<1.5,IF(K23="Paralelo",((E23*I23*J23-E23*J23*0.11-AT23-#REF!)*0.3)),IF(K23="Sem Pavimento",((E23*I23*J23-AT23-#REF!)*0.3),IF(K23="Asfalto c/ Paralelo",((E23*I23*J23-E23*J23*0.16-AT23-#REF!)*0.3),""))),"-") -> - | AV23: =IF(I23>1.5,IF(I23<=3,IF(J23<1.5,IF(K23="Paralelo",(E23*I23*J23-E23*J23*0.11-AT23-#REF!)*0.3,IF(K23="Sem Pavimento",((E23*I23*J23-AT23-#REF!)*0.3),IF(K23="Asfalto c/ Paralelo",(E23*I23*J23-E23*J23*0.16-AT23-#REF!)*0))),"-"),"-"),"-") -> - | AW23: =IF(I23<=1.5,IF(J23>=1.5,IF(K23="Paralelo",((E23*I23*J23-E23*J23*0.11-AT23-#REF!)*0.3)),IF(K23="Sem Pavimento",((E23*I23*J23-AT23-#REF!)*0.3),IF(K23="Asfalto c/ Paralelo",((E23*I23*J23-E23*J23*0.16-AT23-#REF!)*0.3),""))),"-") -> - | AX23: =IF(I23>1.5,IF(I23<=3,IF(J23>=1.5,IF(K23="Paralelo",(((J23*E23*((F23/1000)))-AT23)),IF(K23="Sem Pavimento",(((J23*E23*((F23/1000)))-AT23)),IF(K23="Asfalto c/ Paralelo",(E23*I23*J23*0.75-E23*J23*0.16-AT23-#REF!)*0.3))),"-"),"-"),"-") -> 310.7462068 | AY23: =IF(I23>3,IF(I23<=4.5,IF(J23>=1.5,IF(K23="Paralelo",(E23*I23*J23-E23*J23*0.11-AT23-#REF!)*0.3,IF(K23="Sem Pavimento",((E23*I23*J23-AT23-#REF!)*0.3),IF(K23="Asfalto c/ Paralelo",(E23*I23*J23-E23*J23*0.16-AT23-#REF!)*0.3))),"-"),"-"),"-") -> - | AZ23: =IF(I23>4.5,IF(I23<=6,IF(J23>=1.5,IF(K23="Paralelo",(E23*I23*J23-E23*J23*0.11-AT23-#REF!)*0.3,IF(K23="Sem Pavimento",(E23*I23*J23-AT23-#REF!)*0.3,IF(K23="Asfalto c/ Paralelo",(E23*I23*J23-E23*J23*0.16-AT23-#REF!)*0.3))),"-"),"-"),"-") -> - | BA23: =IF(I23<=1.5,IF(J23<1.5,IF(K23="Paralelo",((E23*I23*J23-E23*J23*0.11-AT23-#REF!)*0.7)),IF(K23="Sem Pavimento",((E23*I23*J23-AT23-#REF!)*0.7),IF(K23="Asfalto c/ Paralelo",((E23*I23*J23-E23*J23*0.16-AT23-#REF!)*0.7),""))),"-") -> - | BB23: =IF(I23>1.5,IF(I23<=3,IF(J23<1.5,IF(K23="Paralelo",(E23*I23*J23-E23*J23*0.11-AT23-#REF!)*0.7,IF(K23="Sem Pavimento",(E23*I23*J23-AT23-#REF!)*0.7,IF(K23="Asfalto c/ Paralelo",(E23*I23*J23-E23*J23*0.16-AT23-#REF!)*0.7))),"-"),"-"),"-") -> - | BC23: =IF(I23<=1.5,IF(J23>=1.5,IF(K23="Paralelo",((E23*I23*J23-E23*J23*0.11-AT23-#REF!)*0.7)),IF(K23="Sem Pavimento",((E23*I23*J23-AT23-#REF!)*0.7),IF(K23="Asfalto c/ Paralelo",((E23*I23*J23-E23*J23*0.16-AT23-#REF!)*0.7),""))),"-") -> - | BD23: 589.0144 | BE23: =IF(I23>3,IF(I23<=4.5,IF(J23>=1.5,IF(K23="Paralelo",(E23*I23*J23-E23*J23*0.11-AT23-#REF!)*0.7,IF(K23="Sem Pavimento",(E23*I23*J23-AT23-#REF!)*0.7,IF(K23="Asfalto c/ Paralelo",(E23*I23*J23-E23*J23*0.16-AT23-#REF!)*0.7))),"-"),"-"),"-") -> - | BF23: =IF(I23>4.5,IF(I23<=6,IF(J23>=1.5,IF(K23="Paralelo",(E23*I23*J23-E23*J23*0.11-AT23-#REF!)*0.7,IF(K23="Sem Pavimento",(E23*I23*J23-AT23-#REF!)*0.7,IF(K23="Asfalto c/ Paralelo",(E23*I23*J23-E23*J23*0.16-AT23-#REF!)*0.7))),"-"),"-"),"-") -> - | BG23: 531.2 | BH23: 0
B24: T18 | C24: 17 | D24: 18 | E24: 133.59 | F24: 800 | G24: 1.84 | H24: 1.84 | I24: 1.84 | J24: =IF(F24="","",INDEX([144]Tabelas!A$1:G$17,VLOOKUP('MC - SERVIÇO ADUTORA - 1-3'!F24,[144]Tabelas!I$4:J$17,2,0),IF(AVERAGE(G24:H24)<1.25,2,IF(AVERAGE(G24:H24)<1.5,3,IF(AVERAGE(G24:H24)<3,4,IF(AVERAGE(G24:H24)<4.5,5,IF(AVERAGE(G24:H24)<6,6,IF(AVERAGE(G24:H24)>6,7)))))))) -> 2 | K24: Sem Pavimento | L24: 801.54 | M24: 0 | N24: 0 | O24: 0 | P24: 0 | Q24: 0.1908428571 | R24: 0.200385 | S24: 0 | T24: 0 | U24: 3 | V24: 267.18 | W24: - | X24: 18.7026 | Y24: - | AA24: - | AB24: 491.6112 | AC24: - | AD24: 4.916112 | AE24: - | AF24: - | AG24: - | AH24: - | AI24: - | AJ24: 412.953408 | AK24: - | AL24: - | AM24: - | AN24: 73.74168 | AO24: - | AP24: - | AQ24: - | AR24: - | AS24: - | AT24: 67.14965801 | AU24: =IF(I24<=1.5,IF(J24<1.5,IF(K24="Paralelo",((E24*I24*J24-E24*J24*0.11-AT24-#REF!)*0.3)),IF(K24="Sem Pavimento",((E24*I24*J24-AT24-#REF!)*0.3),IF(K24="Asfalto c/ Paralelo",((E24*I24*J24-E24*J24*0.16-AT24-#REF!)*0.3),""))),"-") -> - | AV24: =IF(I24>1.5,IF(I24<=3,IF(J24<1.5,IF(K24="Paralelo",(E24*I24*J24-E24*J24*0.11-AT24-#REF!)*0.3,IF(K24="Sem Pavimento",((E24*I24*J24-AT24-#REF!)*0.3),IF(K24="Asfalto c/ Paralelo",(E24*I24*J24-E24*J24*0.16-AT24-#REF!)*0))),"-"),"-"),"-") -> - | AW24: =IF(I24<=1.5,IF(J24>=1.5,IF(K24="Paralelo",((E24*I24*J24-E24*J24*0.11-AT24-#REF!)*0.3)),IF(K24="Sem Pavimento",((E24*I24*J24-AT24-#REF!)*0.3),IF(K24="Asfalto c/ Paralelo",((E24*I24*J24-E24*J24*0.16-AT24-#REF!)*0.3),""))),"-") -> - | AX24: =IF(I24>1.5,IF(I24<=3,IF(J24>=1.5,IF(K24="Paralelo",(((J24*E24*((F24/1000)))-AT24)),IF(K24="Sem Pavimento",(((J24*E24*((F24/1000)))-AT24)),IF(K24="Asfalto c/ Paralelo",(E24*I24*J24*0.75-E24*J24*0.16-AT24-#REF!)*0.3))),"-"),"-"),"-") -> 146.594342 | AY24: =IF(I24>3,IF(I24<=4.5,IF(J24>=1.5,IF(K24="Paralelo",(E24*I24*J24-E24*J24*0.11-AT24-#REF!)*0.3,IF(K24="Sem Pavimento",((E24*I24*J24-AT24-#REF!)*0.3),IF(K24="Asfalto c/ Paralelo",(E24*I24*J24-E24*J24*0.16-AT24-#REF!)*0.3))),"-"),"-"),"-") -> - | AZ24: =IF(I24>4.5,IF(I24<=6,IF(J24>=1.5,IF(K24="Paralelo",(E24*I24*J24-E24*J24*0.11-AT24-#REF!)*0.3,IF(K24="Sem Pavimento",(E24*I24*J24-AT24-#REF!)*0.3,IF(K24="Asfalto c/ Paralelo",(E24*I24*J24-E24*J24*0.16-AT24-#REF!)*0.3))),"-"),"-"),"-") -> - | BA24: =IF(I24<=1.5,IF(J24<1.5,IF(K24="Paralelo",((E24*I24*J24-E24*J24*0.11-AT24-#REF!)*0.7)),IF(K24="Sem Pavimento",((E24*I24*J24-AT24-#REF!)*0.7),IF(K24="Asfalto c/ Paralelo",((E24*I24*J24-E24*J24*0.16-AT24-#REF!)*0.7),""))),"-") -> - | BB24: =IF(I24>1.5,IF(I24<=3,IF(J24<1.5,IF(K24="Paralelo",(E24*I24*J24-E24*J24*0.11-AT24-#REF!)*0.7,IF(K24="Sem Pavimento",(E24*I24*J24-AT24-#REF!)*0.7,IF(K24="Asfalto c/ Paralelo",(E24*I24*J24-E24*J24*0.16-AT24-#REF!)*0.7))),"-"),"-"),"-") -> - | BC24: =IF(I24<=1.5,IF(J24>=1.5,IF(K24="Paralelo",((E24*I24*J24-E24*J24*0.11-AT24-#REF!)*0.7)),IF(K24="Sem Pavimento",((E24*I24*J24-AT24-#REF!)*0.7),IF(K24="Asfalto c/ Paralelo",((E24*I24*J24-E24*J24*0.16-AT24-#REF!)*0.7),""))),"-") -> - | BD24: 277.8672 | BE24: =IF(I24>3,IF(I24<=4.5,IF(J24>=1.5,IF(K24="Paralelo",(E24*I24*J24-E24*J24*0.11-AT24-#REF!)*0.7,IF(K24="Sem Pavimento",(E24*I24*J24-AT24-#REF!)*0.7,IF(K24="Asfalto c/ Paralelo",(E24*I24*J24-E24*J24*0.16-AT24-#REF!)*0.7))),"-"),"-"),"-") -> - | BF24: =IF(I24>4.5,IF(I24<=6,IF(J24>=1.5,IF(K24="Paralelo",(E24*I24*J24-E24*J24*0.11-AT24-#REF!)*0.7,IF(K24="Sem Pavimento",(E24*I24*J24-AT24-#REF!)*0.7,IF(K24="Asfalto c/ Paralelo",(E24*I24*J24-E24*J24*0.16-AT24-#REF!)*0.7))),"-"),"-"),"-") -> - | BG24: 250.59 | BH24: 0
B25: T19 | C25: 18 | D25: 19 | E25: 178.89 | F25: 800 | G25: 1.84 | H25: 1.84 | I25: 1.84 | J25: =IF(F25="","",INDEX([144]Tabelas!A$1:G$17,VLOOKUP('MC - SERVIÇO ADUTORA - 1-3'!F25,[144]Tabelas!I$4:J$17,2,0),IF(AVERAGE(G25:H25)<1.25,2,IF(AVERAGE(G25:H25)<1.5,3,IF(AVERAGE(G25:H25)<3,4,IF(AVERAGE(G25:H25)<4.5,5,IF(AVERAGE(G25:H25)<6,6,IF(AVERAGE(G25:H25)>6,7)))))))) -> 2 | K25: Sem Pavimento | L25: 1073.34 | M25: 0 | N25: 0 | O25: 0 | P25: 0 | Q25: 0.2555571429 | R25: 0.268335 | S25: 0 | T25: 0 | U25: 4 | V25: 357.78 | W25: - | X25: 25.0446 | Y25: - | AA25: - | AB25: 658.3152 | AC25: - | AD25: 6.583152 | AE25: - | AF25: - | AG25: - | AH25: - | AI25: - | AJ25: 552.984768 | AK25: - | AL25: - | AM25: - | AN25: 98.74728 | AO25: - | AP25: - | AQ25: - | AR25: - | AS25: - | AT25: 89.91992157 | AU25: =IF(I25<=1.5,IF(J25<1.5,IF(K25="Paralelo",((E25*I25*J25-E25*J25*0.11-AT25-#REF!)*0.3)),IF(K25="Sem Pavimento",((E25*I25*J25-AT25-#REF!)*0.3),IF(K25="Asfalto c/ Paralelo",((E25*I25*J25-E25*J25*0.16-AT25-#REF!)*0.3),""))),"-") -> - | AV25: =IF(I25>1.5,IF(I25<=3,IF(J25<1.5,IF(K25="Paralelo",(E25*I25*J25-E25*J25*0.11-AT25-#REF!)*0.3,IF(K25="Sem Pavimento",((E25*I25*J25-AT25-#REF!)*0.3),IF(K25="Asfalto c/ Paralelo",(E25*I25*J25-E25*J25*0.16-AT25-#REF!)*0))),"-"),"-"),"-") -> - | AW25: =IF(I25<=1.5,IF(J25>=1.5,IF(K25="Paralelo",((E25*I25*J25-E25*J25*0.11-AT25-#REF!)*0.3)),IF(K25="Sem Pavimento",((E25*I25*J25-AT25-#REF!)*0.3),IF(K25="Asfalto c/ Paralelo",((E25*I25*J25-E25*J25*0.16-AT25-#REF!)*0.3),""))),"-") -> - | AX25: =IF(I25>1.5,IF(I25<=3,IF(J25>=1.5,IF(K25="Paralelo",(((J25*E25*((F25/1000)))-AT25)),IF(K25="Sem Pavimento",(((J25*E25*((F25/1000)))-AT25)),IF(K25="Asfalto c/ Paralelo",(E25*I25*J25*0.75-E25*J25*0.16-AT25-#REF!)*0.3))),"-"),"-"),"-") -> 196.3040784 | AY25: =IF(I25>3,IF(I25<=4.5,IF(J25>=1.5,IF(K25="Paralelo",(E25*I25*J25-E25*J25*0.11-AT25-#REF!)*0.3,IF(K25="Sem Pavimento",((E25*I25*J25-AT25-#REF!)*0.3),IF(K25="Asfalto c/ Paralelo",(E25*I25*J25-E25*J25*0.16-AT25-#REF!)*0.3))),"-"),"-"),"-") -> - | AZ25: =IF(I25>4.5,IF(I25<=6,IF(J25>=1.5,IF(K25="Paralelo",(E25*I25*J25-E25*J25*0.11-AT25-#REF!)*0.3,IF(K25="Sem Pavimento",(E25*I25*J25-AT25-#REF!)*0.3,IF(K25="Asfalto c/ Paralelo",(E25*I25*J25-E25*J25*0.16-AT25-#REF!)*0.3))),"-"),"-"),"-") -> - | BA25: =IF(I25<=1.5,IF(J25<1.5,IF(K25="Paralelo",((E25*I25*J25-E25*J25*0.11-AT25-#REF!)*0.7)),IF(K25="Sem Pavimento",((E25*I25*J25-AT25-#REF!)*0.7),IF(K25="Asfalto c/ Paralelo",((E25*I25*J25-E25*J25*0.16-AT25-#REF!)*0.7),""))),"-") -> - | BB25: =IF(I25>1.5,IF(I25<=3,IF(J25<1.5,IF(K25="Paralelo",(E25*I25*J25-E25*J25*0.11-AT25-#REF!)*0.7,IF(K25="Sem Pavimento",(E25*I25*J25-AT25-#REF!)*0.7,IF(K25="Asfalto c/ Paralelo",(E25*I25*J25-E25*J25*0.16-AT25-#REF!)*0.7))),"-"),"-"),"-") -> - | BC25: =IF(I25<=1.5,IF(J25>=1.5,IF(K25="Paralelo",((E25*I25*J25-E25*J25*0.11-AT25-#REF!)*0.7)),IF(K25="Sem Pavimento",((E25*I25*J25-AT25-#REF!)*0.7),IF(K25="Asfalto c/ Paralelo",((E25*I25*J25-E25*J25*0.16-AT25-#REF!)*0.7),""))),"-") -> - | BD25: 372.0912 | BE25: =IF(I25>3,IF(I25<=4.5,IF(J25>=1.5,IF(K25="Paralelo",(E25*I25*J25-E25*J25*0.11-AT25-#REF!)*0.7,IF(K25="Sem Pavimento",(E25*I25*J25-AT25-#REF!)*0.7,IF(K25="Asfalto c/ Paralelo",(E25*I25*J25-E25*J25*0.16-AT25-#REF!)*0.7))),"-"),"-"),"-") -> - | BF25: =IF(I25>4.5,IF(I25<=6,IF(J25>=1.5,IF(K25="Paralelo",(E25*I25*J25-E25*J25*0.11-AT25-#REF!)*0.7,IF(K25="Sem Pavimento",(E25*I25*J25-AT25-#REF!)*0.7,IF(K25="Asfalto c/ Paralelo",(E25*I25*J25-E25*J25*0.16-AT25-#REF!)*0.7))),"-"),"-"),"-") -> - | BG25: 335.57 | BH25: 0
B26: T20 | C26: 19 | D26: 20 | E26: 245.84 | F26: 800 | G26: 1.84 | H26: 1.84 | I26: 1.84 | J26: =IF(F26="","",INDEX([144]Tabelas!A$1:G$17,VLOOKUP('MC - SERVIÇO ADUTORA - 1-3'!F26,[144]Tabelas!I$4:J$17,2,0),IF(AVERAGE(G26:H26)<1.25,2,IF(AVERAGE(G26:H26)<1.5,3,IF(AVERAGE(G26:H26)<3,4,IF(AVERAGE(G26:H26)<4.5,5,IF(AVERAGE(G26:H26)<6,6,IF(AVERAGE(G26:H26)>6,7)))))))) -> 2 | K26: Sem Pavimento | L26: 1475.04 | M26: 0 | N26: 0 | O26: 0 | P26: 0 | Q26: 0.3512 | R26: 0.36876 | S26: 0 | T26: 0 | U26: 5 | V26: 491.68 | W26: - | X26: 34.4176 | Y26: - | AA26: - | AB26: 904.6912 | AC26: - | AD26: 9.046912 | AE26: - | AF26: - | AG26: - | AH26: - | AI26: - | AJ26: 759.940608 | AK26: - | AL26: - | AM26: - | AN26: 135.70368 | AO26: - | AP26: - | AQ26: - | AR26: - | AS26: - | AT26: 123.5726621 | AU26: =IF(I26<=1.5,IF(J26<1.5,IF(K26="Paralelo",((E26*I26*J26-E26*J26*0.11-AT26-#REF!)*0.3)),IF(K26="Sem Pavimento",((E26*I26*J26-AT26-#REF!)*0.3),IF(K26="Asfalto c/ Paralelo",((E26*I26*J26-E26*J26*0.16-AT26-#REF!)*0.3),""))),"-") -> - | AV26: =IF(I26>1.5,IF(I26<=3,IF(J26<1.5,IF(K26="Paralelo",(E26*I26*J26-E26*J26*0.11-AT26-#REF!)*0.3,IF(K26="Sem Pavimento",((E26*I26*J26-AT26-#REF!)*0.3),IF(K26="Asfalto c/ Paralelo",(E26*I26*J26-E26*J26*0.16-AT26-#REF!)*0))),"-"),"-"),"-") -> - | AW26: =IF(I26<=1.5,IF(J26>=1.5,IF(K26="Paralelo",((E26*I26*J26-E26*J26*0.11-AT26-#REF!)*0.3)),IF(K26="Sem Pavimento",((E26*I26*J26-AT26-#REF!)*0.3),IF(K26="Asfalto c/ Paralelo",((E26*I26*J26-E26*J26*0.16-AT26-#REF!)*0.3),""))),"-") -> - | AX26: =IF(I26>1.5,IF(I26<=3,IF(J26>=1.5,IF(K26="Paralelo",(((J26*E26*((F26/1000)))-AT26)),IF(K26="Sem Pavimento",(((J26*E26*((F26/1000)))-AT26)),IF(K26="Asfalto c/ Paralelo",(E26*I26*J26*0.75-E26*J26*0.16-AT26-#REF!)*0.3))),"-"),"-"),"-") -> 269.7713379 | AY26: =IF(I26>3,IF(I26<=4.5,IF(J26>=1.5,IF(K26="Paralelo",(E26*I26*J26-E26*J26*0.11-AT26-#REF!)*0.3,IF(K26="Sem Pavimento",((E26*I26*J26-AT26-#REF!)*0.3),IF(K26="Asfalto c/ Paralelo",(E26*I26*J26-E26*J26*0.16-AT26-#REF!)*0.3))),"-"),"-"),"-") -> - | AZ26: =IF(I26>4.5,IF(I26<=6,IF(J26>=1.5,IF(K26="Paralelo",(E26*I26*J26-E26*J26*0.11-AT26-#REF!)*0.3,IF(K26="Sem Pavimento",(E26*I26*J26-AT26-#REF!)*0.3,IF(K26="Asfalto c/ Paralelo",(E26*I26*J26-E26*J26*0.16-AT26-#REF!)*0.3))),"-"),"-"),"-") -> - | BA26: =IF(I26<=1.5,IF(J26<1.5,IF(K26="Paralelo",((E26*I26*J26-E26*J26*0.11-AT26-#REF!)*0.7)),IF(K26="Sem Pavimento",((E26*I26*J26-AT26-#REF!)*0.7),IF(K26="Asfalto c/ Paralelo",((E26*I26*J26-E26*J26*0.16-AT26-#REF!)*0.7),""))),"-") -> - | BB26: =IF(I26>1.5,IF(I26<=3,IF(J26<1.5,IF(K26="Paralelo",(E26*I26*J26-E26*J26*0.11-AT26-#REF!)*0.7,IF(K26="Sem Pavimento",(E26*I26*J26-AT26-#REF!)*0.7,IF(K26="Asfalto c/ Paralelo",(E26*I26*J26-E26*J26*0.16-AT26-#REF!)*0.7))),"-"),"-"),"-") -> - | BC26: =IF(I26<=1.5,IF(J26>=1.5,IF(K26="Paralelo",((E26*I26*J26-E26*J26*0.11-AT26-#REF!)*0.7)),IF(K26="Sem Pavimento",((E26*I26*J26-AT26-#REF!)*0.7),IF(K26="Asfalto c/ Paralelo",((E26*I26*J26-E26*J26*0.16-AT26-#REF!)*0.7),""))),"-") -> - | BD26: 511.3472 | BE26: =IF(I26>3,IF(I26<=4.5,IF(J26>=1.5,IF(K26="Paralelo",(E26*I26*J26-E26*J26*0.11-AT26-#REF!)*0.7,IF(K26="Sem Pavimento",(E26*I26*J26-AT26-#REF!)*0.7,IF(K26="Asfalto c/ Paralelo",(E26*I26*J26-E26*J26*0.16-AT26-#REF!)*0.7))),"-"),"-"),"-") -> - | BF26: =IF(I26>4.5,IF(I26<=6,IF(J26>=1.5,IF(K26="Paralelo",(E26*I26*J26-E26*J26*0.11-AT26-#REF!)*0.7,IF(K26="Sem Pavimento",(E26*I26*J26-AT26-#REF!)*0.7,IF(K26="Asfalto c/ Paralelo",(E26*I26*J26-E26*J26*0.16-AT26-#REF!)*0.7))),"-"),"-"),"-") -> - | BG26: 461.16 | BH26: 0
B27: T21 | C27: 20 | D27: 21 | E27: 152.38 | F27: 800 | G27: 1.84 | H27: 1.84 | I27: 1.84 | J27: =IF(F27="","",INDEX([144]Tabelas!A$1:G$17,VLOOKUP('MC - SERVIÇO ADUTORA - 1-3'!F27,[144]Tabelas!I$4:J$17,2,0),IF(AVERAGE(G27:H27)<1.25,2,IF(AVERAGE(G27:H27)<1.5,3,IF(AVERAGE(G27:H27)<3,4,IF(AVERAGE(G27:H27)<4.5,5,IF(AVERAGE(G27:H27)<6,6,IF(AVERAGE(G27:H27)>6,7)))))))) -> 2 | K27: Sem Pavimento | L27: 914.28 | M27: 0 | N27: 0 | O27: 0 | P27: 0 | Q27: 0.2176857143 | R27: 0.22857 | S27: 0 | T27: 0 | U27: 3 | V27: 304.76 | W27: - | X27: 21.3332 | Y27: - | AA27: - | AB27: 560.7584 | AC27: - | AD27: 5.607584 | AE27: - | AF27: - | AG27: - | AH27: - | AI27: - | AJ27: 471.037056 | AK27: - | AL27: - | AM27: - | AN27: 84.11376 | AO27: - | AP27: - | AQ27: - | AR27: - | AS27: - | AT27: 76.59454217 | AU27: =IF(I27<=1.5,IF(J27<1.5,IF(K27="Paralelo",((E27*I27*J27-E27*J27*0.11-AT27-#REF!)*0.3)),IF(K27="Sem Pavimento",((E27*I27*J27-AT27-#REF!)*0.3),IF(K27="Asfalto c/ Paralelo",((E27*I27*J27-E27*J27*0.16-AT27-#REF!)*0.3),""))),"-") -> - | AV27: =IF(I27>1.5,IF(I27<=3,IF(J27<1.5,IF(K27="Paralelo",(E27*I27*J27-E27*J27*0.11-AT27-#REF!)*0.3,IF(K27="Sem Pavimento",((E27*I27*J27-AT27-#REF!)*0.3),IF(K27="Asfalto c/ Paralelo",(E27*I27*J27-E27*J27*0.16-AT27-#REF!)*0))),"-"),"-"),"-") -> - | AW27: =IF(I27<=1.5,IF(J27>=1.5,IF(K27="Paralelo",((E27*I27*J27-E27*J27*0.11-AT27-#REF!)*0.3)),IF(K27="Sem Pavimento",((E27*I27*J27-AT27-#REF!)*0.3),IF(K27="Asfalto c/ Paralelo",((E27*I27*J27-E27*J27*0.16-AT27-#REF!)*0.3),""))),"-") -> - | AX27: =IF(I27>1.5,IF(I27<=3,IF(J27>=1.5,IF(K27="Paralelo",(((J27*E27*((F27/1000)))-AT27)),IF(K27="Sem Pavimento",(((J27*E27*((F27/1000)))-AT27)),IF(K27="Asfalto c/ Paralelo",(E27*I27*J27*0.75-E27*J27*0.16-AT27-#REF!)*0.3))),"-"),"-"),"-") -> 167.2134578 | AY27: =IF(I27>3,IF(I27<=4.5,IF(J27>=1.5,IF(K27="Paralelo",(E27*I27*J27-E27*J27*0.11-AT27-#REF!)*0.3,IF(K27="Sem Pavimento",((E27*I27*J27-AT27-#REF!)*0.3),IF(K27="Asfalto c/ Paralelo",(E27*I27*J27-E27*J27*0.16-AT27-#REF!)*0.3))),"-"),"-"),"-") -> - | AZ27: =IF(I27>4.5,IF(I27<=6,IF(J27>=1.5,IF(K27="Paralelo",(E27*I27*J27-E27*J27*0.11-AT27-#REF!)*0.3,IF(K27="Sem Pavimento",(E27*I27*J27-AT27-#REF!)*0.3,IF(K27="Asfalto c/ Paralelo",(E27*I27*J27-E27*J27*0.16-AT27-#REF!)*0.3))),"-"),"-"),"-") -> - | BA27: =IF(I27<=1.5,IF(J27<1.5,IF(K27="Paralelo",((E27*I27*J27-E27*J27*0.11-AT27-#REF!)*0.7)),IF(K27="Sem Pavimento",((E27*I27*J27-AT27-#REF!)*0.7),IF(K27="Asfalto c/ Paralelo",((E27*I27*J27-E27*J27*0.16-AT27-#REF!)*0.7),""))),"-") -> - | BB27: =IF(I27>1.5,IF(I27<=3,IF(J27<1.5,IF(K27="Paralelo",(E27*I27*J27-E27*J27*0.11-AT27-#REF!)*0.7,IF(K27="Sem Pavimento",(E27*I27*J27-AT27-#REF!)*0.7,IF(K27="Asfalto c/ Paralelo",(E27*I27*J27-E27*J27*0.16-AT27-#REF!)*0.7))),"-"),"-"),"-") -> - | BC27: =IF(I27<=1.5,IF(J27>=1.5,IF(K27="Paralelo",((E27*I27*J27-E27*J27*0.11-AT27-#REF!)*0.7)),IF(K27="Sem Pavimento",((E27*I27*J27-AT27-#REF!)*0.7),IF(K27="Asfalto c/ Paralelo",((E27*I27*J27-E27*J27*0.16-AT27-#REF!)*0.7),""))),"-") -> - | BD27: 316.9504 | BE27: =IF(I27>3,IF(I27<=4.5,IF(J27>=1.5,IF(K27="Paralelo",(E27*I27*J27-E27*J27*0.11-AT27-#REF!)*0.7,IF(K27="Sem Pavimento",(E27*I27*J27-AT27-#REF!)*0.7,IF(K27="Asfalto c/ Paralelo",(E27*I27*J27-E27*J27*0.16-AT27-#REF!)*0.7))),"-"),"-"),"-") -> - | BF27: =IF(I27>4.5,IF(I27<=6,IF(J27>=1.5,IF(K27="Paralelo",(E27*I27*J27-E27*J27*0.11-AT27-#REF!)*0.7,IF(K27="Sem Pavimento",(E27*I27*J27-AT27-#REF!)*0.7,IF(K27="Asfalto c/ Paralelo",(E27*I27*J27-E27*J27*0.16-AT27-#REF!)*0.7))),"-"),"-"),"-") -> - | BG27: 285.84 | BH27: 0
B28: T22 | C28: 21 | D28: 22 | E28: 136.39 | F28: 800 | G28: 1.84 | H28: 1.84 | I28: 1.84 | J28: =IF(F28="","",INDEX([144]Tabelas!A$1:G$17,VLOOKUP('MC - SERVIÇO ADUTORA - 1-3'!F28,[144]Tabelas!I$4:J$17,2,0),IF(AVERAGE(G28:H28)<1.25,2,IF(AVERAGE(G28:H28)<1.5,3,IF(AVERAGE(G28:H28)<3,4,IF(AVERAGE(G28:H28)<4.5,5,IF(AVERAGE(G28:H28)<6,6,IF(AVERAGE(G28:H28)>6,7)))))))) -> 2 | K28: Sem Pavimento | L28: 818.34 | M28: 0 | N28: 0 | O28: 0 | P28: 0 | Q28: 0.1948428571 | R28: 0.204585 | S28: 0 | T28: 0 | U28: 3 | V28: 272.78 | W28: - | X28: 19.0946 | Y28: - | AA28: - | AB28: 501.9152 | AC28: - | AD28: 5.019152 | AE28: - | AF28: - | AG28: - | AH28: - | AI28: - | AJ28: 421.608768 | AK28: - | AL28: - | AM28: - | AN28: 75.28728 | AO28: - | AP28: - | AQ28: - | AR28: - | AS28: - | AT28: 68.55709152 | AU28: =IF(I28<=1.5,IF(J28<1.5,IF(K28="Paralelo",((E28*I28*J28-E28*J28*0.11-AT28-#REF!)*0.3)),IF(K28="Sem Pavimento",((E28*I28*J28-AT28-#REF!)*0.3),IF(K28="Asfalto c/ Paralelo",((E28*I28*J28-E28*J28*0.16-AT28-#REF!)*0.3),""))),"-") -> - | AV28: =IF(I28>1.5,IF(I28<=3,IF(J28<1.5,IF(K28="Paralelo",(E28*I28*J28-E28*J28*0.11-AT28-#REF!)*0.3,IF(K28="Sem Pavimento",((E28*I28*J28-AT28-#REF!)*0.3),IF(K28="Asfalto c/ Paralelo",(E28*I28*J28-E28*J28*0.16-AT28-#REF!)*0))),"-"),"-"),"-") -> - | AW28: =IF(I28<=1.5,IF(J28>=1.5,IF(K28="Paralelo",((E28*I28*J28-E28*J28*0.11-AT28-#REF!)*0.3)),IF(K28="Sem Pavimento",((E28*I28*J28-AT28-#REF!)*0.3),IF(K28="Asfalto c/ Paralelo",((E28*I28*J28-E28*J28*0.16-AT28-#REF!)*0.3),""))),"-") -> - | AX28: =IF(I28>1.5,IF(I28<=3,IF(J28>=1.5,IF(K28="Paralelo",(((J28*E28*((F28/1000)))-AT28)),IF(K28="Sem Pavimento",(((J28*E28*((F28/1000)))-AT28)),IF(K28="Asfalto c/ Paralelo",(E28*I28*J28*0.75-E28*J28*0.16-AT28-#REF!)*0.3))),"-"),"-"),"-") -> 149.6669085 | AY28: =IF(I28>3,IF(I28<=4.5,IF(J28>=1.5,IF(K28="Paralelo",(E28*I28*J28-E28*J28*0.11-AT28-#REF!)*0.3,IF(K28="Sem Pavimento",((E28*I28*J28-AT28-#REF!)*0.3),IF(K28="Asfalto c/ Paralelo",(E28*I28*J28-E28*J28*0.16-AT28-#REF!)*0.3))),"-"),"-"),"-") -> - | AZ28: =IF(I28>4.5,IF(I28<=6,IF(J28>=1.5,IF(K28="Paralelo",(E28*I28*J28-E28*J28*0.11-AT28-#REF!)*0.3,IF(K28="Sem Pavimento",(E28*I28*J28-AT28-#REF!)*0.3,IF(K28="Asfalto c/ Paralelo",(E28*I28*J28-E28*J28*0.16-AT28-#REF!)*0.3))),"-"),"-"),"-") -> - | BA28: =IF(I28<=1.5,IF(J28<1.5,IF(K28="Paralelo",((E28*I28*J28-E28*J28*0.11-AT28-#REF!)*0.7)),IF(K28="Sem Pavimento",((E28*I28*J28-AT28-#REF!)*0.7),IF(K28="Asfalto c/ Paralelo",((E28*I28*J28-E28*J28*0.16-AT28-#REF!)*0.7),""))),"-") -> - | BB28: =IF(I28>1.5,IF(I28<=3,IF(J28<1.5,IF(K28="Paralelo",(E28*I28*J28-E28*J28*0.11-AT28-#REF!)*0.7,IF(K28="Sem Pavimento",(E28*I28*J28-AT28-#REF!)*0.7,IF(K28="Asfalto c/ Paralelo",(E28*I28*J28-E28*J28*0.16-AT28-#REF!)*0.7))),"-"),"-"),"-") -> - | BC28: =IF(I28<=1.5,IF(J28>=1.5,IF(K28="Paralelo",((E28*I28*J28-E28*J28*0.11-AT28-#REF!)*0.7)),IF(K28="Sem Pavimento",((E28*I28*J28-AT28-#REF!)*0.7),IF(K28="Asfalto c/ Paralelo",((E28*I28*J28-E28*J28*0.16-AT28-#REF!)*0.7),""))),"-") -> - | BD28: 283.6912 | BE28: =IF(I28>3,IF(I28<=4.5,IF(J28>=1.5,IF(K28="Paralelo",(E28*I28*J28-E28*J28*0.11-AT28-#REF!)*0.7,IF(K28="Sem Pavimento",(E28*I28*J28-AT28-#REF!)*0.7,IF(K28="Asfalto c/ Paralelo",(E28*I28*J28-E28*J28*0.16-AT28-#REF!)*0.7))),"-"),"-"),"-") -> - | BF28: =IF(I28>4.5,IF(I28<=6,IF(J28>=1.5,IF(K28="Paralelo",(E28*I28*J28-E28*J28*0.11-AT28-#REF!)*0.7,IF(K28="Sem Pavimento",(E28*I28*J28-AT28-#REF!)*0.7,IF(K28="Asfalto c/ Paralelo",(E28*I28*J28-E28*J28*0.16-AT28-#REF!)*0.7))),"-"),"-"),"-") -> - | BG28: 255.85 | BH28: 0
B29: T23 | C29: 22 | D29: 23 | E29: 40.85 | F29: 800 | G29: 1.84 | H29: 1.84 | I29: 1.84 | J29: =IF(F29="","",INDEX([144]Tabelas!A$1:G$17,VLOOKUP('MC - SERVIÇO ADUTORA - 1-3'!F29,[144]Tabelas!I$4:J$17,2,0),IF(AVERAGE(G29:H29)<1.25,2,IF(AVERAGE(G29:H29)<1.5,3,IF(AVERAGE(G29:H29)<3,4,IF(AVERAGE(G29:H29)<4.5,5,IF(AVERAGE(G29:H29)<6,6,IF(AVERAGE(G29:H29)>6,7)))))))) -> 2 | K29: Sem Pavimento | L29: 245.1 | M29: 0 | N29: 0 | O29: 0 | P29: 0 | Q29: 0.05835714286 | R29: 0.061275 | S29: 0 | T29: 0 | U29: 1 | V29: 81.7 | W29: - | X29: 5.719 | Y29: - | AA29: - | AB29: 150.328 | AC29: - | AD29: 1.50328 | AE29: - | AF29: - | AG29: - | AH29: - | AI29: - | AJ29: 126.27552 | AK29: - | AL29: - | AM29: - | AN29: 22.5492 | AO29: - | AP29: - | AQ29: - | AR29: - | AS29: - | AT29: 20.53344958 | AU29: =IF(I29<=1.5,IF(J29<1.5,IF(K29="Paralelo",((E29*I29*J29-E29*J29*0.11-AT29-#REF!)*0.3)),IF(K29="Sem Pavimento",((E29*I29*J29-AT29-#REF!)*0.3),IF(K29="Asfalto c/ Paralelo",((E29*I29*J29-E29*J29*0.16-AT29-#REF!)*0.3),""))),"-") -> - | AV29: =IF(I29>1.5,IF(I29<=3,IF(J29<1.5,IF(K29="Paralelo",(E29*I29*J29-E29*J29*0.11-AT29-#REF!)*0.3,IF(K29="Sem Pavimento",((E29*I29*J29-AT29-#REF!)*0.3),IF(K29="Asfalto c/ Paralelo",(E29*I29*J29-E29*J29*0.16-AT29-#REF!)*0))),"-"),"-"),"-") -> - | AW29: =IF(I29<=1.5,IF(J29>=1.5,IF(K29="Paralelo",((E29*I29*J29-E29*J29*0.11-AT29-#REF!)*0.3)),IF(K29="Sem Pavimento",((E29*I29*J29-AT29-#REF!)*0.3),IF(K29="Asfalto c/ Paralelo",((E29*I29*J29-E29*J29*0.16-AT29-#REF!)*0.3),""))),"-") -> - | AX29: =IF(I29>1.5,IF(I29<=3,IF(J29>=1.5,IF(K29="Paralelo",(((J29*E29*((F29/1000)))-AT29)),IF(K29="Sem Pavimento",(((J29*E29*((F29/1000)))-AT29)),IF(K29="Asfalto c/ Paralelo",(E29*I29*J29*0.75-E29*J29*0.16-AT29-#REF!)*0.3))),"-"),"-"),"-") -> 44.82655042 | AY29: =IF(I29>3,IF(I29<=4.5,IF(J29>=1.5,IF(K29="Paralelo",(E29*I29*J29-E29*J29*0.11-AT29-#REF!)*0.3,IF(K29="Sem Pavimento",((E29*I29*J29-AT29-#REF!)*0.3),IF(K29="Asfalto c/ Paralelo",(E29*I29*J29-E29*J29*0.16-AT29-#REF!)*0.3))),"-"),"-"),"-") -> - | AZ29: =IF(I29>4.5,IF(I29<=6,IF(J29>=1.5,IF(K29="Paralelo",(E29*I29*J29-E29*J29*0.11-AT29-#REF!)*0.3,IF(K29="Sem Pavimento",(E29*I29*J29-AT29-#REF!)*0.3,IF(K29="Asfalto c/ Paralelo",(E29*I29*J29-E29*J29*0.16-AT29-#REF!)*0.3))),"-"),"-"),"-") -> - | BA29: =IF(I29<=1.5,IF(J29<1.5,IF(K29="Paralelo",((E29*I29*J29-E29*J29*0.11-AT29-#REF!)*0.7)),IF(K29="Sem Pavimento",((E29*I29*J29-AT29-#REF!)*0.7),IF(K29="Asfalto c/ Paralelo",((E29*I29*J29-E29*J29*0.16-AT29-#REF!)*0.7),""))),"-") -> - | BB29: =IF(I29>1.5,IF(I29<=3,IF(J29<1.5,IF(K29="Paralelo",(E29*I29*J29-E29*J29*0.11-AT29-#REF!)*0.7,IF(K29="Sem Pavimento",(E29*I29*J29-AT29-#REF!)*0.7,IF(K29="Asfalto c/ Paralelo",(E29*I29*J29-E29*J29*0.16-AT29-#REF!)*0.7))),"-"),"-"),"-") -> - | BC29: =IF(I29<=1.5,IF(J29>=1.5,IF(K29="Paralelo",((E29*I29*J29-E29*J29*0.11-AT29-#REF!)*0.7)),IF(K29="Sem Pavimento",((E29*I29*J29-AT29-#REF!)*0.7),IF(K29="Asfalto c/ Paralelo",((E29*I29*J29-E29*J29*0.16-AT29-#REF!)*0.7),""))),"-") -> - | BD29: 84.968 | BE29: =IF(I29>3,IF(I29<=4.5,IF(J29>=1.5,IF(K29="Paralelo",(E29*I29*J29-E29*J29*0.11-AT29-#REF!)*0.7,IF(K29="Sem Pavimento",(E29*I29*J29-AT29-#REF!)*0.7,IF(K29="Asfalto c/ Paralelo",(E29*I29*J29-E29*J29*0.16-AT29-#REF!)*0.7))),"-"),"-"),"-") -> - | BF29: =IF(I29>4.5,IF(I29<=6,IF(J29>=1.5,IF(K29="Paralelo",(E29*I29*J29-E29*J29*0.11-AT29-#REF!)*0.7,IF(K29="Sem Pavimento",(E29*I29*J29-AT29-#REF!)*0.7,IF(K29="Asfalto c/ Paralelo",(E29*I29*J29-E29*J29*0.16-AT29-#REF!)*0.7))),"-"),"-"),"-") -> - | BG29: 76.63 | BH29: 0
B30: T24 | C30: 23 | D30: 24 | E30: 148.76 | F30: 800 | G30: 1.84 | H30: 1.84 | I30: 1.84 | J30: =IF(F30="","",INDEX([144]Tabelas!A$1:G$17,VLOOKUP('MC - SERVIÇO ADUTORA - 1-3'!F30,[144]Tabelas!I$4:J$17,2,0),IF(AVERAGE(G30:H30)<1.25,2,IF(AVERAGE(G30:H30)<1.5,3,IF(AVERAGE(G30:H30)<3,4,IF(AVERAGE(G30:H30)<4.5,5,IF(AVERAGE(G30:H30)<6,6,IF(AVERAGE(G30:H30)>6,7)))))))) -> 2 | K30: Sem Pavimento | L30: 892.56 | M30: 0 | N30: 0 | O30: 0 | P30: 0 | Q30: 0.2125142857 | R30: 0.22314 | S30: 0 | T30: 0 | U30: 3 | V30: 297.52 | W30: - | X30: 20.8264 | Y30: - | AA30: - | AB30: 547.4368 | AC30: - | AD30: 5.474368 | AE30: - | AF30: - | AG30: - | AH30: - | AI30: - | AJ30: 459.846912 | AK30: - | AL30: - | AM30: - | AN30: 82.11552 | AO30: - | AP30: - | AQ30: - | AR30: - | AS30: - | AT30: 74.7749317 | AU30: =IF(I30<=1.5,IF(J30<1.5,IF(K30="Paralelo",((E30*I30*J30-E30*J30*0.11-AT30-#REF!)*0.3)),IF(K30="Sem Pavimento",((E30*I30*J30-AT30-#REF!)*0.3),IF(K30="Asfalto c/ Paralelo",((E30*I30*J30-E30*J30*0.16-AT30-#REF!)*0.3),""))),"-") -> - | AV30: =IF(I30>1.5,IF(I30<=3,IF(J30<1.5,IF(K30="Paralelo",(E30*I30*J30-E30*J30*0.11-AT30-#REF!)*0.3,IF(K30="Sem Pavimento",((E30*I30*J30-AT30-#REF!)*0.3),IF(K30="Asfalto c/ Paralelo",(E30*I30*J30-E30*J30*0.16-AT30-#REF!)*0))),"-"),"-"),"-") -> - | AW30: =IF(I30<=1.5,IF(J30>=1.5,IF(K30="Paralelo",((E30*I30*J30-E30*J30*0.11-AT30-#REF!)*0.3)),IF(K30="Sem Pavimento",((E30*I30*J30-AT30-#REF!)*0.3),IF(K30="Asfalto c/ Paralelo",((E30*I30*J30-E30*J30*0.16-AT30-#REF!)*0.3),""))),"-") -> - | AX30: =IF(I30>1.5,IF(I30<=3,IF(J30>=1.5,IF(K30="Paralelo",(((J30*E30*((F30/1000)))-AT30)),IF(K30="Sem Pavimento",(((J30*E30*((F30/1000)))-AT30)),IF(K30="Asfalto c/ Paralelo",(E30*I30*J30*0.75-E30*J30*0.16-AT30-#REF!)*0.3))),"-"),"-"),"-") -> 163.2410683 | AY30: =IF(I30>3,IF(I30<=4.5,IF(J30>=1.5,IF(K30="Paralelo",(E30*I30*J30-E30*J30*0.11-AT30-#REF!)*0.3,IF(K30="Sem Pavimento",((E30*I30*J30-AT30-#REF!)*0.3),IF(K30="Asfalto c/ Paralelo",(E30*I30*J30-E30*J30*0.16-AT30-#REF!)*0.3))),"-"),"-"),"-") -> - | AZ30: =IF(I30>4.5,IF(I30<=6,IF(J30>=1.5,IF(K30="Paralelo",(E30*I30*J30-E30*J30*0.11-AT30-#REF!)*0.3,IF(K30="Sem Pavimento",(E30*I30*J30-AT30-#REF!)*0.3,IF(K30="Asfalto c/ Paralelo",(E30*I30*J30-E30*J30*0.16-AT30-#REF!)*0.3))),"-"),"-"),"-") -> - | BA30: =IF(I30<=1.5,IF(J30<1.5,IF(K30="Paralelo",((E30*I30*J30-E30*J30*0.11-AT30-#REF!)*0.7)),IF(K30="Sem Pavimento",((E30*I30*J30-AT30-#REF!)*0.7),IF(K30="Asfalto c/ Paralelo",((E30*I30*J30-E30*J30*0.16-AT30-#REF!)*0.7),""))),"-") -> - | BB30: =IF(I30>1.5,IF(I30<=3,IF(J30<1.5,IF(K30="Paralelo",(E30*I30*J30-E30*J30*0.11-AT30-#REF!)*0.7,IF(K30="Sem Pavimento",(E30*I30*J30-AT30-#REF!)*0.7,IF(K30="Asfalto c/ Paralelo",(E30*I30*J30-E30*J30*0.16-AT30-#REF!)*0.7))),"-"),"-"),"-") -> - | BC30: =IF(I30<=1.5,IF(J30>=1.5,IF(K30="Paralelo",((E30*I30*J30-E30*J30*0.11-AT30-#REF!)*0.7)),IF(K30="Sem Pavimento",((E30*I30*J30-AT30-#REF!)*0.7),IF(K30="Asfalto c/ Paralelo",((E30*I30*J30-E30*J30*0.16-AT30-#REF!)*0.7),""))),"-") -> - | BD30: 309.4208 | BE30: =IF(I30>3,IF(I30<=4.5,IF(J30>=1.5,IF(K30="Paralelo",(E30*I30*J30-E30*J30*0.11-AT30-#REF!)*0.7,IF(K30="Sem Pavimento",(E30*I30*J30-AT30-#REF!)*0.7,IF(K30="Asfalto c/ Paralelo",(E30*I30*J30-E30*J30*0.16-AT30-#REF!)*0.7))),"-"),"-"),"-") -> - | BF30: =IF(I30>4.5,IF(I30<=6,IF(J30>=1.5,IF(K30="Paralelo",(E30*I30*J30-E30*J30*0.11-AT30-#REF!)*0.7,IF(K30="Sem Pavimento",(E30*I30*J30-AT30-#REF!)*0.7,IF(K30="Asfalto c/ Paralelo",(E30*I30*J30-E30*J30*0.16-AT30-#REF!)*0.7))),"-"),"-"),"-") -> - | BG30: 279.05 | BH30: 0
B31: T25 | C31: 24 | D31: 25 | E31: 132.6 | F31: 800 | G31: 1.84 | H31: 1.84 | I31: 1.84 | J31: =IF(F31="","",INDEX([144]Tabelas!A$1:G$17,VLOOKUP('MC - SERVIÇO ADUTORA - 1-3'!F31,[144]Tabelas!I$4:J$17,2,0),IF(AVERAGE(G31:H31)<1.25,2,IF(AVERAGE(G31:H31)<1.5,3,IF(AVERAGE(G31:H31)<3,4,IF(AVERAGE(G31:H31)<4.5,5,IF(AVERAGE(G31:H31)<6,6,IF(AVERAGE(G31:H31)>6,7)))))))) -> 2 | K31: Sem Pavimento | L31: 795.6 | M31: 0 | N31: 0 | O31: 0 | P31: 0 | Q31: 0.1894285714 | R31: 0.1989 | S31: 0 | T31: 0 | U31: 3 | V31: 265.2 | W31: - | X31: 18.564 | Y31: - | AA31: - | AB31: 487.968 | AC31: - | AD31: 4.87968 | AE31: - | AF31: - | AG31: - | AH31: - | AI31: - | AJ31: 409.89312 | AK31: - | AL31: - | AM31: - | AN31: 73.1952 | AO31: - | AP31: - | AQ31: - | AR31: - | AS31: - | AT31: 66.65202974 | AU31: =IF(I31<=1.5,IF(J31<1.5,IF(K31="Paralelo",((E31*I31*J31-E31*J31*0.11-AT31-#REF!)*0.3)),IF(K31="Sem Pavimento",((E31*I31*J31-AT31-#REF!)*0.3),IF(K31="Asfalto c/ Paralelo",((E31*I31*J31-E31*J31*0.16-AT31-#REF!)*0.3),""))),"-") -> - | AV31: =IF(I31>1.5,IF(I31<=3,IF(J31<1.5,IF(K31="Paralelo",(E31*I31*J31-E31*J31*0.11-AT31-#REF!)*0.3,IF(K31="Sem Pavimento",((E31*I31*J31-AT31-#REF!)*0.3),IF(K31="Asfalto c/ Paralelo",(E31*I31*J31-E31*J31*0.16-AT31-#REF!)*0))),"-"),"-"),"-") -> - | AW31: =IF(I31<=1.5,IF(J31>=1.5,IF(K31="Paralelo",((E31*I31*J31-E31*J31*0.11-AT31-#REF!)*0.3)),IF(K31="Sem Pavimento",((E31*I31*J31-AT31-#REF!)*0.3),IF(K31="Asfalto c/ Paralelo",((E31*I31*J31-E31*J31*0.16-AT31-#REF!)*0.3),""))),"-") -> - | AX31: =IF(I31>1.5,IF(I31<=3,IF(J31>=1.5,IF(K31="Paralelo",(((J31*E31*((F31/1000)))-AT31)),IF(K31="Sem Pavimento",(((J31*E31*((F31/1000)))-AT31)),IF(K31="Asfalto c/ Paralelo",(E31*I31*J31*0.75-E31*J31*0.16-AT31-#REF!)*0.3))),"-"),"-"),"-") -> 145.5079703 | AY31: =IF(I31>3,IF(I31<=4.5,IF(J31>=1.5,IF(K31="Paralelo",(E31*I31*J31-E31*J31*0.11-AT31-#REF!)*0.3,IF(K31="Sem Pavimento",((E31*I31*J31-AT31-#REF!)*0.3),IF(K31="Asfalto c/ Paralelo",(E31*I31*J31-E31*J31*0.16-AT31-#REF!)*0.3))),"-"),"-"),"-") -> - | AZ31: =IF(I31>4.5,IF(I31<=6,IF(J31>=1.5,IF(K31="Paralelo",(E31*I31*J31-E31*J31*0.11-AT31-#REF!)*0.3,IF(K31="Sem Pavimento",(E31*I31*J31-AT31-#REF!)*0.3,IF(K31="Asfalto c/ Paralelo",(E31*I31*J31-E31*J31*0.16-AT31-#REF!)*0.3))),"-"),"-"),"-") -> - | BA31: =IF(I31<=1.5,IF(J31<1.5,IF(K31="Paralelo",((E31*I31*J31-E31*J31*0.11-AT31-#REF!)*0.7)),IF(K31="Sem Pavimento",((E31*I31*J31-AT31-#REF!)*0.7),IF(K31="Asfalto c/ Paralelo",((E31*I31*J31-E31*J31*0.16-AT31-#REF!)*0.7),""))),"-") -> - | BB31: =IF(I31>1.5,IF(I31<=3,IF(J31<1.5,IF(K31="Paralelo",(E31*I31*J31-E31*J31*0.11-AT31-#REF!)*0.7,IF(K31="Sem Pavimento",(E31*I31*J31-AT31-#REF!)*0.7,IF(K31="Asfalto c/ Paralelo",(E31*I31*J31-E31*J31*0.16-AT31-#REF!)*0.7))),"-"),"-"),"-") -> - | BC31: =IF(I31<=1.5,IF(J31>=1.5,IF(K31="Paralelo",((E31*I31*J31-E31*J31*0.11-AT31-#REF!)*0.7)),IF(K31="Sem Pavimento",((E31*I31*J31-AT31-#REF!)*0.7),IF(K31="Asfalto c/ Paralelo",((E31*I31*J31-E31*J31*0.16-AT31-#REF!)*0.7),""))),"-") -> - | BD31: 275.808 | BE31: =IF(I31>3,IF(I31<=4.5,IF(J31>=1.5,IF(K31="Paralelo",(E31*I31*J31-E31*J31*0.11-AT31-#REF!)*0.7,IF(K31="Sem Pavimento",(E31*I31*J31-AT31-#REF!)*0.7,IF(K31="Asfalto c/ Paralelo",(E31*I31*J31-E31*J31*0.16-AT31-#REF!)*0.7))),"-"),"-"),"-") -> - | BF31: =IF(I31>4.5,IF(I31<=6,IF(J31>=1.5,IF(K31="Paralelo",(E31*I31*J31-E31*J31*0.11-AT31-#REF!)*0.7,IF(K31="Sem Pavimento",(E31*I31*J31-AT31-#REF!)*0.7,IF(K31="Asfalto c/ Paralelo",(E31*I31*J31-E31*J31*0.16-AT31-#REF!)*0.7))),"-"),"-"),"-") -> - | BG31: 248.74 | BH31: 0
B32: T26 | C32: 25 | D32: 26 | E32: 49.09 | F32: 800 | G32: 1.84 | H32: 1.84 | I32: 1.84 | J32: =IF(F32="","",INDEX([144]Tabelas!A$1:G$17,VLOOKUP('MC - SERVIÇO ADUTORA - 1-3'!F32,[144]Tabelas!I$4:J$17,2,0),IF(AVERAGE(G32:H32)<1.25,2,IF(AVERAGE(G32:H32)<1.5,3,IF(AVERAGE(G32:H32)<3,4,IF(AVERAGE(G32:H32)<4.5,5,IF(AVERAGE(G32:H32)<6,6,IF(AVERAGE(G32:H32)>6,7)))))))) -> 2 | K32: Sem Pavimento | L32: 294.54 | M32: 0 | N32: 0 | O32: 0 | P32: 0 | Q32: 0.07012857143 | R32: 0.073635 | S32: 0 | T32: 0 | U32: 1 | V32: 98.18 | W32: - | X32: 6.8726 | Y32: - | AA32: - | AB32: 180.6512 | AC32: - | AD32: 1.806512 | AE32: - | AF32: - | AG32: - | AH32: - | AI32: - | AJ32: 151.747008 | AK32: - | AL32: - | AM32: - | AN32: 27.09768 | AO32: - | AP32: - | AQ32: - | AR32: - | AS32: - | AT32: 24.67532534 | AU32: =IF(I32<=1.5,IF(J32<1.5,IF(K32="Paralelo",((E32*I32*J32-E32*J32*0.11-AT32-#REF!)*0.3)),IF(K32="Sem Pavimento",((E32*I32*J32-AT32-#REF!)*0.3),IF(K32="Asfalto c/ Paralelo",((E32*I32*J32-E32*J32*0.16-AT32-#REF!)*0.3),""))),"-") -> - | AV32: =IF(I32>1.5,IF(I32<=3,IF(J32<1.5,IF(K32="Paralelo",(E32*I32*J32-E32*J32*0.11-AT32-#REF!)*0.3,IF(K32="Sem Pavimento",((E32*I32*J32-AT32-#REF!)*0.3),IF(K32="Asfalto c/ Paralelo",(E32*I32*J32-E32*J32*0.16-AT32-#REF!)*0))),"-"),"-"),"-") -> - | AW32: =IF(I32<=1.5,IF(J32>=1.5,IF(K32="Paralelo",((E32*I32*J32-E32*J32*0.11-AT32-#REF!)*0.3)),IF(K32="Sem Pavimento",((E32*I32*J32-AT32-#REF!)*0.3),IF(K32="Asfalto c/ Paralelo",((E32*I32*J32-E32*J32*0.16-AT32-#REF!)*0.3),""))),"-") -> - | AX32: =IF(I32>1.5,IF(I32<=3,IF(J32>=1.5,IF(K32="Paralelo",(((J32*E32*((F32/1000)))-AT32)),IF(K32="Sem Pavimento",(((J32*E32*((F32/1000)))-AT32)),IF(K32="Asfalto c/ Paralelo",(E32*I32*J32*0.75-E32*J32*0.16-AT32-#REF!)*0.3))),"-"),"-"),"-") -> 53.86867466 | AY32: =IF(I32>3,IF(I32<=4.5,IF(J32>=1.5,IF(K32="Paralelo",(E32*I32*J32-E32*J32*0.11-AT32-#REF!)*0.3,IF(K32="Sem Pavimento",((E32*I32*J32-AT32-#REF!)*0.3),IF(K32="Asfalto c/ Paralelo",(E32*I32*J32-E32*J32*0.16-AT32-#REF!)*0.3))),"-"),"-"),"-") -> - | AZ32: =IF(I32>4.5,IF(I32<=6,IF(J32>=1.5,IF(K32="Paralelo",(E32*I32*J32-E32*J32*0.11-AT32-#REF!)*0.3,IF(K32="Sem Pavimento",(E32*I32*J32-AT32-#REF!)*0.3,IF(K32="Asfalto c/ Paralelo",(E32*I32*J32-E32*J32*0.16-AT32-#REF!)*0.3))),"-"),"-"),"-") -> - | BA32: =IF(I32<=1.5,IF(J32<1.5,IF(K32="Paralelo",((E32*I32*J32-E32*J32*0.11-AT32-#REF!)*0.7)),IF(K32="Sem Pavimento",((E32*I32*J32-AT32-#REF!)*0.7),IF(K32="Asfalto c/ Paralelo",((E32*I32*J32-E32*J32*0.16-AT32-#REF!)*0.7),""))),"-") -> - | BB32: =IF(I32>1.5,IF(I32<=3,IF(J32<1.5,IF(K32="Paralelo",(E32*I32*J32-E32*J32*0.11-AT32-#REF!)*0.7,IF(K32="Sem Pavimento",(E32*I32*J32-AT32-#REF!)*0.7,IF(K32="Asfalto c/ Paralelo",(E32*I32*J32-E32*J32*0.16-AT32-#REF!)*0.7))),"-"),"-"),"-") -> - | BC32: =IF(I32<=1.5,IF(J32>=1.5,IF(K32="Paralelo",((E32*I32*J32-E32*J32*0.11-AT32-#REF!)*0.7)),IF(K32="Sem Pavimento",((E32*I32*J32-AT32-#REF!)*0.7),IF(K32="Asfalto c/ Paralelo",((E32*I32*J32-E32*J32*0.16-AT32-#REF!)*0.7),""))),"-") -> - | BD32: 102.1072 | BE32: =IF(I32>3,IF(I32<=4.5,IF(J32>=1.5,IF(K32="Paralelo",(E32*I32*J32-E32*J32*0.11-AT32-#REF!)*0.7,IF(K32="Sem Pavimento",(E32*I32*J32-AT32-#REF!)*0.7,IF(K32="Asfalto c/ Paralelo",(E32*I32*J32-E32*J32*0.16-AT32-#REF!)*0.7))),"-"),"-"),"-") -> - | BF32: =IF(I32>4.5,IF(I32<=6,IF(J32>=1.5,IF(K32="Paralelo",(E32*I32*J32-E32*J32*0.11-AT32-#REF!)*0.7,IF(K32="Sem Pavimento",(E32*I32*J32-AT32-#REF!)*0.7,IF(K32="Asfalto c/ Paralelo",(E32*I32*J32-E32*J32*0.16-AT32-#REF!)*0.7))),"-"),"-"),"-") -> - | BG32: 92.08 | BH32: 0
